Workbook

Sheet Supplementary Table 1
A1: Supplementary Table 1|Sample Metadata and Assembly Statistics
A2: Sample | B2: Date | C2: Replicate | D2: Plot | E2: Extended Rainfall | F2: Depth | G2: Read Length | H2: Assembly Method | I2: Min k-mer | J2: Max k-mer | K2: Step Size | L2: Total Reads | M2: Reads Assembled | N2: Percent Assembled | O2: Assembly Length (bp) | P2: Total Contigs | Q2: N50 | R2: Longest Contig | S2: Assembly Length >= 1kb (bp) | T2: Contigs >= 1kb | U2: N50 >= 1kb | V2: Fration Contigs >= 1kb (%) | W2: Bases in Contigs >= 1kb (%) | X2: Total ORFs
A3: 14_0903_02_20cm | B3: 2014-09-03 | C3: A | D3: 2 | E3: Treatment | F3: 10-20cm | G3: 200 | H3: IDBA_UD | I3: 30 | J3: 200 | K3: 10 | L3: 90,999,158 | M3: 20,458,508 | N3: =M3/L3 -> 22.5% | O3: 795,074,910 | P3: 711,057 | Q3: 1,665 | R3: 539,861 | S3: 526,536,764 | T3: 198,604 | U3: 3,055 | V3: =T3/P3 -> 27.9% | W3: =S3/O3 -> 66.2% | X3: 665,194
A4: 14_0903_02_30cm | B4: 2014-09-03 | C4: A | D4: 2 | E4: Treatment | F4: 20-30cm | G4: 200 | H4: IDBA_UD | I4: 30 | J4: 200 | K4: 10 | L4: 165,140,288 | M4: 52,334,322 | N4: 31.7% | O4: 1,932,653,623 | P4: 1,565,804 | Q4: 1,755 | R4: 2,696,704 | S4: 1,374,503,492 | T4: 544,966 | U4: 2,888 | V4: 34.8% | W4: 71.1% | X4: 1,755,262
A5: 14_0903_02_40cm | B5: 2014-09-03 | C5: A | D5: 2 | E5: Treatment | F5: 30-40cm | G5: 200 | H5: IDBA_UD | I5: 30 | J5: 200 | K5: 10 | L5: 50,122,176 | M5: 8,598,914 | N5: 17.2% | O5: 360,102,634 | P5: 319,863 | Q5: 1,553 | R5: 208,994 | S5: 244,427,232 | T5: 105,069 | U5: 2,593 | V5: 32.8% | W5: 67.9% | X5: 320,474
A6: 14_0903_05_20cm | B6: 2014-09-03 | C6: A | D6: 5 | E6: Control | F6: 10-20cm | G6: 200 | H6: IDBA_UD | I6: 30 | J6: 200 | K6: 10 | L6: 102,461,506 | M6: 22,229,102 | N6: 21.7% | O6: 876,754,471 | P6: 1,013,467 | Q6: 896 | R6: 222,335 | S6: 418,004,589 | T6: 164,474 | U6: 2,881 | V6: 16.2% | W6: 47.7% | X6: 520,835
A7: 14_0903_05_30cm | B7: 2014-09-03 | C7: A | D7: 5 | E7: Control | F7: 20-30cm | G7: 200 | H7: IDBA_UD | I7: 30 | J7: 200 | K7: 10 | L7: 76,698,984 | M7: 20,202,358 | N7: 26.3% | O7: 666,560,853 | P7: 538,834 | Q7: 1,885 | R7: 422,846 | S7: 473,922,917 | T7: 176,759 | U7: 3,208 | V7: 32.8% | W7: 71.1% | X7: 594,012
A8: 14_0903_05_40cm | B8: 2014-09-03 | C8: A | D8: 5 | E8: Control | F8: 30-40cm | G8: 200 | H8: IDBA_UD | I8: 30 | J8: 200 | K8: 10 | L8: 106,511,720 | M8: 37,954,350 | N8: 35.6% | O8: 1,209,426,081 | P8: 1,165,055 | Q8: 1,416 | R8: 550,096 | S8: 700,073,131 | T8: 234,725 | U8: 3,837 | V8: 20.1% | W8: 57.9% | X8: 844,255
A9: 14_0903_09_20cm | B9: 2014-09-03 | C9: B | D9: 9 | E9: Treatment | F9: 10-20cm | G9: 200 | H9: IDBA_UD | I9: 30 | J9: 200 | K9: 10 | L9: 66,419,986 | M9: 11,981,398 | N9: 18.0% | O9: 481,218,340 | P9: 450,567 | Q9: 1,434 | R9: 142,652 | S9: 317,113,050 | T9: 141,009 | U9: 2,409 | V9: 31.3% | W9: 65.9% | X9: 409,990
A10: 14_0903_09_30cm | B10: 2014-09-03 | C10: B | D10: 9 | E10: Treatment | F10: 20-30cm | G10: 200 | H10: IDBA_UD | I10: 30 | J10: 200 | K10: 10 | L10: 58,508,968 | M10: 11,045,278 | N10: 18.9% | O10: 438,098,094 | P10: 427,792 | Q10: 1,398 | R10: 386,223 | S10: 269,147,625 | T10: 106,577 | U10: 2,838 | V10: 24.9% | W10: 61.4% | X10: 340,448
A11: 14_0903_09_40cm | B11: 2014-09-03 | C11: B | D11: 9 | E11: Treatment | F11: 30-40cm | G11: 200 | H11: IDBA_UD | I11: 30 | J11: 200 | K11: 10 | L11: 89,744,056 | M11: 38,254,962 | N11: 42.6% | O11: 1,238,808,415 | P11: 1,174,847 | Q11: 1,327 | R11: 283,572 | S11: 733,792,057 | T11: 287,991 | U11: 2,977 | V11: 24.5% | W11: 59.2% | X11: 906,745
A12: 14_0903_12_20cm | B12: 2014-09-03 | C12: B | D12: 12 | E12: Control | F12: 10-20cm | G12: 200 | H12: IDBA_UD | I12: 30 | J12: 200 | K12: 10 | L12: 84,862,488 | M12: 28,539,832 | N12: 33.6% | O12: 1,026,759,576 | P12: 813,608 | Q12: 1,857 | R12: 239,650 | S12: 744,716,663 | T12: 292,189 | U12: 2,923 | V12: 35.9% | W12: 72.5% | X12: 951,120
A13: 14_0903_12_30cm | B13: 2014-09-03 | C13: B | D13: 12 | E13: Control | F13: 20-30cm | G13: 200 | H13: IDBA_UD | I13: 30 | J13: 200 | K13: 10 | L13: 82,596,624 | M13: 30,125,762 | N13: 36.5% | O13: 1,031,941,569 | P13: 936,107 | Q13: 1,705 | R13: 438,885 | S13: 640,080,376 | T13: 205,879 | U13: 4,022 | V13: 22.0% | W13: 62.0% | X13: 769,659
A14: 14_0903_12_40cm | B14: 2014-09-03 | C14: B | D14: 12 | E14: Control | F14: 30-40cm | G14: 200 | H14: IDBA_UD | I14: 40 | J14: 200 | K14: 20 | L14: 122,891,632 | M14: 28,642,870 | N14: 23.3% | O14: 927,247,220 | P14: 946,550 | Q14: 1,236 | R14: 226,349 | S14: 528,230,202 | T14: 219,242 | U14: 2,682 | V14: 23.2% | W14: 57.0% | X14: 664,265
A15: 14_0903_13_20cm | B15: 2014-09-03 | C15: C | D15: 13 | E15: Treatment | F15: 10-20cm | G15: 200 | H15: IDBA_UD | I15: 40 | J15: 200 | K15: 20 | L15: 117,290,074 | M15: 33,406,918 | N15: 28.5% | O15: 1,030,872,636 | P15: 969,173 | Q15: 1,571 | R15: 462,116 | S15: 644,172,905 | T15: 230,127 | U15: 3,417 | V15: 23.7% | W15: 62.5% | X15: 789,770
A16: 14_0903_13_30cm | B16: 2014-09-03 | C16: C | D16: 13 | E16: Treatment | F16: 20-30cm | G16: 200 | H16: Megahit | I16: 41 | J16: 201 | K16: 20 | L16: 445,313,018 | M16: 213,873,080 | N16: 48.0% | O16: NA | P16: NA | Q16: NA | R16: 878,113 | S16: 4,053,333,571 | T16: 1,574,139 | U16: 3,006 | V16: NA | W16: 48.0% | X16: 5,256,845
A17: 14_0903_13_40cm | B17: 2014-09-03 | C17: C | D17: 13 | E17: Treatment | F17: 30-40cm | G17: 200 | H17: IDBA_UD | I17: 30 | J17: 200 | K17: 10 | L17: 84,427,086 | M17: 38,612,508 | N17: 45.7% | O17: 1,161,877,766 | P17: 849,418 | Q17: 2,230 | R17: 378,713 | S17: 874,005,057 | T17: 309,568 | U17: 3,517 | V17: =T17/P17 -> 36.4% | W17: =S17/O17 -> 75.2% | X17: 1,078,840
A18: 14_0903_16_20cm | B18: 2014-09-03 | C18: C | D18: 16 | E18: Control | F18: 10-20cm | G18: 200 | H18: IDBA_UD | I18: 40 | J18: 200 | K18: 20 | L18: 130,897,056 | M18: 28,238,994 | N18: 21.6% | O18: 995,008,128 | P18: 1,142,383 | Q18: 984 | R18: 285,129 | S18: 492,732,890 | T18: 219,992 | U18: 2,415 | V18: 19.3% | W18: 49.5% | X18: 633,622
A19: 14_0903_16_30cm | B19: 2014-09-03 | C19: C | D19: 16 | E19: Control | F19: 20-30cm | G19: 200 | H19: IDBA_UD | I19: 40 | J19: 200 | K19: 20 | L19: 113,664,606 | M19: 35,356,448 | N19: 31.1% | O19: 1,039,433,783 | P19: 1,004,710 | Q19: 1,446 | R19: 370,418 | S19: 613,667,619 | T19: 214,442 | U19: 3,583 | V19: 21.3% | W19: 59.0% | X19: 747,108
A20: 14_0903_16_40cm | B20: 2014-09-03 | C20: C | D20: 16 | E20: Control | F20: 30-40cm | G20: 200 | H20: IDBA_UD | I20: 40 | J20: 200 | K20: 20 | L20: 148,965,986 | M20: 56,037,320 | N20: 37.6% | O20: 1,576,496,471 | P20: 1,516,717 | Q20: 1,344 | R20: 372,264 | S20: 920,628,561 | T20: 338,038 | U20: 3,364 | V20: 22.3% | W20: 58.4% | X20: 1,126,441
A21: 14_0919_02_20cm | B21: 2014-09-19 | C21: A | D21: 2 | E21: Treatment | F21: 10-20cm | G21: 200 | H21: IDBA_UD | I21: 40 | J21: 200 | K21: 20 | L21: 104,308,996 | M21: 31,803,364 | N21: 30.5% | O21: 1,046,773,941 | P21: 1,078,253 | Q21: 1,253 | R21: 235,989 | S21: 581,420,773 | T21: 216,500 | U21: 3,204 | V21: 20.1% | W21: 55.5% | X21: 710,556
A22: 14_0919_05_20cm | B22: 2014-09-19 | C22: A | D22: 5 | E22: Control | F22: 10-20cm | G22: 200 | H22: IDBA_UD | I22: 30 | J22: 200 | K22: 10 | L22: 100,383,364 | M22: 26,964,638 | N22: 26.9% | O22: 1,041,360,762 | P22: 1,009,687 | Q22: 1,523 | R22: 237,679 | S22: 634,803,015 | T22: 234,447 | U22: 3,163 | V22: 23.2% | W22: 61.0% | X22: 798,579
A23: 14_0919_09_20cm | B23: 2014-09-19 | C23: B | D23: 9 | E23: Treatment | F23: 10-20cm | G23: 200 | H23: IDBA_UD | I23: 40 | J23: 200 | K23: 20 | L23: 106,943,250 | M23: 21,854,422 | N23: 20.4% | O23: 823,193,963 | P23: 848,416 | Q23: 1,293 | R23: 209,784 | S23: 482,756,187 | T23: 205,854 | U23: 2,553 | V23: 24.3% | W23: 58.6% | X23: 612,993
A24: 14_0919_12_20cm | B24: 2014-09-19 | C24: B | D24: 12 | E24: Control | F24: 10-20cm | G24: 200 | H24: IDBA_UD | I24: 30 | J24: 200 | K24: 10 | L24: 84,425,308 | M24: 33,016,852 | N24: 39.1% | O24: 1,090,403,901 | P24: 983,732 | Q24: 1,560 | R24: 405,996 | S24: 695,308,275 | T24: 260,861 | U24: 3,200 | V24: 26.5% | W24: 63.8% | X24: 858,364
A25: 14_0927_02_20cm | B25: 2014-09-27 | C25: A | D25: 2 | E25: Treatment | F25: 10-20cm | G25: 200 | H25: IDBA_UD | I25: 30 | J25: 200 | K25: 10 | L25: 86,857,778 | M25: 25,986,990 | N25: 29.9% | O25: 949,220,035 | P25: 953,312 | Q25: 1,304 | R25: 268,632 | S25: 545,189,955 | T25: 209,829 | U25: 3,024 | V25: 22.0% | W25: 57.4% | X25: 674,630
A26: 14_0927_02_40cm | B26: 2014-09-27 | C26: A | D26: 2 | E26: Treatment | F26: 30-40cm | G26: 200 | H26: IDBA_UD | I26: 30 | J26: 200 | K26: 10 | L26: 59,025,708 | M26: 19,098,512 | N26: 32.4% | O26: 604,045,164 | P26: 480,101 | Q26: 1,958 | R26: 364,616 | S26: 428,098,109 | T26: 153,860 | U26: 3,442 | V26: 32.0% | W26: 70.9% | X26: 531,983
A27: 14_0927_05_20cm | B27: 2014-09-27 | C27: A | D27: 5 | E27: Control | F27: 10-20cm | G27: 200 | H27: IDBA_UD | I27: 30 | J27: 200 | K27: 20 | L27: 111,695,774 | M27: 45,941,465 | N27: 41.1% | O27: 1,454,093,892 | P27: 1,379,607 | Q27: 1,338 | R27: 402,678 | S27: 873,498,008 | T27: 345,728 | U27: 2,949 | V27: 25.1% | W27: 60.1% | X27: 1,086,072
A28: 14_0927_05_40cm | B28: 2014-09-27 | C28: A | D28: 5 | E28: Control | F28: 30-40cm | G28: 200 | H28: IDBA_UD | I28: 40 | J28: 200 | K28: 10 | L28: 105,009,848 | M28: 34,375,778 | N28: 32.7% | O28: 1,084,711,515 | P28: 981,092 | Q28: 1,520 | R28: 299,928 | S28: 690,024,023 | T28: 261,391 | U28: 3,134 | V28: 26.6% | W28: 63.6% | X28: 853,077
A29: 14_0927_09_20cm | B29: 2014-09-27 | C29: B | D29: 9 | E29: Treatment | F29: 10-20cm | G29: 200 | H29: IDBA_UD | I29: 30 | J29: 200 | K29: 10 | L29: 93,114,870 | M29: 28,140,050 | N29: 30.2% | O29: 959,993,739 | P29: 804,737 | Q29: 1,744 | R29: 357,792 | S29: 664,954,080 | T29: 256,003 | U29: 3,041 | V29: 31.8% | W29: 69.3% | X29: 841,992
A30: 14_0927_09_40cm | B30: 2014-09-27 | C30: B | D30: 9 | E30: Treatment | F30: 30-40cm | G30: 200 | H30: IDBA_UD | I30: 40 | J30: 200 | K30: 20 | L30: 104,957,838 | M30: 40,025,560 | N30: 38.1% | O30: 1,213,426,807 | P30: 1,113,841 | Q30: 1,467 | R30: 401,735 | S30: 759,252,975 | T30: 292,235 | U30: 3,074 | V30: 26.2% | W30: 62.6% | X30: 945,000
A31: 14_0927_12_20cm | B31: 2014-09-27 | C31: B | D31: 12 | E31: Control | F31: 10-20cm | G31: 200 | H31: IDBA_UD | I31: 30 | J31: 200 | K31: 10 | L31: 94,873,428 | M31: 40,158,064 | N31: 42.3% | O31: 1,264,627,567 | P31: 1,125,437 | Q31: 1,597 | R31: 456,308 | S31: 810,746,194 | T31: 297,532 | U31: 3,329 | V31: 26.4% | W31: 64.1% | X31: 1,002,829
A32: 14_0927_12_40cm | B32: 2014-09-27 | C32: B | D32: 12 | E32: Control | F32: 30-40cm | G32: 200 | H32: IDBA_UD | I32: 30 | J32: 200 | K32: 10 | L32: 87,661,260 | M32: 43,847,958 | N32: 50.0% | O32: 1,246,838,670 | P32: 1,061,558 | Q32: 1,760 | R32: 261,637 | S32: 817,747,425 | T32: 282,547 | U32: 3,729 | V32: 26.6% | W32: 65.6% | X32: 1,000,502
A33: 14_0929_02_20cm | B33: 2014-09-29 | C33: A | D33: 2 | E33: Treatment | F33: 10-20cm | G33: 200 | H33: IDBA_UD | I33: 30 | J33: 200 | K33: 10 | L33: 92,936,906 | M33: 30,881,614 | N33: 33.2% | O33: 1,074,978,711 | P33: 1,048,990 | Q33: 1,302 | R33: 237,099 | S33: 624,607,001 | T33: 236,560 | U33: 3,181 | V33: 22.6% | W33: 58.1% | X33: 764,876
A34: 14_0929_02_30cm | B34: 2014-09-29 | C34: A | D34: 2 | E34: Treatment | F34: 20-30cm | G34: 200 | H34: IDBA_UD | I34: 30 | J34: 200 | K34: 10 | L34: 84,550,344 | M34: 38,255,098 | N34: 45.2% | O34: 1,131,879,699 | P34: 981,263 | Q34: 1,723 | R34: 347,690 | S34: 728,617,402 | T34: 245,144 | U34: 3,866 | V34: 25.0% | W34: 64.4% | X34: 875,362
A35: 14_0929_02_40cm | B35: 2014-09-29 | C35: A | D35: 2 | E35: Treatment | F35: 30-40cm | G35: 200 | H35: IDBA_UD | I35: 30 | J35: 200 | K35: 10 | L35: 86,246,186 | M35: 41,498,900 | N35: =M35/L35 -> 48.1% | O35: 1,159,072,691 | P35: 968,835 | Q35: 1,837 | R35: 360,029 | S35: 772,203,210 | T35: 261,420 | U35: 3,881 | V35: 27.0% | W35: 66.6% | X35: 932,699
A36: 14_0929_05_20cm | B36: 2014-09-29 | C36: A | D36: 5 | E36: Control | F36: 10-20cm | G36: 200 | H36: IDBA_UD | I36: 30 | J36: 200 | K36: 10 | L36: 88,726,288 | M36: 33,317,682 | N36: 37.6% | O36: 1,179,132,876 | P36: 1,098,011 | Q36: 1,466 | R36: 317,999 | S36: 727,675,083 | T36: 277,291 | U36: 3,124 | V36: 25.3% | W36: 61.7% | X36: 904,984
A37: 14_0929_05_30cm | B37: 2014-09-29 | C37: A | D37: 5 | E37: Control | F37: 20-30cm | G37: 200 | H37: IDBA_UD | I37: 30 | J37: 200 | K37: 10 | L37: 93,791,198 | M37: 49,769,292 | N37: 53.1% | O37: 1,386,096,960 | P37: 1,185,546 | Q37: 1,672 | R37: 317,548 | S37: 895,188,115 | T37: 313,521 | U37: 3,649 | V37: 26.4% | W37: 64.6% | X37: 1,085,999
A38: 14_0929_05_40cm | B38: 2014-09-29 | C38: A | D38: 5 | E38: Control | F38: 30-40cm | G38: 200 | H38: IDBA_UD | I38: 30 | J38: 200 | K38: 10 | L38: 84,136,024 | M38: 41,756,718 | N38: 49.6% | O38: 1,286,976,556 | P38: 1,126,970 | Q38: 1,609 | R38: 366,948 | S38: 819,746,908 | T38: 293,893 | U38: 3,501 | V38: 26.1% | W38: 63.7% | X38: 1,001,115
A39: 14_0929_09_20cm | B39: 2014-09-29 | C39: B | D39: 9 | E39: Treatment | F39: 10-20cm | G39: 200 | H39: IDBA_UD | I39: 30 | J39: 200 | K39: 10 | L39: 96,715,426 | M39: 23,181,206 | N39: 24.0% | O39: 952,711,810 | P39: 1,048,334 | Q39: 1,020 | R39: 426,124 | S39: 483,367,955 | T39: 213,976 | U39: 2,437 | V39: 20.4% | W39: 50.7% | X39: 613,033
A40: 14_0929_09_30cm | B40: 2014-09-29 | C40: B | D40: 9 | E40: Treatment | F40: 20-30cm | G40: 200 | H40: IDBA_UD | I40: 30 | J40: 200 | K40: 10 | L40: 91,425,990 | M40: 34,984,346 | N40: 38.3% | O40: 1,120,851,308 | P40: 1,003,650 | Q40: 1,559 | R40: 368,537 | S40: 711,226,273 | T40: 261,199 | U40: 3,352 | V40: 26.0% | W40: 63.5% | X40: 876,757
A41: 14_0929_09_40cm | B41: 2014-09-29 | C41: B | D41: 9 | E41: Treatment | F41: 30-40cm | G41: 200 | H41: IDBA_UD | I41: 30 | J41: 200 | K41: 10 | L41: 85,772,500 | M41: 35,487,564 | N41: 41.4% | O41: 1,150,432,742 | P41: 1,106,205 | Q41: 1,315 | R41: 487,828 | S41: 672,619,180 | T41: 259,722 | U41: 3,075 | V41: 23.5% | W41: 58.5% | X41: 838,363
A42: 14_0929_12_20cm | B42: 2014-09-29 | C42: B | D42: 12 | E42: Control | F42: 10-20cm | G42: 200 | H42: IDBA_UD | I42: 30 | J42: 200 | K42: 10 | L42: 90,086,718 | M42: 37,021,236 | N42: 41.1% | O42: 1,167,902,633 | P42: 985,031 | Q42: 1,835 | R42: 375,954 | S42: 787,427,019 | T42: 278,168 | U42: 3,533 | V42: 28.2% | W42: 67.4% | X42: 967,934
A43: 14_0929_12_30cm | B43: 2014-09-29 | C43: B | D43: 12 | E43: Control | F43: 20-30cm | G43: 200 | H43: IDBA_UD | I43: 30 | J43: 200 | K43: 10 | L43: 76,564,362 | M43: 36,077,004 | N43: 47.1% | O43: 1,136,814,930 | P43: 1,059,166 | Q43: 1,352 | R43: 495,509 | S43: 675,752,810 | T43: 257,352 | U43: 3,138 | V43: 24.3% | W43: 59.4% | X43: 835,757
A44: 14_0929_12_40cm | B44: 2014-09-29 | C44: B | D44: 12 | E44: Control | F44: 30-40cm | G44: 200 | H44: IDBA_UD | I44: 30 | J44: 200 | K44: 10 | L44: 78,571,618 | M44: 34,890,906 | N44: 44.4% | O44: 1,142,996,930 | P44: 1,077,828 | Q44: 1,460 | R44: 231,329 | S44: 678,159,910 | T44: 236,002 | U44: 3,617 | V44: 21.9% | W44: 59.3% | X44: 828,290
A45: 14_1009_02_20cm | B45: 2014-10-09 | C45: A | D45: 2 | E45: Treatment | F45: 10-20cm | G45: 200 | H45: IDBA_UD | I45: 30 | J45: 200 | K45: 10 | L45: 63,029,838 | M45: 11,865,322 | N45: 18.8% | O45: 518,775,504 | P45: 612,027 | Q45: 898 | R45: 239,700 | S45: 237,891,873 | T45: 108,094 | U45: 2,372 | V45: 17.7% | W45: 45.9% | X45: 304,241
A46: 14_1009_02_30cm | B46: 2014-10-09 | C46: A | D46: 2 | E46: Treatment | F46: 20-30cm | G46: 200 | H46: IDBA_UD | I46: 30 | J46: 200 | K46: 10 | L46: 66,582,328 | M46: 21,687,094 | N46: 32.6% | O46: 744,434,199 | P46: 703,535 | Q46: 1,399 | R46: 247,886 | S46: 439,238,932 | T46: 154,451 | U46: 3,625 | V46: 22.0% | W46: 59.0% | X46: 533,515
A47: 14_1009_02_40cm | B47: 2014-10-09 | C47: A | D47: 2 | E47: Treatment | F47: 30-40cm | G47: 200 | H47: IDBA_UD | I47: 30 | J47: 200 | K47: 10 | L47: 77,708,954 | M47: 34,453,824 | N47: 44.3% | O47: 1,037,492,468 | P47: 900,659 | Q47: 1,774 | R47: 335,885 | S47: 666,881,680 | T47: 216,383 | U47: 4,105 | V47: 24.0% | W47: 64.3% | X47: 799,400
A48: 14_1009_05_20cm | B48: 2014-10-09 | C48: A | D48: 5 | E48: Control | F48: 10-20cm | G48: 200 | H48: IDBA_UD | I48: 30 | J48: 200 | K48: 10 | L48: 85,962,094 | M48: 30,007,618 | N48: 34.9% | O48: 1,111,924,424 | P48: 1,066,401 | Q48: 1,477 | R48: 654,830 | S48: 657,228,905 | T48: 229,062 | U48: 3,502 | V48: 21.5% | W48: 59.1% | X48: 809,364
A49: 14_1009_05_30cm | B49: 2014-10-09 | C49: A | D49: 5 | E49: Control | F49: 20-30cm | G49: 200 | H49: IDBA_UD | I49: 30 | J49: 200 | K49: 10 | L49: 69,703,868 | M49: 31,618,102 | N49: 45.4% | O49: 958,188,840 | P49: 707,508 | Q49: 2,361 | R49: 335,890 | S49: 702,407,057 | T49: 224,090 | U49: 4,275 | V49: 31.7% | W49: 73.3% | X49: 858,836
A50: 14_1009_05_40cm | B50: 2014-10-09 | C50: A | D50: 5 | E50: Control | F50: 30-40cm | G50: 200 | H50: IDBA_UD | I50: 30 | J50: 200 | K50: 10 | L50: 89,579,026 | M50: 43,074,934 | N50: 48.1% | O50: 1,280,591,456 | P50: 1,041,148 | Q50: 2,102 | R50: 573,797 | S50: 876,779,981 | T50: 277,555 | U50: 4,169 | V50: 26.7% | W50: 68.5% | X50: 1,063,242
A51: 14_1009_09_20cm | B51: 2014-10-09 | C51: B | D51: 9 | E51: Treatment | F51: 10-20cm | G51: 200 | H51: IDBA_UD | I51: 30 | J51: 200 | K51: 10 | L51: 98,783,804 | M51: 35,529,908 | N51: 36.0% | O51: 1,298,676,600 | P51: 1,237,279 | Q51: 1,450 | R51: 210,845 | S51: 771,467,704 | T51: 276,546 | U51: 3,442 | V51: 22.4% | W51: 59.4% | X51: 949,491
A52: 14_1009_09_30cm | B52: 2014-10-09 | C52: B | D52: 9 | E52: Treatment | F52: 20-30cm | G52: 200 | H52: IDBA_UD | I52: 30 | J52: 200 | K52: 10 | L52: 96,230,568 | M52: 41,773,774 | N52: 43.4% | O52: 1,304,193,562 | P52: 1,107,370 | Q52: 1,905 | R52: 223,255 | S52: 871,201,049 | T52: 290,598 | U52: 3,795 | V52: 26.2% | W52: 66.8% | X52: 1,071,747
A53: 14_1009_09_40cm | B53: 2014-10-09 | C53: B | D53: 9 | E53: Treatment | F53: 30-40cm | G53: 200 | H53: IDBA_UD | I53: 30 | J53: 200 | K53: 10 | L53: 80,726,124 | M53: 28,821,756 | N53: 35.7% | O53: 1,001,209,017 | P53: 912,302 | Q53: 1,625 | R53: 1,202,559 | S53: 626,909,117 | T53: 218,782 | U53: 3,577 | V53: 24.0% | W53: 62.6% | X53: 774,554
A54: 14_1009_12_20cm | B54: 2014-10-09 | C54: B | D54: 12 | E54: Control | F54: 10-20cm | G54: 200 | H54: IDBA_UD | I54: 30 | J54: 200 | K54: 10 | L54: 93,659,866 | M54: 26,247,770 | N54: 28.0% | O54: 986,523,021 | P54: 850,179 | Q54: 1,802 | R54: 261,300 | S54: 671,053,121 | T54: 244,305 | U54: 3,345 | V54: 28.7% | W54: 68.0% | X54: 847,844
A55: 14_1009_12_30cm | B55: 2014-10-09 | C55: B | D55: 12 | E55: Control | F55: 20-30cm | G55: 200 | H55: IDBA_UD | I55: 30 | J55: 200 | K55: 10 | L55: 78,816,624 | M55: 29,470,122 | N55: 37.4% | O55: 990,900,129 | P55: 900,753 | Q55: 1,641 | R55: 321,744 | S55: 609,880,157 | T55: 201,306 | U55: 3,899 | V55: 22.3% | W55: 61.5% | X55: 743,265
A56: 14_1009_12_40cm | B56: 2014-10-09 | C56: B | D56: 12 | E56: Control | F56: 30-40cm | G56: 200 | H56: IDBA_UD | I56: 30 | J56: 200 | K56: 10 | L56: 92,603,422 | M56: 42,428,762 | N56: 45.8% | O56: 1,244,952,767 | P56: 917,826 | Q56: 2,430 | R56: 331,461 | S56: 915,002,699 | T56: 290,485 | U56: 4,233 | V56: 31.6% | W56: 73.5% | X56: 1,123,029
A57: 14_1009_13_20cm | B57: 2014-10-09 | C57: C | D57: 13 | E57: Treatment | F57: 10-20cm | G57: 200 | H57: IDBA_UD | I57: 30 | J57: 200 | K57: 10 | L57: 86,764,178 | M57: 27,216,162 | N57: 31.4% | O57: 1,014,468,054 | P57: 792,957 | Q57: 1,995 | R57: 242,891 | S57: 744,318,098 | T57: 279,334 | U57: 3,220 | V57: 35.2% | W57: 73.4% | X57: 944,216
A58: 14_1009_13_30cm | B58: 2014-10-09 | C58: C | D58: 13 | E58: Treatment | F58: 20-30cm | G58: 200 | H58: IDBA_UD | I58: 40 | J58: 200 | K58: 20 | L58: 125,221,010 | M58: 53,724,388 | N58: 42.9% | O58: 1,524,385,569 | P58: 1,412,091 | Q58: 1,595 | R58: 317,795 | S58: 930,389,665 | T58: 313,070 | U58: 3,773 | V58: 22.2% | W58: 61.0% | X58: 1,127,446
A59: 14_1009_13_40cm | B59: 2014-10-09 | C59: C | D59: 13 | E59: Treatment | F59: 30-40cm | G59: 200 | H59: IDBA_UD | I59: 30 | J59: 200 | K59: 10 | L59: 81,888,582 | M59: 34,923,268 | N59: 42.6% | O59: 1,118,272,924 | P59: 976,848 | Q59: 1,807 | R59: 229,686 | S59: 729,029,972 | T59: 245,863 | U59: 3,712 | V59: 25.2% | W59: 65.2% | X59: 890,677
A60: 14_1009_16_20cm | B60: 2014-10-09 | C60: C | D60: 16 | E60: Control | F60: 10-20cm | G60: 200 | H60: IDBA_UD | I60: 30 | J60: 200 | K60: 10 | L60: 87,152,814 | M60: 30,254,512 | N60: 34.7% | O60: 1,073,835,815 | P60: 1,028,124 | Q60: 1,458 | R60: 269,608 | S60: 639,784,369 | T60: 228,719 | U60: 3,483 | V60: 22.2% | W60: 59.6% | X60: 785,294
A61: 14_1009_16_30cm | B61: 2014-10-09 | C61: C | D61: 16 | E61: Control | F61: 20-30cm | G61: 200 | H61: IDBA_UD | I61: 40 | J61: 200 | K61: 20 | L61: 248,017,962 | M61: 147,653,302 | N61: 59.5% | O61: 3,269,814,788 | P61: 2,228,795 | Q61: 2,530 | R61: 414,239 | S61: 2,546,833,373 | T61: 861,659 | U61: 3,823 | V61: 38.7% | W61: 77.9% | X61: 3,131,671
A62: 14_1009_16_40cm | B62: 2014-10-09 | C62: C | D62: 16 | E62: Control | F62: 30-40cm | G62: 200 | H62: IDBA_UD | I62: 40 | J62: 200 | K62: 20 | L62: 268,498,566 | M62: 173,722,228 | N62: 64.7% | O62: 3,768,523,866 | P62: 2,757,392 | Q62: 2,491 | R62: 408,157 | S62: 2,788,961,477 | T62: 885,906 | U62: 4,221 | V62: 32.1% | W62: 74.0% | X62: 3,366,203
L64: Total Reads | M64: Reads Assembled | N64: Percent Assembled | O64: Assembly Length (bp) | P64: Total Contigs | Q64: N50 | R64: Longest Contig | S64: Assembly Length >= 1kb (bp) | T64: Contigs >= 1kb | U64: N50 >= 1kb | V64: Fration Contigs >= 1kb (%) | W64: Bases in Contigs >= 1kb (%) | X64: Total ORFs
K65: Mean | L65: =AVERAGE(L3:L62) -> 103,620,434 | M65: 39,811,683 | N65: 36.4% | O65: 1,147,526,023 | P65: 1,020,487 | Q65: 1,609 | R65: 402,697 | S65: 792,578,964 | T65: 287,684 | U65: 3,340 | V65: 26.0% | W65: 62.9% | X65: 982,344
K66: STDV | L66: =STDEV(L3:L62) -> 57,571,046 | M66: 34,129,423 | N66: 10.4% | O66: 524,815,920 | P66: 370,582 | Q66: 355 | R66: 343,866 | S66: 591,542,618 | T66: 214,156 | U66: 483 | V66: 4.89% | W66: 6.84% | X66: 748,911
K67: Median | L67: =MEDIAN(L3:L62) -> 89,915,387 | M67: 33,891,348 | N67: 36.2% | O67: 1,084,711,515 | P67: 1,003,650 | Q67: 1,560 | R67: 341,790 | S67: 684,091,967 | T67: 245,504 | U67: 3,349 | V67: 25.1% | W67: 62.6% | X67: 846,050
K68: Min | L68: =MIN(L3:L62) -> 50,122,176 | M68: 8,598,914 | N68: 17.2% | O68: 360,102,634 | P68: 319,863 | Q68: 896 | R68: 142,652 | S68: 237,891,873 | T68: 105,069 | U68: 2,372 | V68: 16.2% | W68: 45.9% | X68: 304,241
K69: Max | L69: =MAX(L3:L62) -> 445,313,018 | M69: 213,873,080 | N69: 64.7% | O69: 3,768,523,866 | P69: 2,757,392 | Q69: 2,530 | R69: 2,696,704 | S69: 4,053,333,571 | T69: 1,574,139 | U69: 4,275 | V69: 38.7% | W69: 77.9% | X69: 5,256,845
K71: Total | L71: =SUM(L3:L62) -> 6,217,226,022 | M71: =SUM(M3:M62) -> 2,388,700,989 | N71: =M71/L71 -> 38.4% | O71: =SUM(O3:O62) -> 67,704,035,375 | P71: =SUM(P3:P62) -> 60,208,748 | Q71: NA | R71: NA | S71: =SUM(S3:S62) -> 47,554,737,815 | T71: =SUM(T3:T62) -> 17,261,033 | U71: NA | V71: =T71/P71 -> 28.7% | W71: =S71/O71 -> 70.2% | X71: =SUM(X3:X62) -> 58,940,666
K74: Total Sequence | L74: =L71*200 -> 1243445204400

Sheet Supplementary Table 2
A1: Supplementary Table 2|All Identified rpS3 SGs, Predicted Phylogeny, and Abundance Data
A2: rpS3 SG | B2: rpS3 Centroid Sequence | C2: Longest rpS3 Scaffold for SG | D2: rpS3 OTU | E2: Kingdom | F2: Phylum | G2: Class | H2: Total Coverage | I2: Percent Coverage | J2: Samples Assembled | K2: Samples Detected | L2: Depth FDR | M2: Depth Slope FDR | N2: Increasing Depth Response | O2: Treatment 20cm FDR | P2: Treatment 20cm Response | Q2: Treatment 40cm FDR | R2: Treatment 40cm Response | S2: Has Bin | T2: Bin Name
A3: SG_1962 | B3: 14_0903_12_30cm_scaffold_60586_3 | C3: 14_0903_05_20cm_scaffold_2337 | D3: OTU_1962 | E3: Bacteria | F3: Acidobacteria | G3: Gp1-Acidobacteriia | H3: 702.6609242 | I3: 0.704387619 | J3: 47 | K3: 60 | L3: 1.64e-23 | M3: 2.66e-13 | N3: Increase | O3: NA | P3: NA | Q3: NA | R3: NA | S3: TRUE | T3: 14_0903_09_30cm_Acidobacteria_691_56_9
A4: SG_3327 | B4: 14_0903_13_20cm_scaffold_16203_4 | C4: 14_0903_13_20cm_scaffold_16203 | D4: OTU_3327 | E4: Bacteria | F4: Acidobacteria | G4: Gp1-Acidobacteriia | H4: 701.5748249 | I4: 0.703298851 | J4: 1 | K4: 60 | L4: 9.48e-30 | M4: 1.22e-12 | N4: Increase | O4: NA | P4: NA | Q4: NA | R4: NA | S4: FALSE | T4: NA
A5: SG_1914 | B5: 14_0903_05_20cm_scaffold_4587_13 | C5: 14_0903_09_30cm_scaffold_12 | D5: OTU_1914 | E5: Bacteria | F5: Acidobacteria | G5: Gp2 | H5: 498.4891276 | I5: 0.499714098 | J5: 41 | K5: 60 | L5: 3.8e-05 | M5: 0.00051882 | N5: Increase | O5: NA | P5: NA | Q5: NA | R5: NA | S5: TRUE | T5: 14_0903_09_30cm_Bacteria_680_58_11
A6: SG_3209 | B6: 14_1009_05_40cm_scaffold_32638_7 | C6: 14_1009_05_40cm_scaffold_32638 | D6: OTU_3209 | E6: Bacteria | F6: Acidobacteria | G6: Gp1-Acidobacteriia | H6: 389.2356084 | I6: 0.390192103 | J6: 1 | K6: 60 | L6: 6.74e-06 | M6: 2.32e-05 | N6: Increase | O6: NA | P6: NA | Q6: NA | R6: NA | S6: FALSE | T6: NA
A7: SG_3115 | B7: 14_1009_09_40cm_scaffold_16004_12 | C7: 14_1009_09_40cm_scaffold_16004 | D7: OTU_3115 | E7: Bacteria | F7: Acidobacteria | G7: Gp2 | H7: 283.6682987 | I7: 0.284365376 | J7: 1 | K7: 57 | L7: 1.66e-16 | M7: 4.24e-08 | N7: Increase | O7: NA | P7: NA | Q7: NA | R7: NA | S7: TRUE | T7: 14_1009_09_40cm_Bacteria_8185_57_8
A8: SG_2056 | B8: 14_0903_05_30cm_scaffold_1787_47 | C8: 14_0903_05_30cm_scaffold_1787 | D8: OTU_2056 | E8: Bacteria | F8: Acidobacteria | G8: Gp2 | H8: 281.0062617 | I8: 0.281696797 | J8: 1 | K8: 60 | L8: 4.23e-16 | M8: 5.31e-10 | N8: Increase | O8: NA | P8: NA | Q8: NA | R8: NA | S8: TRUE | T8: 14_0903_05_30cm_Bacteria_4594_57_8
A9: SG_1942 | B9: 14_0929_05_40cm_scaffold_8122_17 | C9: 14_0929_05_40cm_scaffold_8122 | D9: OTU_1942 | E9: Bacteria | F9: Acidobacteria | G9: Gp2 | H9: 236.1817941 | I9: 0.236762179 | J9: 1 | K9: 60 | L9: 1.88e-05 | M9: 0.000233696 | N9: Increase | O9: NA | P9: NA | Q9: NA | R9: NA | S9: TRUE | T9: 14_0929_05_40cm_Bacteria_3399_58_7
A10: SG_2020 | B10: 14_0903_12_20cm_scaffold_2025_23 | C10: 14_0927_12_20cm_scaffold_415 | D10: OTU_2020 | E10: Bacteria | F10: Acidobacteria | G10: Gp2 | H10: 224.0569618 | I10: 0.224607552 | J10: 6 | K10: 60 | L10: NA | M10: NA | N10: NA | O10: 0.001767595 | P10: Decrease | Q10: NA | R10: NA | S10: TRUE | T10: 14_0927_12_20cm_Bacteria_10555_57_16
A11: SG_3277 | B11: 14_1009_05_20cm_scaffold_46025_5 | C11: 14_1009_05_20cm_scaffold_46025 | D11: OTU_3277 | E11: Bacteria | F11: Acidobacteria | G11: Gp1-Acidobacteriia | H11: 199.2021169 | I11: 0.199691629 | J11: 1 | K11: 60 | L11: 5.47e-12 | M11: 5.64e-09 | N11: Increase | O11: NA | P11: NA | Q11: NA | R11: NA | S11: FALSE | T11: NA
A12: SG_2813 | B12: 14_0903_02_30cm_scaffold_180840_2 | C12: 14_0903_02_30cm_scaffold_180840 | D12: OTU_2813 | E12: Bacteria | F12: Acidobacteria | G12: Gp1-Acidobacteriia | H12: 179.9274957 | I12: 0.180369644 | J12: 1 | K12: 60 | L12: 6.89e-14 | M12: 1.19e-10 | N12: Increase | O12: NA | P12: NA | Q12: NA | R12: NA | S12: FALSE | T12: NA
A13: SG_2154 | B13: 14_0919_05_20cm_scaffold_43423_4 | C13: 14_1009_09_40cm_scaffold_3757 | D13: OTU_2154 | E13: Bacteria | F13: Acidobacteria | G13: Gp5 | H13: 167.8387447 | I13: 0.168251186 | J13: 35 | K13: 57 | L13: 3.46e-32 | M13: 8.5e-13 | N13: Increase | O13: 0.029690704 | P13: Increase | Q13: NA | R13: NA | S13: TRUE | T13: 14_1009_09_40cm_Bacteria_8203_56_9
A14: SG_1955 | B14: 14_1009_12_40cm_scaffold_12051_6 | C14: 14_0929_09_30cm_scaffold_3 | D14: OTU_1955 | E14: Bacteria | F14: Acidobacteria | G14: Gp2 | H14: 166.1629887 | I14: 0.166571312 | J14: 31 | K14: 60 | L14: 0.000359259 | M14: 0.019778484 | N14: Increase | O14: NA | P14: NA | Q14: NA | R14: NA | S14: TRUE | T14: 14_0929_09_30cm_Bacteria_6847_57_11
A15: SG_2915 | B15: 14_0903_13_20cm_scaffold_4865_16 | C15: 14_0903_13_20cm_scaffold_4865 | D15: OTU_2915 | E15: Bacteria | F15: Acidobacteria | G15: Gp2 | H15: 157.7417211 | I15: 0.15812935 | J15: 1 | K15: 59 | L15: 7.7e-16 | M15: 2.75e-09 | N15: Increase | O15: NA | P15: NA | Q15: NA | R15: NA | S15: TRUE | T15: 14_0903_13_20cm_Acidobacteria_10553_57_8
A16: SG_3076 | B16: 14_1009_12_40cm_scaffold_46660_8 | C16: 14_1009_12_40cm_scaffold_46660 | D16: OTU_3076 | E16: Bacteria | F16: Acidobacteria | G16: Gp5 | H16: 152.084255 | I16: 0.152457982 | J16: 1 | K16: 53 | L16: 7.42e-27 | M16: 1.46e-10 | N16: Increase | O16: NA | P16: NA | Q16: NA | R16: NA | S16: FALSE | T16: 14_1009_12_40cm_Bacteria_8734_55_6
A17: SG_1966 | B17: 14_0903_05_20cm_scaffold_5067_10 | C17: 14_0903_13_30cm_scaffold_922647 | D17: OTU_1966 | E17: Bacteria | F17: Acidobacteria | G17: Gp2 | H17: 141.7168104 | I17: 0.14206506 | J17: 15 | K17: 57 | L17: 1.68e-12 | M17: 2.11e-07 | N17: Decrease | O17: NA | P17: NA | Q17: NA | R17: NA | S17: TRUE | T17: 14_0903_13_30cm_Bacteria_4796_57_9
A18: SG_2027 | B18: 14_0903_12_30cm_scaffold_793_73 | C18: 14_0929_09_30cm_scaffold_536 | D18: OTU_2027 | E18: Bacteria | F18: Acidobacteria | G18: Gp1-Acidobacteriia | H18: 135.3911573 | I18: 0.135723863 | J18: 21 | K18: 53 | L18: NA | M18: NA | N18: NA | O18: 0.001170759 | P18: Decrease | Q18: NA | R18: NA | S18: TRUE | T18: 14_0929_09_30cm_Acidobacteria_6831_56_8
A19: SG_2121 | B19: 14_0903_09_30cm_scaffold_17430_9 | C19: 14_0903_12_30cm_scaffold_13 | D19: OTU_2121 | E19: Bacteria | F19: Acidobacteria | G19: Gp1-Acidobacteriia | H19: 117.0600148 | I19: 0.117347674 | J19: 22 | K19: 55 | L19: 2.86e-10 | M19: 0.022632293 | N19: Decrease | O19: 0.000158926 | P19: Decrease | Q19: NA | R19: NA | S19: TRUE | T19: 14_0903_12_30cm_Bacteria_1044_57_11
A20: SG_2690 | B20: 14_1009_12_40cm_scaffold_204177_2 | C20: 14_1009_12_40cm_scaffold_204177 | D20: OTU_2690 | E20: Bacteria | F20: Acidobacteria | G20: Gp1-Acidobacteriia | H20: 112.1089724 | I20: 0.112384465 | J20: 1 | K20: 59 | L20: 1.58e-08 | M20: 2.57e-06 | N20: Increase | O20: NA | P20: NA | Q20: NA | R20: NA | S20: FALSE | T20: NA
A21: SG_1915 | B21: 14_0927_09_40cm_scaffold_208829_2 | C21: 14_1009_05_40cm_scaffold_15 | D21: OTU_1915 | E21: Bacteria | F21: Acidobacteria | G21: Gp2 | H21: 110.1478257 | I21: 0.110418499 | J21: 48 | K21: 60 | L21: 0.000117946 | M21: 0.000180982 | N21: Increase | O21: NA | P21: NA | Q21: 0.000569678 | R21: Decrease | S21: TRUE | T21: 14_1009_05_40cm_Acidobacteria_4335_57_12
A22: SG_1703 | B22: 14_0903_16_20cm_scaffold_96769_1 | C22: 14_1009_16_40cm_scaffold_9666 | D22: OTU_1703 | E22: Bacteria | F22: Acidobacteria | G22: Gp1-Acidobacteriia | H22: 105.104535 | I22: 0.105362815 | J22: 24 | K22: 59 | L22: 6.65e-06 | M22: 0.001831376 | N22: Increase | O22: 0.006020124 | P22: Decrease | Q22: NA | R22: NA | S22: TRUE | T22: 14_1009_16_40cm_Acidobacteria_10092_55_8
A23: SG_2778 | B23: 14_0903_16_40cm_scaffold_69263_11 | C23: 14_0903_16_40cm_scaffold_69263 | D23: OTU_2778 | E23: Bacteria | F23: Acidobacteria | G23: Gp5 | H23: 103.0540076 | I23: 0.103307249 | J23: 1 | K23: 50 | L23: 3.57e-36 | M23: 9.5e-13 | N23: Increase | O23: NA | P23: NA | Q23: NA | R23: NA | S23: TRUE | T23: 14_0903_16_40cm_Bacteria_5767_56_23
A24: SG_2050 | B24: 14_0903_12_30cm_scaffold_153_36 | C24: 14_0903_12_30cm_scaffold_153 | D24: OTU_2050 | E24: Bacteria | F24: Acidobacteria | G24: Gp2 | H24: 101.4607287 | I24: 0.101710055 | J24: 14 | K24: 37 | L24: 0.001181967 | M24: 0.038938143 | N24: Increase | O24: NA | P24: NA | Q24: NA | R24: NA | S24: TRUE | T24: 14_0903_12_30cm_Acidobacteria_1043_61_10
A25: SG_2222 | B25: 14_0903_05_30cm_scaffold_45328_2 | C25: 14_1009_13_30cm_scaffold_2778 | D25: OTU_2222 | E25: Bacteria | F25: Acidobacteria | G25: Gp18 | H25: 95.18212872 | I25: 0.095416026 | J25: 21 | K25: 59 | L25: 7.39e-35 | M25: 1.76e-06 | N25: Increase | O25: 0.003523803 | P25: Increase | Q25: NA | R25: NA | S25: TRUE | T25: 14_1009_13_30cm_Bacteria_9108_59_8
A26: SG_2032 | B26: 14_0929_05_40cm_scaffold_28521_10 | C26: 14_1009_16_40cm_scaffold_2294 | D26: OTU_2032 | E26: Bacteria | F26: Acidobacteria | G26: Gp1-Acidobacteriia | H26: 94.26454748 | I26: 0.09449619 | J26: 24 | K26: 57 | L26: 4.74e-20 | M26: 7.51e-11 | N26: Increase | O26: NA | P26: NA | Q26: NA | R26: NA | S26: TRUE | T26: 14_1009_16_30cm_Acidobacteria_9782_56_12
A27: SG_2766 | B27: 14_1009_12_20cm_scaffold_35792_2 | C27: 14_1009_12_20cm_scaffold_35792 | D27: OTU_2766 | E27: Bacteria | F27: Acidobacteria | G27: Gp7 | H27: 93.49643543 | I27: 0.09372619 | J27: 1 | K27: 55 | L27: 6.32e-16 | M27: 1.83e-10 | N27: Decrease | O27: NA | P27: NA | Q27: NA | R27: NA | S27: FALSE | T27: NA
A28: SG_2691 | B28: 14_0929_12_20cm_scaffold_259251_2 | C28: 14_0929_12_20cm_scaffold_259251 | D28: OTU_2691 | E28: Bacteria | F28: Acidobacteria | G28: Gp1-Acidobacteriia | H28: 91.40618816 | I28: 0.091630807 | J28: 1 | K28: 54 | L28: NA | M28: NA | N28: NA | O28: NA | P28: NA | Q28: NA | R28: NA | S28: FALSE | T28: NA
A29: SG_2200 | B29: 14_0903_05_20cm_scaffold_8839_4 | C29: 14_0929_05_20cm_scaffold_72 | D29: OTU_2200 | E29: Bacteria | F29: Acidobacteria | G29: Gp1-Acidobacteriia | H29: 90.07118353 | I29: 0.090292521 | J29: 12 | K29: 58 | L29: 8.35e-19 | M29: 2.59e-07 | N29: Decrease | O29: NA | P29: NA | Q29: NA | R29: NA | S29: TRUE | T29: 14_0929_05_20cm_Acidobacteria_2978_54_10
A30: SG_2682 | B30: 14_1009_09_30cm_scaffold_33018_9 | C30: 14_1009_09_30cm_scaffold_33018 | D30: OTU_2682 | E30: Bacteria | F30: Acidobacteria | G30: Gp5 | H30: 87.15360721 | I30: 0.087367776 | J30: 1 | K30: 53 | L30: 3e-26 | M30: 4.96e-12 | N30: Increase | O30: 0.033279932 | P30: Increase | Q30: NA | R30: NA | S30: TRUE | T30: 14_1009_09_30cm_Bacteria_7986_56_6
A31: SG_2311 | B31: 14_0903_13_30cm_scaffold_4899344_4 | C31: 14_0903_13_30cm_scaffold_4899344 | D31: OTU_2311 | E31: Bacteria | F31: Acidobacteria | G31: Gp2 | H31: 84.76496577 | I31: 0.084973264 | J31: 1 | K31: 58 | L31: NA | M31: NA | N31: NA | O31: NA | P31: NA | Q31: NA | R31: NA | S31: FALSE | T31: NA
A32: SG_1714 | B32: 14_1009_12_20cm_scaffold_10250_8 | C32: 14_1009_05_20cm_scaffold_5 | D32: OTU_1714 | E32: Bacteria | F32: Acidobacteria | G32: Gp6 | H32: 83.61057324 | I32: 0.083816035 | J32: 19 | K32: 60 | L32: 0.044867613 | M32: 0.032347219 | N32: Decrease | O32: 0.00011033 | P32: Decrease | Q32: 6.33e-06 | R32: Decrease | S32: TRUE | T32: 14_1009_05_20cm_Acidobacteria_3981_65_12
A33: SG_1191 | B33: 14_1009_12_20cm_scaffold_40242_3 | C33: 14_1009_16_30cm_scaffold_5996 | D33: OTU_1191 | E33: Bacteria | F33: Acidobacteria | G33: Gp4-Blastocatellia | H33: 82.59610373 | I33: 0.082799073 | J33: 21 | K33: 57 | L33: 2.94e-18 | M33: 1.52e-09 | N33: Increase | O33: NA | P33: NA | Q33: NA | R33: NA | S33: TRUE | T33: 14_1009_16_30cm_Bacteria_9621_54_11
A34: SG_2052 | B34: 14_0903_05_40cm_scaffold_20094_8 | C34: 14_1009_16_30cm_scaffold_4898 | D34: OTU_2052 | E34: Bacteria | F34: Acidobacteria | G34: Gp1-Acidobacteriia | H34: 80.23802158 | I34: 0.080435196 | J34: 14 | K34: 53 | L34: 1.12e-07 | M34: 3.76e-05 | N34: Increase | O34: NA | P34: NA | Q34: NA | R34: NA | S34: TRUE | T34: 14_1009_16_30cm_Acidobacteria_9671_56_15
A35: SG_1913 | B35: 14_0927_12_20cm_scaffold_45079_3 | C35: 14_0919_12_20cm_scaffold_11960 | D35: OTU_1913 | E35: Bacteria | F35: Acidobacteria | G35: Gp2 | H35: 76.24845268 | I35: 0.076435823 | J35: 12 | K35: 59 | L35: NA | M35: NA | N35: NA | O35: NA | P35: NA | Q35: NA | R35: NA | S35: FALSE | T35: NA
A36: SG_3014 | B36: 14_1009_12_40cm_scaffold_2709_1 | C36: 14_1009_12_40cm_scaffold_2709 | D36: OTU_3014 | E36: Bacteria | F36: Acidobacteria | G36: Gp2 | H36: 75.70124702 | I36: 0.075887273 | J36: 1 | K36: 28 | L36: 0.007548807 | M36: 0.047829338 | N36: Increase | O36: NA | P36: NA | Q36: NA | R36: NA | S36: TRUE | T36: 14_1009_12_40cm_Acidobacteria_8715_61_7
A37: SG_1963 | B37: 14_0903_02_20cm_scaffold_26804_6 | C37: 14_0903_13_20cm_scaffold_573 | D37: OTU_1963 | E37: Bacteria | F37: Acidobacteria | G37: Gp2 | H37: 73.89017921 | I37: 0.074071754 | J37: 12 | K37: 60 | L37: 3.05e-08 | M37: 3.43e-05 | N37: Decrease | O37: NA | P37: NA | Q37: NA | R37: NA | S37: TRUE | T37: 14_0903_13_20cm_Bacteria_1202_57_11
A38: SG_2346 | B38: 14_0903_13_30cm_scaffold_2661139_30 | C38: 14_0903_13_30cm_scaffold_2661139 | D38: OTU_2346 | E38: Bacteria | F38: Acidobacteria | G38: Gp6 | H38: 72.69048924 | I38: 0.072869116 | J38: 1 | K38: 36 | L38: 3.91e-06 | M38: 0.000943836 | N38: Increase | O38: 0.024460583 | P38: Increase | Q38: NA | R38: NA | S38: TRUE | T38: 14_0903_13_30cm_Acidobacteria_4851_65_16
A39: SG_2166 | B39: 14_0903_16_30cm_scaffold_95302_3 | C39: 14_1009_16_30cm_scaffold_410 | D39: OTU_2166 | E39: Bacteria | F39: Acidobacteria | G39: Gp5 | H39: 72.01046248 | I39: 0.072187419 | J39: 16 | K39: 59 | L39: 0.000452285 | M39: 0.000315627 | N39: Increase | O39: NA | P39: NA | Q39: NA | R39: NA | S39: TRUE | T39: 14_1009_16_30cm_Bacteria_9615_55_12
A40: SG_1196 | B40: 14_0903_05_40cm_scaffold_49704_2 | C40: 14_1009_13_20cm_scaffold_10711 | D40: OTU_1196 | E40: Bacteria | F40: Acidobacteria | G40: Gp4-Blastocatellia | H40: 70.91407713 | I40: 0.071088339 | J40: 12 | K40: 60 | L40: 1.55e-16 | M40: 5.35e-09 | N40: Decrease | O40: NA | P40: NA | Q40: NA | R40: NA | S40: FALSE | T40: NA
A41: SG_1975 | B41: 14_0903_05_20cm_scaffold_28472_4 | C41: 14_0927_05_20cm_scaffold_2833 | D41: OTU_1975 | E41: Bacteria | F41: Acidobacteria | G41: Gp2 | H41: 68.75372687 | I41: 0.06892268 | J41: 18 | K41: 53 | L41: 3.44e-09 | M41: 2.78e-08 | N41: Decrease | O41: NA | P41: NA | Q41: NA | R41: NA | S41: TRUE | T41: 14_0927_05_20cm_Acidobacteria_2153_57_9
A42: SG_2508 | B42: 14_1009_09_40cm_scaffold_293209_2 | C42: 14_1009_09_40cm_scaffold_293209 | D42: OTU_2508 | E42: Bacteria | F42: Acidobacteria | G42: Gp2 | H42: 66.30446387 | I42: 0.066467398 | J42: 1 | K42: 45 | L42: 6.2e-07 | M42: 5.18e-05 | N42: Increase | O42: NA | P42: NA | Q42: NA | R42: NA | S42: FALSE | T42: NA
A43: SG_2208 | B43: 14_0903_13_30cm_scaffold_1806706_9 | C43: 14_0929_02_30cm_scaffold_3347 | D43: OTU_2208 | E43: Bacteria | F43: Acidobacteria | G43: Gp5 | H43: 64.97533341 | I43: 0.065135002 | J43: 16 | K43: 57 | L43: 6e-11 | M43: 5.3e-05 | N43: Increase | O43: NA | P43: NA | Q43: NA | R43: NA | S43: TRUE | T43: 14_0929_02_30cm_Bacteria_2641_56_6
A44: SG_2982 | B44: 14_0927_02_20cm_scaffold_1818_24 | C44: 14_0927_02_20cm_scaffold_1818 | D44: OTU_2982 | E44: Bacteria | F44: Acidobacteria | G44: Gp5 | H44: 64.45870679 | I44: 0.064617105 | J44: 1 | K44: 58 | L44: 8.28e-08 | M44: 0.000882722 | N44: Decrease | O44: 0.005514817 | P44: Increase | Q44: NA | R44: NA | S44: FALSE | T44: NA
A45: SG_2054 | B45: 14_0903_09_20cm_scaffold_7219_9 | C45: 14_0919_12_20cm_scaffold_1551 | D45: OTU_2054 | E45: Bacteria | F45: Acidobacteria | G45: Gp1-Acidobacteriia | H45: 63.00231014 | I45: 0.06315713 | J45: 14 | K45: 47 | L45: NA | M45: NA | N45: NA | O45: NA | P45: NA | Q45: NA | R45: NA | S45: TRUE | T45: 14_0919_12_20cm_Acidobacteria_1789_58_8
A46: SG_2116 | B46: 14_0929_09_20cm_scaffold_18154_10 | C46: 14_0929_09_20cm_scaffold_18154 | D46: OTU_2116 | E46: Bacteria | F46: Acidobacteria | G46: Gp1-Acidobacteriia | H46: 61.60705147 | I46: 0.061758443 | J46: 1 | K46: 39 | L46: 1.21e-11 | M46: 0.000430721 | N46: Decrease | O46: NA | P46: NA | Q46: NA | R46: NA | S46: FALSE | T46: NA
A47: SG_2110 | B47: 14_0903_09_20cm_scaffold_513_31 | C47: 14_0903_09_20cm_scaffold_513 | D47: OTU_2110 | E47: Bacteria | F47: Acidobacteria | G47: Gp1-Acidobacteriia | H47: 61.41758263 | I47: 0.061568508 | J47: 1 | K47: 44 | L47: 1.26e-11 | M47: 0.002860039 | N47: Decrease | O47: 0.002134127 | P47: Decrease | Q47: NA | R47: NA | S47: TRUE | T47: 14_0903_09_20cm_Bacteria_627_57_7
A48: SG_1753 | B48: 14_0903_05_40cm_scaffold_139883_2 | C48: 14_0929_05_20cm_scaffold_83 | D48: OTU_1753 | E48: Bacteria | F48: Acidobacteria | G48: Gp6 | H48: 61.06113861 | I48: 0.061211188 | J48: 5 | K48: 58 | L48: NA | M48: NA | N48: NA | O48: 8.29e-05 | P48: Decrease | Q48: 2.01e-05 | R48: Decrease | S48: TRUE | T48: 14_0929_05_20cm_Acidobacteria_3011_65_8
A49: SG_1874 | B49: 14_0903_13_30cm_scaffold_1259750_9 | C49: 14_0903_16_40cm_scaffold_900 | D49: OTU_1874 | E49: Bacteria | F49: Acidobacteria | G49: Gp13 | H49: 59.33153384 | I49: 0.059477333 | J49: 11 | K49: 48 | L49: 5.39e-30 | M49: 5.35e-15 | N49: Increase | O49: NA | P49: NA | Q49: NA | R49: NA | S49: TRUE | T49: 14_0903_16_40cm_Bacteria_5672_60_9
A50: SG_3299 | B50: 14_0929_05_20cm_scaffold_8539_6 | C50: 14_0929_05_20cm_scaffold_8539 | D50: OTU_3299 | E50: Bacteria | F50: Acidobacteria | G50: Gp1-Acidobacteriia | H50: 59.17911198 | I50: 0.059324537 | J50: 1 | K50: 48 | L50: 8.91e-08 | M50: 0.001293981 | N50: Decrease | O50: 0.020405664 | P50: Increase | Q50: NA | R50: NA | S50: TRUE | T50: 14_0929_05_20cm_Acidobacteria_2994_55_6
A51: SG_2044 | B51: 14_0903_12_30cm_scaffold_49494_7 | C51: 14_0903_13_30cm_scaffold_2372611 | D51: OTU_2044 | E51: Bacteria | F51: Acidobacteria | G51: Gp1-Acidobacteriia | H51: 58.92238369 | I51: 0.059067178 | J51: 9 | K51: 60 | L51: 3.85e-11 | M51: 6.63e-08 | N51: Increase | O51: NA | P51: NA | Q51: NA | R51: NA | S51: TRUE | T51: 14_0903_13_30cm_Acidobacteria_4806_58_15
A52: SG_2443 | B52: 14_0903_02_30cm_scaffold_119702_4 | C52: 14_1009_16_40cm_scaffold_3793 | D52: OTU_2443 | E52: Bacteria | F52: Acidobacteria | G52: Gp17 | H52: 58.26325849 | I52: 0.058406433 | J52: 9 | K52: 50 | L52: 1.21e-17 | M52: 1.52e-08 | N52: Increase | O52: 0.023819611 | P52: Increase | Q52: NA | R52: NA | S52: TRUE | T52: 14_1009_16_40cm_Bacteria_10153_70_20
A53: SG_2090 | B53: 14_0903_02_30cm_scaffold_21187_7 | C53: 14_0929_02_30cm_scaffold_1437 | D53: OTU_2090 | E53: Bacteria | F53: Acidobacteria | G53: Gp2 | H53: 58.23718183 | I53: 0.058380292 | J53: 7 | K53: 56 | L53: NA | M53: NA | N53: NA | O53: NA | P53: NA | Q53: NA | R53: NA | S53: TRUE | T53: 14_0929_02_30cm_Bacteria_2607_57_9
A54: SG_1748 | B54: 14_0903_02_30cm_scaffold_68888_5 | C54: 14_0929_02_40cm_scaffold_1309 | D54: OTU_1748 | E54: Bacteria | F54: Acidobacteria | G54: Gp6 | H54: 58.13855626 | I54: 0.058281424 | J54: 15 | K54: 36 | L54: 5.41e-08 | M54: 0.000390844 | N54: Increase | O54: 0.000168308 | P54: Increase | Q54: NA | R54: NA | S54: TRUE | T54: 14_0929_02_40cm_Acidobacteria_2812_65_9
A55: SG_34 | B55: 14_0903_13_30cm_scaffold_12069121_4 | C55: 14_1009_12_40cm_scaffold_3342 | D55: OTU_34 | E55: Bacteria | F55: Acidobacteria | G55: Gp2 | H55: 57.88321219 | I55: 0.058025452 | J55: 15 | K55: 44 | L55: 5.76e-21 | M55: 1.04e-15 | N55: Increase | O55: NA | P55: NA | Q55: NA | R55: NA | S55: TRUE | T55: 14_1009_12_40cm_Acidobacteria_8689_60_7
A56: SG_2139 | B56: 14_0903_13_30cm_scaffold_10538266_41 | C56: 14_0903_13_30cm_scaffold_10538266 | D56: OTU_2139 | E56: Bacteria | F56: Acidobacteria | G56: Gp1-Acidobacteriia | H56: 56.89891853 | I56: 0.05703874 | J56: 7 | K56: 57 | L56: 0.021586496 | M56: 0.01215389 | N56: Increase | O56: 0.001812101 | P56: Increase | Q56: NA | R56: NA | S56: TRUE | T56: 14_0903_13_30cm_Bacteria_4817_57_14
A57: SG_3261 | B57: 14_0927_02_20cm_scaffold_126669_1 | C57: 14_0927_02_20cm_scaffold_126669 | D57: OTU_3261 | E57: Bacteria | F57: Acidobacteria | G57: Gp2 | H57: 55.46355983 | I57: 0.055599854 | J57: 1 | K57: 59 | L57: NA | M57: NA | N57: NA | O57: NA | P57: NA | Q57: NA | R57: NA | S57: FALSE | T57: NA
A58: SG_1165 | B58: 14_0903_13_30cm_scaffold_3047594_3 | C58: 14_0903_12_30cm_scaffold_1385 | D58: OTU_1165 | E58: Bacteria | F58: Acidobacteria | G58: Gp4-Blastocatellia | H58: 55.1243436 | I58: 0.055259804 | J58: 11 | K58: 60 | L58: NA | M58: NA | N58: NA | O58: NA | P58: NA | Q58: NA | R58: NA | S58: TRUE | T58: 14_0903_12_30cm_Bacteria_1092_55_8
A59: SG_874 | B59: 14_0929_12_30cm_scaffold_7845_10 | C59: 14_0929_12_30cm_scaffold_7845 | D59: OTU_874 | E59: Bacteria | F59: Acidobacteria | G59: Gp2 | H59: 53.99015918 | I59: 0.054122833 | J59: 1 | K59: 59 | L59: NA | M59: NA | N59: NA | O59: NA | P59: NA | Q59: NA | R59: NA | S59: TRUE | T59: 14_0929_12_30cm_Bacteria_7370_58_11
A60: SG_2133 | B60: 14_0929_05_30cm_scaffold_186000_2 | C60: 14_0903_16_40cm_scaffold_1094 | D60: OTU_2133 | E60: Bacteria | F60: Acidobacteria | G60: Gp22 | H60: 53.56187948 | I60: 0.053693501 | J60: 8 | K60: 32 | L60: 1.35e-11 | M60: 1.28e-06 | N60: Increase | O60: NA | P60: NA | Q60: NA | R60: NA | S60: TRUE | T60: 14_0903_16_40cm_Bacteria_5660_68_9
A61: SG_3029 | B61: 14_0903_13_20cm_scaffold_145699_3 | C61: 14_0903_13_20cm_scaffold_145699 | D61: OTU_3029 | E61: Bacteria | F61: Acidobacteria | G61: Gp5 | H61: 53.25881692 | I61: 0.053389693 | J61: 1 | K61: 50 | L61: NA | M61: NA | N61: NA | O61: 0.001178981 | P61: Increase | Q61: NA | R61: NA | S61: FALSE | T61: NA
A62: SG_1240 | B62: 14_0903_05_40cm_scaffold_176369_2 | C62: 14_0903_13_30cm_scaffold_7421533 | D62: OTU_1240 | E62: Bacteria | F62: Acidobacteria | G62: Gp4-Blastocatellia | H62: 53.03465672 | I62: 0.053164982 | J62: 9 | K62: 58 | L62: NA | M62: NA | N62: NA | O62: NA | P62: NA | Q62: NA | R62: NA | S62: TRUE | T62: 14_1009_16_40cm_Bacteria_10276_56_6
A63: SG_2983 | B63: 14_1009_05_20cm_scaffold_218040_2 | C63: 14_1009_05_20cm_scaffold_218040 | D63: OTU_2983 | E63: Bacteria | F63: Acidobacteria | G63: Gp2 | H63: 53.01461414 | I63: 0.05314489 | J63: 1 | K63: 42 | L63: NA | M63: NA | N63: NA | O63: NA | P63: NA | Q63: NA | R63: NA | S63: FALSE | T63: NA
A64: SG_2925 | B64: 14_0903_13_30cm_scaffold_1393337_10 | C64: 14_0903_13_30cm_scaffold_1393337 | D64: OTU_2925 | E64: Bacteria | F64: Acidobacteria | G64: Gp1-Acidobacteriia | H64: 52.45790332 | I64: 0.052586812 | J64: 1 | K64: 38 | L64: NA | M64: NA | N64: NA | O64: NA | P64: NA | Q64: NA | R64: NA | S64: TRUE | T64: 14_0903_13_30cm_Acidobacteria_4908_55_5
A65: SG_2396 | B65: 14_1009_13_30cm_scaffold_49193_9 | C65: 14_1009_09_30cm_scaffold_3511 | D65: OTU_2396 | E65: Bacteria | F65: Acidobacteria | G65: Gp7 | H65: 52.26844674 | I65: 0.052396889 | J65: 8 | K65: 59 | L65: 2.27e-08 | M65: 2.03e-06 | N65: Increase | O65: NA | P65: NA | Q65: NA | R65: NA | S65: TRUE | T65: 14_1009_09_30cm_Bacteria_8002_60_6
A66: SG_1926 | B66: 14_0903_09_20cm_scaffold_25392_3 | C66: 14_0919_09_20cm_scaffold_158 | D66: OTU_1926 | E66: Bacteria | F66: Acidobacteria | G66: Gp2 | H66: 52.2530504 | I66: 0.052381455 | J66: 6 | K66: 54 | L66: 4.5e-20 | M66: 1.84e-07 | N66: Decrease | O66: NA | P66: NA | Q66: NA | R66: NA | S66: TRUE | T66: 14_0919_09_20cm_Acidobacteria_1647_57_9
A67: SG_3174 | B67: 14_1009_13_40cm_scaffold_15350_2 | C67: 14_1009_13_40cm_scaffold_15350 | D67: OTU_3174 | E67: Bacteria | F67: Acidobacteria | G67: Gp18 | H67: 51.00562548 | I67: 0.051130965 | J67: 2 | K67: 57 | L67: 1.52e-15 | M67: 1.74e-05 | N67: Increase | O67: NA | P67: NA | Q67: NA | R67: NA | S67: TRUE | T67: 14_1009_13_40cm_Bacteria_9326_59_7
A68: SG_2037 | B68: 14_0903_13_20cm_scaffold_10487_4 | C68: 14_1009_13_20cm_scaffold_1274 | D68: OTU_2037 | E68: Bacteria | F68: Acidobacteria | G68: Gp1-Acidobacteriia | H68: 50.90368218 | I68: 0.051028771 | J68: 6 | K68: 52 | L68: 1.07e-07 | M68: 0.002624424 | N68: Decrease | O68: 0.000665539 | P68: Increase | Q68: NA | R68: NA | S68: TRUE | T68: 14_1009_13_20cm_Acidobacteria_8926_56_6
A69: SG_1737 | B69: 14_0903_16_30cm_scaffold_10372_7 | C69: 14_1009_12_40cm_scaffold_16874 | D69: OTU_1737 | E69: Bacteria | F69: Acidobacteria | G69: Gp6 | H69: 50.207653 | I69: 0.050331032 | J69: 4 | K69: 51 | L69: NA | M69: NA | N69: NA | O69: 0.008866542 | P69: Decrease | Q69: 5.51e-06 | R69: Decrease | S69: TRUE | T69: 14_1009_12_40cm_Acidobacteria_8738_65_6
A70: SG_1998 | B70: 14_1009_05_30cm_scaffold_6556_9 | C70: 14_1009_05_30cm_scaffold_6556 | D70: OTU_1998 | E70: Bacteria | F70: Acidobacteria | G70: Gp2 | H70: 49.0642143 | I70: 0.049184783 | J70: 1 | K70: 58 | L70: 3.72e-06 | M70: 0.005064077 | N70: Increase | O70: NA | P70: NA | Q70: NA | R70: NA | S70: TRUE | T70: 14_1009_05_30cm_Bacteria_4168_57_7
A71: SG_525 | B71: 14_0903_13_30cm_scaffold_7745681_26 | C71: 14_0903_13_30cm_scaffold_7745681 | D71: OTU_525 | E71: Bacteria | F71: Acidobacteria | G71: Gp3-Solibacteres | H71: 48.83089426 | I71: 0.04895089 | J71: 4 | K71: 57 | L71: 0.000508799 | M71: 0.000982949 | N71: Increase | O71: NA | P71: NA | Q71: NA | R71: NA | S71: TRUE | T71: 14_0903_13_30cm_Bacteria_4803_58_14
A72: SG_3035 | B72: 14_0929_09_40cm_scaffold_236906_1 | C72: 14_0929_09_40cm_scaffold_236906 | D72: OTU_3035 | E72: Bacteria | F72: Acidobacteria | G72: Gp4-Blastocatellia | H72: 48.58787615 | I72: 0.048707274 | J72: 1 | K72: 32 | L72: 8.23e-06 | M72: 4.29e-05 | N72: Increase | O72: NA | P72: NA | Q72: NA | R72: NA | S72: FALSE | T72: NA
A73: SG_1810 | B73: 14_0903_13_30cm_scaffold_3403479_2 | C73: 14_0903_13_30cm_scaffold_3403479 | D73: OTU_1810 | E73: Bacteria | F73: Acidobacteria | G73: Gp18 | H73: 48.49022543 | I73: 0.048609384 | J73: 3 | K73: 55 | L73: 9.4e-19 | M73: 1.28e-07 | N73: Increase | O73: NA | P73: NA | Q73: NA | R73: NA | S73: TRUE | T73: 14_0903_13_30cm_Bacteria_4939_59_17
A74: SG_1735 | B74: 14_1009_09_20cm_scaffold_2399_10 | C74: 14_1009_09_20cm_scaffold_2399 | D74: OTU_1735 | E74: Bacteria | F74: Acidobacteria | G74: Gp6 | H74: 47.79123767 | I74: 0.047908678 | J74: 3 | K74: 54 | L74: 1.37e-14 | M74: 7.37e-07 | N74: Decrease | O74: NA | P74: NA | Q74: NA | R74: NA | S74: TRUE | T74: 14_1009_09_20cm_Acidobacteria_7739_65_6
A75: SG_3167 | B75: 14_0903_12_20cm_scaffold_14616_10 | C75: 14_0903_12_20cm_scaffold_14616 | D75: OTU_3167 | E75: Bacteria | F75: Acidobacteria | G75: Gp1-Acidobacteriia | H75: 46.93383844 | I75: 0.047049172 | J75: 1 | K75: 40 | L75: NA | M75: NA | N75: NA | O75: 0.028991351 | P75: Decrease | Q75: NA | R75: NA | S75: TRUE | T75: 14_0903_12_20cm_Acidobacteria_891_55_5
A76: SG_2028 | B76: 14_0919_05_20cm_scaffold_1952_30 | C76: 14_0919_05_20cm_scaffold_1952 | D76: OTU_2028 | E76: Bacteria | F76: Acidobacteria | G76: Gp6 | H76: 46.68318427 | I76: 0.046797902 | J76: 1 | K76: 54 | L76: NA | M76: NA | N76: NA | O76: 0.000255074 | P76: Decrease | Q76: 0.000143041 | R76: Decrease | S76: TRUE | T76: 14_0919_05_20cm_Acidobacteria_1516_65_6
A77: SG_1885 | B77: 14_0903_13_30cm_scaffold_1422390_2 | C77: 14_1009_16_30cm_scaffold_32249 | D77: OTU_1885 | E77: Bacteria | F77: Acidobacteria | G77: Gp13 | H77: 46.33145568 | I77: 0.046445309 | J77: 4 | K77: 60 | L77: 0.003145783 | M77: 0.001886623 | N77: Increase | O77: 8.29e-05 | P77: Increase | Q77: NA | R77: NA | S77: TRUE | T77: 14_1009_16_30cm_Bacteria_9714_60_6
A78: SG_1769 | B78: 14_1009_16_20cm_scaffold_85037_3 | C78: 14_0929_05_30cm_scaffold_14357 | D78: OTU_1769 | E78: Bacteria | F78: Acidobacteria | G78: Gp6 | H78: 45.36956427 | I78: 0.045481054 | J78: 2 | K78: 49 | L78: NA | M78: NA | N78: NA | O78: 0.00439195 | P78: Decrease | Q78: 0.0001883 | R78: Decrease | S78: TRUE | T78: 14_0929_05_30cm_Acidobacteria_3216_65_8
A79: SG_3059 | B79: 14_0903_12_20cm_scaffold_1766_3 | C79: 14_0903_12_20cm_scaffold_1766 | D79: OTU_3059 | E79: Bacteria | F79: Acidobacteria | G79: Gp1-Acidobacteriia | H79: 44.98098109 | I79: 0.045091516 | J79: 1 | K79: 32 | L79: NA | M79: NA | N79: NA | O79: NA | P79: NA | Q79: NA | R79: NA | S79: TRUE | T79: 14_0903_12_20cm_Acidobacteria_917_58_8
A80: SG_3154 | B80: 14_0903_09_20cm_scaffold_14383_9 | C80: 14_0903_09_20cm_scaffold_14383 | D80: OTU_3154 | E80: Bacteria | F80: Acidobacteria | G80: Gp1-Acidobacteriia | H80: 44.92910118 | I80: 0.045039508 | J80: 1 | K80: 31 | L80: 9.23e-09 | M80: 0.001317497 | N80: Decrease | O80: 0.033477245 | P80: Decrease | Q80: NA | R80: NA | S80: FALSE | T80: NA
A81: SG_1183 | B81: 14_0903_12_30cm_scaffold_117450_2 | C81: 14_1009_09_30cm_scaffold_29752 | D81: OTU_1183 | E81: Bacteria | F81: Acidobacteria | G81: Gp4-Blastocatellia | H81: 44.82303033 | I81: 0.044933177 | J81: 9 | K81: 53 | L81: NA | M81: NA | N81: NA | O81: NA | P81: NA | Q81: NA | R81: NA | S81: TRUE | T81: 14_1009_09_30cm_Bacteria_7973_55_6
A82: SG_2002 | B82: 14_0927_12_40cm_scaffold_1125_30 | C82: 14_0927_12_40cm_scaffold_1125 | D82: OTU_2002 | E82: Bacteria | F82: Acidobacteria | G82: Gp2 | H82: 44.1943947 | I82: 0.044302997 | J82: 4 | K82: 29 | L82: 3.62e-08 | M82: 1.65e-07 | N82: Increase | O82: NA | P82: NA | Q82: 0.039272084 | R82: Decrease | S82: TRUE | T82: 14_0927_12_40cm_Acidobacteria_10611_58_16
A83: SG_2145 | B83: 14_0929_05_20cm_scaffold_40697_2 | C83: 14_0929_05_20cm_scaffold_40697 | D83: OTU_2145 | E83: Bacteria | F83: Acidobacteria | G83: Gp2 | H83: 43.98107168 | I83: 0.044089149 | J83: 1 | K83: 59 | L83: 3.38e-09 | M83: 1.85e-05 | N83: Increase | O83: NA | P83: NA | Q83: NA | R83: NA | S83: FALSE | T83: NA
A84: SG_1779 | B84: 14_1009_02_40cm_scaffold_1700_1 | C84: 14_1009_02_40cm_scaffold_1700 | D84: OTU_1779 | E84: Bacteria | F84: Acidobacteria | G84: Gp6 | H84: 43.13654951 | I84: 0.043242552 | J84: 1 | K84: 36 | L84: 6.74e-06 | M84: 0.00161687 | N84: Increase | O84: 0.011048974 | P84: Increase | Q84: NA | R84: NA | S84: TRUE | T84: 14_1009_02_40cm_Acidobacteria_3833_65_7
A85: SG_1908 | B85: 14_0903_13_30cm_scaffold_96247_38 | C85: 14_0903_13_30cm_scaffold_96247 | D85: OTU_1908 | E85: Bacteria | F85: Acidobacteria | G85: Gp13 | H85: 43.07461683 | I85: 0.043180467 | J85: 4 | K85: 38 | L85: NA | M85: NA | N85: NA | O85: 5.81e-07 | P85: Increase | Q85: 0.004556638 | R85: Increase | S85: TRUE | T85: 14_0903_13_30cm_Bacteria_4805_60_6
A86: SG_2209 | B86: 14_0903_13_30cm_scaffold_1600736_48 | C86: 14_0903_13_30cm_scaffold_1600736 | D86: OTU_2209 | E86: Bacteria | F86: Acidobacteria | G86: Gp5 | H86: 42.72971271 | I86: 0.042834715 | J86: 1 | K86: 57 | L86: 0.001154671 | M86: 0.00032589 | N86: Increase | O86: NA | P86: NA | Q86: NA | R86: NA | S86: TRUE | T86: 14_0903_13_30cm_Bacteria_4823_55_8
A87: SG_3077 | B87: 14_0903_09_30cm_scaffold_177380_3 | C87: 14_0927_09_40cm_scaffold_78867 | D87: OTU_3077 | E87: Bacteria | F87: Acidobacteria | G87: Gp1-Acidobacteriia | H87: 41.18165397 | I87: 0.041282852 | J87: 3 | K87: 47 | L87: 0.00022531 | M87: 0.004877062 | N87: Increase | O87: NA | P87: NA | Q87: NA | R87: NA | S87: FALSE | T87: NA
A88: SG_1200 | B88: 14_0929_02_30cm_scaffold_8598_6 | C88: 14_0929_02_30cm_scaffold_8598 | D88: OTU_1200 | E88: Bacteria | F88: Acidobacteria | G88: Gp4-Blastocatellia | H88: 40.89573859 | I88: 0.040996234 | J88: 1 | K88: 52 | L88: 4.76e-09 | M88: 1.05e-05 | N88: Increase | O88: NA | P88: NA | Q88: NA | R88: NA | S88: FALSE | T88: NA
A89: SG_2518 | B89: 14_0927_12_20cm_scaffold_4645_7 | C89: 14_0927_12_20cm_scaffold_4645 | D89: OTU_2518 | E89: Bacteria | F89: Acidobacteria | G89: Gp4-Blastocatellia | H89: 40.15370992 | I89: 0.040252382 | J89: 1 | K89: 50 | L89: NA | M89: NA | N89: NA | O89: NA | P89: NA | Q89: NA | R89: NA | S89: FALSE | T89: 14_0927_12_20cm_Bacteria_6407_55_7
A90: SG_2577 | B90: 14_0929_02_30cm_scaffold_194192_2 | C90: 14_0929_02_30cm_scaffold_194192 | D90: OTU_2577 | E90: Bacteria | F90: Acidobacteria | G90: Gp1-Acidobacteriia | H90: 39.52923253 | I90: 0.03962637 | J90: 2 | K90: 46 | L90: NA | M90: NA | N90: NA | O90: NA | P90: NA | Q90: NA | R90: NA | S90: FALSE | T90: NA
A91: SG_488 | B91: 14_1009_16_40cm_scaffold_59606_11 | C91: 14_1009_16_40cm_scaffold_59606 | D91: OTU_488 | E91: Bacteria | F91: Acidobacteria | G91: Gp3-Solibacteres | H91: 39.52389599 | I91: 0.039621021 | J91: 1 | K91: 59 | L91: 1.46e-07 | M91: 9.96e-05 | N91: Increase | O91: NA | P91: NA | Q91: NA | R91: NA | S91: TRUE | T91: 14_1009_16_40cm_Acidobacteria_10131_59_8
A92: SG_1794 | B92: 14_1009_16_30cm_scaffold_47404_16 | C92: 14_1009_16_40cm_scaffold_12699 | D92: OTU_1794 | E92: Bacteria | F92: Acidobacteria | G92: Gp6 | H92: 39.50799039 | I92: 0.039605076 | J92: 3 | K92: 60 | L92: 7.82e-12 | M92: 1.67e-09 | N92: Increase | O92: NA | P92: NA | Q92: NA | R92: NA | S92: TRUE | T92: 14_1009_16_40cm_Acidobacteria_10109_67_6
A93: SG_1969 | B93: 14_0903_13_30cm_scaffold_2838460_10 | C93: 14_0903_13_30cm_scaffold_2838460 | D93: OTU_1969 | E93: Bacteria | F93: Acidobacteria | G93: Gp2 | H93: 39.34450829 | I93: 0.039441192 | J93: 2 | K93: 40 | L93: NA | M93: NA | N93: NA | O93: NA | P93: NA | Q93: NA | R93: NA | S93: TRUE | T93: 14_0903_13_30cm_Bacteria_4804_57_9
A94: SG_2541 | B94: 14_0903_13_30cm_scaffold_2041148_8 | C94: 14_0903_13_30cm_scaffold_2041148 | D94: OTU_2541 | E94: Bacteria | F94: Acidobacteria | G94: Gp1-Acidobacteriia | H94: 39.20698858 | I94: 0.039303335 | J94: 1 | K94: 58 | L94: NA | M94: NA | N94: NA | O94: NA | P94: NA | Q94: NA | R94: NA | S94: TRUE | T94: 14_0903_13_30cm_Acidobacteria_4858_56_6
A95: SG_2872 | B95: 14_0903_12_30cm_scaffold_8475_7 | C95: 14_0903_12_30cm_scaffold_8475 | D95: OTU_2872 | E95: Bacteria | F95: Acidobacteria | G95: Gp1-Acidobacteriia | H95: 38.78394698 | I95: 0.038879253 | J95: 3 | K95: 53 | L95: 5.02e-05 | M95: 0.001012188 | N95: Increase | O95: 0.023096793 | P95: Decrease | Q95: NA | R95: NA | S95: TRUE | T95: 14_0903_12_30cm_Acidobacteria_1081_55_6
A96: SG_1749 | B96: 14_0903_13_30cm_scaffold_703491_51 | C96: 14_0903_13_30cm_scaffold_703491 | D96: OTU_1749 | E96: Bacteria | F96: Acidobacteria | G96: Gp6 | H96: 38.6630116 | I96: 0.038758021 | J96: 3 | K96: 55 | L96: 2.73e-11 | M96: 1.95e-08 | N96: Increase | O96: 0.000274363 | P96: Increase | Q96: NA | R96: NA | S96: TRUE | T96: 14_0903_13_30cm_Acidobacteria_5060_64_8
A97: SG_2846 | B97: 14_0927_09_40cm_scaffold_259526_1 | C97: 14_0927_09_40cm_scaffold_259526 | D97: OTU_2846 | E97: Bacteria | F97: Acidobacteria | G97: Gp1-Acidobacteriia | H97: 38.41112163 | I97: 0.038505512 | J97: 1 | K97: 31 | L97: NA | M97: NA | N97: NA | O97: 0.008650651 | P97: Increase | Q97: 0.000809212 | R97: Increase | S97: FALSE | T97: NA
A98: SG_3106 | B98: 14_1009_05_30cm_scaffold_18113_9 | C98: 14_1009_05_30cm_scaffold_18113 | D98: OTU_3106 | E98: Bacteria | F98: Acidobacteria | G98: Gp2 | H98: 38.38501414 | I98: 0.03847934 | J98: 1 | K98: 59 | L98: NA | M98: NA | N98: NA | O98: NA | P98: NA | Q98: 0.00038254 | R98: Decrease | S98: FALSE | T98: NA
A99: SG_2364 | B99: 14_0929_12_40cm_scaffold_104349_2 | C99: 14_1009_16_30cm_scaffold_5136 | D99: OTU_2364 | E99: Bacteria | F99: Acidobacteria | G99: Gp7 | H99: 38.26936946 | I99: 0.038363411 | J99: 4 | K99: 59 | L99: 5.1e-07 | M99: 1.98e-06 | N99: Increase | O99: NA | P99: NA | Q99: NA | R99: NA | S99: TRUE | T99: 14_1009_16_30cm_Bacteria_9630_62_9
A100: SG_2012 | B100: 14_0903_12_30cm_scaffold_6441_2 | C100: 14_0903_12_30cm_scaffold_6441 | D100: OTU_2012 | E100: Bacteria | F100: Acidobacteria | G100: Gp1-Acidobacteriia | H100: 38.02767576 | I100: 0.038121124 | J100: 3 | K100: 57 | L100: NA | M100: NA | N100: NA | O100: NA | P100: NA | Q100: NA | R100: NA | S100: TRUE | T100: 14_0903_12_30cm_Acidobacteria_1079_57_7
A101: SG_1957 | B101: 14_0927_12_40cm_scaffold_5247_15 | C101: 14_1009_12_40cm_scaffold_1360 | D101: OTU_1957 | E101: Bacteria | F101: Acidobacteria | G101: Gp2 | H101: 37.99507692 | I101: 0.038088445 | J101: 6 | K101: 20 | L101: NA | M101: NA | N101: NA | O101: NA | P101: NA | Q101: NA | R101: NA | S101: TRUE | T101: 14_0927_12_40cm_Acidobacteria_6535_59_9
A102: SG_2608 | B102: 14_0903_13_30cm_scaffold_911006_56 | C102: 14_0903_13_30cm_scaffold_911006 | D102: OTU_2608 | E102: Bacteria | F102: Acidobacteria | G102: Gp1-Acidobacteriia | H102: 37.87779295 | I102: 0.037970873 | J102: 1 | K102: 58 | L102: 7.31e-05 | M102: 0.000800501 | N102: Increase | O102: 0.013404402 | P102: Decrease | Q102: NA | R102: NA | S102: TRUE | T102: 14_0903_13_30cm_Bacteria_4853_55_13
A103: SG_2397 | B103: 14_0903_13_30cm_scaffold_418404_14 | C103: 14_1009_16_30cm_scaffold_29862 | D103: OTU_2397 | E103: Bacteria | F103: Acidobacteria | G103: Gp7 | H103: 37.30450344 | I103: 0.037396174 | J103: 3 | K103: 53 | L103: NA | M103: NA | N103: NA | O103: 0.005090939 | P103: Increase | Q103: NA | R103: NA | S103: TRUE | T103: 14_1009_16_30cm_Bacteria_9655_67_9
A104: SG_1979 | B104: 14_0903_13_30cm_scaffold_47692_7 | C104: 14_0903_13_30cm_scaffold_47692 | D104: OTU_1979 | E104: Bacteria | F104: Acidobacteria | G104: Gp2 | H104: 37.2617248 | I104: 0.037353291 | J104: 5 | K104: 31 | L104: 5.82e-08 | M104: 1.69e-09 | N104: Increase | O104: NA | P104: NA | Q104: NA | R104: NA | S104: TRUE | T104: 14_0903_13_30cm_Acidobacteria_4932_58_16
A105: SG_2193 | B105: 14_0903_13_20cm_scaffold_8514_22 | C105: 14_0903_13_20cm_scaffold_8514 | D105: OTU_2193 | E105: Bacteria | F105: Acidobacteria | G105: Gp1-Acidobacteriia | H105: 37.17143902 | I105: 0.037262783 | J105: 15 | K105: 54 | L105: 3.95e-31 | M105: 2.38e-13 | N105: Decrease | O105: NA | P105: NA | Q105: NA | R105: NA | S105: FALSE | T105: 14_0903_13_20cm_Acidobacteriales_1219_55_6
A106: SG_2367 | B106: 14_0919_02_20cm_scaffold_133375_1 | C106: 14_1009_16_40cm_scaffold_25863 | D106: OTU_2367 | E106: Bacteria | F106: Acidobacteria | G106: Gp7 | H106: 37.14159165 | I106: 0.037232862 | J106: 3 | K106: 47 | L106: NA | M106: NA | N106: NA | O106: 0.017792855 | P106: Increase | Q106: NA | R106: NA | S106: TRUE | T106: 14_1009_16_40cm_Bacteria_10087_67_7
A107: SG_2371 | B107: 14_0927_05_20cm_scaffold_248076_3 | C107: 14_1009_16_40cm_scaffold_302987 | D107: OTU_2371 | E107: Bacteria | F107: Acidobacteria | G107: Gp7 | H107: 37.09696362 | I107: 0.037188124 | J107: 5 | K107: 38 | L107: 6.86e-10 | M107: 9.32e-06 | N107: Increase | O107: NA | P107: NA | Q107: NA | R107: NA | S107: FALSE | T107: NA
A108: SG_1930 | B108: 14_1009_16_40cm_scaffold_53327_1 | C108: 14_1009_16_40cm_scaffold_53327 | D108: OTU_1930 | E108: Bacteria | F108: Acidobacteria | G108: Gp13 | H108: 36.96032469 | I108: 0.03705115 | J108: 3 | K108: 43 | L108: 9.01e-10 | M108: 0.001563229 | N108: Increase | O108: NA | P108: NA | Q108: NA | R108: NA | S108: TRUE | T108: 14_1009_16_40cm_Bacteria_10380_61_12
A109: SG_2216 | B109: 14_1009_05_20cm_scaffold_10742_6 | C109: 14_1009_05_20cm_scaffold_10742 | D109: OTU_2216 | E109: Bacteria | F109: Acidobacteria | G109: Gp1-Acidobacteriia | H109: 36.95112957 | I109: 0.037041932 | J109: 5 | K109: 48 | L109: 4.59e-14 | M109: 2.24e-10 | N109: Decrease | O109: NA | P109: NA | Q109: NA | R109: NA | S109: FALSE | T109: NA
A110: SG_2182 | B110: 14_0929_12_20cm_scaffold_54235_6 | C110: 14_1009_16_40cm_scaffold_1189 | D110: OTU_2182 | E110: Bacteria | F110: Acidobacteria | G110: Gp1-Acidobacteriia | H110: 36.60232087 | I110: 0.036692266 | J110: 13 | K110: 60 | L110: 2.59e-08 | M110: 5.33e-07 | N110: Increase | O110: NA | P110: NA | Q110: NA | R110: NA | S110: TRUE | T110: 14_1009_16_40cm_Bacteria_10110_55_10
A111: SG_2336 | B111: 14_0903_02_20cm_scaffold_69_35 | C111: 14_0903_02_30cm_scaffold_58 | D111: OTU_2336 | E111: Bacteria | F111: Acidobacteria | G111: Gp7 | H111: 36.44817111 | I111: 0.036537738 | J111: 3 | K111: 59 | L111: NA | M111: NA | N111: NA | O111: NA | P111: NA | Q111: NA | R111: NA | S111: TRUE | T111: 14_0903_02_30cm_Bacteria_162_64_22
A112: SG_1937 | B112: 14_1009_12_20cm_scaffold_1348_21 | C112: 14_1009_12_20cm_scaffold_1348 | D112: OTU_1937 | E112: Bacteria | F112: Acidobacteria | G112: Gp1-Acidobacteriia | H112: 36.11861549 | I112: 0.036207372 | J112: 4 | K112: 46 | L112: 9.59e-10 | M112: 0.00123187 | N112: Decrease | O112: NA | P112: NA | Q112: NA | R112: NA | S112: TRUE | T112: 14_1009_12_20cm_Acidobacteria_8358_56_5
A113: SG_3085 | B113: 14_1009_02_20cm_scaffold_4486_10 | C113: 14_1009_02_20cm_scaffold_4486 | D113: OTU_3085 | E113: Bacteria | F113: Acidobacteria | G113: Gp1-Acidobacteriia | H113: 35.13751862 | I113: 0.035223864 | J113: 1 | K113: 50 | L113: 9.62e-14 | M113: 9.93e-07 | N113: Decrease | O113: NA | P113: NA | Q113: NA | R113: NA | S113: TRUE | T113: 14_1009_02_20cm_Acidobacteria_3609_55_5
A114: SG_1238 | B114: 14_1009_09_20cm_scaffold_35510_5 | C114: 14_1009_09_20cm_scaffold_35510 | D114: OTU_1238 | E114: Bacteria | F114: Acidobacteria | G114: Gp4-Blastocatellia | H114: 34.70856674 | I114: 0.034793858 | J114: 2 | K114: 39 | L114: NA | M114: NA | N114: NA | O114: NA | P114: NA | Q114: NA | R114: NA | S114: FALSE | T114: NA
A115: SG_2111 | B115: 14_1009_16_30cm_scaffold_570560_2 | C115: 14_0903_13_30cm_scaffold_639653 | D115: OTU_2111 | E115: Bacteria | F115: Acidobacteria | G115: Gp22 | H115: 34.62021839 | I115: 0.034705293 | J115: 7 | K115: 35 | L115: 1.98e-16 | M115: 5.22e-07 | N115: Increase | O115: 0.000946663 | P115: Increase | Q115: NA | R115: NA | S115: TRUE | T115: 14_0903_13_30cm_Bacteria_4832_68_9
A116: SG_2880 | B116: 14_0929_09_40cm_scaffold_26004_5 | C116: 14_0929_09_40cm_scaffold_26004 | D116: OTU_2880 | E116: Bacteria | F116: Acidobacteria | G116: Gp2 | H116: 34.38576393 | I116: 0.034470262 | J116: 1 | K116: 51 | L116: 0.006048016 | M116: 0.043822846 | N116: Increase | O116: NA | P116: NA | Q116: NA | R116: NA | S116: TRUE | T116: 14_0929_09_40cm_Bacteria_7010_58_7
A117: SG_2007 | B117: 14_1009_09_20cm_scaffold_2998_18 | C117: 14_1009_09_20cm_scaffold_2998 | D117: OTU_2007 | E117: Bacteria | F117: Acidobacteria | G117: Gp2 | H117: 34.31431889 | I117: 0.034398642 | J117: 1 | K117: 28 | L117: 6.3e-11 | M117: 1.05e-05 | N117: Decrease | O117: NA | P117: NA | Q117: NA | R117: NA | S117: FALSE | T117: NA
A118: SG_550 | B118: 14_0929_05_30cm_scaffold_93407_1 | C118: 14_0929_05_30cm_scaffold_93407 | D118: OTU_550 | E118: Bacteria | F118: Acidobacteria | G118: Gp3-Solibacteres | H118: 34.00174655 | I118: 0.034085301 | J118: 1 | K118: 50 | L118: 1.33e-07 | M118: 0.001031285 | N118: Increase | O118: NA | P118: NA | Q118: NA | R118: NA | S118: FALSE | T118: NA
A119: SG_471 | B119: 14_1009_09_40cm_scaffold_85551_2 | C119: 14_0903_16_40cm_scaffold_117757 | D119: OTU_471 | E119: Bacteria | F119: Acidobacteria | G119: Gp6 | H119: 33.77799883 | I119: 0.033861004 | J119: 2 | K119: 40 | L119: NA | M119: NA | N119: NA | O119: 0.036039086 | P119: Decrease | Q119: 0.000810497 | R119: Decrease | S119: FALSE | T119: NA
A120: SG_1754 | B120: 14_0903_12_20cm_scaffold_8188_15 | C120: 14_0903_12_20cm_scaffold_8188 | D120: OTU_1754 | E120: Bacteria | F120: Acidobacteria | G120: Gp6 | H120: 33.59381006 | I120: 0.033676362 | J120: 1 | K120: 45 | L120: NA | M120: NA | N120: NA | O120: 0.000125543 | P120: Decrease | Q120: 1.76e-05 | R120: Decrease | S120: TRUE | T120: 14_0903_12_20cm_Acidobacteria_902_65_6
A121: SG_218 | B121: 14_1009_16_30cm_scaffold_147190_9 | C121: 14_0903_13_40cm_scaffold_9223 | D121: OTU_218 | E121: Bacteria | F121: Acidobacteria | G121: Gp13 | H121: 32.99391146 | I121: 0.03307499 | J121: 7 | K121: 56 | L121: 2.98e-15 | M121: 0.001492027 | N121: Increase | O121: NA | P121: NA | Q121: NA | R121: NA | S121: TRUE | T121: 14_1009_16_30cm_Bacteria_9659_61_10
A122: SG_1727 | B122: 14_1009_16_20cm_scaffold_10517_7 | C122: 14_1009_16_20cm_scaffold_10517 | D122: OTU_1727 | E122: Bacteria | F122: Acidobacteria | G122: Gp6 | H122: 32.83262025 | I122: 0.032913302 | J122: 3 | K122: 48 | L122: 1.59e-09 | M122: 7.4e-07 | N122: Decrease | O122: NA | P122: NA | Q122: NA | R122: NA | S122: TRUE | T122: 14_1009_16_20cm_Acidobacteria_9494_68_6
A123: SG_1949 | B123: 14_0903_05_30cm_scaffold_16202_4 | C123: 14_1009_05_40cm_scaffold_4865 | D123: OTU_1949 | E123: Bacteria | F123: Acidobacteria | G123: Gp13 | H123: 32.72679385 | I123: 0.032807216 | J123: 5 | K123: 47 | L123: 1.87e-11 | M123: 0.00600169 | N123: Increase | O123: NA | P123: NA | Q123: NA | R123: NA | S123: FALSE | T123: NA
A124: SG_1449 | B124: 14_0919_05_20cm_scaffold_11851_15 | C124: 14_0919_05_20cm_scaffold_11851 | D124: OTU_1449 | E124: Bacteria | F124: Acidobacteria | G124: Gp4-Blastocatellia | H124: 31.9864219 | I124: 0.032065024 | J124: 4 | K124: 59 | L124: 1.63e-16 | M124: 8.3e-10 | N124: Decrease | O124: NA | P124: NA | Q124: NA | R124: NA | S124: FALSE | T124: NA
A125: SG_2444 | B125: 14_0903_13_40cm_scaffold_168517_1 | C125: 14_0903_13_30cm_scaffold_7895590 | D125: OTU_2444 | E125: Bacteria | F125: Acidobacteria | G125: Unknown | H125: 31.90204329 | I125: 0.031980438 | J125: 3 | K125: 53 | L125: 0.002519186 | M125: 0.00024954 | N125: Increase | O125: 0.003519151 | P125: Increase | Q125: NA | R125: NA | S125: FALSE | T125: NA
A126: SG_1770 | B126: 14_0929_02_40cm_scaffold_110724_2 | C126: 14_1009_16_40cm_scaffold_13254 | D126: OTU_1770 | E126: Bacteria | F126: Acidobacteria | G126: Gp6 | H126: 31.89534332 | I126: 0.031973722 | J126: 3 | K126: 54 | L126: 1.69e-17 | M126: 2.32e-12 | N126: Increase | O126: NA | P126: NA | Q126: NA | R126: NA | S126: TRUE | T126: 14_1009_16_40cm_Acidobacteria_10259_65_9
A127: SG_2215 | B127: 14_0929_05_20cm_scaffold_92104_2 | C127: 14_0929_05_20cm_scaffold_92104 | D127: OTU_2215 | E127: Bacteria | F127: Acidobacteria | G127: Gp1-Acidobacteriia | H127: 31.50812881 | I127: 0.031585556 | J127: 3 | K127: 30 | L127: 6.69e-09 | M127: 3.38e-06 | N127: Decrease | O127: NA | P127: NA | Q127: NA | R127: NA | S127: FALSE | T127: NA
A128: SG_1978 | B128: 14_0903_13_30cm_scaffold_295348_11 | C128: 14_0903_13_30cm_scaffold_295348 | D128: OTU_1978 | E128: Bacteria | F128: Acidobacteria | G128: Gp2 | H128: 31.43094563 | I128: 0.031508183 | J128: 2 | K128: 58 | L128: NA | M128: NA | N128: NA | O128: 0.002521235 | P128: Increase | Q128: 0.038873257 | R128: Increase | S128: FALSE | T128: NA
A129: SG_1820 | B129: 14_0927_05_20cm_scaffold_81581_5 | C129: 14_0927_09_20cm_scaffold_246 | D129: OTU_1820 | E129: Bacteria | F129: Acidobacteria | G129: Gp6 | H129: 30.88604756 | I129: 0.030961946 | J129: 2 | K129: 59 | L129: NA | M129: NA | N129: NA | O129: 0.011197376 | P129: Decrease | Q129: 4.48e-06 | R129: Decrease | S129: TRUE | T129: 14_0927_09_20cm_Acidobacteria_6034_64_8
A130: SG_2114 | B130: 14_0903_12_30cm_scaffold_19791_3 | C130: 14_1009_12_40cm_scaffold_9686 | D130: OTU_2114 | E130: Bacteria | F130: Acidobacteria | G130: Gp1-Acidobacteriia | H130: 30.48169759 | I130: 0.030556602 | J130: 26 | K130: 59 | L130: 0.00055839 | M130: 0.004140843 | N130: Decrease | O130: NA | P130: NA | Q130: NA | R130: NA | S130: FALSE | T130: 14_0927_09_20cm_Candidatus_Koribacter_versatilis_6076_59_10
A131: SG_2780 | B131: 14_0903_13_30cm_scaffold_9073823_1 | C131: 14_0903_13_30cm_scaffold_9073823 | D131: OTU_2780 | E131: Bacteria | F131: Acidobacteria | G131: Gp2 | H131: 30.40861348 | I131: 0.030483339 | J131: 2 | K131: 52 | L131: 2.93e-09 | M131: 3.09e-05 | N131: Increase | O131: NA | P131: NA | Q131: NA | R131: NA | S131: TRUE | T131: 14_0903_13_30cm_Bacteria_5177_56_11
A132: SG_2181 | B132: 14_1009_05_40cm_scaffold_132660_2 | C132: 14_1009_16_40cm_scaffold_5529 | D132: OTU_2181 | E132: Bacteria | F132: Acidobacteria | G132: Gp5 | H132: 30.32149841 | I132: 0.030396009 | J132: 4 | K132: 57 | L132: 5.45e-18 | M132: 7.13e-09 | N132: Increase | O132: NA | P132: NA | Q132: NA | R132: NA | S132: FALSE | T132: NA
A133: SG_2143 | B133: 14_0919_05_20cm_scaffold_5148_6 | C133: 14_1009_05_20cm_scaffold_1255 | D133: OTU_2143 | E133: Bacteria | F133: Acidobacteria | G133: Gp1-Acidobacteriia | H133: 30.2158183 | I133: 0.03029007 | J133: 4 | K133: 53 | L133: 2.57e-17 | M133: 1.98e-11 | N133: Decrease | O133: NA | P133: NA | Q133: 0.015855778 | R133: Decrease | S133: TRUE | T133: 14_1009_05_20cm_Acidobacteria_3994_54_6
A134: SG_1990 | B134: 14_0919_02_20cm_scaffold_9473_10 | C134: 14_0919_02_20cm_scaffold_9473 | D134: OTU_1990 | E134: Bacteria | F134: Acidobacteria | G134: Gp2 | H134: 30.16327881 | I134: 0.030237401 | J134: 2 | K134: 49 | L134: 9.96e-07 | M134: 2.1e-05 | N134: Decrease | O134: 0.003864765 | P134: Increase | Q134: NA | R134: NA | S134: TRUE | T134: 14_0919_02_20cm_Acidobacteria_5905_58_8
A135: SG_2529 | B135: 14_1009_16_40cm_scaffold_16142_9 | C135: 14_1009_16_40cm_scaffold_16142 | D135: OTU_2529 | E135: Bacteria | F135: Acidobacteria | G135: Gp17 | H135: 30.15556549 | I135: 0.030229669 | J135: 1 | K135: 51 | L135: 1.32e-12 | M135: 3.86e-09 | N135: Increase | O135: NA | P135: NA | Q135: NA | R135: NA | S135: TRUE | T135: 14_1009_16_40cm_Bacteria_10145_71_8
A136: SG_2207 | B136: 14_0903_13_30cm_scaffold_6384290_4 | C136: 14_0903_13_30cm_scaffold_6384290 | D136: OTU_2207 | E136: Bacteria | F136: Acidobacteria | G136: Gp1-Acidobacteriia | H136: 29.78498184 | I136: 0.029858174 | J136: 1 | K136: 47 | L136: NA | M136: NA | N136: NA | O136: NA | P136: NA | Q136: NA | R136: NA | S136: FALSE | T136: NA
A137: SG_2026 | B137: 14_1009_09_30cm_scaffold_240666_2 | C137: 14_1009_12_40cm_scaffold_13501 | D137: OTU_2026 | E137: Bacteria | F137: Acidobacteria | G137: Gp2 | H137: 29.76746682 | I137: 0.029840616 | J137: 4 | K137: 17 | L137: NA | M137: NA | N137: NA | O137: NA | P137: NA | Q137: NA | R137: NA | S137: TRUE | T137: 14_0929_12_30cm_Bacteria_7412_58_7
A138: SG_1199 | B138: 14_1009_16_30cm_scaffold_62832_2 | C138: 14_0929_02_30cm_scaffold_34877 | D138: OTU_1199 | E138: Bacteria | F138: Acidobacteria | G138: Gp4-Blastocatellia | H138: 29.58811107 | I138: 0.02966082 | J138: 5 | K138: 50 | L138: 1.23e-09 | M138: 0.009425265 | N138: Increase | O138: NA | P138: NA | Q138: NA | R138: NA | S138: FALSE | T138: NA
A139: SG_2039 | B139: 14_0903_13_30cm_scaffold_1378341_7 | C139: 14_0919_09_20cm_scaffold_5512 | D139: OTU_2039 | E139: Bacteria | F139: Acidobacteria | G139: Gp1-Acidobacteriia | H139: 29.3618735 | I139: 0.029434026 | J139: 3 | K139: 47 | L139: 2.22e-05 | M139: 0.000318297 | N139: Decrease | O139: 0.011009683 | P139: Increase | Q139: NA | R139: NA | S139: TRUE | T139: 14_0929_09_20cm_Acidobacteriales_6726_56_6
A140: SG_2040 | B140: 14_0903_13_20cm_scaffold_22773_4 | C140: 14_0903_13_20cm_scaffold_22773 | D140: OTU_2040 | E140: Bacteria | F140: Acidobacteria | G140: Gp1-Acidobacteriia | H140: 29.32818436 | I140: 0.029400254 | J140: 3 | K140: 52 | L140: 1.19e-07 | M140: 5.01e-06 | N140: Decrease | O140: 0.041631844 | P140: Increase | Q140: NA | R140: NA | S140: TRUE | T140: 14_0903_13_20cm_Acidobacteria_1218_57_5
A141: SG_2573 | B141: 14_0927_02_20cm_scaffold_34129_4 | C141: 14_0927_02_20cm_scaffold_34129 | D141: OTU_2573 | E141: Bacteria | F141: Acidobacteria | G141: Gp1-Acidobacteriia | H141: 29.00110043 | I141: 0.029072367 | J141: 1 | K141: 46 | L141: 1.75e-14 | M141: 1.25e-10 | N141: Decrease | O141: 0.042888534 | P141: Increase | Q141: NA | R141: NA | S141: FALSE | T141: NA
A142: SG_2005 | B142: 14_0903_13_40cm_scaffold_39592_15 | C142: 14_0903_13_40cm_scaffold_39592 | D142: OTU_2005 | E142: Bacteria | F142: Acidobacteria | G142: Gp2 | H142: 28.72178276 | I142: 0.028792363 | J142: 1 | K142: 56 | L142: 3.76e-05 | M142: 0.007132126 | N142: Increase | O142: NA | P142: NA | Q142: NA | R142: NA | S142: TRUE | T142: 14_0903_13_40cm_Bacteria_1360_58_7
A143: SG_2203 | B143: 14_1009_12_30cm_scaffold_75781_5 | C143: 14_1009_12_30cm_scaffold_75781 | D143: OTU_2203 | E143: Bacteria | F143: Acidobacteria | G143: Gp1-Acidobacteriia | H143: 28.60853105 | I143: 0.028678833 | J143: 1 | K143: 40 | L143: 0.007004831 | M143: 0.013901702 | N143: Increase | O143: NA | P143: NA | Q143: NA | R143: NA | S143: TRUE | T143: 14_1009_12_30cm_Acidobacteria_8525_55_6
A144: SG_2593 | B144: 14_0903_13_30cm_scaffold_145442_6 | C144: 14_0903_13_30cm_scaffold_145442 | D144: OTU_2593 | E144: Bacteria | F144: Acidobacteria | G144: Gp2 | H144: 28.6008482 | I144: 0.028671131 | J144: 1 | K144: 43 | L144: NA | M144: NA | N144: NA | O144: NA | P144: NA | Q144: NA | R144: NA | S144: FALSE | T144: NA
A145: SG_1250 | B145: 14_0903_13_30cm_scaffold_1823135_5 | C145: 14_0903_13_30cm_scaffold_1823135 | D145: OTU_1250 | E145: Bacteria | F145: Acidobacteria | G145: Gp4-Blastocatellia | H145: 28.47256311 | I145: 0.028542531 | J145: 4 | K145: 50 | L145: 4.97e-05 | M145: 1.62e-05 | N145: Increase | O145: NA | P145: NA | Q145: NA | R145: NA | S145: FALSE | T145: NA
A146: SG_2467 | B146: 14_0927_02_40cm_scaffold_62040_5 | C146: 14_0927_02_40cm_scaffold_62040 | D146: OTU_2467 | E146: Bacteria | F146: Acidobacteria | G146: Gp2 | H146: 28.4527771 | I146: 0.028522696 | J146: 1 | K146: 40 | L146: NA | M146: NA | N146: NA | O146: NA | P146: NA | Q146: NA | R146: NA | S146: FALSE | T146: NA
A147: SG_1721 | B147: 14_1009_16_40cm_scaffold_503334_7 | C147: 14_1009_16_30cm_scaffold_111834 | D147: OTU_1721 | E147: Bacteria | F147: Acidobacteria | G147: Gp6 | H147: 28.34557261 | I147: 0.028415228 | J147: 6 | K147: 37 | L147: 9.9e-10 | M147: 1.19e-08 | N147: Increase | O147: NA | P147: NA | Q147: NA | R147: NA | S147: TRUE | T147: 14_1009_16_30cm_Acidobacteria_9688_63_7
A148: SG_1722 | B148: 14_0927_05_40cm_scaffold_184240_2 | C148: 14_1009_16_40cm_scaffold_74441 | D148: OTU_1722 | E148: Bacteria | F148: Acidobacteria | G148: Gp6 | H148: 27.93233386 | I148: 0.028000974 | J148: 4 | K148: 46 | L148: 2.41e-18 | M148: 8.64e-09 | N148: Increase | O148: NA | P148: NA | Q148: NA | R148: NA | S148: FALSE | T148: NA
A149: SG_2165 | B149: 14_0929_02_40cm_scaffold_69645_2 | C149: 14_1009_16_40cm_scaffold_24141 | D149: OTU_2165 | E149: Bacteria | F149: Acidobacteria | G149: Gp11 | H149: 27.43298075 | I149: 0.027500394 | J149: 3 | K149: 39 | L149: 4.22e-25 | M149: 5.36e-10 | N149: Increase | O149: 0.035494785 | P149: Increase | Q149: NA | R149: NA | S149: TRUE | T149: 14_1009_16_40cm_Bacteria_10068_52_7
A150: SG_2867 | B150: 14_0903_02_30cm_scaffold_347685_1 | C150: 14_0903_02_30cm_scaffold_347685 | D150: OTU_2867 | E150: Bacteria | F150: Acidobacteria | G150: Unknown | H150: 27.42990411 | I150: 0.027497309 | J150: 1 | K150: 31 | L150: 6.29e-08 | M150: 7.09e-06 | N150: Decrease | O150: NA | P150: NA | Q150: NA | R150: NA | S150: FALSE | T150: NA
A151: SG_1890 | B151: 14_1009_16_40cm_scaffold_43168_9 | C151: 14_1009_16_40cm_scaffold_43168 | D151: OTU_1890 | E151: Bacteria | F151: Acidobacteria | G151: Gp11 | H151: 27.35751822 | I151: 0.027424746 | J151: 1 | K151: 59 | L151: NA | M151: NA | N151: NA | O151: NA | P151: NA | Q151: NA | R151: NA | S151: TRUE | T151: 14_1009_16_40cm_Bacteria_10157_53_6
A152: SG_695 | B152: 14_0919_09_20cm_scaffold_167033_1 | C152: 14_0919_09_20cm_scaffold_167033 | D152: OTU_695 | E152: Bacteria | F152: Acidobacteria | G152: Gp3-Solibacteres | H152: 27.14018623 | I152: 0.02720688 | J152: 1 | K152: 25 | L152: 0.000608481 | M152: 2.19e-05 | N152: Decrease | O152: NA | P152: NA | Q152: NA | R152: NA | S152: FALSE | T152: NA
A153: SG_1766 | B153: 14_1009_02_30cm_scaffold_38796_2 | C153: 14_1009_02_30cm_scaffold_38796 | D153: OTU_1766 | E153: Bacteria | F153: Acidobacteria | G153: Gp6 | H153: 27.0225262 | I153: 0.02708893 | J153: 1 | K153: 28 | L153: 3.56e-07 | M153: 0.000955294 | N153: Increase | O153: 0.012926671 | P153: Increase | Q153: NA | R153: NA | S153: FALSE | T153: NA
A154: SG_2449 | B154: 14_0929_02_20cm_scaffold_154135_2 | C154: 14_1009_16_40cm_scaffold_121950 | D154: OTU_2449 | E154: Bacteria | F154: Acidobacteria | G154: Unknown | H154: 26.98891039 | I154: 0.027055232 | J154: 4 | K154: 44 | L154: 2.29e-13 | M154: 1.71e-08 | N154: Increase | O154: 5.99e-05 | P154: Increase | Q154: NA | R154: NA | S154: FALSE | T154: NA
A155: SG_2334 | B155: 14_0929_02_30cm_scaffold_114275_5 | C155: 14_0929_02_30cm_scaffold_114275 | D155: OTU_2334 | E155: Bacteria | F155: Acidobacteria | G155: Gp4-Blastocatellia | H155: 26.76608132 | I155: 0.026831855 | J155: 1 | K155: 29 | L155: 4.71e-06 | M155: 0.000726848 | N155: Increase | O155: NA | P155: NA | Q155: NA | R155: NA | S155: FALSE | T155: NA
A156: SG_2643 | B156: 14_0903_16_20cm_scaffold_1501_19 | C156: 14_0903_16_20cm_scaffold_1501 | D156: OTU_2643 | E156: Bacteria | F156: Acidobacteria | G156: Gp1-Acidobacteriia | H156: 26.58439921 | I156: 0.026649727 | J156: 1 | K156: 53 | L156: 7.64e-29 | M156: 2.69e-12 | N156: Decrease | O156: NA | P156: NA | Q156: NA | R156: NA | S156: FALSE | T156: 14_0903_16_20cm_Acidobacteriales_5411_55_10
A157: SG_2687 | B157: 14_1009_16_30cm_scaffold_357891_2 | C157: 14_1009_16_30cm_scaffold_357891 | D157: OTU_2687 | E157: Bacteria | F157: Acidobacteria | G157: Gp13 | H157: 26.43842432 | I157: 0.026503393 | J157: 1 | K157: 57 | L157: NA | M157: NA | N157: NA | O157: NA | P157: NA | Q157: NA | R157: NA | S157: FALSE | T157: NA
A158: SG_1759 | B158: 14_0903_16_20cm_scaffold_96793_1 | C158: 14_0903_16_20cm_scaffold_96793 | D158: OTU_1759 | E158: Bacteria | F158: Acidobacteria | G158: Gp6 | H158: 25.98833467 | I158: 0.026052198 | J158: 2 | K158: 27 | L158: 1.42e-09 | M158: 8.82e-07 | N158: Decrease | O158: NA | P158: NA | Q158: NA | R158: NA | S158: FALSE | T158: NA
A159: SG_2678 | B159: 14_0903_09_40cm_scaffold_239507_3 | C159: 14_0903_09_40cm_scaffold_239507 | D159: OTU_2678 | E159: Bacteria | F159: Acidobacteria | G159: Gp7 | H159: 25.90139043 | I159: 0.02596504 | J159: 1 | K159: 21 | L159: NA | M159: NA | N159: NA | O159: NA | P159: NA | Q159: NA | R159: NA | S159: FALSE | T159: NA
A160: SG_1464 | B160: 14_0929_05_20cm_scaffold_178366_2 | C160: 14_1009_05_20cm_scaffold_63928 | D160: OTU_1464 | E160: Bacteria | F160: Acidobacteria | G160: Gp1-Acidobacteriia | H160: 25.88886368 | I160: 0.025952482 | J160: 3 | K160: 33 | L160: 1.55e-12 | M160: 3.09e-10 | N160: Decrease | O160: NA | P160: NA | Q160: NA | R160: NA | S160: FALSE | T160: NA
A161: SG_2341 | B161: 14_0903_12_20cm_scaffold_17832_6 | C161: 14_0903_12_20cm_scaffold_17832 | D161: OTU_2341 | E161: Bacteria | F161: Acidobacteria | G161: Gp1-Acidobacteriia | H161: 25.8477591 | I161: 0.025911277 | J161: 1 | K161: 57 | L161: 6.45e-07 | M161: 0.000941304 | N161: Decrease | O161: NA | P161: NA | Q161: NA | R161: NA | S161: FALSE | T161: NA
A162: SG_2390 | B162: 14_0903_12_20cm_scaffold_133251_3 | C162: 14_1009_09_20cm_scaffold_15521 | D162: OTU_2390 | E162: Bacteria | F162: Acidobacteria | G162: Gp7 | H162: 25.72448068 | I162: 0.025787695 | J162: 4 | K162: 31 | L162: 1.08e-06 | M162: 8.47e-07 | N162: Decrease | O162: NA | P162: NA | Q162: NA | R162: NA | S162: FALSE | T162: NA
A163: SG_2583 | B163: 14_0903_13_30cm_scaffold_5630788_4 | C163: 14_0903_13_30cm_scaffold_5630788 | D163: OTU_2583 | E163: Bacteria | F163: Acidobacteria | G163: Gp2 | H163: 25.59971597 | I163: 0.025662624 | J163: 1 | K163: 17 | L163: 0.00202928 | M163: 2.32e-05 | N163: Increase | O163: NA | P163: NA | Q163: NA | R163: NA | S163: FALSE | T163: NA
A164: SG_2551 | B164: 14_1009_13_20cm_scaffold_16170_9 | C164: 14_1009_13_20cm_scaffold_16170 | D164: OTU_2551 | E164: Bacteria | F164: Acidobacteria | G164: Gp1-Acidobacteriia | H164: 25.46689377 | I164: 0.025529475 | J164: 1 | K164: 55 | L164: 6.77e-12 | M164: 6.87e-06 | N164: Decrease | O164: NA | P164: NA | Q164: NA | R164: NA | S164: FALSE | T164: NA
A165: SG_2993 | B165: 14_1009_05_40cm_scaffold_372593_2 | C165: 14_1009_05_40cm_scaffold_372593 | D165: OTU_2993 | E165: Bacteria | F165: Acidobacteria | G165: Gp1-Acidobacteriia | H165: 25.42253674 | I165: 0.025485009 | J165: 1 | K165: 29 | L165: 0.002028298 | M165: 0.001158906 | N165: Increase | O165: NA | P165: NA | Q165: NA | R165: NA | S165: FALSE | T165: NA
A166: SG_2861 | B166: 14_1009_13_30cm_scaffold_155930_4 | C166: 14_1009_13_30cm_scaffold_155930 | D166: OTU_2861 | E166: Bacteria | F166: Acidobacteria | G166: Gp6 | H166: 25.42050081 | I166: 0.025482968 | J166: 1 | K166: 37 | L166: 5.49e-06 | M166: 8.51e-07 | N166: Decrease | O166: NA | P166: NA | Q166: NA | R166: NA | S166: FALSE | T166: NA
A167: SG_2015 | B167: 14_0903_09_20cm_scaffold_3874_9 | C167: 14_0903_09_20cm_scaffold_3874 | D167: OTU_2015 | E167: Bacteria | F167: Acidobacteria | G167: Gp1-Acidobacteriia | H167: 25.37499838 | I167: 0.025437354 | J167: 1 | K167: 43 | L167: 0.000230152 | M167: 0.000281079 | N167: Decrease | O167: NA | P167: NA | Q167: NA | R167: NA | S167: TRUE | T167: 14_0903_09_20cm_Acidobacteria_629_56_6
A168: SG_2350 | B168: 14_0903_09_20cm_scaffold_153_27 | C168: 14_0929_09_20cm_scaffold_13 | D168: OTU_2350 | E168: Bacteria | F168: Acidobacteria | G168: Gp4-Blastocatellia | H168: 25.04291559 | I168: 0.025104455 | J168: 3 | K168: 18 | L168: NA | M168: NA | N168: NA | O168: 0.000421464 | P168: Increase | Q168: NA | R168: NA | S168: TRUE | T168: 14_0929_09_20cm_Bacteria_6715_55_10
A169: SG_2213 | B169: 14_1009_16_40cm_scaffold_24101_9 | C169: 14_1009_16_40cm_scaffold_24101 | D169: OTU_2213 | E169: Bacteria | F169: Acidobacteria | G169: Gp5 | H169: 24.60477226 | I169: 0.024665235 | J169: 1 | K169: 37 | L169: 3.83e-14 | M169: 4.72e-07 | N169: Increase | O169: NA | P169: NA | Q169: NA | R169: NA | S169: TRUE | T169: 14_1009_16_40cm_Bacteria_10099_56_7
A170: SG_2095 | B170: 14_0903_13_40cm_scaffold_95690_7 | C170: 14_0903_13_40cm_scaffold_95690 | D170: OTU_2095 | E170: Bacteria | F170: Acidobacteria | G170: Gp1-Acidobacteriia | H170: 24.34976559 | I170: 0.024409602 | J170: 1 | K170: 43 | L170: 1.23e-09 | M170: 9.15e-07 | N170: Increase | O170: NA | P170: NA | Q170: NA | R170: NA | S170: FALSE | T170: NA
A171: SG_2142 | B171: 14_1009_05_20cm_scaffold_112070_3 | C171: 14_0903_13_30cm_scaffold_314820 | D171: OTU_2142 | E171: Bacteria | F171: Acidobacteria | G171: Gp1-Acidobacteriia | H171: 24.04443411 | I171: 0.02410352 | J171: 2 | K171: 31 | L171: NA | M171: NA | N171: NA | O171: NA | P171: NA | Q171: NA | R171: NA | S171: FALSE | T171: NA
A172: SG_724 | B172: 14_0903_16_40cm_scaffold_150139_3 | C172: 14_1009_16_30cm_scaffold_18953 | D172: OTU_724 | E172: Bacteria | F172: Acidobacteria | G172: Gp3-Solibacteres | H172: 23.98977795 | I172: 0.02404873 | J172: 4 | K172: 51 | L172: 1.75e-18 | M172: 5.72e-12 | N172: Increase | O172: NA | P172: NA | Q172: NA | R172: NA | S172: TRUE | T172: 14_1009_16_30cm_Acidobacteria_9622_60_6
A173: SG_838 | B173: 14_0929_09_30cm_scaffold_219342_1 | C173: 14_0929_09_30cm_scaffold_219342 | D173: OTU_838 | E173: Bacteria | F173: Acidobacteria | G173: Gp3-Solibacteres | H173: 23.66518518 | I173: 0.023723339 | J173: 1 | K173: 24 | L173: 0.033281294 | M173: 0.000318022 | N173: Decrease | O173: NA | P173: NA | Q173: NA | R173: NA | S173: FALSE | T173: NA
A174: SG_2586 | B174: 14_1009_13_30cm_scaffold_192478_4 | C174: 14_1009_13_30cm_scaffold_192478 | D174: OTU_2586 | E174: Bacteria | F174: Acidobacteria | G174: Gp1-Acidobacteriia | H174: 23.65735732 | I174: 0.023715492 | J174: 1 | K174: 26 | L174: NA | M174: NA | N174: NA | O174: NA | P174: NA | Q174: NA | R174: NA | S174: FALSE | T174: NA
A175: SG_1204 | B175: 14_0929_05_40cm_scaffold_15936_2 | C175: 14_0929_05_40cm_scaffold_15936 | D175: OTU_1204 | E175: Bacteria | F175: Acidobacteria | G175: Gp4-Blastocatellia | H175: 23.61131489 | I175: 0.023669337 | J175: 1 | K175: 45 | L175: 1.22e-13 | M175: 1.13e-09 | N175: Increase | O175: NA | P175: NA | Q175: NA | R175: NA | S175: FALSE | T175: NA
A176: SG_2001 | B176: 14_0903_16_20cm_scaffold_67223_3 | C176: 14_0903_16_20cm_scaffold_67223 | D176: OTU_2001 | E176: Bacteria | F176: Acidobacteria | G176: Gp2 | H176: 23.5264609 | I176: 0.023584274 | J176: 4 | K176: 25 | L176: 5.46e-07 | M176: 6.65e-07 | N176: Decrease | O176: NA | P176: NA | Q176: NA | R176: NA | S176: FALSE | T176: NA
A177: SG_821 | B177: 14_0903_13_30cm_scaffold_328988_8 | C177: 14_1009_16_40cm_scaffold_1135 | D177: OTU_821 | E177: Bacteria | F177: Acidobacteria | G177: Gp22 | H177: 23.39536698 | I177: 0.023452858 | J177: 3 | K177: 42 | L177: 1.23e-10 | M177: 2.54e-06 | N177: Increase | O177: 3.3e-05 | P177: Increase | Q177: NA | R177: NA | S177: TRUE | T177: 14_1009_16_40cm_Bacteria_10089_71_7
A178: SG_2658 | B178: 14_1009_13_40cm_scaffold_18107_1 | C178: 14_1009_13_40cm_scaffold_18107 | D178: OTU_2658 | E178: Bacteria | F178: Acidobacteria | G178: Gp2 | H178: 23.37200299 | I178: 0.023429437 | J178: 1 | K178: 51 | L178: NA | M178: NA | N178: NA | O178: NA | P178: NA | Q178: NA | R178: NA | S178: FALSE | T178: NA
A179: SG_1938 | B179: 14_0903_13_30cm_scaffold_1781524_20 | C179: 14_0903_13_30cm_scaffold_1781524 | D179: OTU_1938 | E179: Bacteria | F179: Acidobacteria | G179: Gp1-Acidobacteriia | H179: 23.29388547 | I179: 0.023351127 | J179: 1 | K179: 43 | L179: 0.002664966 | M179: 0.019804092 | N179: Increase | O179: NA | P179: NA | Q179: NA | R179: NA | S179: FALSE | T179: NA
A180: SG_2108 | B180: 14_1009_16_20cm_scaffold_30400_9 | C180: 14_1009_16_20cm_scaffold_30400 | D180: OTU_2108 | E180: Bacteria | F180: Acidobacteria | G180: Gp1-Acidobacteriia | H180: 23.28340233 | I180: 0.023340618 | J180: 1 | K180: 41 | L180: 1.54e-08 | M180: 2.52e-05 | N180: Decrease | O180: NA | P180: NA | Q180: NA | R180: NA | S180: TRUE | T180: 14_1009_16_20cm_Acidobacteria_9472_55_5
A181: SG_2359 | B181: 14_0903_12_40cm_200_scaffold_109861_3 | C181: 14_1009_09_30cm_scaffold_271720 | D181: OTU_2359 | E181: Bacteria | F181: Acidobacteria | G181: Gp7 | H181: 23.13360241 | I181: 0.02319045 | J181: 3 | K181: 36 | L181: 0.005080644 | M181: 0.000467376 | N181: Increase | O181: NA | P181: NA | Q181: NA | R181: NA | S181: FALSE | T181: NA
A182: SG_1958 | B182: 14_0903_12_40cm_200_scaffold_141558_2 | C182: 14_0927_12_40cm_scaffold_11838 | D182: OTU_1958 | E182: Bacteria | F182: Acidobacteria | G182: Gp2 | H182: 23.13279396 | I182: 0.02318964 | J182: 4 | K182: 46 | L182: 3.29e-08 | M182: 2.32e-05 | N182: Increase | O182: NA | P182: NA | Q182: NA | R182: NA | S182: FALSE | T182: NA
A183: SG_2715 | B183: 14_0903_13_30cm_scaffold_6022857_5 | C183: 14_0903_13_30cm_scaffold_6022857 | D183: OTU_2715 | E183: Bacteria | F183: Acidobacteria | G183: Gp5 | H183: 23.03770249 | I183: 0.023094315 | J183: 1 | K183: 36 | L183: 9.99e-08 | M183: 6.28e-07 | N183: Increase | O183: NA | P183: NA | Q183: NA | R183: NA | S183: FALSE | T183: NA
A184: SG_1244 | B184: 14_0919_02_20cm_scaffold_18172_4 | C184: 14_0929_02_20cm_scaffold_44784 | D184: OTU_1244 | E184: Bacteria | F184: Acidobacteria | G184: Gp4-Blastocatellia | H184: 23.01278389 | I184: 0.023069335 | J184: 2 | K184: 32 | L184: NA | M184: NA | N184: NA | O184: NA | P184: NA | Q184: NA | R184: NA | S184: FALSE | T184: NA
A185: SG_2104 | B185: 14_0927_05_40cm_scaffold_113440_2 | C185: 14_0919_05_20cm_scaffold_15672 | D185: OTU_2104 | E185: Bacteria | F185: Acidobacteria | G185: Gp1-Acidobacteriia | H185: 22.94883929 | I185: 0.023005233 | J185: 10 | K185: 43 | L185: 1.57e-05 | M185: 4.15e-06 | N185: Decrease | O185: NA | P185: NA | Q185: 0.000836956 | R185: Decrease | S185: FALSE | T185: 14_1009_12_20cm_Acidobacteria_8375_57_8
A186: SG_2857 | B186: 14_0927_05_20cm_scaffold_136467_3 | C186: 14_0927_05_20cm_scaffold_136467 | D186: OTU_2857 | E186: Bacteria | F186: Acidobacteria | G186: Gp2 | H186: 22.85626501 | I186: 0.022912431 | J186: 1 | K186: 44 | L186: NA | M186: NA | N186: NA | O186: NA | P186: NA | Q186: NA | R186: NA | S186: FALSE | T186: NA
A187: SG_2831 | B187: 14_0927_09_20cm_scaffold_255587_2 | C187: 14_0927_09_20cm_scaffold_255587 | D187: OTU_2831 | E187: Bacteria | F187: Acidobacteria | G187: Gp4-Blastocatellia | H187: 22.47116953 | I187: 0.022526389 | J187: 1 | K187: 42 | L187: NA | M187: NA | N187: NA | O187: NA | P187: NA | Q187: NA | R187: NA | S187: FALSE | T187: NA
A188: SG_2179 | B188: 14_0927_09_40cm_scaffold_67170_4 | C188: 14_1009_16_40cm_scaffold_26607 | D188: OTU_2179 | E188: Bacteria | F188: Acidobacteria | G188: Gp5 | H188: 22.41121404 | I188: 0.022466287 | J188: 5 | K188: 47 | L188: 6.85e-24 | M188: 2.32e-13 | N188: Increase | O188: NA | P188: NA | Q188: NA | R188: NA | S188: TRUE | T188: 14_1009_16_40cm_Bacteria_10151_57_6
A189: SG_2711 | B189: 14_1009_16_20cm_scaffold_113147_4 | C189: 14_1009_16_20cm_scaffold_113147 | D189: OTU_2711 | E189: Bacteria | F189: Acidobacteria | G189: Gp1-Acidobacteriia | H189: 21.88225591 | I189: 0.021936029 | J189: 1 | K189: 32 | L189: 9.39e-12 | M189: 1.25e-10 | N189: Decrease | O189: NA | P189: NA | Q189: NA | R189: NA | S189: FALSE | T189: NA
A190: SG_2941 | B190: 14_0927_09_40cm_scaffold_142621_7 | C190: 14_0927_09_40cm_scaffold_142621 | D190: OTU_2941 | E190: Bacteria | F190: Acidobacteria | G190: Gp7 | H190: 21.84360733 | I190: 0.021897285 | J190: 1 | K190: 31 | L190: NA | M190: NA | N190: NA | O190: NA | P190: NA | Q190: NA | R190: NA | S190: FALSE | T190: NA
A191: SG_2171 | B191: 14_0903_13_30cm_scaffold_6619825_2 | C191: 14_0903_13_30cm_scaffold_6619825 | D191: OTU_2171 | E191: Bacteria | F191: Acidobacteria | G191: Gp1-Acidobacteriia | H191: 21.7876062 | I191: 0.021841146 | J191: 3 | K191: 38 | L191: NA | M191: NA | N191: NA | O191: NA | P191: NA | Q191: NA | R191: NA | S191: FALSE | T191: NA
A192: SG_1889 | B192: 14_0929_05_40cm_scaffold_18425_4 | C192: 14_0929_05_40cm_scaffold_18425 | D192: OTU_1889 | E192: Bacteria | F192: Acidobacteria | G192: Gp13 | H192: 21.65846661 | I192: 0.021711689 | J192: 3 | K192: 20 | L192: 2.47e-10 | M192: 9.51e-10 | N192: Increase | O192: NA | P192: NA | Q192: 0.024795516 | R192: Decrease | S192: FALSE | T192: 14_0929_05_40cm_Bacteria_3414_60_5
A193: SG_1039 | B193: 14_0903_12_40cm_200_scaffold_146229_1 | C193: 14_0903_13_20cm_scaffold_80453 | D193: OTU_1039 | E193: Bacteria | F193: Acidobacteria | G193: Gp1-Acidobacteriia | H193: 21.53456093 | I193: 0.021587479 | J193: 2 | K193: 27 | L193: 6.96e-06 | M193: 5.18e-06 | N193: Decrease | O193: NA | P193: NA | Q193: NA | R193: NA | S193: FALSE | T193: NA
A194: SG_1593 | B194: 14_0903_02_30cm_scaffold_50277_2 | C194: 14_1009_16_40cm_scaffold_30530 | D194: OTU_1593 | E194: Bacteria | F194: Acidobacteria | G194: Gp6 | H194: 21.25607587 | I194: 0.02130831 | J194: 6 | K194: 41 | L194: 1.05e-18 | M194: 2.44e-10 | N194: Increase | O194: 0.001081534 | P194: Increase | Q194: NA | R194: NA | S194: TRUE | T194: 14_1009_16_40cm_Acidobacteria_10203_64_9
A195: SG_1027 | B195: 14_0919_09_20cm_scaffold_5364_4 | C195: 14_0919_09_20cm_scaffold_5364 | D195: OTU_1027 | E195: Bacteria | F195: Acidobacteria | G195: Gp4-Blastocatellia | H195: 21.21567991 | I195: 0.021267815 | J195: 4 | K195: 19 | L195: 6.68e-05 | M195: 0.002854975 | N195: Decrease | O195: NA | P195: NA | Q195: NA | R195: NA | S195: TRUE | T195: 14_0919_09_20cm_Bacteria_1670_60_14
A196: SG_1758 | B196: 14_0927_02_20cm_scaffold_36580_10 | C196: 14_0927_02_20cm_scaffold_36580 | D196: OTU_1758 | E196: Bacteria | F196: Acidobacteria | G196: Gp5 | H196: 21.18816152 | I196: 0.021240229 | J196: 1 | K196: 30 | L196: NA | M196: NA | N196: NA | O196: 0.038943944 | P196: Increase | Q196: NA | R196: NA | S196: FALSE | T196: NA
A197: SG_2119 | B197: 14_0927_09_20cm_scaffold_110314_1 | C197: 14_0903_09_20cm_scaffold_15297 | D197: OTU_2119 | E197: Bacteria | F197: Acidobacteria | G197: Gp1-Acidobacteriia | H197: 21.07799535 | I197: 0.021129792 | J197: 5 | K197: 31 | L197: 2.12e-05 | M197: 0.031499134 | N197: Decrease | O197: NA | P197: NA | Q197: NA | R197: NA | S197: TRUE | T197: 14_0903_09_20cm_Acidobacteria_635_55_5
A198: SG_2936 | B198: 14_1009_05_40cm_scaffold_37224_10 | C198: 14_1009_05_40cm_scaffold_37224 | D198: OTU_2936 | E198: Bacteria | F198: Acidobacteria | G198: Gp22 | H198: 20.80496256 | I198: 0.020856088 | J198: 1 | K198: 24 | L198: 5.27e-11 | M198: 8.84e-09 | N198: Increase | O198: NA | P198: NA | Q198: NA | R198: NA | S198: FALSE | T198: NA
A199: SG_2125 | B199: 14_0903_16_20cm_scaffold_44874_3 | C199: 14_0927_05_40cm_scaffold_53074 | D199: OTU_2125 | E199: Bacteria | F199: Acidobacteria | G199: Gp1-Acidobacteriia | H199: 20.78860166 | I199: 0.020839687 | J199: 3 | K199: 34 | L199: NA | M199: NA | N199: NA | O199: NA | P199: NA | Q199: NA | R199: NA | S199: FALSE | T199: NA
A200: SG_1956 | B200: 14_0903_13_40cm_scaffold_46956_5 | C200: 14_1009_16_30cm_scaffold_107369 | D200: OTU_1956 | E200: Bacteria | F200: Acidobacteria | G200: Gp2 | H200: 20.68458222 | I200: 0.020735412 | J200: 12 | K200: 42 | L200: 5.58e-10 | M200: 1.37e-07 | N200: Increase | O200: NA | P200: NA | Q200: NA | R200: NA | S200: FALSE | T200: NA
... 3127 more rows

Sheet Supplementary Table 3
A1: Supplementary Table 3|Raw Counts of Reads from Each Sample Mapped to the Longest Contig of an SG Cluster
A2: rpS3 SG | B2: Longest rpS3 Scaffold for SG | C2: 14_0903_02_20cm | D2: 14_0903_02_30cm | E2: 14_0903_02_40cm | F2: 14_0903_05_20cm | G2: 14_0903_05_30cm | H2: 14_0903_05_40cm | I2: 14_0903_09_20cm | J2: 14_0903_09_30cm | K2: 14_0903_09_40cm | L2: 14_0903_12_20cm | M2: 14_0903_12_30cm | N2: 14_0903_12_40cm | O2: 14_0903_13_20cm | P2: 14_0903_13_30cm | Q2: 14_0903_13_40cm | R2: 14_0903_16_20cm | S2: 14_0903_16_30cm | T2: 14_0903_16_40cm | U2: 14_0919_02_20cm | V2: 14_0919_05_20cm | W2: 14_0919_09_20cm | X2: 14_0919_12_20cm | Y2: 14_0927_02_20cm | Z2: 14_0927_02_40cm | AA2: 14_0927_05_20cm | AB2: 14_0927_05_40cm | AC2: 14_0927_09_20cm | AD2: 14_0927_09_40cm | AE2: 14_0927_12_20cm | AF2: 14_0927_12_40cm | AG2: 14_0929_02_20cm | AH2: 14_0929_02_30cm | AI2: 14_0929_02_40cm | AJ2: 14_0929_05_20cm | AK2: 14_0929_05_30cm | AL2: 14_0929_05_40cm | AM2: 14_0929_09_20cm | AN2: 14_0929_09_30cm | AO2: 14_0929_09_40cm | AP2: 14_0929_12_20cm | AQ2: 14_0929_12_30cm | AR2: 14_0929_12_40cm | AS2: 14_1009_02_20cm | AT2: 14_1009_02_30cm | AU2: 14_1009_02_40cm | AV2: 14_1009_05_20cm | AW2: 14_1009_05_30cm | AX2: 14_1009_05_40cm | AY2: 14_1009_09_20cm | AZ2: 14_1009_09_30cm | BA2: 14_1009_09_40cm | BB2: 14_1009_12_20cm | BC2: 14_1009_12_30cm | BD2: 14_1009_12_40cm | BE2: 14_1009_13_20cm | BF2: 14_1009_13_30cm | BG2: 14_1009_13_40cm | BH2: 14_1009_16_20cm | BI2: 14_1009_16_30cm | BJ2: 14_1009_16_40cm
A3: SG_2560 | B3: 14_0903_02_20cm_scaffold_102340 | C3: 12 | D3: 2 | E3: 2 | F3: 1 | G3: 2 | H3: 0 | I3: 1 | J3: 0 | K3: 2 | L3: 1 | M3: 0 | N3: 0 | O3: 4 | P3: 10 | Q3: 1 | R3: 0 | S3: 2 | T3: 2 | U3: 0 | V3: 1 | W3: 0 | X3: 1 | Y3: 2 | Z3: 1 | AA3: 3 | AB3: 0 | AC3: 5 | AD3: 1 | AE3: 0 | AF3: 0 | AG3: 2 | AH3: 1 | AI3: 2 | AJ3: 3 | AK3: 2 | AL3: 0 | AM3: 1 | AN3: 0 | AO3: 0 | AP3: 0 | AQ3: 0 | AR3: 2 | AS3: 1 | AT3: 2 | AU3: 2 | AV3: 3 | AW3: 4 | AX3: 0 | AY3: 1 | AZ3: 2 | BA3: 1 | BB3: 0 | BC3: 1 | BD3: 0 | BE3: 0 | BF3: 3 | BG3: 0 | BH3: 0 | BI3: 3 | BJ3: 1
A4: SG_2934 | B4: 14_0903_02_20cm_scaffold_114902 | C4: 2 | D4: 1 | E4: 0 | F4: 0 | G4: 0 | H4: 0 | I4: 0 | J4: 0 | K4: 0 | L4: 0 | M4: 0 | N4: 0 | O4: 0 | P4: 1 | Q4: 0 | R4: 0 | S4: 0 | T4: 0 | U4: 0 | V4: 0 | W4: 0 | X4: 0 | Y4: 1 | Z4: 0 | AA4: 0 | AB4: 1 | AC4: 0 | AD4: 0 | AE4: 0 | AF4: 0 | AG4: 2 | AH4: 1 | AI4: 2 | AJ4: 0 | AK4: 0 | AL4: 1 | AM4: 0 | AN4: 0 | AO4: 0 | AP4: 0 | AQ4: 0 | AR4: 0 | AS4: 0 | AT4: 0 | AU4: 1 | AV4: 0 | AW4: 1 | AX4: 0 | AY4: 0 | AZ4: 0 | BA4: 0 | BB4: 0 | BC4: 0 | BD4: 0 | BE4: 0 | BF4: 0 | BG4: 0 | BH4: 0 | BI4: 0 | BJ4: 1
A5: SG_3122 | B5: 14_0903_02_20cm_scaffold_134006 | C5: 7 | D5: 2 | E5: 3 | F5: 2 | G5: 1 | H5: 0 | I5: 0 | J5: 1 | K5: 4 | L5: 1 | M5: 1 | N5: 0 | O5: 5 | P5: 10 | Q5: 2 | R5: 4 | S5: 3 | T5: 7 | U5: 11 | V5: 3 | W5: 3 | X5: 0 | Y5: 3 | Z5: 1 | AA5: 6 | AB5: 0 | AC5: 1 | AD5: 3 | AE5: 1 | AF5: 1 | AG5: 5 | AH5: 1 | AI5: 7 | AJ5: 3 | AK5: 0 | AL5: 1 | AM5: 0 | AN5: 0 | AO5: 3 | AP5: 1 | AQ5: 1 | AR5: 2 | AS5: 0 | AT5: 1 | AU5: 6 | AV5: 5 | AW5: 5 | AX5: 2 | AY5: 1 | AZ5: 1 | BA5: 0 | BB5: 4 | BC5: 1 | BD5: 1 | BE5: 7 | BF5: 4 | BG5: 2 | BH5: 1 | BI5: 7 | BJ5: 5
A6: SG_2656 | B6: 14_0903_02_20cm_scaffold_134164 | C6: 18 | D6: 15 | E6: 4 | F6: 0 | G6: 0 | H6: 0 | I6: 0 | J6: 0 | K6: 0 | L6: 0 | M6: 0 | N6: 0 | O6: 5 | P6: 3 | Q6: 0 | R6: 0 | S6: 0 | T6: 0 | U6: 11 | V6: 0 | W6: 0 | X6: 0 | Y6: 2 | Z6: 0 | AA6: 0 | AB6: 0 | AC6: 0 | AD6: 0 | AE6: 0 | AF6: 0 | AG6: 5 | AH6: 0 | AI6: 0 | AJ6: 0 | AK6: 1 | AL6: 0 | AM6: 0 | AN6: 0 | AO6: 0 | AP6: 0 | AQ6: 0 | AR6: 0 | AS6: 0 | AT6: 1 | AU6: 0 | AV6: 0 | AW6: 1 | AX6: 0 | AY6: 0 | AZ6: 1 | BA6: 0 | BB6: 0 | BC6: 0 | BD6: 0 | BE6: 0 | BF6: 1 | BG6: 0 | BH6: 0 | BI6: 2 | BJ6: 0
A7: SG_280 | B7: 14_0903_02_20cm_scaffold_14409 | C7: 59 | D7: 144 | E7: 29 | F7: 3 | G7: 0 | H7: 1 | I7: 0 | J7: 0 | K7: 0 | L7: 5 | M7: 0 | N7: 0 | O7: 3 | P7: 5 | Q7: 2 | R7: 5 | S7: 15 | T7: 10 | U7: 48 | V7: 8 | W7: 3 | X7: 0 | Y7: 20 | Z7: 9 | AA7: 7 | AB7: 1 | AC7: 3 | AD7: 0 | AE7: 4 | AF7: 1 | AG7: 26 | AH7: 7 | AI7: 4 | AJ7: 7 | AK7: 0 | AL7: 1 | AM7: 2 | AN7: 0 | AO7: 1 | AP7: 1 | AQ7: 0 | AR7: 0 | AS7: 25 | AT7: 13 | AU7: 7 | AV7: 13 | AW7: 1 | AX7: 1 | AY7: 0 | AZ7: 1 | BA7: 0 | BB7: 1 | BC7: 0 | BD7: 0 | BE7: 4 | BF7: 2 | BG7: 1 | BH7: 7 | BI7: 0 | BJ7: 2
A8: SG_1894 | B8: 14_0903_02_20cm_scaffold_146863 | C8: 6 | D8: 3 | E8: 2 | F8: 1 | G8: 1 | H8: 2 | I8: 0 | J8: 0 | K8: 0 | L8: 0 | M8: 0 | N8: 1 | O8: 0 | P8: 18 | Q8: 3 | R8: 0 | S8: 3 | T8: 2 | U8: 3 | V8: 0 | W8: 0 | X8: 2 | Y8: 9 | Z8: 1 | AA8: 3 | AB8: 3 | AC8: 1 | AD8: 4 | AE8: 0 | AF8: 1 | AG8: 5 | AH8: 6 | AI8: 1 | AJ8: 2 | AK8: 2 | AL8: 2 | AM8: 0 | AN8: 1 | AO8: 1 | AP8: 1 | AQ8: 3 | AR8: 2 | AS8: 0 | AT8: 6 | AU8: 6 | AV8: 1 | AW8: 6 | AX8: 4 | AY8: 0 | AZ8: 0 | BA8: 0 | BB8: 0 | BC8: 1 | BD8: 1 | BE8: 2 | BF8: 7 | BG8: 3 | BH8: 0 | BI8: 11 | BJ8: 9
A9: SG_1479 | B9: 14_0903_02_20cm_scaffold_1554 | C9: 199 | D9: 187 | E9: 46 | F9: 84 | G9: 39 | H9: 41 | I9: 119 | J9: 35 | K9: 45 | L9: 77 | M9: 101 | N9: 68 | O9: 245 | P9: 285 | Q9: 25 | R9: 215 | S9: 112 | T9: 91 | U9: 231 | V9: 146 | W9: 132 | X9: 95 | Y9: 223 | Z9: 27 | AA9: 116 | AB9: 35 | AC9: 92 | AD9: 33 | AE9: 168 | AF9: 12 | AG9: 164 | AH9: 79 | AI9: 9 | AJ9: 169 | AK9: 17 | AL9: 1 | AM9: 145 | AN9: 46 | AO9: 7 | AP9: 119 | AQ9: 61 | AR9: 39 | AS9: 140 | AT9: 96 | AU9: 32 | AV9: 108 | AW9: 49 | AX9: 1 | AY9: 106 | AZ9: 20 | BA9: 6 | BB9: 137 | BC9: 58 | BD9: 19 | BE9: 235 | BF9: 108 | BG9: 16 | BH9: 145 | BI9: 117 | BJ9: 24
A10: SG_3178 | B10: 14_0903_02_20cm_scaffold_18422 | C10: 12 | D10: 5 | E10: 6 | F10: 3 | G10: 1 | H10: 3 | I10: 0 | J10: 1 | K10: 0 | L10: 2 | M10: 0 | N10: 2 | O10: 3 | P10: 22 | Q10: 1 | R10: 5 | S10: 8 | T10: 0 | U10: 6 | V10: 4 | W10: 0 | X10: 1 | Y10: 3 | Z10: 2 | AA10: 4 | AB10: 4 | AC10: 1 | AD10: 2 | AE10: 1 | AF10: 2 | AG10: 0 | AH10: 4 | AI10: 2 | AJ10: 3 | AK10: 0 | AL10: 4 | AM10: 0 | AN10: 1 | AO10: 4 | AP10: 1 | AQ10: 2 | AR10: 3 | AS10: 0 | AT10: 1 | AU10: 3 | AV10: 2 | AW10: 5 | AX10: 2 | AY10: 0 | AZ10: 2 | BA10: 0 | BB10: 1 | BC10: 1 | BD10: 0 | BE10: 4 | BF10: 11 | BG10: 3 | BH10: 7 | BI10: 15 | BJ10: 6
A11: SG_1297 | B11: 14_0903_02_20cm_scaffold_21561 | C11: 14 | D11: 4 | E11: 0 | F11: 0 | G11: 0 | H11: 0 | I11: 0 | J11: 1 | K11: 0 | L11: 2 | M11: 0 | N11: 3 | O11: 2 | P11: 5 | Q11: 0 | R11: 0 | S11: 4 | T11: 0 | U11: 3 | V11: 4 | W11: 2 | X11: 0 | Y11: 3 | Z11: 1 | AA11: 0 | AB11: 0 | AC11: 2 | AD11: 0 | AE11: 3 | AF11: 0 | AG11: 2 | AH11: 0 | AI11: 0 | AJ11: 0 | AK11: 0 | AL11: 0 | AM11: 0 | AN11: 0 | AO11: 0 | AP11: 1 | AQ11: 0 | AR11: 2 | AS11: 0 | AT11: 2 | AU11: 0 | AV11: 0 | AW11: 0 | AX11: 0 | AY11: 0 | AZ11: 0 | BA11: 0 | BB11: 3 | BC11: 1 | BD11: 0 | BE11: 1 | BF11: 0 | BG11: 0 | BH11: 1 | BI11: 0 | BJ11: 0
A12: SG_2344 | B12: 14_0903_02_20cm_scaffold_22072 | C12: 18 | D12: 8 | E12: 4 | F12: 1 | G12: 0 | H12: 1 | I12: 0 | J12: 0 | K12: 0 | L12: 0 | M12: 0 | N12: 0 | O12: 1 | P12: 6 | Q12: 0 | R12: 4 | S12: 0 | T12: 1 | U12: 4 | V12: 0 | W12: 0 | X12: 0 | Y12: 7 | Z12: 0 | AA12: 1 | AB12: 1 | AC12: 0 | AD12: 0 | AE12: 0 | AF12: 0 | AG12: 7 | AH12: 1 | AI12: 0 | AJ12: 0 | AK12: 0 | AL12: 0 | AM12: 0 | AN12: 1 | AO12: 0 | AP12: 0 | AQ12: 2 | AR12: 0 | AS12: 5 | AT12: 2 | AU12: 2 | AV12: 1 | AW12: 1 | AX12: 0 | AY12: 0 | AZ12: 0 | BA12: 0 | BB12: 0 | BC12: 0 | BD12: 0 | BE12: 2 | BF12: 0 | BG12: 0 | BH12: 4 | BI12: 1 | BJ12: 5
A13: SG_2622 | B13: 14_0903_02_20cm_scaffold_23042 | C13: 21 | D13: 11 | E13: 4 | F13: 0 | G13: 12 | H13: 31 | I13: 0 | J13: 1 | K13: 13 | L13: 0 | M13: 2 | N13: 6 | O13: 12 | P13: 115 | Q13: 14 | R13: 0 | S13: 13 | T13: 29 | U13: 9 | V13: 0 | W13: 0 | X13: 1 | Y13: 9 | Z13: 25 | AA13: 5 | AB13: 37 | AC13: 1 | AD13: 7 | AE13: 5 | AF13: 16 | AG13: 23 | AH13: 38 | AI13: 33 | AJ13: 0 | AK13: 28 | AL13: 22 | AM13: 0 | AN13: 4 | AO13: 7 | AP13: 1 | AQ13: 12 | AR13: 10 | AS13: 0 | AT13: 19 | AU13: 28 | AV13: 3 | AW13: 14 | AX13: 34 | AY13: 0 | AZ13: 3 | BA13: 8 | BB13: 1 | BC13: 4 | BD13: 12 | BE13: 10 | BF13: 25 | BG13: 19 | BH13: 2 | BI13: 88 | BJ13: 107
A14: SG_1814 | B14: 14_0903_02_20cm_scaffold_2358 | C14: 127 | D14: 84 | E14: 20 | F14: 14 | G14: 11 | H14: 11 | I14: 12 | J14: 4 | K14: 10 | L14: 29 | M14: 23 | N14: 4 | O14: 37 | P14: 69 | Q14: 5 | R14: 59 | S14: 26 | T14: 15 | U14: 71 | V14: 22 | W14: 11 | X14: 19 | Y14: 49 | Z14: 9 | AA14: 48 | AB14: 19 | AC14: 18 | AD14: 10 | AE14: 22 | AF14: 6 | AG14: 88 | AH14: 35 | AI14: 5 | AJ14: 51 | AK14: 21 | AL14: 2 | AM14: 10 | AN14: 24 | AO14: 2 | AP14: 34 | AQ14: 12 | AR14: 9 | AS14: 23 | AT14: 31 | AU14: 8 | AV14: 33 | AW14: 27 | AX14: 12 | AY14: 14 | AZ14: 8 | BA14: 2 | BB14: 28 | BC14: 16 | BD14: 9 | BE14: 57 | BF14: 28 | BG14: 3 | BH14: 78 | BI14: 58 | BJ14: 39
A15: SG_1817 | B15: 14_0903_02_20cm_scaffold_24347 | C15: 17 | D15: 5 | E15: 0 | F15: 3 | G15: 5 | H15: 3 | I15: 3 | J15: 1 | K15: 5 | L15: 20 | M15: 0 | N15: 1 | O15: 9 | P15: 11 | Q15: 3 | R15: 14 | S15: 8 | T15: 5 | U15: 2 | V15: 13 | W15: 15 | X15: 5 | Y15: 9 | Z15: 2 | AA15: 9 | AB15: 11 | AC15: 3 | AD15: 0 | AE15: 12 | AF15: 1 | AG15: 8 | AH15: 0 | AI15: 3 | AJ15: 9 | AK15: 5 | AL15: 1 | AM15: 11 | AN15: 2 | AO15: 0 | AP15: 5 | AQ15: 2 | AR15: 1 | AS15: 8 | AT15: 6 | AU15: 1 | AV15: 17 | AW15: 8 | AX15: 4 | AY15: 13 | AZ15: 1 | BA15: 1 | BB15: 15 | BC15: 0 | BD15: 2 | BE15: 16 | BF15: 3 | BG15: 1 | BH15: 5 | BI15: 7 | BJ15: 8
A16: SG_2817 | B16: 14_0903_02_20cm_scaffold_291342 | C16: 6 | D16: 8 | E16: 5 | F16: 0 | G16: 3 | H16: 3 | I16: 0 | J16: 0 | K16: 4 | L16: 0 | M16: 0 | N16: 1 | O16: 1 | P16: 21 | Q16: 5 | R16: 2 | S16: 4 | T16: 6 | U16: 5 | V16: 0 | W16: 0 | X16: 0 | Y16: 2 | Z16: 6 | AA16: 2 | AB16: 11 | AC16: 0 | AD16: 4 | AE16: 0 | AF16: 1 | AG16: 5 | AH16: 12 | AI16: 6 | AJ16: 0 | AK16: 10 | AL16: 6 | AM16: 0 | AN16: 1 | AO16: 7 | AP16: 1 | AQ16: 0 | AR16: 4 | AS16: 1 | AT16: 9 | AU16: 16 | AV16: 2 | AW16: 5 | AX16: 7 | AY16: 0 | AZ16: 2 | BA16: 1 | BB16: 0 | BC16: 0 | BD16: 0 | BE16: 2 | BF16: 13 | BG16: 6 | BH16: 1 | BI16: 9 | BJ16: 1
A17: SG_1317 | B17: 14_0903_02_20cm_scaffold_32140 | C17: 47 | D17: 24 | E17: 2 | F17: 1 | G17: 0 | H17: 0 | I17: 2 | J17: 1 | K17: 0 | L17: 0 | M17: 0 | N17: 0 | O17: 10 | P17: 17 | Q17: 0 | R17: 18 | S17: 15 | T17: 4 | U17: 29 | V17: 2 | W17: 4 | X17: 0 | Y17: 32 | Z17: 1 | AA17: 9 | AB17: 0 | AC17: 4 | AD17: 4 | AE17: 0 | AF17: 0 | AG17: 21 | AH17: 7 | AI17: 5 | AJ17: 5 | AK17: 6 | AL17: 0 | AM17: 2 | AN17: 0 | AO17: 0 | AP17: 0 | AQ17: 0 | AR17: 0 | AS17: 13 | AT17: 7 | AU17: 2 | AV17: 5 | AW17: 3 | AX17: 0 | AY17: 0 | AZ17: 0 | BA17: 0 | BB17: 0 | BC17: 0 | BD17: 0 | BE17: 15 | BF17: 3 | BG17: 0 | BH17: 11 | BI17: 12 | BJ17: 4
A18: SG_993 | B18: 14_0903_02_20cm_scaffold_344874 | C18: 6 | D18: 0 | E18: 1 | F18: 1 | G18: 0 | H18: 0 | I18: 0 | J18: 0 | K18: 1 | L18: 0 | M18: 0 | N18: 0 | O18: 0 | P18: 0 | Q18: 0 | R18: 0 | S18: 1 | T18: 0 | U18: 0 | V18: 0 | W18: 0 | X18: 0 | Y18: 0 | Z18: 0 | AA18: 0 | AB18: 1 | AC18: 0 | AD18: 0 | AE18: 0 | AF18: 0 | AG18: 0 | AH18: 2 | AI18: 0 | AJ18: 0 | AK18: 0 | AL18: 0 | AM18: 0 | AN18: 0 | AO18: 0 | AP18: 0 | AQ18: 0 | AR18: 0 | AS18: 0 | AT18: 0 | AU18: 0 | AV18: 0 | AW18: 0 | AX18: 1 | AY18: 0 | AZ18: 0 | BA18: 0 | BB18: 0 | BC18: 0 | BD18: 0 | BE18: 0 | BF18: 1 | BG18: 1 | BH18: 0 | BI18: 0 | BJ18: 1
A19: SG_2454 | B19: 14_0903_02_20cm_scaffold_34968 | C19: 18 | D19: 23 | E19: 6 | F19: 0 | G19: 7 | H19: 8 | I19: 0 | J19: 1 | K19: 5 | L19: 0 | M19: 0 | N19: 1 | O19: 4 | P19: 52 | Q19: 9 | R19: 0 | S19: 30 | T19: 18 | U19: 10 | V19: 0 | W19: 0 | X19: 0 | Y19: 25 | Z19: 18 | AA19: 1 | AB19: 3 | AC19: 0 | AD19: 0 | AE19: 0 | AF19: 0 | AG19: 22 | AH19: 32 | AI19: 21 | AJ19: 0 | AK19: 0 | AL19: 0 | AM19: 1 | AN19: 0 | AO19: 1 | AP19: 0 | AQ19: 1 | AR19: 1 | AS19: 0 | AT19: 25 | AU19: 9 | AV19: 0 | AW19: 7 | AX19: 6 | AY19: 0 | AZ19: 0 | BA19: 0 | BB19: 0 | BC19: 0 | BD19: 0 | BE19: 0 | BF19: 10 | BG19: 7 | BH19: 5 | BI19: 60 | BJ19: 46
A20: SG_2724 | B20: 14_0903_02_20cm_scaffold_35764 | C20: 10 | D20: 4 | E20: 0 | F20: 0 | G20: 0 | H20: 0 | I20: 0 | J20: 0 | K20: 0 | L20: 0 | M20: 0 | N20: 0 | O20: 0 | P20: 0 | Q20: 0 | R20: 1 | S20: 1 | T20: 3 | U20: 4 | V20: 1 | W20: 0 | X20: 0 | Y20: 1 | Z20: 0 | AA20: 0 | AB20: 1 | AC20: 0 | AD20: 0 | AE20: 0 | AF20: 0 | AG20: 3 | AH20: 0 | AI20: 0 | AJ20: 0 | AK20: 0 | AL20: 0 | AM20: 1 | AN20: 1 | AO20: 0 | AP20: 0 | AQ20: 0 | AR20: 0 | AS20: 3 | AT20: 2 | AU20: 0 | AV20: 1 | AW20: 0 | AX20: 0 | AY20: 0 | AZ20: 0 | BA20: 0 | BB20: 0 | BC20: 0 | BD20: 0 | BE20: 0 | BF20: 0 | BG20: 0 | BH20: 0 | BI20: 0 | BJ20: 0
A21: SG_2814 | B21: 14_0903_02_20cm_scaffold_35880 | C21: 16 | D21: 12 | E21: 6 | F21: 7 | G21: 5 | H21: 3 | I21: 2 | J21: 0 | K21: 3 | L21: 1 | M21: 0 | N21: 0 | O21: 7 | P21: 25 | Q21: 2 | R21: 21 | S21: 9 | T21: 3 | U21: 17 | V21: 9 | W21: 2 | X21: 0 | Y21: 22 | Z21: 5 | AA21: 17 | AB21: 1 | AC21: 6 | AD21: 2 | AE21: 0 | AF21: 0 | AG21: 32 | AH21: 8 | AI21: 4 | AJ21: 11 | AK21: 7 | AL21: 0 | AM21: 3 | AN21: 0 | AO21: 1 | AP21: 0 | AQ21: 1 | AR21: 0 | AS21: 13 | AT21: 5 | AU21: 5 | AV21: 20 | AW21: 10 | AX21: 0 | AY21: 1 | AZ21: 1 | BA21: 0 | BB21: 5 | BC21: 1 | BD21: 0 | BE21: 10 | BF21: 18 | BG21: 3 | BH21: 28 | BI21: 25 | BJ21: 13
A22: SG_1434 | B22: 14_0903_02_20cm_scaffold_36089 | C22: 29 | D22: 29 | E22: 9 | F22: 0 | G22: 1 | H22: 0 | I22: 0 | J22: 0 | K22: 0 | L22: 0 | M22: 6 | N22: 1 | O22: 7 | P22: 6 | Q22: 5 | R22: 6 | S22: 12 | T22: 3 | U22: 24 | V22: 1 | W22: 0 | X22: 0 | Y22: 10 | Z22: 1 | AA22: 1 | AB22: 3 | AC22: 0 | AD22: 0 | AE22: 0 | AF22: 0 | AG22: 8 | AH22: 5 | AI22: 0 | AJ22: 2 | AK22: 2 | AL22: 0 | AM22: 0 | AN22: 0 | AO22: 0 | AP22: 2 | AQ22: 1 | AR22: 5 | AS22: 8 | AT22: 2 | AU22: 1 | AV22: 0 | AW22: 2 | AX22: 0 | AY22: 0 | AZ22: 0 | BA22: 0 | BB22: 0 | BC22: 0 | BD22: 1 | BE22: 11 | BF22: 2 | BG22: 0 | BH22: 0 | BI22: 3 | BJ22: 2
A23: SG_2782 | B23: 14_0903_02_20cm_scaffold_36267 | C23: 7 | D23: 11 | E23: 3 | F23: 4 | G23: 1 | H23: 0 | I23: 0 | J23: 0 | K23: 1 | L23: 0 | M23: 0 | N23: 0 | O23: 0 | P23: 3 | Q23: 1 | R23: 1 | S23: 2 | T23: 2 | U23: 3 | V23: 0 | W23: 1 | X23: 0 | Y23: 4 | Z23: 2 | AA23: 3 | AB23: 2 | AC23: 0 | AD23: 0 | AE23: 0 | AF23: 0 | AG23: 5 | AH23: 5 | AI23: 3 | AJ23: 1 | AK23: 2 | AL23: 2 | AM23: 0 | AN23: 0 | AO23: 0 | AP23: 0 | AQ23: 1 | AR23: 0 | AS23: 7 | AT23: 4 | AU23: 2 | AV23: 6 | AW23: 2 | AX23: 4 | AY23: 0 | AZ23: 1 | BA23: 1 | BB23: 0 | BC23: 0 | BD23: 0 | BE23: 1 | BF23: 3 | BG23: 0 | BH23: 0 | BI23: 7 | BJ23: 4
A24: SG_3290 | B24: 14_0903_02_20cm_scaffold_36634 | C24: 26 | D24: 23 | E24: 14 | F24: 8 | G24: 12 | H24: 5 | I24: 0 | J24: 0 | K24: 0 | L24: 0 | M24: 0 | N24: 0 | O24: 1 | P24: 1 | Q24: 1 | R24: 2 | S24: 2 | T24: 0 | U24: 18 | V24: 5 | W24: 0 | X24: 0 | Y24: 12 | Z24: 11 | AA24: 15 | AB24: 3 | AC24: 0 | AD24: 0 | AE24: 0 | AF24: 0 | AG24: 8 | AH24: 13 | AI24: 8 | AJ24: 8 | AK24: 2 | AL24: 5 | AM24: 0 | AN24: 0 | AO24: 0 | AP24: 0 | AQ24: 0 | AR24: 0 | AS24: 13 | AT24: 2 | AU24: 5 | AV24: 2 | AW24: 4 | AX24: 9 | AY24: 0 | AZ24: 0 | BA24: 0 | BB24: 0 | BC24: 0 | BD24: 0 | BE24: 0 | BF24: 0 | BG24: 0 | BH24: 2 | BI24: 2 | BJ24: 1
A25: SG_575 | B25: 14_0903_02_20cm_scaffold_36723 | C25: 30 | D25: 27 | E25: 4 | F25: 0 | G25: 0 | H25: 0 | I25: 0 | J25: 0 | K25: 0 | L25: 0 | M25: 0 | N25: 0 | O25: 0 | P25: 3 | Q25: 0 | R25: 0 | S25: 0 | T25: 0 | U25: 2 | V25: 0 | W25: 0 | X25: 0 | Y25: 0 | Z25: 0 | AA25: 0 | AB25: 0 | AC25: 0 | AD25: 0 | AE25: 0 | AF25: 0 | AG25: 3 | AH25: 0 | AI25: 1 | AJ25: 0 | AK25: 0 | AL25: 0 | AM25: 0 | AN25: 0 | AO25: 0 | AP25: 0 | AQ25: 0 | AR25: 0 | AS25: 0 | AT25: 0 | AU25: 0 | AV25: 0 | AW25: 0 | AX25: 0 | AY25: 0 | AZ25: 0 | BA25: 0 | BB25: 0 | BC25: 0 | BD25: 0 | BE25: 0 | BF25: 0 | BG25: 0 | BH25: 0 | BI25: 0 | BJ25: 0
A26: SG_1564 | B26: 14_0903_02_20cm_scaffold_37776 | C26: 3 | D26: 0 | E26: 0 | F26: 0 | G26: 0 | H26: 0 | I26: 0 | J26: 1 | K26: 1 | L26: 0 | M26: 0 | N26: 0 | O26: 3 | P26: 0 | Q26: 0 | R26: 0 | S26: 1 | T26: 1 | U26: 1 | V26: 1 | W26: 0 | X26: 0 | Y26: 0 | Z26: 2 | AA26: 0 | AB26: 1 | AC26: 0 | AD26: 0 | AE26: 0 | AF26: 1 | AG26: 3 | AH26: 0 | AI26: 0 | AJ26: 0 | AK26: 0 | AL26: 0 | AM26: 0 | AN26: 0 | AO26: 1 | AP26: 0 | AQ26: 1 | AR26: 0 | AS26: 0 | AT26: 0 | AU26: 0 | AV26: 0 | AW26: 0 | AX26: 0 | AY26: 0 | AZ26: 0 | BA26: 0 | BB26: 0 | BC26: 0 | BD26: 3 | BE26: 0 | BF26: 0 | BG26: 0 | BH26: 0 | BI26: 1 | BJ26: 2
A27: SG_2748 | B27: 14_0903_02_20cm_scaffold_40915 | C27: 20 | D27: 15 | E27: 0 | F27: 0 | G27: 0 | H27: 0 | I27: 0 | J27: 0 | K27: 0 | L27: 0 | M27: 0 | N27: 2 | O27: 4 | P27: 3 | Q27: 2 | R27: 2 | S27: 0 | T27: 0 | U27: 0 | V27: 0 | W27: 0 | X27: 0 | Y27: 1 | Z27: 3 | AA27: 0 | AB27: 0 | AC27: 0 | AD27: 4 | AE27: 0 | AF27: 0 | AG27: 1 | AH27: 0 | AI27: 0 | AJ27: 0 | AK27: 0 | AL27: 0 | AM27: 0 | AN27: 0 | AO27: 0 | AP27: 0 | AQ27: 0 | AR27: 14 | AS27: 0 | AT27: 0 | AU27: 1 | AV27: 0 | AW27: 0 | AX27: 0 | AY27: 0 | AZ27: 0 | BA27: 0 | BB27: 0 | BC27: 0 | BD27: 0 | BE27: 0 | BF27: 0 | BG27: 0 | BH27: 0 | BI27: 0 | BJ27: 4
A28: SG_2654 | B28: 14_0903_02_20cm_scaffold_43073 | C28: 9 | D28: 13 | E28: 4 | F28: 5 | G28: 10 | H28: 11 | I28: 0 | J28: 0 | K28: 0 | L28: 0 | M28: 0 | N28: 0 | O28: 4 | P28: 18 | Q28: 10 | R28: 3 | S28: 10 | T28: 13 | U28: 3 | V28: 4 | W28: 0 | X28: 1 | Y28: 4 | Z28: 10 | AA28: 18 | AB28: 27 | AC28: 3 | AD28: 3 | AE28: 0 | AF28: 0 | AG28: 7 | AH28: 8 | AI28: 18 | AJ28: 6 | AK28: 22 | AL28: 16 | AM28: 0 | AN28: 1 | AO28: 4 | AP28: 1 | AQ28: 0 | AR28: 2 | AS28: 2 | AT28: 6 | AU28: 21 | AV28: 4 | AW28: 18 | AX28: 19 | AY28: 1 | AZ28: 1 | BA28: 2 | BB28: 2 | BC28: 0 | BD28: 0 | BE28: 2 | BF28: 1 | BG28: 8 | BH28: 1 | BI28: 36 | BJ28: 26
A29: SG_1070 | B29: 14_0903_02_20cm_scaffold_47 | C29: 4505 | D29: 3090 | E29: 499 | F29: 1675 | G29: 1290 | H29: 651 | I29: 1020 | J29: 725 | K29: 2378 | L29: 2419 | M29: 1999 | N29: 583 | O29: 7485 | P29: 10090 | Q29: 1154 | R29: 2348 | S29: 3433 | T29: 1310 | U29: 6828 | V29: 3835 | W29: 1268 | X29: 3394 | Y29: 2101 | Z29: 288 | AA29: 4112 | AB29: 424 | AC29: 1838 | AD29: 1864 | AE29: 4869 | AF29: 738 | AG29: 5977 | AH29: 1838 | AI29: 306 | AJ29: 3674 | AK29: 1368 | AL29: 240 | AM29: 837 | AN29: 2677 | AO29: 897 | AP29: 3493 | AQ29: 1884 | AR29: 581 | AS29: 2087 | AT29: 2129 | AU29: 329 | AV29: 3019 | AW29: 927 | AX29: 196 | AY29: 2694 | AZ29: 1573 | BA29: 440 | BB29: 1848 | BC29: 763 | BD29: 489 | BE29: 1405 | BF29: 1051 | BG29: 1239 | BH29: 2865 | BI29: 3148 | BJ29: 1533
A30: SG_3088 | B30: 14_0903_02_20cm_scaffold_49027 | C30: 28 | D30: 47 | E30: 16 | F30: 0 | G30: 0 | H30: 1 | I30: 0 | J30: 0 | K30: 1 | L30: 0 | M30: 0 | N30: 0 | O30: 0 | P30: 6 | Q30: 1 | R30: 0 | S30: 0 | T30: 1 | U30: 11 | V30: 0 | W30: 0 | X30: 2 | Y30: 1 | Z30: 37 | AA30: 1 | AB30: 13 | AC30: 0 | AD30: 0 | AE30: 0 | AF30: 0 | AG30: 9 | AH30: 28 | AI30: 60 | AJ30: 0 | AK30: 2 | AL30: 1 | AM30: 0 | AN30: 0 | AO30: 0 | AP30: 0 | AQ30: 1 | AR30: 0 | AS30: 0 | AT30: 23 | AU30: 46 | AV30: 0 | AW30: 0 | AX30: 3 | AY30: 0 | AZ30: 0 | BA30: 0 | BB30: 0 | BC30: 0 | BD30: 1 | BE30: 0 | BF30: 1 | BG30: 0 | BH30: 0 | BI30: 3 | BJ30: 2
A31: SG_2769 | B31: 14_0903_02_20cm_scaffold_5247 | C31: 103 | D31: 116 | E31: 23 | F31: 30 | G31: 11 | H31: 13 | I31: 8 | J31: 1 | K31: 17 | L31: 1 | M31: 10 | N31: 1 | O31: 58 | P31: 124 | Q31: 12 | R31: 17 | S31: 20 | T31: 13 | U31: 119 | V31: 29 | W31: 10 | X31: 3 | Y31: 107 | Z31: 44 | AA31: 63 | AB31: 29 | AC31: 14 | AD31: 8 | AE31: 6 | AF31: 3 | AG31: 78 | AH31: 63 | AI31: 17 | AJ31: 67 | AK31: 20 | AL31: 4 | AM31: 16 | AN31: 14 | AO31: 5 | AP31: 6 | AQ31: 6 | AR31: 2 | AS31: 63 | AT31: 42 | AU31: 50 | AV31: 24 | AW31: 33 | AX31: 9 | AY31: 9 | AZ31: 12 | BA31: 0 | BB31: 6 | BC31: 6 | BD31: 0 | BE31: 81 | BF31: 46 | BG31: 12 | BH31: 36 | BI31: 29 | BJ31: 19
A32: SG_347 | B32: 14_0903_02_20cm_scaffold_5308 | C32: 217 | D32: 350 | E32: 90 | F32: 11 | G32: 2 | H32: 4 | I32: 0 | J32: 0 | K32: 0 | L32: 0 | M32: 0 | N32: 0 | O32: 32 | P32: 81 | Q32: 0 | R32: 192 | S32: 70 | T32: 41 | U32: 115 | V32: 20 | W32: 0 | X32: 0 | Y32: 69 | Z32: 16 | AA32: 4 | AB32: 1 | AC32: 1 | AD32: 0 | AE32: 0 | AF32: 0 | AG32: 70 | AH32: 10 | AI32: 8 | AJ32: 4 | AK32: 3 | AL32: 2 | AM32: 1 | AN32: 0 | AO32: 0 | AP32: 0 | AQ32: 0 | AR32: 0 | AS32: 70 | AT32: 29 | AU32: 21 | AV32: 7 | AW32: 4 | AX32: 4 | AY32: 0 | AZ32: 0 | BA32: 0 | BB32: 0 | BC32: 0 | BD32: 0 | BE32: 13 | BF32: 2 | BG32: 2 | BH32: 40 | BI32: 21 | BJ32: 19
A33: SG_1791 | B33: 14_0903_02_20cm_scaffold_55213 | C33: 26 | D33: 14 | E33: 3 | F33: 10 | G33: 14 | H33: 9 | I33: 0 | J33: 2 | K33: 9 | L33: 0 | M33: 1 | N33: 1 | O33: 2 | P33: 18 | Q33: 4 | R33: 5 | S33: 12 | T33: 14 | U33: 22 | V33: 6 | W33: 0 | X33: 0 | Y33: 7 | Z33: 4 | AA33: 24 | AB33: 11 | AC33: 4 | AD33: 6 | AE33: 0 | AF33: 0 | AG33: 19 | AH33: 17 | AI33: 12 | AJ33: 4 | AK33: 13 | AL33: 10 | AM33: 3 | AN33: 4 | AO33: 3 | AP33: 0 | AQ33: 1 | AR33: 5 | AS33: 0 | AT33: 10 | AU33: 9 | AV33: 13 | AW33: 17 | AX33: 13 | AY33: 2 | AZ33: 2 | BA33: 0 | BB33: 0 | BC33: 0 | BD33: 0 | BE33: 1 | BF33: 1 | BG33: 2 | BH33: 16 | BI33: 34 | BJ33: 28
A34: SG_806 | B34: 14_0903_02_20cm_scaffold_5756 | C34: 115 | D34: 116 | E34: 34 | F34: 14 | G34: 37 | H34: 65 | I34: 8 | J34: 54 | K34: 116 | L34: 1 | M34: 16 | N34: 20 | O34: 196 | P34: 764 | Q34: 148 | R34: 0 | S34: 101 | T34: 95 | U34: 194 | V34: 45 | W34: 0 | X34: 14 | Y34: 108 | Z34: 55 | AA34: 128 | AB34: 59 | AC34: 25 | AD34: 59 | AE34: 30 | AF34: 37 | AG34: 193 | AH34: 166 | AI34: 85 | AJ34: 20 | AK34: 91 | AL34: 27 | AM34: 0 | AN34: 41 | AO34: 51 | AP34: 32 | AQ34: 107 | AR34: 30 | AS34: 6 | AT34: 162 | AU34: 107 | AV34: 37 | AW34: 75 | AX34: 51 | AY34: 12 | AZ34: 55 | BA34: 19 | BB34: 0 | BC34: 78 | BD34: 86 | BE34: 116 | BF34: 261 | BG34: 98 | BH34: 35 | BI34: 303 | BJ34: 256
A35: SG_2402 | B35: 14_0903_02_20cm_scaffold_58650 | C35: 13 | D35: 13 | E35: 3 | F35: 0 | G35: 0 | H35: 0 | I35: 0 | J35: 0 | K35: 0 | L35: 0 | M35: 0 | N35: 0 | O35: 11 | P35: 14 | Q35: 0 | R35: 0 | S35: 0 | T35: 0 | U35: 0 | V35: 0 | W35: 0 | X35: 0 | Y35: 0 | Z35: 1 | AA35: 0 | AB35: 0 | AC35: 0 | AD35: 0 | AE35: 0 | AF35: 0 | AG35: 0 | AH35: 0 | AI35: 0 | AJ35: 0 | AK35: 0 | AL35: 0 | AM35: 0 | AN35: 0 | AO35: 0 | AP35: 0 | AQ35: 0 | AR35: 0 | AS35: 5 | AT35: 2 | AU35: 0 | AV35: 0 | AW35: 0 | AX35: 0 | AY35: 0 | AZ35: 0 | BA35: 0 | BB35: 0 | BC35: 0 | BD35: 0 | BE35: 7 | BF35: 0 | BG35: 0 | BH35: 0 | BI35: 0 | BJ35: 0
A36: SG_3282 | B36: 14_0903_02_20cm_scaffold_60842 | C36: 23 | D36: 35 | E36: 4 | F36: 3 | G36: 0 | H36: 0 | I36: 0 | J36: 0 | K36: 0 | L36: 0 | M36: 0 | N36: 0 | O36: 2 | P36: 7 | Q36: 0 | R36: 5 | S36: 0 | T36: 4 | U36: 3 | V36: 0 | W36: 0 | X36: 0 | Y36: 0 | Z36: 2 | AA36: 0 | AB36: 0 | AC36: 0 | AD36: 0 | AE36: 0 | AF36: 0 | AG36: 0 | AH36: 0 | AI36: 0 | AJ36: 0 | AK36: 1 | AL36: 0 | AM36: 0 | AN36: 0 | AO36: 0 | AP36: 0 | AQ36: 0 | AR36: 0 | AS36: 5 | AT36: 0 | AU36: 0 | AV36: 0 | AW36: 0 | AX36: 0 | AY36: 0 | AZ36: 0 | BA36: 0 | BB36: 0 | BC36: 0 | BD36: 0 | BE36: 1 | BF36: 1 | BG36: 0 | BH36: 0 | BI36: 0 | BJ36: 0
A37: SG_2709 | B37: 14_0903_02_20cm_scaffold_61971 | C37: 10 | D37: 12 | E37: 7 | F37: 0 | G37: 0 | H37: 0 | I37: 0 | J37: 0 | K37: 0 | L37: 0 | M37: 0 | N37: 0 | O37: 4 | P37: 9 | Q37: 0 | R37: 2 | S37: 2 | T37: 0 | U37: 1 | V37: 1 | W37: 1 | X37: 0 | Y37: 5 | Z37: 4 | AA37: 1 | AB37: 0 | AC37: 0 | AD37: 1 | AE37: 0 | AF37: 0 | AG37: 2 | AH37: 1 | AI37: 2 | AJ37: 2 | AK37: 0 | AL37: 0 | AM37: 0 | AN37: 0 | AO37: 0 | AP37: 0 | AQ37: 0 | AR37: 0 | AS37: 2 | AT37: 1 | AU37: 0 | AV37: 2 | AW37: 0 | AX37: 0 | AY37: 0 | AZ37: 0 | BA37: 0 | BB37: 0 | BC37: 0 | BD37: 0 | BE37: 1 | BF37: 1 | BG37: 0 | BH37: 1 | BI37: 2 | BJ37: 0
A38: SG_1738 | B38: 14_0903_02_20cm_scaffold_6774 | C38: 72 | D38: 148 | E38: 55 | F38: 54 | G38: 62 | H38: 64 | I38: 1 | J38: 5 | K38: 56 | L38: 2 | M38: 22 | N38: 16 | O38: 51 | P38: 247 | Q38: 48 | R38: 38 | S38: 75 | T38: 86 | U38: 119 | V38: 45 | W38: 2 | X38: 6 | Y38: 85 | Z38: 75 | AA38: 167 | AB38: 120 | AC38: 25 | AD38: 113 | AE38: 0 | AF38: 13 | AG38: 150 | AH38: 134 | AI38: 71 | AJ38: 67 | AK38: 128 | AL38: 51 | AM38: 6 | AN38: 46 | AO38: 46 | AP38: 4 | AQ38: 10 | AR38: 46 | AS38: 19 | AT38: 160 | AU38: 140 | AV38: 77 | AW38: 130 | AX38: 106 | AY38: 7 | AZ38: 30 | BA38: 48 | BB38: 2 | BC38: 0 | BD38: 16 | BE38: 34 | BF38: 104 | BG38: 55 | BH38: 80 | BI38: 265 | BJ38: 177
A39: SG_1084 | B39: 14_0903_02_20cm_scaffold_7 | C39: 3979 | D39: 2120 | E39: 297 | F39: 411 | G39: 736 | H39: 683 | I39: 219 | J39: 266 | K39: 363 | L39: 336 | M39: 163 | N39: 22 | O39: 826 | P39: 1745 | Q39: 37 | R39: 229 | S39: 826 | T39: 347 | U39: 4515 | V39: 731 | W39: 253 | X39: 349 | Y39: 3489 | Z39: 268 | AA39: 2158 | AB39: 336 | AC39: 372 | AD39: 164 | AE39: 626 | AF39: 2 | AG39: 3425 | AH39: 1403 | AI39: 103 | AJ39: 654 | AK39: 2027 | AL39: 164 | AM39: 176 | AN39: 367 | AO39: 38 | AP39: 510 | AQ39: 103 | AR39: 2 | AS39: 671 | AT39: 1890 | AU39: 351 | AV39: 545 | AW39: 743 | AX39: 285 | AY39: 587 | AZ39: 184 | BA39: 31 | BB39: 192 | BC39: 152 | BD39: 13 | BE39: 221 | BF39: 191 | BG39: 13 | BH39: 1741 | BI39: 3363 | BJ39: 1364
A40: SG_3306 | B40: 14_0903_02_20cm_scaffold_7024 | C40: 114 | D40: 169 | E40: 50 | F40: 31 | G40: 18 | H40: 1 | I40: 3 | J40: 2 | K40: 8 | L40: 5 | M40: 7 | N40: 0 | O40: 49 | P40: 92 | Q40: 23 | R40: 32 | S40: 34 | T40: 20 | U40: 158 | V40: 18 | W40: 6 | X40: 4 | Y40: 125 | Z40: 47 | AA40: 77 | AB40: 33 | AC40: 12 | AD40: 1 | AE40: 6 | AF40: 2 | AG40: 144 | AH40: 97 | AI40: 25 | AJ40: 48 | AK40: 8 | AL40: 0 | AM40: 14 | AN40: 6 | AO40: 2 | AP40: 3 | AQ40: 4 | AR40: 4 | AS40: 62 | AT40: 87 | AU40: 80 | AV40: 44 | AW40: 22 | AX40: 19 | AY40: 12 | AZ40: 7 | BA40: 2 | BB40: 3 | BC40: 3 | BD40: 1 | BE40: 88 | BF40: 57 | BG40: 18 | BH40: 41 | BI40: 31 | BJ40: 16
A41: SG_2740 | B41: 14_0903_02_20cm_scaffold_7560 | C41: 48 | D41: 44 | E41: 16 | F41: 14 | G41: 19 | H41: 22 | I41: 2 | J41: 7 | K41: 29 | L41: 15 | M41: 19 | N41: 19 | O41: 32 | P41: 176 | Q41: 46 | R41: 14 | S41: 71 | T41: 63 | U41: 44 | V41: 14 | W41: 2 | X41: 5 | Y41: 45 | Z41: 65 | AA41: 34 | AB41: 23 | AC41: 22 | AD41: 17 | AE41: 0 | AF41: 12 | AG41: 47 | AH41: 78 | AI41: 60 | AJ41: 23 | AK41: 59 | AL41: 24 | AM41: 8 | AN41: 29 | AO41: 12 | AP41: 26 | AQ41: 8 | AR41: 14 | AS41: 11 | AT41: 54 | AU41: 76 | AV41: 25 | AW41: 34 | AX41: 51 | AY41: 15 | AZ41: 20 | BA41: 24 | BB41: 5 | BC41: 23 | BD41: 11 | BE41: 60 | BF41: 97 | BG41: 53 | BH41: 41 | BI41: 307 | BJ41: 225
A42: SG_1888 | B42: 14_0903_02_20cm_scaffold_78056 | C42: 12 | D42: 8 | E42: 4 | F42: 4 | G42: 3 | H42: 2 | I42: 1 | J42: 1 | K42: 1 | L42: 4 | M42: 0 | N42: 2 | O42: 4 | P42: 13 | Q42: 0 | R42: 9 | S42: 3 | T42: 3 | U42: 8 | V42: 11 | W42: 9 | X42: 1 | Y42: 5 | Z42: 0 | AA42: 7 | AB42: 4 | AC42: 1 | AD42: 2 | AE42: 1 | AF42: 0 | AG42: 7 | AH42: 2 | AI42: 1 | AJ42: 10 | AK42: 2 | AL42: 0 | AM42: 1 | AN42: 0 | AO42: 0 | AP42: 4 | AQ42: 0 | AR42: 1 | AS42: 4 | AT42: 6 | AU42: 2 | AV42: 4 | AW42: 3 | AX42: 1 | AY42: 5 | AZ42: 2 | BA42: 0 | BB42: 3 | BC42: 1 | BD42: 0 | BE42: 6 | BF42: 2 | BG42: 0 | BH42: 3 | BI42: 1 | BJ42: 0
A43: SG_1278 | B43: 14_0903_02_20cm_scaffold_78809 | C43: 14 | D43: 5 | E43: 3 | F43: 0 | G43: 0 | H43: 0 | I43: 1 | J43: 0 | K43: 0 | L43: 0 | M43: 0 | N43: 0 | O43: 0 | P43: 0 | Q43: 0 | R43: 1 | S43: 7 | T43: 0 | U43: 7 | V43: 3 | W43: 0 | X43: 0 | Y43: 7 | Z43: 1 | AA43: 0 | AB43: 0 | AC43: 1 | AD43: 0 | AE43: 0 | AF43: 0 | AG43: 6 | AH43: 7 | AI43: 0 | AJ43: 0 | AK43: 0 | AL43: 0 | AM43: 0 | AN43: 0 | AO43: 0 | AP43: 0 | AQ43: 0 | AR43: 0 | AS43: 2 | AT43: 2 | AU43: 1 | AV43: 2 | AW43: 0 | AX43: 0 | AY43: 0 | AZ43: 0 | BA43: 0 | BB43: 0 | BC43: 0 | BD43: 0 | BE43: 4 | BF43: 0 | BG43: 0 | BH43: 2 | BI43: 2 | BJ43: 0
A44: SG_1621 | B44: 14_0903_02_20cm_scaffold_80078 | C44: 22 | D44: 10 | E44: 0 | F44: 0 | G44: 0 | H44: 0 | I44: 0 | J44: 0 | K44: 0 | L44: 0 | M44: 0 | N44: 0 | O44: 0 | P44: 1 | Q44: 0 | R44: 2 | S44: 2 | T44: 0 | U44: 4 | V44: 0 | W44: 0 | X44: 0 | Y44: 9 | Z44: 0 | AA44: 4 | AB44: 0 | AC44: 0 | AD44: 0 | AE44: 0 | AF44: 0 | AG44: 8 | AH44: 0 | AI44: 0 | AJ44: 0 | AK44: 0 | AL44: 0 | AM44: 0 | AN44: 0 | AO44: 0 | AP44: 0 | AQ44: 0 | AR44: 0 | AS44: 2 | AT44: 4 | AU44: 0 | AV44: 1 | AW44: 0 | AX44: 0 | AY44: 0 | AZ44: 0 | BA44: 0 | BB44: 0 | BC44: 0 | BD44: 0 | BE44: 0 | BF44: 0 | BG44: 0 | BH44: 1 | BI44: 0 | BJ44: 0
A45: SG_2321 | B45: 14_0903_02_20cm_scaffold_82723 | C45: 16 | D45: 0 | E45: 0 | F45: 0 | G45: 0 | H45: 0 | I45: 5 | J45: 1 | K45: 3 | L45: 0 | M45: 4 | N45: 0 | O45: 8 | P45: 2 | Q45: 0 | R45: 0 | S45: 0 | T45: 0 | U45: 7 | V45: 1 | W45: 0 | X45: 0 | Y45: 1 | Z45: 0 | AA45: 6 | AB45: 0 | AC45: 1 | AD45: 2 | AE45: 2 | AF45: 0 | AG45: 1 | AH45: 0 | AI45: 0 | AJ45: 0 | AK45: 1 | AL45: 0 | AM45: 1 | AN45: 0 | AO45: 0 | AP45: 4 | AQ45: 1 | AR45: 1 | AS45: 2 | AT45: 4 | AU45: 0 | AV45: 0 | AW45: 3 | AX45: 0 | AY45: 2 | AZ45: 0 | BA45: 0 | BB45: 1 | BC45: 0 | BD45: 2 | BE45: 7 | BF45: 1 | BG45: 0 | BH45: 0 | BI45: 3 | BJ45: 1
A46: SG_2665 | B46: 14_0903_02_20cm_scaffold_86244 | C46: 26 | D46: 27 | E46: 22 | F46: 7 | G46: 15 | H46: 20 | I46: 4 | J46: 12 | K46: 29 | L46: 6 | M46: 16 | N46: 5 | O46: 25 | P46: 189 | Q46: 27 | R46: 1 | S46: 79 | T46: 44 | U46: 20 | V46: 7 | W46: 2 | X46: 38 | Y46: 11 | Z46: 24 | AA46: 23 | AB46: 7 | AC46: 32 | AD46: 15 | AE46: 24 | AF46: 1 | AG46: 14 | AH46: 48 | AI46: 55 | AJ46: 6 | AK46: 41 | AL46: 9 | AM46: 0 | AN46: 34 | AO46: 10 | AP46: 27 | AQ46: 8 | AR46: 0 | AS46: 0 | AT46: 23 | AU46: 32 | AV46: 15 | AW46: 26 | AX46: 26 | AY46: 29 | AZ46: 21 | BA46: 0 | BB46: 6 | BC46: 26 | BD46: 8 | BE46: 17 | BF46: 71 | BG46: 45 | BH46: 19 | BI46: 178 | BJ46: 173
A47: SG_189 | B47: 14_0903_02_20cm_scaffold_88435 | C47: 12 | D47: 10 | E47: 3 | F47: 2 | G47: 4 | H47: 1 | I47: 1 | J47: 0 | K47: 0 | L47: 0 | M47: 0 | N47: 0 | O47: 5 | P47: 8 | Q47: 0 | R47: 3 | S47: 0 | T47: 3 | U47: 7 | V47: 4 | W47: 2 | X47: 0 | Y47: 1 | Z47: 1 | AA47: 1 | AB47: 1 | AC47: 2 | AD47: 0 | AE47: 0 | AF47: 0 | AG47: 0 | AH47: 1 | AI47: 0 | AJ47: 7 | AK47: 0 | AL47: 0 | AM47: 2 | AN47: 1 | AO47: 0 | AP47: 0 | AQ47: 0 | AR47: 0 | AS47: 2 | AT47: 1 | AU47: 2 | AV47: 2 | AW47: 2 | AX47: 1 | AY47: 1 | AZ47: 0 | BA47: 0 | BB47: 0 | BC47: 0 | BD47: 0 | BE47: 0 | BF47: 2 | BG47: 0 | BH47: 1 | BI47: 6 | BJ47: 2
A48: SG_1747 | B48: 14_0903_02_20cm_scaffold_88954 | C48: 15 | D48: 2 | E48: 0 | F48: 0 | G48: 0 | H48: 0 | I48: 0 | J48: 0 | K48: 0 | L48: 0 | M48: 0 | N48: 0 | O48: 2 | P48: 6 | Q48: 0 | R48: 0 | S48: 3 | T48: 2 | U48: 2 | V48: 0 | W48: 0 | X48: 0 | Y48: 5 | Z48: 0 | AA48: 3 | AB48: 2 | AC48: 0 | AD48: 0 | AE48: 0 | AF48: 0 | AG48: 6 | AH48: 9 | AI48: 0 | AJ48: 0 | AK48: 1 | AL48: 0 | AM48: 0 | AN48: 0 | AO48: 0 | AP48: 0 | AQ48: 0 | AR48: 0 | AS48: 0 | AT48: 2 | AU48: 5 | AV48: 1 | AW48: 2 | AX48: 0 | AY48: 0 | AZ48: 0 | BA48: 0 | BB48: 0 | BC48: 0 | BD48: 0 | BE48: 1 | BF48: 5 | BG48: 1 | BH48: 6 | BI48: 8 | BJ48: 3
A49: SG_1178 | B49: 14_0903_02_20cm_scaffold_96307 | C49: 6 | D49: 4 | E49: 1 | F49: 3 | G49: 1 | H49: 1 | I49: 3 | J49: 0 | K49: 0 | L49: 0 | M49: 0 | N49: 0 | O49: 7 | P49: 13 | Q49: 2 | R49: 4 | S49: 3 | T49: 4 | U49: 7 | V49: 5 | W49: 0 | X49: 0 | Y49: 6 | Z49: 3 | AA49: 7 | AB49: 0 | AC49: 2 | AD49: 0 | AE49: 0 | AF49: 0 | AG49: 4 | AH49: 3 | AI49: 0 | AJ49: 5 | AK49: 5 | AL49: 1 | AM49: 4 | AN49: 4 | AO49: 0 | AP49: 0 | AQ49: 0 | AR49: 0 | AS49: 3 | AT49: 5 | AU49: 2 | AV49: 3 | AW49: 1 | AX49: 1 | AY49: 0 | AZ49: 0 | BA49: 0 | BB49: 1 | BC49: 0 | BD49: 0 | BE49: 2 | BF49: 4 | BG49: 1 | BH49: 3 | BI49: 9 | BJ49: 4
A50: SG_2717 | B50: 14_0903_02_20cm_scaffold_9668 | C50: 66 | D50: 111 | E50: 28 | F50: 20 | G50: 10 | H50: 3 | I50: 9 | J50: 3 | K50: 2 | L50: 2 | M50: 0 | N50: 0 | O50: 20 | P50: 49 | Q50: 2 | R50: 44 | S50: 18 | T50: 22 | U50: 42 | V50: 55 | W50: 14 | X50: 3 | Y50: 94 | Z50: 17 | AA50: 41 | AB50: 7 | AC50: 1 | AD50: 1 | AE50: 1 | AF50: 0 | AG50: 64 | AH50: 22 | AI50: 1 | AJ50: 55 | AK50: 6 | AL50: 2 | AM50: 11 | AN50: 4 | AO50: 1 | AP50: 6 | AQ50: 0 | AR50: 0 | AS50: 51 | AT50: 16 | AU50: 6 | AV50: 53 | AW50: 8 | AX50: 2 | AY50: 8 | AZ50: 0 | BA50: 1 | BB50: 5 | BC50: 2 | BD50: 0 | BE50: 22 | BF50: 18 | BG50: 0 | BH50: 47 | BI50: 23 | BJ50: 17
A51: SG_2269 | B51: 14_0903_02_20cm_scaffold_97147 | C51: 6 | D51: 4 | E51: 0 | F51: 1 | G51: 4 | H51: 5 | I51: 1 | J51: 2 | K51: 2 | L51: 1 | M51: 1 | N51: 2 | O51: 6 | P51: 16 | Q51: 1 | R51: 0 | S51: 7 | T51: 4 | U51: 11 | V51: 5 | W51: 0 | X51: 1 | Y51: 3 | Z51: 1 | AA51: 8 | AB51: 1 | AC51: 10 | AD51: 2 | AE51: 0 | AF51: 0 | AG51: 5 | AH51: 5 | AI51: 1 | AJ51: 3 | AK51: 7 | AL51: 3 | AM51: 0 | AN51: 4 | AO51: 0 | AP51: 2 | AQ51: 1 | AR51: 0 | AS51: 1 | AT51: 2 | AU51: 5 | AV51: 2 | AW51: 6 | AX51: 1 | AY51: 0 | AZ51: 0 | BA51: 1 | BB51: 0 | BC51: 1 | BD51: 0 | BE51: 7 | BF51: 7 | BG51: 3 | BH51: 4 | BI51: 9 | BJ51: 10
A52: SG_1620 | B52: 14_0903_02_30cm_scaffold_1 | C52: 56969 | D52: 181145 | E52: 44081 | F52: 184 | G52: 23 | H52: 73 | I52: 14 | J52: 26 | K52: 15 | L52: 11 | M52: 0 | N52: 2 | O52: 7 | P52: 43 | Q52: 18 | R52: 7 | S52: 2 | T52: 9 | U52: 1423 | V52: 6 | W52: 17 | X52: 2 | Y52: 91 | Z52: 274 | AA52: 0 | AB52: 13 | AC52: 8 | AD52: 3 | AE52: 5 | AF52: 6 | AG52: 14661 | AH52: 3028 | AI52: 1541 | AJ52: 1 | AK52: 1 | AL52: 20 | AM52: 12 | AN52: 12 | AO52: 6 | AP52: 4 | AQ52: 18 | AR52: 0 | AS52: 1489 | AT52: 167 | AU52: 93 | AV52: 86 | AW52: 1 | AX52: 0 | AY52: 6 | AZ52: 2 | BA52: 9 | BB52: 10 | BC52: 3 | BD52: 4 | BE52: 4 | BF52: 55 | BG52: 1 | BH52: 1 | BI52: 9 | BJ52: 5
A53: SG_926 | B53: 14_0903_02_30cm_scaffold_10265 | C53: 57 | D53: 223 | E53: 91 | F53: 35 | G53: 95 | H53: 139 | I53: 31 | J53: 101 | K53: 190 | L53: 49 | M53: 155 | N53: 24 | O53: 181 | P53: 1192 | Q53: 214 | R53: 5 | S53: 447 | T53: 340 | U53: 136 | V53: 67 | W53: 0 | X53: 280 | Y53: 78 | Z53: 169 | AA53: 229 | AB53: 138 | AC53: 235 | AD53: 116 | AE53: 172 | AF53: 11 | AG53: 148 | AH53: 243 | AI53: 288 | AJ53: 35 | AK53: 288 | AL53: 96 | AM53: 1 | AN53: 212 | AO53: 72 | AP53: 265 | AQ53: 89 | AR53: 12 | AS53: 1 | AT53: 136 | AU53: 188 | AV53: 81 | AW53: 151 | AX53: 174 | AY53: 183 | AZ53: 155 | BA53: 18 | BB53: 48 | BC53: 213 | BD53: 21 | BE53: 75 | BF53: 476 | BG53: 242 | BH53: 141 | BI53: 1022 | BJ53: 1125
A54: SG_984 | B54: 14_0903_02_30cm_scaffold_106091 | C54: 8 | D54: 44 | E54: 7 | F54: 0 | G54: 0 | H54: 3 | I54: 0 | J54: 0 | K54: 0 | L54: 0 | M54: 0 | N54: 0 | O54: 0 | P54: 1 | Q54: 0 | R54: 1 | S54: 0 | T54: 1 | U54: 11 | V54: 3 | W54: 0 | X54: 0 | Y54: 6 | Z54: 3 | AA54: 0 | AB54: 0 | AC54: 0 | AD54: 0 | AE54: 0 | AF54: 0 | AG54: 4 | AH54: 0 | AI54: 0 | AJ54: 0 | AK54: 0 | AL54: 0 | AM54: 0 | AN54: 0 | AO54: 0 | AP54: 0 | AQ54: 0 | AR54: 0 | AS54: 6 | AT54: 1 | AU54: 0 | AV54: 0 | AW54: 1 | AX54: 0 | AY54: 0 | AZ54: 0 | BA54: 0 | BB54: 0 | BC54: 0 | BD54: 0 | BE54: 0 | BF54: 0 | BG54: 0 | BH54: 0 | BI54: 0 | BJ54: 0
A55: SG_2858 | B55: 14_0903_02_30cm_scaffold_106963 | C55: 4 | D55: 25 | E55: 1 | F55: 0 | G55: 0 | H55: 0 | I55: 0 | J55: 0 | K55: 0 | L55: 0 | M55: 0 | N55: 0 | O55: 6 | P55: 14 | Q55: 0 | R55: 1 | S55: 0 | T55: 0 | U55: 0 | V55: 0 | W55: 0 | X55: 0 | Y55: 1 | Z55: 4 | AA55: 0 | AB55: 0 | AC55: 0 | AD55: 0 | AE55: 0 | AF55: 0 | AG55: 1 | AH55: 0 | AI55: 0 | AJ55: 0 | AK55: 0 | AL55: 0 | AM55: 0 | AN55: 0 | AO55: 0 | AP55: 0 | AQ55: 0 | AR55: 0 | AS55: 1 | AT55: 2 | AU55: 0 | AV55: 0 | AW55: 0 | AX55: 0 | AY55: 0 | AZ55: 0 | BA55: 0 | BB55: 0 | BC55: 0 | BD55: 0 | BE55: 0 | BF55: 0 | BG55: 0 | BH55: 0 | BI55: 0 | BJ55: 0
A56: SG_1057 | B56: 14_0903_02_30cm_scaffold_10771 | C56: 56 | D56: 194 | E56: 43 | F56: 0 | G56: 0 | H56: 0 | I56: 0 | J56: 0 | K56: 0 | L56: 0 | M56: 0 | N56: 0 | O56: 3 | P56: 4 | Q56: 0 | R56: 15 | S56: 6 | T56: 8 | U56: 32 | V56: 2 | W56: 0 | X56: 0 | Y56: 6 | Z56: 0 | AA56: 5 | AB56: 0 | AC56: 0 | AD56: 0 | AE56: 0 | AF56: 0 | AG56: 8 | AH56: 6 | AI56: 2 | AJ56: 0 | AK56: 0 | AL56: 1 | AM56: 0 | AN56: 0 | AO56: 0 | AP56: 0 | AQ56: 0 | AR56: 0 | AS56: 9 | AT56: 6 | AU56: 3 | AV56: 0 | AW56: 0 | AX56: 0 | AY56: 0 | AZ56: 0 | BA56: 0 | BB56: 0 | BC56: 0 | BD56: 0 | BE56: 2 | BF56: 0 | BG56: 0 | BH56: 2 | BI56: 2 | BJ56: 2
A57: SG_3143 | B57: 14_0903_02_30cm_scaffold_109069 | C57: 4 | D57: 12 | E57: 2 | F57: 2 | G57: 0 | H57: 1 | I57: 2 | J57: 0 | K57: 2 | L57: 0 | M57: 0 | N57: 2 | O57: 1 | P57: 4 | Q57: 0 | R57: 2 | S57: 0 | T57: 0 | U57: 2 | V57: 1 | W57: 2 | X57: 0 | Y57: 6 | Z57: 0 | AA57: 1 | AB57: 0 | AC57: 1 | AD57: 0 | AE57: 0 | AF57: 0 | AG57: 8 | AH57: 0 | AI57: 0 | AJ57: 3 | AK57: 0 | AL57: 0 | AM57: 5 | AN57: 0 | AO57: 0 | AP57: 0 | AQ57: 0 | AR57: 0 | AS57: 8 | AT57: 2 | AU57: 0 | AV57: 4 | AW57: 0 | AX57: 0 | AY57: 0 | AZ57: 1 | BA57: 0 | BB57: 0 | BC57: 0 | BD57: 0 | BE57: 0 | BF57: 0 | BG57: 0 | BH57: 4 | BI57: 0 | BJ57: 1
A58: SG_514 | B58: 14_0903_02_30cm_scaffold_10955 | C58: 44 | D58: 136 | E58: 39 | F58: 2 | G58: 1 | H58: 1 | I58: 0 | J58: 0 | K58: 2 | L58: 0 | M58: 0 | N58: 0 | O58: 0 | P58: 3 | Q58: 1 | R58: 0 | S58: 1 | T58: 1 | U58: 23 | V58: 0 | W58: 0 | X58: 0 | Y58: 8 | Z58: 9 | AA58: 5 | AB58: 2 | AC58: 0 | AD58: 0 | AE58: 0 | AF58: 0 | AG58: 8 | AH58: 29 | AI58: 4 | AJ58: 0 | AK58: 0 | AL58: 2 | AM58: 0 | AN58: 0 | AO58: 0 | AP58: 0 | AQ58: 0 | AR58: 0 | AS58: 0 | AT58: 5 | AU58: 4 | AV58: 0 | AW58: 2 | AX58: 6 | AY58: 0 | AZ58: 0 | BA58: 0 | BB58: 0 | BC58: 0 | BD58: 0 | BE58: 0 | BF58: 2 | BG58: 0 | BH58: 0 | BI58: 4 | BJ58: 2
A59: SG_2250 | B59: 14_0903_02_30cm_scaffold_11045 | C59: 92 | D59: 257 | E59: 66 | F59: 0 | G59: 0 | H59: 0 | I59: 0 | J59: 0 | K59: 0 | L59: 0 | M59: 0 | N59: 0 | O59: 2 | P59: 8 | Q59: 0 | R59: 0 | S59: 0 | T59: 0 | U59: 11 | V59: 0 | W59: 0 | X59: 0 | Y59: 0 | Z59: 0 | AA59: 0 | AB59: 0 | AC59: 0 | AD59: 0 | AE59: 0 | AF59: 0 | AG59: 4 | AH59: 0 | AI59: 0 | AJ59: 0 | AK59: 0 | AL59: 0 | AM59: 0 | AN59: 0 | AO59: 0 | AP59: 0 | AQ59: 0 | AR59: 0 | AS59: 10 | AT59: 10 | AU59: 4 | AV59: 0 | AW59: 0 | AX59: 0 | AY59: 0 | AZ59: 0 | BA59: 0 | BB59: 1 | BC59: 0 | BD59: 0 | BE59: 0 | BF59: 4 | BG59: 2 | BH59: 0 | BI59: 0 | BJ59: 0
A60: SG_1273 | B60: 14_0903_02_30cm_scaffold_112791 | C60: 12 | D60: 40 | E60: 3 | F60: 0 | G60: 0 | H60: 0 | I60: 0 | J60: 0 | K60: 0 | L60: 0 | M60: 0 | N60: 0 | O60: 7 | P60: 14 | Q60: 0 | R60: 1 | S60: 0 | T60: 3 | U60: 1 | V60: 0 | W60: 0 | X60: 0 | Y60: 0 | Z60: 0 | AA60: 0 | AB60: 0 | AC60: 0 | AD60: 0 | AE60: 0 | AF60: 0 | AG60: 3 | AH60: 2 | AI60: 0 | AJ60: 0 | AK60: 0 | AL60: 0 | AM60: 0 | AN60: 0 | AO60: 0 | AP60: 0 | AQ60: 0 | AR60: 0 | AS60: 1 | AT60: 2 | AU60: 0 | AV60: 0 | AW60: 0 | AX60: 0 | AY60: 0 | AZ60: 0 | BA60: 0 | BB60: 0 | BC60: 0 | BD60: 0 | BE60: 0 | BF60: 0 | BG60: 0 | BH60: 0 | BI60: 3 | BJ60: 0
A61: SG_3102 | B61: 14_0903_02_30cm_scaffold_113348 | C61: 0 | D61: 24 | E61: 6 | F61: 0 | G61: 0 | H61: 0 | I61: 0 | J61: 0 | K61: 0 | L61: 0 | M61: 0 | N61: 0 | O61: 0 | P61: 6 | Q61: 0 | R61: 4 | S61: 1 | T61: 1 | U61: 0 | V61: 0 | W61: 0 | X61: 0 | Y61: 1 | Z61: 2 | AA61: 0 | AB61: 1 | AC61: 0 | AD61: 0 | AE61: 0 | AF61: 0 | AG61: 7 | AH61: 1 | AI61: 0 | AJ61: 0 | AK61: 0 | AL61: 0 | AM61: 0 | AN61: 0 | AO61: 0 | AP61: 0 | AQ61: 0 | AR61: 0 | AS61: 0 | AT61: 0 | AU61: 0 | AV61: 0 | AW61: 2 | AX61: 0 | AY61: 0 | AZ61: 0 | BA61: 0 | BB61: 0 | BC61: 0 | BD61: 0 | BE61: 0 | BF61: 0 | BG61: 0 | BH61: 0 | BI61: 0 | BJ61: 0
A62: SG_223 | B62: 14_0903_02_30cm_scaffold_1173 | C62: 1668 | D62: 4345 | E62: 1027 | F62: 103 | G62: 48 | H62: 45 | I62: 0 | J62: 2 | K62: 2 | L62: 0 | M62: 0 | N62: 2 | O62: 135 | P62: 359 | Q62: 16 | R62: 140 | S62: 62 | T62: 62 | U62: 1354 | V62: 148 | W62: 1 | X62: 1 | Y62: 744 | Z62: 255 | AA62: 85 | AB62: 39 | AC62: 2 | AD62: 0 | AE62: 1 | AF62: 2 | AG62: 808 | AH62: 264 | AI62: 51 | AJ62: 98 | AK62: 65 | AL62: 5 | AM62: 0 | AN62: 1 | AO62: 0 | AP62: 0 | AQ62: 2 | AR62: 0 | AS62: 490 | AT62: 431 | AU62: 127 | AV62: 62 | AW62: 48 | AX62: 16 | AY62: 0 | AZ62: 1 | BA62: 0 | BB62: 0 | BC62: 5 | BD62: 0 | BE62: 63 | BF62: 46 | BG62: 10 | BH62: 62 | BI62: 85 | BJ62: 32
A63: SG_67 | B63: 14_0903_02_30cm_scaffold_11945 | C63: 38 | D63: 100 | E63: 15 | F63: 8 | G63: 3 | H63: 7 | I63: 3 | J63: 2 | K63: 0 | L63: 0 | M63: 0 | N63: 0 | O63: 5 | P63: 11 | Q63: 0 | R63: 15 | S63: 12 | T63: 7 | U63: 31 | V63: 9 | W63: 0 | X63: 0 | Y63: 10 | Z63: 10 | AA63: 10 | AB63: 0 | AC63: 3 | AD63: 0 | AE63: 0 | AF63: 0 | AG63: 9 | AH63: 7 | AI63: 0 | AJ63: 12 | AK63: 0 | AL63: 2 | AM63: 0 | AN63: 0 | AO63: 0 | AP63: 0 | AQ63: 0 | AR63: 0 | AS63: 11 | AT63: 14 | AU63: 2 | AV63: 6 | AW63: 2 | AX63: 0 | AY63: 0 | AZ63: 0 | BA63: 0 | BB63: 0 | BC63: 0 | BD63: 0 | BE63: 0 | BF63: 0 | BG63: 0 | BH63: 3 | BI63: 4 | BJ63: 3
A64: SG_2077 | B64: 14_0903_02_30cm_scaffold_126104 | C64: 12 | D64: 63 | E64: 11 | F64: 0 | G64: 0 | H64: 0 | I64: 0 | J64: 0 | K64: 0 | L64: 0 | M64: 0 | N64: 0 | O64: 5 | P64: 24 | Q64: 0 | R64: 0 | S64: 0 | T64: 2 | U64: 2 | V64: 0 | W64: 0 | X64: 0 | Y64: 5 | Z64: 6 | AA64: 0 | AB64: 0 | AC64: 0 | AD64: 0 | AE64: 0 | AF64: 0 | AG64: 4 | AH64: 0 | AI64: 0 | AJ64: 1 | AK64: 0 | AL64: 0 | AM64: 0 | AN64: 0 | AO64: 0 | AP64: 0 | AQ64: 0 | AR64: 0 | AS64: 9 | AT64: 0 | AU64: 0 | AV64: 0 | AW64: 0 | AX64: 0 | AY64: 0 | AZ64: 0 | BA64: 0 | BB64: 0 | BC64: 0 | BD64: 0 | BE64: 3 | BF64: 0 | BG64: 0 | BH64: 0 | BI64: 0 | BJ64: 0
A65: SG_1122 | B65: 14_0903_02_30cm_scaffold_127244 | C65: 16 | D65: 54 | E65: 6 | F65: 3 | G65: 0 | H65: 0 | I65: 0 | J65: 0 | K65: 0 | L65: 0 | M65: 0 | N65: 0 | O65: 0 | P65: 0 | Q65: 0 | R65: 12 | S65: 4 | T65: 1 | U65: 3 | V65: 5 | W65: 0 | X65: 0 | Y65: 0 | Z65: 0 | AA65: 1 | AB65: 0 | AC65: 0 | AD65: 0 | AE65: 0 | AF65: 0 | AG65: 2 | AH65: 0 | AI65: 0 | AJ65: 0 | AK65: 0 | AL65: 0 | AM65: 0 | AN65: 0 | AO65: 0 | AP65: 0 | AQ65: 0 | AR65: 0 | AS65: 7 | AT65: 3 | AU65: 0 | AV65: 1 | AW65: 0 | AX65: 0 | AY65: 0 | AZ65: 0 | BA65: 0 | BB65: 0 | BC65: 0 | BD65: 0 | BE65: 0 | BF65: 0 | BG65: 0 | BH65: 4 | BI65: 2 | BJ65: 0
A66: SG_1517 | B66: 14_0903_02_30cm_scaffold_127274 | C66: 6 | D66: 9 | E66: 0 | F66: 1 | G66: 2 | H66: 2 | I66: 0 | J66: 0 | K66: 0 | L66: 0 | M66: 0 | N66: 0 | O66: 6 | P66: 6 | Q66: 0 | R66: 5 | S66: 1 | T66: 0 | U66: 6 | V66: 10 | W66: 1 | X66: 0 | Y66: 3 | Z66: 1 | AA66: 0 | AB66: 0 | AC66: 2 | AD66: 0 | AE66: 0 | AF66: 0 | AG66: 1 | AH66: 0 | AI66: 0 | AJ66: 6 | AK66: 1 | AL66: 0 | AM66: 4 | AN66: 1 | AO66: 0 | AP66: 0 | AQ66: 0 | AR66: 0 | AS66: 3 | AT66: 0 | AU66: 0 | AV66: 0 | AW66: 2 | AX66: 0 | AY66: 2 | AZ66: 0 | BA66: 0 | BB66: 0 | BC66: 0 | BD66: 0 | BE66: 7 | BF66: 4 | BG66: 0 | BH66: 1 | BI66: 0 | BJ66: 1
A67: SG_83 | B67: 14_0903_02_30cm_scaffold_129069 | C67: 13 | D67: 36 | E67: 12 | F67: 3 | G67: 0 | H67: 2 | I67: 0 | J67: 0 | K67: 0 | L67: 0 | M67: 0 | N67: 0 | O67: 0 | P67: 5 | Q67: 0 | R67: 0 | S67: 0 | T67: 0 | U67: 8 | V67: 2 | W67: 0 | X67: 0 | Y67: 12 | Z67: 3 | AA67: 3 | AB67: 2 | AC67: 0 | AD67: 0 | AE67: 0 | AF67: 0 | AG67: 9 | AH67: 5 | AI67: 2 | AJ67: 6 | AK67: 2 | AL67: 0 | AM67: 0 | AN67: 0 | AO67: 0 | AP67: 0 | AQ67: 0 | AR67: 0 | AS67: 9 | AT67: 7 | AU67: 0 | AV67: 0 | AW67: 2 | AX67: 4 | AY67: 0 | AZ67: 0 | BA67: 0 | BB67: 0 | BC67: 0 | BD67: 0 | BE67: 0 | BF67: 0 | BG67: 0 | BH67: 0 | BI67: 0 | BJ67: 0
A68: SG_187 | B68: 14_0903_02_30cm_scaffold_129263 | C68: 16 | D68: 25 | E68: 11 | F68: 8 | G68: 2 | H68: 2 | I68: 1 | J68: 0 | K68: 1 | L68: 4 | M68: 0 | N68: 2 | O68: 3 | P68: 11 | Q68: 0 | R68: 10 | S68: 2 | T68: 4 | U68: 3 | V68: 4 | W68: 7 | X68: 0 | Y68: 1 | Z68: 4 | AA68: 5 | AB68: 2 | AC68: 0 | AD68: 0 | AE68: 0 | AF68: 0 | AG68: 3 | AH68: 2 | AI68: 0 | AJ68: 8 | AK68: 1 | AL68: 0 | AM68: 5 | AN68: 0 | AO68: 2 | AP68: 0 | AQ68: 1 | AR68: 1 | AS68: 7 | AT68: 3 | AU68: 0 | AV68: 1 | AW68: 2 | AX68: 1 | AY68: 1 | AZ68: 0 | BA68: 0 | BB68: 4 | BC68: 0 | BD68: 0 | BE68: 5 | BF68: 2 | BG68: 0 | BH68: 2 | BI68: 7 | BJ68: 2
A69: SG_15 | B69: 14_0903_02_30cm_scaffold_13038 | C69: 42 | D69: 126 | E69: 35 | F69: 13 | G69: 21 | H69: 37 | I69: 0 | J69: 0 | K69: 3 | L69: 0 | M69: 0 | N69: 3 | O69: 7 | P69: 40 | Q69: 9 | R69: 28 | S69: 28 | T69: 34 | U69: 46 | V69: 19 | W69: 0 | X69: 0 | Y69: 55 | Z69: 48 | AA69: 37 | AB69: 43 | AC69: 0 | AD69: 0 | AE69: 1 | AF69: 0 | AG69: 52 | AH69: 58 | AI69: 51 | AJ69: 21 | AK69: 33 | AL69: 16 | AM69: 0 | AN69: 0 | AO69: 0 | AP69: 0 | AQ69: 0 | AR69: 0 | AS69: 28 | AT69: 43 | AU69: 58 | AV69: 10 | AW69: 18 | AX69: 55 | AY69: 0 | AZ69: 2 | BA69: 1 | BB69: 0 | BC69: 0 | BD69: 0 | BE69: 7 | BF69: 10 | BG69: 4 | BH69: 26 | BI69: 68 | BJ69: 58
A70: SG_2240 | B70: 14_0903_02_30cm_scaffold_1305 | C70: 383 | D70: 956 | E70: 192 | F70: 5 | G70: 2 | H70: 0 | I70: 1 | J70: 1 | K70: 0 | L70: 0 | M70: 0 | N70: 2 | O70: 24 | P70: 119 | Q70: 0 | R70: 1 | S70: 0 | T70: 0 | U70: 78 | V70: 1 | W70: 0 | X70: 0 | Y70: 104 | Z70: 97 | AA70: 0 | AB70: 1 | AC70: 0 | AD70: 0 | AE70: 0 | AF70: 0 | AG70: 33 | AH70: 4 | AI70: 2 | AJ70: 0 | AK70: 0 | AL70: 0 | AM70: 0 | AN70: 0 | AO70: 0 | AP70: 0 | AQ70: 0 | AR70: 0 | AS70: 222 | AT70: 115 | AU70: 22 | AV70: 0 | AW70: 0 | AX70: 0 | AY70: 0 | AZ70: 0 | BA70: 0 | BB70: 0 | BC70: 1 | BD70: 0 | BE70: 12 | BF70: 22 | BG70: 8 | BH70: 0 | BI70: 0 | BJ70: 0
A71: SG_1645 | B71: 14_0903_02_30cm_scaffold_130792 | C71: 4 | D71: 30 | E71: 1 | F71: 0 | G71: 0 | H71: 0 | I71: 0 | J71: 0 | K71: 0 | L71: 0 | M71: 0 | N71: 0 | O71: 0 | P71: 0 | Q71: 0 | R71: 0 | S71: 0 | T71: 1 | U71: 0 | V71: 0 | W71: 0 | X71: 0 | Y71: 1 | Z71: 0 | AA71: 0 | AB71: 0 | AC71: 0 | AD71: 0 | AE71: 0 | AF71: 0 | AG71: 0 | AH71: 0 | AI71: 0 | AJ71: 0 | AK71: 0 | AL71: 0 | AM71: 0 | AN71: 0 | AO71: 0 | AP71: 0 | AQ71: 0 | AR71: 0 | AS71: 0 | AT71: 0 | AU71: 0 | AV71: 0 | AW71: 0 | AX71: 0 | AY71: 0 | AZ71: 0 | BA71: 0 | BB71: 0 | BC71: 0 | BD71: 0 | BE71: 0 | BF71: 0 | BG71: 0 | BH71: 0 | BI71: 0 | BJ71: 0
A72: SG_2301 | B72: 14_0903_02_30cm_scaffold_1342 | C72: 869 | D72: 2349 | E72: 539 | F72: 2 | G72: 0 | H72: 3 | I72: 0 | J72: 2 | K72: 0 | L72: 1 | M72: 0 | N72: 0 | O72: 188 | P72: 315 | Q72: 12 | R72: 78 | S72: 47 | T72: 21 | U72: 263 | V72: 0 | W72: 2 | X72: 0 | Y72: 173 | Z72: 255 | AA72: 1 | AB72: 1 | AC72: 1 | AD72: 1 | AE72: 0 | AF72: 0 | AG72: 351 | AH72: 14 | AI72: 2 | AJ72: 0 | AK72: 0 | AL72: 0 | AM72: 0 | AN72: 0 | AO72: 1 | AP72: 2 | AQ72: 0 | AR72: 0 | AS72: 378 | AT72: 104 | AU72: 57 | AV72: 0 | AW72: 0 | AX72: 0 | AY72: 0 | AZ72: 0 | BA72: 0 | BB72: 0 | BC72: 0 | BD72: 0 | BE72: 56 | BF72: 16 | BG72: 3 | BH72: 15 | BI72: 15 | BJ72: 7
A73: SG_1504 | B73: 14_0903_02_30cm_scaffold_135035 | C73: 1 | D73: 13 | E73: 1 | F73: 3 | G73: 4 | H73: 5 | I73: 3 | J73: 0 | K73: 1 | L73: 1 | M73: 2 | N73: 2 | O73: 7 | P73: 15 | Q73: 2 | R73: 10 | S73: 8 | T73: 2 | U73: 5 | V73: 6 | W73: 2 | X73: 1 | Y73: 1 | Z73: 1 | AA73: 0 | AB73: 2 | AC73: 0 | AD73: 2 | AE73: 0 | AF73: 0 | AG73: 0 | AH73: 1 | AI73: 0 | AJ73: 3 | AK73: 0 | AL73: 0 | AM73: 2 | AN73: 0 | AO73: 0 | AP73: 0 | AQ73: 0 | AR73: 3 | AS73: 4 | AT73: 2 | AU73: 2 | AV73: 0 | AW73: 2 | AX73: 0 | AY73: 2 | AZ73: 1 | BA73: 0 | BB73: 1 | BC73: 1 | BD73: 7 | BE73: 1 | BF73: 1 | BG73: 1 | BH73: 0 | BI73: 3 | BJ73: 10
A74: SG_1746 | B74: 14_0903_02_30cm_scaffold_136823 | C74: 13 | D74: 87 | E74: 17 | F74: 0 | G74: 0 | H74: 0 | I74: 0 | J74: 0 | K74: 0 | L74: 0 | M74: 0 | N74: 0 | O74: 4 | P74: 8 | Q74: 0 | R74: 0 | S74: 0 | T74: 0 | U74: 8 | V74: 0 | W74: 0 | X74: 0 | Y74: 0 | Z74: 0 | AA74: 0 | AB74: 0 | AC74: 0 | AD74: 0 | AE74: 0 | AF74: 0 | AG74: 3 | AH74: 0 | AI74: 0 | AJ74: 0 | AK74: 0 | AL74: 0 | AM74: 0 | AN74: 0 | AO74: 0 | AP74: 0 | AQ74: 0 | AR74: 0 | AS74: 0 | AT74: 0 | AU74: 0 | AV74: 0 | AW74: 0 | AX74: 0 | AY74: 0 | AZ74: 0 | BA74: 0 | BB74: 0 | BC74: 0 | BD74: 0 | BE74: 3 | BF74: 1 | BG74: 0 | BH74: 0 | BI74: 0 | BJ74: 0
A75: SG_3245 | B75: 14_0903_02_30cm_scaffold_140301 | C75: 8 | D75: 4 | E75: 1 | F75: 0 | G75: 0 | H75: 0 | I75: 0 | J75: 0 | K75: 0 | L75: 0 | M75: 0 | N75: 0 | O75: 2 | P75: 3 | Q75: 0 | R75: 0 | S75: 0 | T75: 0 | U75: 2 | V75: 0 | W75: 0 | X75: 0 | Y75: 0 | Z75: 0 | AA75: 0 | AB75: 0 | AC75: 0 | AD75: 0 | AE75: 0 | AF75: 0 | AG75: 0 | AH75: 0 | AI75: 0 | AJ75: 0 | AK75: 0 | AL75: 0 | AM75: 0 | AN75: 0 | AO75: 0 | AP75: 0 | AQ75: 0 | AR75: 0 | AS75: 0 | AT75: 2 | AU75: 0 | AV75: 0 | AW75: 0 | AX75: 0 | AY75: 0 | AZ75: 0 | BA75: 0 | BB75: 0 | BC75: 0 | BD75: 0 | BE75: 0 | BF75: 0 | BG75: 0 | BH75: 0 | BI75: 0 | BJ75: 0
A76: SG_950 | B76: 14_0903_02_30cm_scaffold_140792 | C76: 8 | D76: 21 | E76: 7 | F76: 1 | G76: 1 | H76: 1 | I76: 1 | J76: 2 | K76: 0 | L76: 0 | M76: 0 | N76: 0 | O76: 2 | P76: 6 | Q76: 0 | R76: 13 | S76: 3 | T76: 4 | U76: 5 | V76: 1 | W76: 0 | X76: 0 | Y76: 5 | Z76: 3 | AA76: 3 | AB76: 0 | AC76: 2 | AD76: 1 | AE76: 0 | AF76: 0 | AG76: 2 | AH76: 0 | AI76: 0 | AJ76: 0 | AK76: 0 | AL76: 0 | AM76: 0 | AN76: 0 | AO76: 0 | AP76: 0 | AQ76: 0 | AR76: 4 | AS76: 0 | AT76: 0 | AU76: 0 | AV76: 5 | AW76: 3 | AX76: 1 | AY76: 1 | AZ76: 0 | BA76: 0 | BB76: 0 | BC76: 1 | BD76: 0 | BE76: 2 | BF76: 0 | BG76: 0 | BH76: 1 | BI76: 6 | BJ76: 0
A77: SG_45 | B77: 14_0903_02_30cm_scaffold_141735 | C77: 2 | D77: 16 | E77: 1 | F77: 0 | G77: 0 | H77: 5 | I77: 2 | J77: 0 | K77: 2 | L77: 0 | M77: 2 | N77: 2 | O77: 2 | P77: 6 | Q77: 0 | R77: 3 | S77: 0 | T77: 0 | U77: 4 | V77: 3 | W77: 5 | X77: 0 | Y77: 3 | Z77: 4 | AA77: 1 | AB77: 5 | AC77: 1 | AD77: 2 | AE77: 0 | AF77: 1 | AG77: 1 | AH77: 1 | AI77: 5 | AJ77: 0 | AK77: 1 | AL77: 2 | AM77: 0 | AN77: 2 | AO77: 0 | AP77: 2 | AQ77: 1 | AR77: 1 | AS77: 2 | AT77: 1 | AU77: 0 | AV77: 1 | AW77: 3 | AX77: 3 | AY77: 0 | AZ77: 0 | BA77: 0 | BB77: 1 | BC77: 0 | BD77: 1 | BE77: 4 | BF77: 2 | BG77: 1 | BH77: 3 | BI77: 7 | BJ77: 4
A78: SG_192 | B78: 14_0903_02_30cm_scaffold_144199 | C78: 14 | D78: 46 | E78: 16 | F78: 5 | G78: 4 | H78: 1 | I78: 0 | J78: 0 | K78: 0 | L78: 0 | M78: 0 | N78: 0 | O78: 0 | P78: 1 | Q78: 2 | R78: 1 | S78: 0 | T78: 1 | U78: 4 | V78: 3 | W78: 0 | X78: 0 | Y78: 2 | Z78: 5 | AA78: 7 | AB78: 5 | AC78: 0 | AD78: 0 | AE78: 0 | AF78: 0 | AG78: 3 | AH78: 5 | AI78: 11 | AJ78: 7 | AK78: 5 | AL78: 3 | AM78: 0 | AN78: 0 | AO78: 0 | AP78: 1 | AQ78: 0 | AR78: 0 | AS78: 6 | AT78: 5 | AU78: 10 | AV78: 2 | AW78: 5 | AX78: 6 | AY78: 0 | AZ78: 0 | BA78: 0 | BB78: 0 | BC78: 0 | BD78: 0 | BE78: 0 | BF78: 5 | BG78: 0 | BH78: 1 | BI78: 0 | BJ78: 0
A79: SG_1588 | B79: 14_0903_02_30cm_scaffold_149208 | C79: 1 | D79: 5 | E79: 0 | F79: 0 | G79: 0 | H79: 0 | I79: 1 | J79: 0 | K79: 1 | L79: 0 | M79: 0 | N79: 0 | O79: 4 | P79: 5 | Q79: 0 | R79: 0 | S79: 0 | T79: 0 | U79: 2 | V79: 0 | W79: 3 | X79: 1 | Y79: 0 | Z79: 0 | AA79: 0 | AB79: 0 | AC79: 1 | AD79: 4 | AE79: 1 | AF79: 0 | AG79: 0 | AH79: 0 | AI79: 0 | AJ79: 1 | AK79: 0 | AL79: 0 | AM79: 0 | AN79: 1 | AO79: 1 | AP79: 0 | AQ79: 1 | AR79: 3 | AS79: 2 | AT79: 0 | AU79: 0 | AV79: 0 | AW79: 1 | AX79: 0 | AY79: 1 | AZ79: 2 | BA79: 3 | BB79: 0 | BC79: 0 | BD79: 5 | BE79: 1 | BF79: 0 | BG79: 0 | BH79: 0 | BI79: 0 | BJ79: 2
A80: SG_2072 | B80: 14_0903_02_30cm_scaffold_150249 | C80: 10 | D80: 15 | E80: 1 | F80: 1 | G80: 2 | H80: 0 | I80: 3 | J80: 4 | K80: 7 | L80: 1 | M80: 3 | N80: 3 | O80: 22 | P80: 13 | Q80: 1 | R80: 2 | S80: 4 | T80: 2 | U80: 23 | V80: 12 | W80: 0 | X80: 6 | Y80: 14 | Z80: 0 | AA80: 5 | AB80: 2 | AC80: 4 | AD80: 0 | AE80: 5 | AF80: 0 | AG80: 12 | AH80: 0 | AI80: 0 | AJ80: 13 | AK80: 5 | AL80: 0 | AM80: 0 | AN80: 0 | AO80: 2 | AP80: 8 | AQ80: 2 | AR80: 0 | AS80: 9 | AT80: 7 | AU80: 0 | AV80: 2 | AW80: 4 | AX80: 0 | AY80: 2 | AZ80: 5 | BA80: 0 | BB80: 5 | BC80: 12 | BD80: 1 | BE80: 19 | BF80: 5 | BG80: 0 | BH80: 5 | BI80: 8 | BJ80: 9
A81: SG_127 | B81: 14_0903_02_30cm_scaffold_152871 | C81: 1 | D81: 16 | E81: 2 | F81: 1 | G81: 0 | H81: 0 | I81: 0 | J81: 1 | K81: 0 | L81: 0 | M81: 0 | N81: 0 | O81: 1 | P81: 1 | Q81: 0 | R81: 5 | S81: 0 | T81: 2 | U81: 0 | V81: 2 | W81: 0 | X81: 0 | Y81: 3 | Z81: 1 | AA81: 0 | AB81: 0 | AC81: 0 | AD81: 2 | AE81: 0 | AF81: 0 | AG81: 1 | AH81: 3 | AI81: 0 | AJ81: 2 | AK81: 0 | AL81: 0 | AM81: 0 | AN81: 0 | AO81: 0 | AP81: 0 | AQ81: 0 | AR81: 0 | AS81: 0 | AT81: 0 | AU81: 0 | AV81: 0 | AW81: 1 | AX81: 0 | AY81: 1 | AZ81: 0 | BA81: 0 | BB81: 0 | BC81: 0 | BD81: 0 | BE81: 2 | BF81: 0 | BG81: 1 | BH81: 3 | BI81: 2 | BJ81: 2
A82: SG_1024 | B82: 14_0903_02_30cm_scaffold_154848 | C82: 2 | D82: 9 | E82: 0 | F82: 2 | G82: 1 | H82: 0 | I82: 0 | J82: 0 | K82: 0 | L82: 0 | M82: 0 | N82: 0 | O82: 0 | P82: 1 | Q82: 0 | R82: 1 | S82: 1 | T82: 1 | U82: 3 | V82: 3 | W82: 1 | X82: 0 | Y82: 0 | Z82: 0 | AA82: 3 | AB82: 0 | AC82: 1 | AD82: 1 | AE82: 0 | AF82: 0 | AG82: 1 | AH82: 1 | AI82: 2 | AJ82: 3 | AK82: 0 | AL82: 1 | AM82: 0 | AN82: 0 | AO82: 0 | AP82: 1 | AQ82: 0 | AR82: 0 | AS82: 3 | AT82: 0 | AU82: 3 | AV82: 0 | AW82: 1 | AX82: 0 | AY82: 0 | AZ82: 0 | BA82: 0 | BB82: 0 | BC82: 0 | BD82: 0 | BE82: 0 | BF82: 0 | BG82: 1 | BH82: 1 | BI82: 3 | BJ82: 4
A83: SG_790 | B83: 14_0903_02_30cm_scaffold_15552 | C83: 43 | D83: 125 | E83: 14 | F83: 0 | G83: 0 | H83: 0 | I83: 0 | J83: 0 | K83: 0 | L83: 0 | M83: 0 | N83: 0 | O83: 4 | P83: 41 | Q83: 0 | R83: 0 | S83: 0 | T83: 0 | U83: 10 | V83: 0 | W83: 0 | X83: 0 | Y83: 0 | Z83: 0 | AA83: 0 | AB83: 0 | AC83: 0 | AD83: 0 | AE83: 0 | AF83: 0 | AG83: 12 | AH83: 0 | AI83: 0 | AJ83: 0 | AK83: 0 | AL83: 0 | AM83: 0 | AN83: 0 | AO83: 0 | AP83: 0 | AQ83: 0 | AR83: 0 | AS83: 2 | AT83: 0 | AU83: 0 | AV83: 0 | AW83: 0 | AX83: 0 | AY83: 0 | AZ83: 0 | BA83: 0 | BB83: 0 | BC83: 0 | BD83: 0 | BE83: 6 | BF83: 3 | BG83: 3 | BH83: 0 | BI83: 0 | BJ83: 0
A84: SG_1829 | B84: 14_0903_02_30cm_scaffold_15585 | C84: 25 | D84: 110 | E84: 23 | F84: 3 | G84: 4 | H84: 9 | I84: 0 | J84: 0 | K84: 0 | L84: 0 | M84: 0 | N84: 0 | O84: 22 | P84: 48 | Q84: 0 | R84: 24 | S84: 9 | T84: 16 | U84: 17 | V84: 1 | W84: 0 | X84: 0 | Y84: 39 | Z84: 31 | AA84: 2 | AB84: 5 | AC84: 0 | AD84: 0 | AE84: 0 | AF84: 0 | AG84: 8 | AH84: 0 | AI84: 0 | AJ84: 8 | AK84: 0 | AL84: 0 | AM84: 0 | AN84: 0 | AO84: 0 | AP84: 0 | AQ84: 0 | AR84: 0 | AS84: 21 | AT84: 8 | AU84: 12 | AV84: 0 | AW84: 2 | AX84: 0 | AY84: 0 | AZ84: 0 | BA84: 0 | BB84: 0 | BC84: 0 | BD84: 0 | BE84: 5 | BF84: 3 | BG84: 0 | BH84: 5 | BI84: 5 | BJ84: 3
A85: SG_1576 | B85: 14_0903_02_30cm_scaffold_15698 | C85: 25 | D85: 79 | E85: 24 | F85: 46 | G85: 65 | H85: 28 | I85: 3 | J85: 1 | K85: 17 | L85: 1 | M85: 5 | N85: 6 | O85: 80 | P85: 201 | Q85: 52 | R85: 39 | S85: 56 | T85: 48 | U85: 55 | V85: 45 | W85: 8 | X85: 8 | Y85: 54 | Z85: 33 | AA85: 132 | AB85: 82 | AC85: 27 | AD85: 55 | AE85: 1 | AF85: 14 | AG85: 88 | AH85: 59 | AI85: 34 | AJ85: 89 | AK85: 115 | AL85: 48 | AM85: 22 | AN85: 43 | AO85: 27 | AP85: 2 | AQ85: 2 | AR85: 14 | AS85: 28 | AT85: 56 | AU85: 69 | AV85: 63 | AW85: 100 | AX85: 66 | AY85: 10 | AZ85: 9 | BA85: 20 | BB85: 0 | BC85: 6 | BD85: 14 | BE85: 74 | BF85: 106 | BG85: 38 | BH85: 74 | BI85: 208 | BJ85: 174
A86: SG_449 | B86: 14_0903_02_30cm_scaffold_157760 | C86: 0 | D86: 12 | E86: 11 | F86: 0 | G86: 1 | H86: 4 | I86: 0 | J86: 0 | K86: 0 | L86: 0 | M86: 0 | N86: 0 | O86: 0 | P86: 0 | Q86: 0 | R86: 0 | S86: 0 | T86: 0 | U86: 2 | V86: 0 | W86: 0 | X86: 0 | Y86: 0 | Z86: 9 | AA86: 1 | AB86: 6 | AC86: 0 | AD86: 0 | AE86: 0 | AF86: 0 | AG86: 2 | AH86: 7 | AI86: 26 | AJ86: 0 | AK86: 2 | AL86: 5 | AM86: 0 | AN86: 0 | AO86: 0 | AP86: 0 | AQ86: 0 | AR86: 0 | AS86: 0 | AT86: 1 | AU86: 15 | AV86: 0 | AW86: 0 | AX86: 5 | AY86: 0 | AZ86: 0 | BA86: 0 | BB86: 0 | BC86: 0 | BD86: 0 | BE86: 0 | BF86: 0 | BG86: 0 | BH86: 0 | BI86: 0 | BJ86: 0
A87: SG_2018 | B87: 14_0903_02_30cm_scaffold_161748 | C87: 10 | D87: 20 | E87: 3 | F87: 0 | G87: 0 | H87: 0 | I87: 0 | J87: 0 | K87: 0 | L87: 0 | M87: 5 | N87: 0 | O87: 2 | P87: 4 | Q87: 3 | R87: 1 | S87: 3 | T87: 0 | U87: 3 | V87: 0 | W87: 2 | X87: 0 | Y87: 1 | Z87: 0 | AA87: 2 | AB87: 4 | AC87: 0 | AD87: 1 | AE87: 0 | AF87: 0 | AG87: 3 | AH87: 1 | AI87: 0 | AJ87: 5 | AK87: 1 | AL87: 4 | AM87: 4 | AN87: 0 | AO87: 0 | AP87: 1 | AQ87: 0 | AR87: 7 | AS87: 2 | AT87: 2 | AU87: 1 | AV87: 4 | AW87: 4 | AX87: 0 | AY87: 0 | AZ87: 0 | BA87: 0 | BB87: 0 | BC87: 0 | BD87: 0 | BE87: 4 | BF87: 3 | BG87: 0 | BH87: 1 | BI87: 9 | BJ87: 2
A88: SG_3070 | B88: 14_0903_02_30cm_scaffold_165926 | C88: 2 | D88: 14 | E88: 0 | F88: 9 | G88: 7 | H88: 5 | I88: 2 | J88: 0 | K88: 0 | L88: 2 | M88: 2 | N88: 0 | O88: 5 | P88: 17 | Q88: 2 | R88: 9 | S88: 6 | T88: 6 | U88: 11 | V88: 10 | W88: 6 | X88: 2 | Y88: 7 | Z88: 2 | AA88: 4 | AB88: 3 | AC88: 0 | AD88: 2 | AE88: 0 | AF88: 0 | AG88: 5 | AH88: 4 | AI88: 3 | AJ88: 3 | AK88: 4 | AL88: 0 | AM88: 5 | AN88: 2 | AO88: 0 | AP88: 0 | AQ88: 0 | AR88: 0 | AS88: 2 | AT88: 1 | AU88: 6 | AV88: 3 | AW88: 5 | AX88: 2 | AY88: 0 | AZ88: 0 | BA88: 0 | BB88: 0 | BC88: 1 | BD88: 0 | BE88: 2 | BF88: 6 | BG88: 2 | BH88: 6 | BI88: 13 | BJ88: 9
A89: SG_2986 | B89: 14_0903_02_30cm_scaffold_168811 | C89: 3 | D89: 31 | E89: 7 | F89: 0 | G89: 0 | H89: 0 | I89: 0 | J89: 0 | K89: 0 | L89: 0 | M89: 0 | N89: 0 | O89: 0 | P89: 0 | Q89: 0 | R89: 0 | S89: 0 | T89: 0 | U89: 1 | V89: 0 | W89: 0 | X89: 0 | Y89: 0 | Z89: 0 | AA89: 0 | AB89: 0 | AC89: 0 | AD89: 0 | AE89: 0 | AF89: 0 | AG89: 0 | AH89: 1 | AI89: 0 | AJ89: 0 | AK89: 0 | AL89: 0 | AM89: 0 | AN89: 0 | AO89: 0 | AP89: 0 | AQ89: 0 | AR89: 0 | AS89: 0 | AT89: 0 | AU89: 0 | AV89: 0 | AW89: 0 | AX89: 0 | AY89: 0 | AZ89: 0 | BA89: 0 | BB89: 0 | BC89: 0 | BD89: 0 | BE89: 0 | BF89: 0 | BG89: 0 | BH89: 0 | BI89: 0 | BJ89: 0
A90: SG_2194 | B90: 14_0903_02_30cm_scaffold_16918 | C90: 46 | D90: 245 | E90: 29 | F90: 0 | G90: 0 | H90: 0 | I90: 0 | J90: 0 | K90: 0 | L90: 0 | M90: 0 | N90: 0 | O90: 27 | P90: 111 | Q90: 4 | R90: 0 | S90: 1 | T90: 2 | U90: 29 | V90: 0 | W90: 0 | X90: 0 | Y90: 16 | Z90: 25 | AA90: 0 | AB90: 2 | AC90: 0 | AD90: 5 | AE90: 0 | AF90: 0 | AG90: 5 | AH90: 1 | AI90: 0 | AJ90: 0 | AK90: 0 | AL90: 0 | AM90: 0 | AN90: 0 | AO90: 1 | AP90: 0 | AQ90: 0 | AR90: 0 | AS90: 17 | AT90: 8 | AU90: 0 | AV90: 0 | AW90: 4 | AX90: 1 | AY90: 0 | AZ90: 0 | BA90: 0 | BB90: 0 | BC90: 0 | BD90: 0 | BE90: 17 | BF90: 11 | BG90: 7 | BH90: 0 | BI90: 5 | BJ90: 1
A91: SG_896 | B91: 14_0903_02_30cm_scaffold_169343 | C91: 5 | D91: 20 | E91: 2 | F91: 0 | G91: 0 | H91: 0 | I91: 0 | J91: 0 | K91: 0 | L91: 0 | M91: 0 | N91: 0 | O91: 0 | P91: 0 | Q91: 0 | R91: 0 | S91: 0 | T91: 0 | U91: 0 | V91: 0 | W91: 0 | X91: 0 | Y91: 0 | Z91: 0 | AA91: 0 | AB91: 0 | AC91: 0 | AD91: 0 | AE91: 0 | AF91: 0 | AG91: 0 | AH91: 0 | AI91: 0 | AJ91: 0 | AK91: 0 | AL91: 0 | AM91: 0 | AN91: 0 | AO91: 0 | AP91: 0 | AQ91: 0 | AR91: 0 | AS91: 0 | AT91: 0 | AU91: 0 | AV91: 0 | AW91: 0 | AX91: 0 | AY91: 0 | AZ91: 0 | BA91: 0 | BB91: 0 | BC91: 0 | BD91: 0 | BE91: 0 | BF91: 0 | BG91: 0 | BH91: 0 | BI91: 0 | BJ91: 0
A92: SG_1712 | B92: 14_0903_02_30cm_scaffold_173794 | C92: 11 | D92: 26 | E92: 0 | F92: 1 | G92: 0 | H92: 0 | I92: 0 | J92: 0 | K92: 2 | L92: 0 | M92: 1 | N92: 1 | O92: 3 | P92: 1 | Q92: 0 | R92: 1 | S92: 2 | T92: 2 | U92: 1 | V92: 0 | W92: 0 | X92: 0 | Y92: 0 | Z92: 0 | AA92: 0 | AB92: 1 | AC92: 0 | AD92: 2 | AE92: 0 | AF92: 0 | AG92: 3 | AH92: 0 | AI92: 0 | AJ92: 0 | AK92: 0 | AL92: 0 | AM92: 0 | AN92: 0 | AO92: 0 | AP92: 0 | AQ92: 0 | AR92: 11 | AS92: 2 | AT92: 0 | AU92: 0 | AV92: 0 | AW92: 0 | AX92: 1 | AY92: 0 | AZ92: 0 | BA92: 0 | BB92: 0 | BC92: 0 | BD92: 0 | BE92: 3 | BF92: 0 | BG92: 0 | BH92: 0 | BI92: 2 | BJ92: 4
A93: SG_2580 | B93: 14_0903_02_30cm_scaffold_174658 | C93: 3 | D93: 21 | E93: 6 | F93: 0 | G93: 0 | H93: 0 | I93: 0 | J93: 0 | K93: 0 | L93: 0 | M93: 0 | N93: 0 | O93: 0 | P93: 2 | Q93: 0 | R93: 0 | S93: 0 | T93: 0 | U93: 1 | V93: 0 | W93: 0 | X93: 0 | Y93: 5 | Z93: 3 | AA93: 0 | AB93: 0 | AC93: 0 | AD93: 0 | AE93: 0 | AF93: 0 | AG93: 0 | AH93: 0 | AI93: 0 | AJ93: 0 | AK93: 0 | AL93: 0 | AM93: 0 | AN93: 0 | AO93: 0 | AP93: 0 | AQ93: 0 | AR93: 0 | AS93: 9 | AT93: 4 | AU93: 1 | AV93: 0 | AW93: 0 | AX93: 0 | AY93: 0 | AZ93: 0 | BA93: 0 | BB93: 0 | BC93: 0 | BD93: 0 | BE93: 0 | BF93: 0 | BG93: 0 | BH93: 0 | BI93: 0 | BJ93: 0
A94: SG_2514 | B94: 14_0903_02_30cm_scaffold_175590 | C94: 11 | D94: 10 | E94: 2 | F94: 0 | G94: 0 | H94: 0 | I94: 0 | J94: 0 | K94: 0 | L94: 0 | M94: 0 | N94: 0 | O94: 7 | P94: 5 | Q94: 0 | R94: 0 | S94: 0 | T94: 0 | U94: 3 | V94: 0 | W94: 0 | X94: 0 | Y94: 0 | Z94: 5 | AA94: 0 | AB94: 0 | AC94: 0 | AD94: 0 | AE94: 0 | AF94: 0 | AG94: 0 | AH94: 0 | AI94: 0 | AJ94: 0 | AK94: 0 | AL94: 0 | AM94: 0 | AN94: 0 | AO94: 0 | AP94: 0 | AQ94: 0 | AR94: 0 | AS94: 2 | AT94: 0 | AU94: 0 | AV94: 0 | AW94: 0 | AX94: 0 | AY94: 0 | AZ94: 0 | BA94: 0 | BB94: 0 | BC94: 0 | BD94: 0 | BE94: 1 | BF94: 0 | BG94: 0 | BH94: 0 | BI94: 0 | BJ94: 0
A95: SG_432 | B95: 14_0903_02_30cm_scaffold_1761 | C95: 122 | D95: 316 | E95: 131 | F95: 82 | G95: 125 | H95: 150 | I95: 25 | J95: 65 | K95: 112 | L95: 95 | M95: 160 | N95: 68 | O95: 211 | P95: 954 | Q95: 267 | R95: 69 | S95: 368 | T95: 296 | U95: 260 | V95: 74 | W95: 3 | X95: 53 | Y95: 174 | Z95: 295 | AA95: 236 | AB95: 118 | AC95: 129 | AD95: 124 | AE95: 18 | AF95: 50 | AG95: 277 | AH95: 374 | AI95: 396 | AJ95: 134 | AK95: 347 | AL95: 141 | AM95: 47 | AN95: 182 | AO95: 101 | AP95: 115 | AQ95: 39 | AR95: 43 | AS95: 55 | AT95: 283 | AU95: 473 | AV95: 181 | AW95: 214 | AX95: 280 | AY95: 133 | AZ95: 87 | BA95: 115 | BB95: 56 | BC95: 82 | BD95: 85 | BE95: 280 | BF95: 568 | BG95: 250 | BH95: 230 | BI95: 1721 | BJ95: 1445
A96: SG_1376 | B96: 14_0903_02_30cm_scaffold_17697 | C96: 34 | D96: 123 | E96: 32 | F96: 1 | G96: 0 | H96: 1 | I96: 0 | J96: 0 | K96: 0 | L96: 0 | M96: 0 | N96: 2 | O96: 6 | P96: 27 | Q96: 0 | R96: 5 | S96: 1 | T96: 0 | U96: 31 | V96: 1 | W96: 0 | X96: 0 | Y96: 33 | Z96: 16 | AA96: 0 | AB96: 0 | AC96: 0 | AD96: 0 | AE96: 0 | AF96: 0 | AG96: 16 | AH96: 0 | AI96: 0 | AJ96: 0 | AK96: 0 | AL96: 0 | AM96: 0 | AN96: 1 | AO96: 0 | AP96: 0 | AQ96: 0 | AR96: 0 | AS96: 9 | AT96: 3 | AU96: 1 | AV96: 0 | AW96: 0 | AX96: 0 | AY96: 0 | AZ96: 0 | BA96: 0 | BB96: 0 | BC96: 0 | BD96: 0 | BE96: 7 | BF96: 0 | BG96: 2 | BH96: 0 | BI96: 0 | BJ96: 0
A97: SG_407 | B97: 14_0903_02_30cm_scaffold_177107 | C97: 2 | D97: 11 | E97: 0 | F97: 0 | G97: 0 | H97: 0 | I97: 1 | J97: 0 | K97: 0 | L97: 0 | M97: 2 | N97: 0 | O97: 1 | P97: 0 | Q97: 0 | R97: 1 | S97: 2 | T97: 0 | U97: 9 | V97: 1 | W97: 0 | X97: 1 | Y97: 11 | Z97: 1 | AA97: 1 | AB97: 0 | AC97: 0 | AD97: 1 | AE97: 1 | AF97: 0 | AG97: 6 | AH97: 2 | AI97: 0 | AJ97: 2 | AK97: 2 | AL97: 0 | AM97: 0 | AN97: 0 | AO97: 0 | AP97: 0 | AQ97: 1 | AR97: 0 | AS97: 7 | AT97: 1 | AU97: 0 | AV97: 6 | AW97: 3 | AX97: 1 | AY97: 0 | AZ97: 1 | BA97: 0 | BB97: 0 | BC97: 0 | BD97: 1 | BE97: 1 | BF97: 0 | BG97: 0 | BH97: 3 | BI97: 0 | BJ97: 0
A98: SG_2886 | B98: 14_0903_02_30cm_scaffold_17796 | C98: 32 | D98: 71 | E98: 25 | F98: 8 | G98: 9 | H98: 10 | I98: 4 | J98: 4 | K98: 1 | L98: 2 | M98: 1 | N98: 0 | O98: 3 | P98: 3 | Q98: 0 | R98: 8 | S98: 4 | T98: 9 | U98: 6 | V98: 9 | W98: 1 | X98: 0 | Y98: 3 | Z98: 7 | AA98: 6 | AB98: 5 | AC98: 0 | AD98: 0 | AE98: 2 | AF98: 0 | AG98: 4 | AH98: 0 | AI98: 0 | AJ98: 5 | AK98: 0 | AL98: 0 | AM98: 2 | AN98: 3 | AO98: 2 | AP98: 1 | AQ98: 0 | AR98: 1 | AS98: 2 | AT98: 2 | AU98: 0 | AV98: 2 | AW98: 0 | AX98: 0 | AY98: 2 | AZ98: 4 | BA98: 6 | BB98: 2 | BC98: 2 | BD98: 0 | BE98: 2 | BF98: 0 | BG98: 0 | BH98: 1 | BI98: 0 | BJ98: 0
A99: SG_2813 | B99: 14_0903_02_30cm_scaffold_180840 | C99: 16 | D99: 28 | E99: 13 | F99: 8 | G99: 30 | H99: 37 | I99: 8 | J99: 8 | K99: 46 | L99: 26 | M99: 23 | N99: 19 | O99: 26 | P99: 154 | Q99: 56 | R99: 8 | S99: 54 | T99: 39 | U99: 34 | V99: 17 | W99: 3 | X99: 24 | Y99: 20 | Z99: 18 | AA99: 25 | AB99: 30 | AC99: 18 | AD99: 47 | AE99: 15 | AF99: 44 | AG99: 29 | AH99: 28 | AI99: 41 | AJ99: 10 | AK99: 35 | AL99: 38 | AM99: 17 | AN99: 34 | AO99: 42 | AP99: 20 | AQ99: 30 | AR99: 24 | AS99: 12 | AT99: 25 | AU99: 34 | AV99: 12 | AW99: 61 | AX99: 26 | AY99: 21 | AZ99: 56 | BA99: 31 | BB99: 14 | BC99: 25 | BD99: 44 | BE99: 19 | BF99: 63 | BG99: 51 | BH99: 27 | BI99: 127 | BJ99: 140
A100: SG_877 | B100: 14_0903_02_30cm_scaffold_185348 | C100: 5 | D100: 14 | E100: 0 | F100: 0 | G100: 3 | H100: 0 | I100: 0 | J100: 1 | K100: 1 | L100: 0 | M100: 0 | N100: 1 | O100: 5 | P100: 7 | Q100: 3 | R100: 0 | S100: 0 | T100: 0 | U100: 4 | V100: 0 | W100: 0 | X100: 2 | Y100: 3 | Z100: 0 | AA100: 0 | AB100: 0 | AC100: 0 | AD100: 2 | AE100: 3 | AF100: 0 | AG100: 7 | AH100: 8 | AI100: 2 | AJ100: 1 | AK100: 1 | AL100: 0 | AM100: 0 | AN100: 2 | AO100: 2 | AP100: 0 | AQ100: 1 | AR100: 1 | AS100: 0 | AT100: 3 | AU100: 3 | AV100: 0 | AW100: 4 | AX100: 0 | AY100: 0 | AZ100: 1 | BA100: 0 | BB100: 2 | BC100: 1 | BD100: 3 | BE100: 2 | BF100: 6 | BG100: 3 | BH100: 3 | BI100: 2 | BJ100: 0
A101: SG_425 | B101: 14_0903_02_30cm_scaffold_18685 | C101: 18 | D101: 105 | E101: 52 | F101: 4 | G101: 3 | H101: 2 | I101: 0 | J101: 0 | K101: 1 | L101: 0 | M101: 0 | N101: 0 | O101: 0 | P101: 1 | Q101: 0 | R101: 0 | S101: 0 | T101: 1 | U101: 39 | V101: 1 | W101: 0 | X101: 0 | Y101: 17 | Z101: 54 | AA101: 9 | AB101: 12 | AC101: 0 | AD101: 0 | AE101: 0 | AF101: 1 | AG101: 40 | AH101: 77 | AI101: 95 | AJ101: 0 | AK101: 10 | AL101: 3 | AM101: 1 | AN101: 0 | AO101: 0 | AP101: 0 | AQ101: 0 | AR101: 0 | AS101: 8 | AT101: 49 | AU101: 106 | AV101: 4 | AW101: 20 | AX101: 17 | AY101: 0 | AZ101: 0 | BA101: 0 | BB101: 0 | BC101: 0 | BD101: 0 | BE101: 0 | BF101: 1 | BG101: 0 | BH101: 0 | BI101: 1 | BJ101: 2
A102: SG_1487 | B102: 14_0903_02_30cm_scaffold_187892 | C102: 8 | D102: 16 | E102: 1 | F102: 2 | G102: 0 | H102: 4 | I102: 0 | J102: 0 | K102: 1 | L102: 0 | M102: 4 | N102: 0 | O102: 3 | P102: 13 | Q102: 1 | R102: 2 | S102: 5 | T102: 3 | U102: 10 | V102: 2 | W102: 0 | X102: 0 | Y102: 9 | Z102: 0 | AA102: 4 | AB102: 0 | AC102: 6 | AD102: 0 | AE102: 1 | AF102: 0 | AG102: 11 | AH102: 4 | AI102: 0 | AJ102: 4 | AK102: 1 | AL102: 0 | AM102: 2 | AN102: 0 | AO102: 1 | AP102: 0 | AQ102: 0 | AR102: 0 | AS102: 8 | AT102: 5 | AU102: 4 | AV102: 3 | AW102: 3 | AX102: 4 | AY102: 2 | AZ102: 0 | BA102: 0 | BB102: 1 | BC102: 1 | BD102: 0 | BE102: 3 | BF102: 6 | BG102: 0 | BH102: 4 | BI102: 4 | BJ102: 6
A103: SG_1841 | B103: 14_0903_02_30cm_scaffold_1948 | C103: 357 | D103: 1197 | E103: 344 | F103: 0 | G103: 0 | H103: 1 | I103: 0 | J103: 0 | K103: 0 | L103: 0 | M103: 0 | N103: 0 | O103: 0 | P103: 3 | Q103: 2 | R103: 0 | S103: 0 | T103: 0 | U103: 14 | V103: 0 | W103: 0 | X103: 0 | Y103: 14 | Z103: 14 | AA103: 0 | AB103: 0 | AC103: 0 | AD103: 0 | AE103: 0 | AF103: 0 | AG103: 4 | AH103: 0 | AI103: 0 | AJ103: 0 | AK103: 0 | AL103: 0 | AM103: 0 | AN103: 0 | AO103: 0 | AP103: 0 | AQ103: 0 | AR103: 0 | AS103: 18 | AT103: 6 | AU103: 4 | AV103: 1 | AW103: 0 | AX103: 0 | AY103: 0 | AZ103: 0 | BA103: 0 | BB103: 0 | BC103: 0 | BD103: 0 | BE103: 0 | BF103: 4 | BG103: 0 | BH103: 1 | BI103: 0 | BJ103: 0
A104: SG_1243 | B104: 14_0903_02_30cm_scaffold_1979 | C104: 209 | D104: 610 | E104: 193 | F104: 0 | G104: 0 | H104: 1 | I104: 0 | J104: 0 | K104: 0 | L104: 0 | M104: 0 | N104: 0 | O104: 10 | P104: 60 | Q104: 0 | R104: 0 | S104: 0 | T104: 0 | U104: 60 | V104: 0 | W104: 13 | X104: 0 | Y104: 14 | Z104: 29 | AA104: 0 | AB104: 0 | AC104: 0 | AD104: 0 | AE104: 0 | AF104: 0 | AG104: 18 | AH104: 3 | AI104: 0 | AJ104: 0 | AK104: 0 | AL104: 0 | AM104: 2 | AN104: 0 | AO104: 0 | AP104: 0 | AQ104: 0 | AR104: 0 | AS104: 69 | AT104: 19 | AU104: 4 | AV104: 0 | AW104: 0 | AX104: 0 | AY104: 6 | AZ104: 4 | BA104: 12 | BB104: 0 | BC104: 0 | BD104: 0 | BE104: 0 | BF104: 5 | BG104: 2 | BH104: 0 | BI104: 0 | BJ104: 0
A105: SG_1743 | B105: 14_0903_02_30cm_scaffold_20170 | C105: 26 | D105: 106 | E105: 43 | F105: 8 | G105: 10 | H105: 22 | I105: 0 | J105: 4 | K105: 10 | L105: 0 | M105: 0 | N105: 2 | O105: 3 | P105: 13 | Q105: 7 | R105: 0 | S105: 18 | T105: 11 | U105: 39 | V105: 3 | W105: 0 | X105: 2 | Y105: 22 | Z105: 52 | AA105: 28 | AB105: 124 | AC105: 3 | AD105: 7 | AE105: 1 | AF105: 2 | AG105: 58 | AH105: 108 | AI105: 65 | AJ105: 2 | AK105: 38 | AL105: 28 | AM105: 0 | AN105: 2 | AO105: 1 | AP105: 0 | AQ105: 0 | AR105: 6 | AS105: 4 | AT105: 60 | AU105: 87 | AV105: 6 | AW105: 21 | AX105: 31 | AY105: 0 | AZ105: 6 | BA105: 1 | BB105: 0 | BC105: 0 | BD105: 2 | BE105: 0 | BF105: 10 | BG105: 4 | BH105: 9 | BI105: 32 | BJ105: 44
A106: SG_1852 | B106: 14_0903_02_30cm_scaffold_2024 | C106: 377 | D106: 1061 | E106: 304 | F106: 115 | G106: 185 | H106: 227 | I106: 5 | J106: 13 | K106: 104 | L106: 0 | M106: 6 | N106: 27 | O106: 153 | P106: 392 | Q106: 95 | R106: 81 | S106: 347 | T106: 180 | U106: 599 | V106: 99 | W106: 1 | X106: 6 | Y106: 200 | Z106: 328 | AA106: 207 | AB106: 233 | AC106: 38 | AD106: 87 | AE106: 0 | AF106: 2 | AG106: 396 | AH106: 461 | AI106: 518 | AJ106: 76 | AK106: 171 | AL106: 85 | AM106: 6 | AN106: 31 | AO106: 44 | AP106: 0 | AQ106: 4 | AR106: 10 | AS106: 69 | AT106: 419 | AU106: 634 | AV106: 100 | AW106: 307 | AX106: 301 | AY106: 10 | AZ106: 28 | BA106: 12 | BB106: 0 | BC106: 0 | BD106: 2 | BE106: 128 | BF106: 208 | BG106: 82 | BH106: 175 | BI106: 503 | BJ106: 421
A107: SG_1659 | B107: 14_0903_02_30cm_scaffold_216003 | C107: 4 | D107: 22 | E107: 3 | F107: 0 | G107: 0 | H107: 0 | I107: 0 | J107: 0 | K107: 0 | L107: 0 | M107: 0 | N107: 0 | O107: 7 | P107: 11 | Q107: 0 | R107: 0 | S107: 0 | T107: 0 | U107: 0 | V107: 0 | W107: 0 | X107: 0 | Y107: 0 | Z107: 0 | AA107: 0 | AB107: 0 | AC107: 0 | AD107: 0 | AE107: 0 | AF107: 0 | AG107: 0 | AH107: 0 | AI107: 0 | AJ107: 0 | AK107: 0 | AL107: 0 | AM107: 0 | AN107: 0 | AO107: 0 | AP107: 0 | AQ107: 0 | AR107: 0 | AS107: 2 | AT107: 0 | AU107: 2 | AV107: 0 | AW107: 0 | AX107: 0 | AY107: 0 | AZ107: 0 | BA107: 0 | BB107: 0 | BC107: 0 | BD107: 0 | BE107: 0 | BF107: 0 | BG107: 0 | BH107: 0 | BI107: 0 | BJ107: 0
A108: SG_1085 | B108: 14_0903_02_30cm_scaffold_21692 | C108: 30 | D108: 90 | E108: 13 | F108: 7 | G108: 3 | H108: 5 | I108: 23 | J108: 22 | K108: 8 | L108: 5 | M108: 6 | N108: 16 | O108: 16 | P108: 69 | Q108: 4 | R108: 24 | S108: 11 | T108: 12 | U108: 21 | V108: 11 | W108: 27 | X108: 7 | Y108: 6 | Z108: 4 | AA108: 11 | AB108: 5 | AC108: 6 | AD108: 11 | AE108: 8 | AF108: 1 | AG108: 16 | AH108: 1 | AI108: 2 | AJ108: 4 | AK108: 0 | AL108: 0 | AM108: 33 | AN108: 4 | AO108: 16 | AP108: 3 | AQ108: 7 | AR108: 6 | AS108: 7 | AT108: 9 | AU108: 0 | AV108: 6 | AW108: 2 | AX108: 0 | AY108: 15 | AZ108: 7 | BA108: 20 | BB108: 7 | BC108: 0 | BD108: 0 | BE108: 14 | BF108: 7 | BG108: 2 | BH108: 4 | BI108: 6 | BJ108: 5
A109: SG_1458 | B109: 14_0903_02_30cm_scaffold_21755 | C109: 41 | D109: 112 | E109: 25 | F109: 48 | G109: 9 | H109: 24 | I109: 8 | J109: 0 | K109: 0 | L109: 0 | M109: 0 | N109: 0 | O109: 22 | P109: 57 | Q109: 4 | R109: 25 | S109: 24 | T109: 12 | U109: 25 | V109: 63 | W109: 7 | X109: 0 | Y109: 13 | Z109: 0 | AA109: 57 | AB109: 6 | AC109: 7 | AD109: 4 | AE109: 0 | AF109: 0 | AG109: 11 | AH109: 4 | AI109: 3 | AJ109: 51 | AK109: 2 | AL109: 0 | AM109: 15 | AN109: 9 | AO109: 0 | AP109: 0 | AQ109: 0 | AR109: 0 | AS109: 16 | AT109: 6 | AU109: 2 | AV109: 39 | AW109: 6 | AX109: 4 | AY109: 1 | AZ109: 2 | BA109: 0 | BB109: 2 | BC109: 0 | BD109: 0 | BE109: 20 | BF109: 14 | BG109: 2 | BH109: 20 | BI109: 22 | BJ109: 13
A110: SG_1941 | B110: 14_0903_02_30cm_scaffold_2208 | C110: 67 | D110: 264 | E110: 67 | F110: 191 | G110: 221 | H110: 228 | I110: 25 | J110: 39 | K110: 174 | L110: 67 | M110: 115 | N110: 150 | O110: 94 | P110: 509 | Q110: 145 | R110: 112 | S110: 262 | T110: 207 | U110: 168 | V110: 147 | W110: 27 | X110: 103 | Y110: 66 | Z110: 144 | AA110: 259 | AB110: 136 | AC110: 71 | AD110: 165 | AE110: 18 | AF110: 106 | AG110: 109 | AH110: 123 | AI110: 183 | AJ110: 135 | AK110: 218 | AL110: 86 | AM110: 45 | AN110: 144 | AO110: 105 | AP110: 64 | AQ110: 33 | AR110: 81 | AS110: 31 | AT110: 127 | AU110: 219 | AV110: 138 | AW110: 182 | AX110: 218 | AY110: 75 | AZ110: 108 | BA110: 130 | BB110: 42 | BC110: 46 | BD110: 99 | BE110: 64 | BF110: 175 | BG110: 232 | BH110: 144 | BI110: 515 | BJ110: 391
A111: SG_972 | B111: 14_0903_02_30cm_scaffold_2233 | C111: 225 | D111: 614 | E111: 158 | F111: 7 | G111: 13 | H111: 11 | I111: 0 | J111: 0 | K111: 0 | L111: 0 | M111: 1 | N111: 0 | O111: 55 | P111: 88 | Q111: 1 | R111: 338 | S111: 113 | T111: 64 | U111: 199 | V111: 8 | W111: 0 | X111: 0 | Y111: 139 | Z111: 34 | AA111: 20 | AB111: 7 | AC111: 0 | AD111: 2 | AE111: 0 | AF111: 0 | AG111: 90 | AH111: 14 | AI111: 2 | AJ111: 1 | AK111: 10 | AL111: 4 | AM111: 0 | AN111: 0 | AO111: 0 | AP111: 0 | AQ111: 0 | AR111: 0 | AS111: 87 | AT111: 42 | AU111: 20 | AV111: 9 | AW111: 10 | AX111: 6 | AY111: 0 | AZ111: 1 | BA111: 0 | BB111: 1 | BC111: 0 | BD111: 0 | BE111: 37 | BF111: 10 | BG111: 2 | BH111: 57 | BI111: 32 | BJ111: 29
A112: SG_1093 | B112: 14_0903_02_30cm_scaffold_224822 | C112: 1 | D112: 10 | E112: 1 | F112: 0 | G112: 0 | H112: 0 | I112: 0 | J112: 0 | K112: 0 | L112: 0 | M112: 0 | N112: 0 | O112: 0 | P112: 0 | Q112: 0 | R112: 0 | S112: 0 | T112: 0 | U112: 0 | V112: 0 | W112: 0 | X112: 0 | Y112: 0 | Z112: 0 | AA112: 0 | AB112: 0 | AC112: 0 | AD112: 0 | AE112: 0 | AF112: 0 | AG112: 0 | AH112: 0 | AI112: 0 | AJ112: 0 | AK112: 0 | AL112: 0 | AM112: 0 | AN112: 0 | AO112: 0 | AP112: 0 | AQ112: 0 | AR112: 0 | AS112: 0 | AT112: 0 | AU112: 0 | AV112: 0 | AW112: 0 | AX112: 0 | AY112: 0 | AZ112: 0 | BA112: 0 | BB112: 0 | BC112: 0 | BD112: 0 | BE112: 0 | BF112: 0 | BG112: 0 | BH112: 0 | BI112: 0 | BJ112: 0
A113: SG_595 | B113: 14_0903_02_30cm_scaffold_225594 | C113: 20 | D113: 21 | E113: 8 | F113: 17 | G113: 11 | H113: 11 | I113: 3 | J113: 4 | K113: 2 | L113: 9 | M113: 3 | N113: 2 | O113: 8 | P113: 40 | Q113: 13 | R113: 12 | S113: 18 | T113: 10 | U113: 39 | V113: 16 | W113: 1 | X113: 4 | Y113: 42 | Z113: 14 | AA113: 22 | AB113: 11 | AC113: 13 | AD113: 6 | AE113: 0 | AF113: 3 | AG113: 50 | AH113: 18 | AI113: 12 | AJ113: 38 | AK113: 25 | AL113: 4 | AM113: 5 | AN113: 10 | AO113: 2 | AP113: 9 | AQ113: 4 | AR113: 2 | AS113: 15 | AT113: 19 | AU113: 11 | AV113: 32 | AW113: 41 | AX113: 16 | AY113: 12 | AZ113: 13 | BA113: 0 | BB113: 9 | BC113: 14 | BD113: 5 | BE113: 20 | BF113: 21 | BG113: 17 | BH113: 43 | BI113: 45 | BJ113: 56
A114: SG_1058 | B114: 14_0903_02_30cm_scaffold_22696 | C114: 79 | D114: 55 | E114: 19 | F114: 22 | G114: 32 | H114: 21 | I114: 8 | J114: 24 | K114: 38 | L114: 4 | M114: 16 | N114: 2 | O114: 52 | P114: 216 | Q114: 24 | R114: 13 | S114: 110 | T114: 45 | U114: 147 | V114: 40 | W114: 0 | X114: 5 | Y114: 60 | Z114: 31 | AA114: 94 | AB114: 11 | AC114: 28 | AD114: 29 | AE114: 0 | AF114: 1 | AG114: 102 | AH114: 62 | AI114: 22 | AJ114: 57 | AK114: 68 | AL114: 22 | AM114: 0 | AN114: 59 | AO114: 7 | AP114: 16 | AQ114: 3 | AR114: 1 | AS114: 9 | AT114: 60 | AU114: 22 | AV114: 51 | AW114: 82 | AX114: 33 | AY114: 28 | AZ114: 4 | BA114: 2 | BB114: 4 | BC114: 3 | BD114: 8 | BE114: 48 | BF114: 64 | BG114: 37 | BH114: 63 | BI114: 261 | BJ114: 111
A115: SG_3262 | B115: 14_0903_02_30cm_scaffold_227671 | C115: 1 | D115: 11 | E115: 2 | F115: 0 | G115: 0 | H115: 0 | I115: 0 | J115: 0 | K115: 0 | L115: 0 | M115: 0 | N115: 0 | O115: 2 | P115: 9 | Q115: 0 | R115: 0 | S115: 0 | T115: 0 | U115: 1 | V115: 0 | W115: 0 | X115: 0 | Y115: 1 | Z115: 0 | AA115: 0 | AB115: 0 | AC115: 0 | AD115: 0 | AE115: 0 | AF115: 0 | AG115: 2 | AH115: 0 | AI115: 0 | AJ115: 0 | AK115: 0 | AL115: 0 | AM115: 0 | AN115: 0 | AO115: 0 | AP115: 0 | AQ115: 0 | AR115: 0 | AS115: 3 | AT115: 2 | AU115: 0 | AV115: 0 | AW115: 0 | AX115: 0 | AY115: 0 | AZ115: 0 | BA115: 0 | BB115: 0 | BC115: 0 | BD115: 0 | BE115: 4 | BF115: 2 | BG115: 1 | BH115: 0 | BI115: 0 | BJ115: 0
A116: SG_417 | B116: 14_0903_02_30cm_scaffold_23216 | C116: 15 | D116: 83 | E116: 19 | F116: 13 | G116: 10 | H116: 11 | I116: 3 | J116: 4 | K116: 0 | L116: 4 | M116: 0 | N116: 7 | O116: 33 | P116: 56 | Q116: 2 | R116: 40 | S116: 17 | T116: 18 | U116: 11 | V116: 19 | W116: 5 | X116: 2 | Y116: 11 | Z116: 2 | AA116: 14 | AB116: 0 | AC116: 0 | AD116: 2 | AE116: 2 | AF116: 2 | AG116: 7 | AH116: 10 | AI116: 0 | AJ116: 3 | AK116: 1 | AL116: 0 | AM116: 7 | AN116: 1 | AO116: 0 | AP116: 0 | AQ116: 1 | AR116: 16 | AS116: 6 | AT116: 8 | AU116: 2 | AV116: 9 | AW116: 0 | AX116: 1 | AY116: 0 | AZ116: 0 | BA116: 0 | BB116: 2 | BC116: 0 | BD116: 0 | BE116: 10 | BF116: 6 | BG116: 0 | BH116: 15 | BI116: 12 | BJ116: 1
A117: SG_1108 | B117: 14_0903_02_30cm_scaffold_233881 | C117: 7 | D117: 32 | E117: 0 | F117: 0 | G117: 0 | H117: 0 | I117: 0 | J117: 0 | K117: 0 | L117: 0 | M117: 0 | N117: 0 | O117: 0 | P117: 0 | Q117: 0 | R117: 0 | S117: 2 | T117: 1 | U117: 0 | V117: 0 | W117: 0 | X117: 0 | Y117: 0 | Z117: 0 | AA117: 0 | AB117: 0 | AC117: 0 | AD117: 0 | AE117: 0 | AF117: 0 | AG117: 0 | AH117: 0 | AI117: 0 | AJ117: 0 | AK117: 0 | AL117: 0 | AM117: 0 | AN117: 0 | AO117: 0 | AP117: 0 | AQ117: 0 | AR117: 0 | AS117: 1 | AT117: 0 | AU117: 0 | AV117: 0 | AW117: 0 | AX117: 0 | AY117: 0 | AZ117: 0 | BA117: 0 | BB117: 0 | BC117: 0 | BD117: 0 | BE117: 0 | BF117: 0 | BG117: 0 | BH117: 0 | BI117: 0 | BJ117: 0
A118: SG_1144 | B118: 14_0903_02_30cm_scaffold_233921 | C118: 2 | D118: 26 | E118: 10 | F118: 0 | G118: 4 | H118: 7 | I118: 0 | J118: 0 | K118: 0 | L118: 0 | M118: 0 | N118: 0 | O118: 0 | P118: 1 | Q118: 2 | R118: 0 | S118: 0 | T118: 0 | U118: 6 | V118: 0 | W118: 0 | X118: 0 | Y118: 1 | Z118: 4 | AA118: 0 | AB118: 8 | AC118: 0 | AD118: 0 | AE118: 0 | AF118: 0 | AG118: 4 | AH118: 3 | AI118: 15 | AJ118: 0 | AK118: 0 | AL118: 5 | AM118: 0 | AN118: 0 | AO118: 0 | AP118: 0 | AQ118: 0 | AR118: 0 | AS118: 1 | AT118: 3 | AU118: 17 | AV118: 0 | AW118: 1 | AX118: 8 | AY118: 0 | AZ118: 0 | BA118: 0 | BB118: 0 | BC118: 0 | BD118: 0 | BE118: 0 | BF118: 0 | BG118: 0 | BH118: 0 | BI118: 0 | BJ118: 2
A119: SG_847 | B119: 14_0903_02_30cm_scaffold_23823 | C119: 25 | D119: 125 | E119: 17 | F119: 7 | G119: 1 | H119: 10 | I119: 2 | J119: 0 | K119: 0 | L119: 0 | M119: 0 | N119: 0 | O119: 17 | P119: 50 | Q119: 1 | R119: 8 | S119: 2 | T119: 10 | U119: 17 | V119: 7 | W119: 4 | X119: 0 | Y119: 8 | Z119: 0 | AA119: 3 | AB119: 0 | AC119: 3 | AD119: 3 | AE119: 1 | AF119: 0 | AG119: 2 | AH119: 2 | AI119: 2 | AJ119: 3 | AK119: 2 | AL119: 1 | AM119: 3 | AN119: 1 | AO119: 0 | AP119: 0 | AQ119: 0 | AR119: 0 | AS119: 13 | AT119: 8 | AU119: 2 | AV119: 4 | AW119: 1 | AX119: 1 | AY119: 2 | AZ119: 0 | BA119: 0 | BB119: 2 | BC119: 1 | BD119: 0 | BE119: 1 | BF119: 6 | BG119: 0 | BH119: 0 | BI119: 8 | BJ119: 4
A120: SG_1634 | B120: 14_0903_02_30cm_scaffold_2460 | C120: 167 | D120: 339 | E120: 78 | F120: 86 | G120: 55 | H120: 39 | I120: 3 | J120: 0 | K120: 8 | L120: 3 | M120: 3 | N120: 1 | O120: 59 | P120: 157 | Q120: 22 | R120: 191 | S120: 206 | T120: 104 | U120: 281 | V120: 101 | W120: 7 | X120: 2 | Y120: 193 | Z120: 63 | AA120: 240 | AB120: 48 | AC120: 15 | AD120: 7 | AE120: 1 | AF120: 1 | AG120: 226 | AH120: 124 | AI120: 23 | AJ120: 169 | AK120: 97 | AL120: 24 | AM120: 16 | AN120: 6 | AO120: 1 | AP120: 0 | AQ120: 2 | AR120: 3 | AS120: 120 | AT120: 125 | AU120: 41 | AV120: 87 | AW120: 97 | AX120: 44 | AY120: 0 | AZ120: 0 | BA120: 0 | BB120: 2 | BC120: 1 | BD120: 2 | BE120: 41 | BF120: 56 | BG120: 4 | BH120: 176 | BI120: 277 | BJ120: 168
A121: SG_936 | B121: 14_0903_02_30cm_scaffold_247385 | C121: 2 | D121: 4 | E121: 0 | F121: 0 | G121: 0 | H121: 0 | I121: 0 | J121: 0 | K121: 0 | L121: 0 | M121: 0 | N121: 0 | O121: 0 | P121: 2 | Q121: 0 | R121: 1 | S121: 2 | T121: 0 | U121: 0 | V121: 0 | W121: 0 | X121: 0 | Y121: 0 | Z121: 0 | AA121: 0 | AB121: 0 | AC121: 0 | AD121: 0 | AE121: 0 | AF121: 0 | AG121: 0 | AH121: 0 | AI121: 0 | AJ121: 0 | AK121: 0 | AL121: 0 | AM121: 0 | AN121: 0 | AO121: 0 | AP121: 0 | AQ121: 0 | AR121: 0 | AS121: 0 | AT121: 0 | AU121: 0 | AV121: 0 | AW121: 0 | AX121: 0 | AY121: 0 | AZ121: 0 | BA121: 0 | BB121: 1 | BC121: 0 | BD121: 0 | BE121: 0 | BF121: 0 | BG121: 0 | BH121: 0 | BI121: 0 | BJ121: 0
A122: SG_1797 | B122: 14_0903_02_30cm_scaffold_249 | C122: 1485 | D122: 4422 | E122: 999 | F122: 3 | G122: 0 | H122: 1 | I122: 3 | J122: 2 | K122: 0 | L122: 0 | M122: 1 | N122: 0 | O122: 19 | P122: 104 | Q122: 0 | R122: 2 | S122: 3 | T122: 0 | U122: 293 | V122: 0 | W122: 0 | X122: 0 | Y122: 51 | Z122: 150 | AA122: 0 | AB122: 4 | AC122: 2 | AD122: 0 | AE122: 0 | AF122: 0 | AG122: 62 | AH122: 16 | AI122: 3 | AJ122: 0 | AK122: 2 | AL122: 2 | AM122: 0 | AN122: 0 | AO122: 1 | AP122: 0 | AQ122: 3 | AR122: 8 | AS122: 157 | AT122: 53 | AU122: 30 | AV122: 1 | AW122: 0 | AX122: 4 | AY122: 2 | AZ122: 2 | BA122: 0 | BB122: 1 | BC122: 1 | BD122: 1 | BE122: 2 | BF122: 4 | BG122: 2 | BH122: 0 | BI122: 6 | BJ122: 1
A123: SG_3151 | B123: 14_0903_02_30cm_scaffold_25383 | C123: 20 | D123: 95 | E123: 22 | F123: 0 | G123: 0 | H123: 0 | I123: 0 | J123: 0 | K123: 0 | L123: 0 | M123: 0 | N123: 0 | O123: 0 | P123: 0 | Q123: 0 | R123: 0 | S123: 0 | T123: 0 | U123: 13 | V123: 0 | W123: 0 | X123: 0 | Y123: 0 | Z123: 2 | AA123: 0 | AB123: 0 | AC123: 0 | AD123: 0 | AE123: 0 | AF123: 0 | AG123: 0 | AH123: 0 | AI123: 0 | AJ123: 0 | AK123: 0 | AL123: 0 | AM123: 0 | AN123: 0 | AO123: 0 | AP123: 0 | AQ123: 0 | AR123: 0 | AS123: 4 | AT123: 0 | AU123: 0 | AV123: 0 | AW123: 0 | AX123: 0 | AY123: 0 | AZ123: 0 | BA123: 1 | BB123: 0 | BC123: 0 | BD123: 0 | BE123: 0 | BF123: 0 | BG123: 0 | BH123: 0 | BI123: 0 | BJ123: 0
A124: SG_817 | B124: 14_0903_02_30cm_scaffold_258750 | C124: 5 | D124: 28 | E124: 2 | F124: 1 | G124: 0 | H124: 0 | I124: 1 | J124: 0 | K124: 0 | L124: 0 | M124: 0 | N124: 0 | O124: 3 | P124: 7 | Q124: 0 | R124: 2 | S124: 2 | T124: 3 | U124: 3 | V124: 1 | W124: 0 | X124: 0 | Y124: 5 | Z124: 0 | AA124: 1 | AB124: 0 | AC124: 3 | AD124: 0 | AE124: 0 | AF124: 0 | AG124: 3 | AH124: 0 | AI124: 0 | AJ124: 0 | AK124: 0 | AL124: 0 | AM124: 1 | AN124: 0 | AO124: 0 | AP124: 0 | AQ124: 0 | AR124: 0 | AS124: 4 | AT124: 0 | AU124: 0 | AV124: 2 | AW124: 0 | AX124: 0 | AY124: 1 | AZ124: 0 | BA124: 0 | BB124: 1 | BC124: 0 | BD124: 0 | BE124: 0 | BF124: 0 | BG124: 0 | BH124: 1 | BI124: 0 | BJ124: 0
A125: SG_3147 | B125: 14_0903_02_30cm_scaffold_262858 | C125: 5 | D125: 20 | E125: 0 | F125: 0 | G125: 0 | H125: 0 | I125: 0 | J125: 0 | K125: 0 | L125: 0 | M125: 0 | N125: 0 | O125: 1 | P125: 11 | Q125: 0 | R125: 0 | S125: 0 | T125: 0 | U125: 7 | V125: 0 | W125: 0 | X125: 0 | Y125: 0 | Z125: 0 | AA125: 0 | AB125: 0 | AC125: 0 | AD125: 0 | AE125: 0 | AF125: 0 | AG125: 0 | AH125: 0 | AI125: 0 | AJ125: 0 | AK125: 0 | AL125: 0 | AM125: 0 | AN125: 0 | AO125: 0 | AP125: 0 | AQ125: 0 | AR125: 0 | AS125: 0 | AT125: 1 | AU125: 0 | AV125: 0 | AW125: 0 | AX125: 0 | AY125: 0 | AZ125: 0 | BA125: 0 | BB125: 0 | BC125: 0 | BD125: 0 | BE125: 2 | BF125: 2 | BG125: 1 | BH125: 0 | BI125: 0 | BJ125: 0
A126: SG_1686 | B126: 14_0903_02_30cm_scaffold_26485 | C126: 29 | D126: 113 | E126: 27 | F126: 0 | G126: 0 | H126: 1 | I126: 0 | J126: 2 | K126: 0 | L126: 1 | M126: 0 | N126: 0 | O126: 0 | P126: 2 | Q126: 0 | R126: 23 | S126: 5 | T126: 3 | U126: 12 | V126: 6 | W126: 0 | X126: 0 | Y126: 5 | Z126: 6 | AA126: 1 | AB126: 0 | AC126: 0 | AD126: 0 | AE126: 0 | AF126: 0 | AG126: 14 | AH126: 3 | AI126: 0 | AJ126: 2 | AK126: 0 | AL126: 0 | AM126: 0 | AN126: 0 | AO126: 0 | AP126: 0 | AQ126: 0 | AR126: 0 | AS126: 8 | AT126: 6 | AU126: 2 | AV126: 0 | AW126: 0 | AX126: 0 | AY126: 0 | AZ126: 0 | BA126: 0 | BB126: 0 | BC126: 0 | BD126: 0 | BE126: 0 | BF126: 0 | BG126: 0 | BH126: 0 | BI126: 2 | BJ126: 0
A127: SG_283 | B127: 14_0903_02_30cm_scaffold_266750 | C127: 3 | D127: 9 | E127: 1 | F127: 0 | G127: 0 | H127: 0 | I127: 0 | J127: 0 | K127: 0 | L127: 0 | M127: 0 | N127: 0 | O127: 1 | P127: 2 | Q127: 0 | R127: 0 | S127: 0 | T127: 0 | U127: 1 | V127: 0 | W127: 0 | X127: 0 | Y127: 0 | Z127: 0 | AA127: 0 | AB127: 0 | AC127: 0 | AD127: 0 | AE127: 0 | AF127: 0 | AG127: 0 | AH127: 0 | AI127: 0 | AJ127: 0 | AK127: 0 | AL127: 0 | AM127: 0 | AN127: 0 | AO127: 0 | AP127: 0 | AQ127: 0 | AR127: 0 | AS127: 0 | AT127: 0 | AU127: 0 | AV127: 0 | AW127: 0 | AX127: 0 | AY127: 0 | AZ127: 0 | BA127: 0 | BB127: 0 | BC127: 0 | BD127: 0 | BE127: 1 | BF127: 0 | BG127: 0 | BH127: 0 | BI127: 0 | BJ127: 0
A128: SG_2966 | B128: 14_0903_02_30cm_scaffold_267465 | C128: 5 | D128: 20 | E128: 3 | F128: 5 | G128: 0 | H128: 4 | I128: 0 | J128: 2 | K128: 0 | L128: 0 | M128: 0 | N128: 0 | O128: 6 | P128: 9 | Q128: 0 | R128: 8 | S128: 8 | T128: 2 | U128: 1 | V128: 4 | W128: 4 | X128: 0 | Y128: 4 | Z128: 0 | AA128: 3 | AB128: 3 | AC128: 0 | AD128: 1 | AE128: 0 | AF128: 0 | AG128: 6 | AH128: 2 | AI128: 0 | AJ128: 7 | AK128: 0 | AL128: 0 | AM128: 0 | AN128: 0 | AO128: 0 | AP128: 0 | AQ128: 0 | AR128: 0 | AS128: 1 | AT128: 4 | AU128: 0 | AV128: 3 | AW128: 2 | AX128: 0 | AY128: 0 | AZ128: 0 | BA128: 0 | BB128: 1 | BC128: 0 | BD128: 0 | BE128: 2 | BF128: 0 | BG128: 0 | BH128: 1 | BI128: 5 | BJ128: 1
A129: SG_1466 | B129: 14_0903_02_30cm_scaffold_281921 | C129: 5 | D129: 25 | E129: 3 | F129: 1 | G129: 0 | H129: 0 | I129: 0 | J129: 0 | K129: 0 | L129: 0 | M129: 0 | N129: 0 | O129: 4 | P129: 19 | Q129: 0 | R129: 0 | S129: 0 | T129: 0 | U129: 8 | V129: 0 | W129: 0 | X129: 0 | Y129: 5 | Z129: 5 | AA129: 0 | AB129: 0 | AC129: 0 | AD129: 0 | AE129: 0 | AF129: 0 | AG129: 3 | AH129: 0 | AI129: 0 | AJ129: 0 | AK129: 0 | AL129: 0 | AM129: 0 | AN129: 0 | AO129: 0 | AP129: 0 | AQ129: 0 | AR129: 0 | AS129: 5 | AT129: 0 | AU129: 0 | AV129: 0 | AW129: 0 | AX129: 0 | AY129: 0 | AZ129: 0 | BA129: 0 | BB129: 0 | BC129: 0 | BD129: 0 | BE129: 4 | BF129: 2 | BG129: 0 | BH129: 0 | BI129: 0 | BJ129: 0
A130: SG_2928 | B130: 14_0903_02_30cm_scaffold_283440 | C130: 3 | D130: 18 | E130: 2 | F130: 0 | G130: 0 | H130: 0 | I130: 1 | J130: 1 | K130: 0 | L130: 0 | M130: 0 | N130: 0 | O130: 6 | P130: 7 | Q130: 0 | R130: 0 | S130: 2 | T130: 0 | U130: 2 | V130: 0 | W130: 4 | X130: 0 | Y130: 2 | Z130: 1 | AA130: 0 | AB130: 0 | AC130: 0 | AD130: 0 | AE130: 0 | AF130: 0 | AG130: 0 | AH130: 0 | AI130: 0 | AJ130: 0 | AK130: 0 | AL130: 0 | AM130: 0 | AN130: 0 | AO130: 0 | AP130: 0 | AQ130: 0 | AR130: 0 | AS130: 1 | AT130: 0 | AU130: 0 | AV130: 0 | AW130: 0 | AX130: 0 | AY130: 0 | AZ130: 1 | BA130: 2 | BB130: 0 | BC130: 0 | BD130: 0 | BE130: 2 | BF130: 1 | BG130: 0 | BH130: 0 | BI130: 0 | BJ130: 0
A131: SG_1782 | B131: 14_0903_02_30cm_scaffold_2857 | C131: 56 | D131: 135 | E131: 24 | F131: 15 | G131: 9 | H131: 7 | I131: 9 | J131: 7 | K131: 9 | L131: 15 | M131: 0 | N131: 1 | O131: 94 | P131: 136 | Q131: 26 | R131: 92 | S131: 82 | T131: 57 | U131: 108 | V131: 49 | W131: 8 | X131: 1 | Y131: 110 | Z131: 33 | AA131: 101 | AB131: 10 | AC131: 25 | AD131: 14 | AE131: 5 | AF131: 0 | AG131: 157 | AH131: 86 | AI131: 33 | AJ131: 92 | AK131: 18 | AL131: 3 | AM131: 8 | AN131: 9 | AO131: 3 | AP131: 11 | AQ131: 4 | AR131: 1 | AS131: 65 | AT131: 44 | AU131: 42 | AV131: 92 | AW131: 33 | AX131: 10 | AY131: 22 | AZ131: 1 | BA131: 1 | BB131: 20 | BC131: 12 | BD131: 2 | BE131: 69 | BF131: 57 | BG131: 25 | BH131: 124 | BI131: 125 | BJ131: 95
A132: SG_3169 | B132: 14_0903_02_30cm_scaffold_286782 | C132: 3 | D132: 19 | E132: 3 | F132: 0 | G132: 0 | H132: 0 | I132: 0 | J132: 0 | K132: 0 | L132: 0 | M132: 0 | N132: 0 | O132: 0 | P132: 0 | Q132: 0 | R132: 0 | S132: 0 | T132: 0 | U132: 0 | V132: 0 | W132: 0 | X132: 0 | Y132: 0 | Z132: 0 | AA132: 0 | AB132: 0 | AC132: 0 | AD132: 0 | AE132: 0 | AF132: 0 | AG132: 0 | AH132: 0 | AI132: 0 | AJ132: 0 | AK132: 0 | AL132: 0 | AM132: 0 | AN132: 0 | AO132: 0 | AP132: 0 | AQ132: 0 | AR132: 0 | AS132: 0 | AT132: 0 | AU132: 0 | AV132: 0 | AW132: 0 | AX132: 0 | AY132: 0 | AZ132: 0 | BA132: 0 | BB132: 1 | BC132: 0 | BD132: 0 | BE132: 0 | BF132: 0 | BG132: 0 | BH132: 0 | BI132: 0 | BJ132: 0
A133: SG_2447 | B133: 14_0903_02_30cm_scaffold_287364 | C133: 1 | D133: 10 | E133: 2 | F133: 0 | G133: 1 | H133: 1 | I133: 1 | J133: 0 | K133: 0 | L133: 0 | M133: 0 | N133: 0 | O133: 0 | P133: 0 | Q133: 0 | R133: 0 | S133: 0 | T133: 0 | U133: 0 | V133: 0 | W133: 1 | X133: 0 | Y133: 0 | Z133: 4 | AA133: 0 | AB133: 0 | AC133: 0 | AD133: 0 | AE133: 0 | AF133: 0 | AG133: 0 | AH133: 0 | AI133: 0 | AJ133: 0 | AK133: 0 | AL133: 0 | AM133: 2 | AN133: 0 | AO133: 0 | AP133: 0 | AQ133: 0 | AR133: 0 | AS133: 7 | AT133: 0 | AU133: 0 | AV133: 0 | AW133: 0 | AX133: 0 | AY133: 0 | AZ133: 0 | BA133: 0 | BB133: 0 | BC133: 0 | BD133: 0 | BE133: 0 | BF133: 0 | BG133: 0 | BH133: 0 | BI133: 2 | BJ133: 0
A134: SG_139 | B134: 14_0903_02_30cm_scaffold_293 | C134: 443 | D134: 1545 | E134: 337 | F134: 0 | G134: 2 | H134: 2 | I134: 0 | J134: 0 | K134: 0 | L134: 0 | M134: 0 | N134: 0 | O134: 0 | P134: 3 | Q134: 0 | R134: 3 | S134: 4 | T134: 6 | U134: 54 | V134: 0 | W134: 0 | X134: 0 | Y134: 4 | Z134: 7 | AA134: 0 | AB134: 0 | AC134: 0 | AD134: 0 | AE134: 0 | AF134: 1 | AG134: 11 | AH134: 4 | AI134: 0 | AJ134: 0 | AK134: 0 | AL134: 0 | AM134: 0 | AN134: 0 | AO134: 0 | AP134: 0 | AQ134: 0 | AR134: 0 | AS134: 3 | AT134: 4 | AU134: 0 | AV134: 0 | AW134: 0 | AX134: 0 | AY134: 1 | AZ134: 0 | BA134: 0 | BB134: 0 | BC134: 0 | BD134: 0 | BE134: 1 | BF134: 0 | BG134: 1 | BH134: 0 | BI134: 4 | BJ134: 4
A135: SG_2901 | B135: 14_0903_02_30cm_scaffold_294905 | C135: 4 | D135: 11 | E135: 1 | F135: 0 | G135: 0 | H135: 0 | I135: 1 | J135: 0 | K135: 0 | L135: 0 | M135: 0 | N135: 0 | O135: 1 | P135: 12 | Q135: 0 | R135: 0 | S135: 0 | T135: 0 | U135: 1 | V135: 0 | W135: 0 | X135: 0 | Y135: 0 | Z135: 0 | AA135: 0 | AB135: 0 | AC135: 0 | AD135: 0 | AE135: 0 | AF135: 0 | AG135: 0 | AH135: 0 | AI135: 0 | AJ135: 0 | AK135: 0 | AL135: 0 | AM135: 0 | AN135: 0 | AO135: 0 | AP135: 0 | AQ135: 0 | AR135: 0 | AS135: 0 | AT135: 0 | AU135: 0 | AV135: 0 | AW135: 0 | AX135: 0 | AY135: 0 | AZ135: 1 | BA135: 0 | BB135: 0 | BC135: 0 | BD135: 0 | BE135: 2 | BF135: 0 | BG135: 0 | BH135: 0 | BI135: 0 | BJ135: 0
A136: SG_1519 | B136: 14_0903_02_30cm_scaffold_30091 | C136: 43 | D136: 112 | E136: 22 | F136: 37 | G136: 17 | H136: 18 | I136: 21 | J136: 11 | K136: 16 | L136: 34 | M136: 10 | N136: 13 | O136: 32 | P136: 61 | Q136: 1 | R136: 46 | S136: 12 | T136: 21 | U136: 74 | V136: 59 | W136: 46 | X136: 10 | Y136: 32 | Z136: 12 | AA136: 65 | AB136: 4 | AC136: 24 | AD136: 10 | AE136: 14 | AF136: 0 | AG136: 36 | AH136: 10 | AI136: 10 | AJ136: 48 | AK136: 14 | AL136: 1 | AM136: 44 | AN136: 16 | AO136: 0 | AP136: 14 | AQ136: 0 | AR136: 2 | AS136: 31 | AT136: 17 | AU136: 8 | AV136: 63 | AW136: 29 | AX136: 7 | AY136: 28 | AZ136: 6 | BA136: 0 | BB136: 27 | BC136: 4 | BD136: 4 | BE136: 41 | BF136: 14 | BG136: 0 | BH136: 45 | BI136: 25 | BJ136: 13
A137: SG_1415 | B137: 14_0903_02_30cm_scaffold_306747 | C137: 0 | D137: 5 | E137: 0 | F137: 0 | G137: 0 | H137: 0 | I137: 0 | J137: 0 | K137: 0 | L137: 0 | M137: 0 | N137: 0 | O137: 0 | P137: 1 | Q137: 0 | R137: 0 | S137: 0 | T137: 0 | U137: 0 | V137: 0 | W137: 0 | X137: 0 | Y137: 0 | Z137: 0 | AA137: 0 | AB137: 0 | AC137: 0 | AD137: 0 | AE137: 0 | AF137: 0 | AG137: 0 | AH137: 0 | AI137: 0 | AJ137: 0 | AK137: 0 | AL137: 0 | AM137: 1 | AN137: 0 | AO137: 0 | AP137: 0 | AQ137: 0 | AR137: 0 | AS137: 0 | AT137: 0 | AU137: 0 | AV137: 0 | AW137: 0 | AX137: 0 | AY137: 0 | AZ137: 0 | BA137: 0 | BB137: 0 | BC137: 0 | BD137: 0 | BE137: 0 | BF137: 0 | BG137: 0 | BH137: 0 | BI137: 0 | BJ137: 0
A138: SG_2084 | B138: 14_0903_02_30cm_scaffold_308027 | C138: 5 | D138: 17 | E138: 2 | F138: 0 | G138: 0 | H138: 0 | I138: 0 | J138: 0 | K138: 0 | L138: 0 | M138: 0 | N138: 0 | O138: 0 | P138: 0 | Q138: 0 | R138: 0 | S138: 0 | T138: 0 | U138: 0 | V138: 0 | W138: 0 | X138: 0 | Y138: 0 | Z138: 0 | AA138: 0 | AB138: 0 | AC138: 0 | AD138: 0 | AE138: 0 | AF138: 0 | AG138: 2 | AH138: 0 | AI138: 0 | AJ138: 0 | AK138: 0 | AL138: 0 | AM138: 0 | AN138: 0 | AO138: 0 | AP138: 0 | AQ138: 0 | AR138: 0 | AS138: 0 | AT138: 0 | AU138: 0 | AV138: 1 | AW138: 0 | AX138: 0 | AY138: 0 | AZ138: 0 | BA138: 0 | BB138: 0 | BC138: 0 | BD138: 0 | BE138: 0 | BF138: 0 | BG138: 0 | BH138: 0 | BI138: 0 | BJ138: 0
A139: SG_510 | B139: 14_0903_02_30cm_scaffold_3095 | C139: 200 | D139: 452 | E139: 99 | F139: 120 | G139: 85 | H139: 81 | I139: 0 | J139: 0 | K139: 0 | L139: 0 | M139: 0 | N139: 0 | O139: 3 | P139: 11 | Q139: 3 | R139: 29 | S139: 22 | T139: 9 | U139: 238 | V139: 131 | W139: 2 | X139: 0 | Y139: 113 | Z139: 55 | AA139: 150 | AB139: 46 | AC139: 1 | AD139: 0 | AE139: 0 | AF139: 0 | AG139: 113 | AH139: 73 | AI139: 56 | AJ139: 64 | AK139: 63 | AL139: 30 | AM139: 0 | AN139: 0 | AO139: 2 | AP139: 2 | AQ139: 0 | AR139: 1 | AS139: 82 | AT139: 81 | AU139: 98 | AV139: 77 | AW139: 72 | AX139: 73 | AY139: 0 | AZ139: 0 | BA139: 0 | BB139: 0 | BC139: 0 | BD139: 0 | BE139: 3 | BF139: 0 | BG139: 0 | BH139: 8 | BI139: 18 | BJ139: 10
A140: SG_3136 | B140: 14_0903_02_30cm_scaffold_311300 | C140: 6 | D140: 4 | E140: 1 | F140: 3 | G140: 1 | H140: 0 | I140: 2 | J140: 0 | K140: 2 | L140: 0 | M140: 0 | N140: 0 | O140: 2 | P140: 8 | Q140: 4 | R140: 5 | S140: 8 | T140: 3 | U140: 4 | V140: 1 | W140: 1 | X140: 0 | Y140: 5 | Z140: 3 | AA140: 8 | AB140: 0 | AC140: 6 | AD140: 3 | AE140: 0 | AF140: 0 | AG140: 2 | AH140: 2 | AI140: 2 | AJ140: 3 | AK140: 1 | AL140: 0 | AM140: 0 | AN140: 1 | AO140: 0 | AP140: 0 | AQ140: 0 | AR140: 0 | AS140: 6 | AT140: 1 | AU140: 1 | AV140: 9 | AW140: 3 | AX140: 2 | AY140: 0 | AZ140: 0 | BA140: 0 | BB140: 0 | BC140: 0 | BD140: 0 | BE140: 1 | BF140: 1 | BG140: 0 | BH140: 1 | BI140: 8 | BJ140: 1
A141: SG_1361 | B141: 14_0903_02_30cm_scaffold_316916 | C141: 0 | D141: 1 | E141: 0 | F141: 0 | G141: 0 | H141: 0 | I141: 0 | J141: 0 | K141: 0 | L141: 0 | M141: 0 | N141: 0 | O141: 0 | P141: 2 | Q141: 0 | R141: 0 | S141: 0 | T141: 0 | U141: 0 | V141: 2 | W141: 0 | X141: 0 | Y141: 1 | Z141: 0 | AA141: 1 | AB141: 0 | AC141: 1 | AD141: 0 | AE141: 0 | AF141: 0 | AG141: 0 | AH141: 0 | AI141: 0 | AJ141: 0 | AK141: 0 | AL141: 0 | AM141: 0 | AN141: 0 | AO141: 0 | AP141: 0 | AQ141: 0 | AR141: 0 | AS141: 0 | AT141: 1 | AU141: 0 | AV141: 2 | AW141: 0 | AX141: 0 | AY141: 1 | AZ141: 0 | BA141: 0 | BB141: 1 | BC141: 0 | BD141: 0 | BE141: 0 | BF141: 0 | BG141: 0 | BH141: 2 | BI141: 1 | BJ141: 0
A142: SG_584 | B142: 14_0903_02_30cm_scaffold_32313 | C142: 24 | D142: 51 | E142: 28 | F142: 0 | G142: 7 | H142: 14 | I142: 0 | J142: 0 | K142: 4 | L142: 0 | M142: 0 | N142: 0 | O142: 3 | P142: 22 | Q142: 7 | R142: 0 | S142: 7 | T142: 16 | U142: 12 | V142: 0 | W142: 0 | X142: 0 | Y142: 11 | Z142: 49 | AA142: 5 | AB142: 18 | AC142: 0 | AD142: 0 | AE142: 0 | AF142: 0 | AG142: 33 | AH142: 60 | AI142: 67 | AJ142: 0 | AK142: 7 | AL142: 13 | AM142: 0 | AN142: 0 | AO142: 2 | AP142: 0 | AQ142: 0 | AR142: 1 | AS142: 0 | AT142: 33 | AU142: 63 | AV142: 0 | AW142: 3 | AX142: 7 | AY142: 0 | AZ142: 0 | BA142: 1 | BB142: 0 | BC142: 1 | BD142: 0 | BE142: 0 | BF142: 11 | BG142: 6 | BH142: 3 | BI142: 55 | BJ142: 41
A143: SG_172 | B143: 14_0903_02_30cm_scaffold_323131 | C143: 1 | D143: 5 | E143: 0 | F143: 0 | G143: 0 | H143: 0 | I143: 0 | J143: 0 | K143: 0 | L143: 0 | M143: 0 | N143: 0 | O143: 0 | P143: 0 | Q143: 0 | R143: 1 | S143: 0 | T143: 1 | U143: 0 | V143: 0 | W143: 0 | X143: 0 | Y143: 0 | Z143: 0 | AA143: 0 | AB143: 0 | AC143: 0 | AD143: 0 | AE143: 0 | AF143: 0 | AG143: 0 | AH143: 0 | AI143: 0 | AJ143: 0 | AK143: 0 | AL143: 0 | AM143: 0 | AN143: 0 | AO143: 0 | AP143: 0 | AQ143: 0 | AR143: 0 | AS143: 0 | AT143: 0 | AU143: 0 | AV143: 0 | AW143: 0 | AX143: 0 | AY143: 0 | AZ143: 0 | BA143: 0 | BB143: 0 | BC143: 0 | BD143: 0 | BE143: 0 | BF143: 0 | BG143: 0 | BH143: 0 | BI143: 0 | BJ143: 0
A144: SG_834 | B144: 14_0903_02_30cm_scaffold_3239 | C144: 188 | D144: 528 | E144: 169 | F144: 0 | G144: 0 | H144: 0 | I144: 0 | J144: 0 | K144: 0 | L144: 0 | M144: 0 | N144: 0 | O144: 1 | P144: 7 | Q144: 0 | R144: 0 | S144: 0 | T144: 0 | U144: 38 | V144: 0 | W144: 1 | X144: 0 | Y144: 10 | Z144: 33 | AA144: 0 | AB144: 0 | AC144: 0 | AD144: 6 | AE144: 0 | AF144: 0 | AG144: 24 | AH144: 2 | AI144: 0 | AJ144: 0 | AK144: 0 | AL144: 0 | AM144: 1 | AN144: 1 | AO144: 0 | AP144: 0 | AQ144: 0 | AR144: 0 | AS144: 18 | AT144: 11 | AU144: 0 | AV144: 2 | AW144: 0 | AX144: 0 | AY144: 0 | AZ144: 0 | BA144: 0 | BB144: 0 | BC144: 0 | BD144: 0 | BE144: 0 | BF144: 0 | BG144: 0 | BH144: 0 | BI144: 0 | BJ144: 0
A145: SG_866 | B145: 14_0903_02_30cm_scaffold_330979 | C145: 2 | D145: 20 | E145: 5 | F145: 0 | G145: 0 | H145: 0 | I145: 0 | J145: 0 | K145: 0 | L145: 0 | M145: 0 | N145: 0 | O145: 0 | P145: 0 | Q145: 0 | R145: 0 | S145: 0 | T145: 0 | U145: 0 | V145: 0 | W145: 0 | X145: 0 | Y145: 0 | Z145: 0 | AA145: 0 | AB145: 0 | AC145: 0 | AD145: 0 | AE145: 0 | AF145: 0 | AG145: 2 | AH145: 0 | AI145: 0 | AJ145: 0 | AK145: 0 | AL145: 0 | AM145: 0 | AN145: 0 | AO145: 0 | AP145: 0 | AQ145: 0 | AR145: 0 | AS145: 0 | AT145: 0 | AU145: 0 | AV145: 0 | AW145: 0 | AX145: 0 | AY145: 0 | AZ145: 0 | BA145: 0 | BB145: 0 | BC145: 0 | BD145: 0 | BE145: 0 | BF145: 0 | BG145: 0 | BH145: 0 | BI145: 0 | BJ145: 0
A146: SG_239 | B146: 14_0903_02_30cm_scaffold_338565 | C146: 4 | D146: 13 | E146: 2 | F146: 0 | G146: 0 | H146: 0 | I146: 0 | J146: 0 | K146: 0 | L146: 0 | M146: 0 | N146: 0 | O146: 0 | P146: 0 | Q146: 0 | R146: 0 | S146: 0 | T146: 0 | U146: 2 | V146: 0 | W146: 0 | X146: 0 | Y146: 0 | Z146: 2 | AA146: 0 | AB146: 0 | AC146: 0 | AD146: 0 | AE146: 0 | AF146: 0 | AG146: 2 | AH146: 0 | AI146: 0 | AJ146: 0 | AK146: 0 | AL146: 0 | AM146: 0 | AN146: 0 | AO146: 0 | AP146: 0 | AQ146: 0 | AR146: 0 | AS146: 2 | AT146: 2 | AU146: 0 | AV146: 0 | AW146: 0 | AX146: 0 | AY146: 0 | AZ146: 0 | BA146: 0 | BB146: 0 | BC146: 0 | BD146: 0 | BE146: 0 | BF146: 0 | BG146: 0 | BH146: 0 | BI146: 0 | BJ146: 0
A147: SG_2294 | B147: 14_0903_02_30cm_scaffold_340878 | C147: 5 | D147: 15 | E147: 4 | F147: 0 | G147: 0 | H147: 0 | I147: 0 | J147: 0 | K147: 0 | L147: 0 | M147: 0 | N147: 0 | O147: 0 | P147: 2 | Q147: 0 | R147: 0 | S147: 0 | T147: 0 | U147: 3 | V147: 0 | W147: 0 | X147: 0 | Y147: 0 | Z147: 0 | AA147: 0 | AB147: 0 | AC147: 0 | AD147: 0 | AE147: 0 | AF147: 0 | AG147: 0 | AH147: 1 | AI147: 0 | AJ147: 0 | AK147: 0 | AL147: 0 | AM147: 0 | AN147: 0 | AO147: 0 | AP147: 0 | AQ147: 0 | AR147: 0 | AS147: 0 | AT147: 0 | AU147: 0 | AV147: 0 | AW147: 0 | AX147: 0 | AY147: 0 | AZ147: 0 | BA147: 0 | BB147: 0 | BC147: 0 | BD147: 0 | BE147: 0 | BF147: 0 | BG147: 0 | BH147: 0 | BI147: 0 | BJ147: 0
A148: SG_3199 | B148: 14_0903_02_30cm_scaffold_34128 | C148: 14 | D148: 44 | E148: 8 | F148: 11 | G148: 0 | H148: 3 | I148: 6 | J148: 10 | K148: 2 | L148: 0 | M148: 2 | N148: 5 | O148: 2 | P148: 15 | Q148: 0 | R148: 9 | S148: 8 | T148: 11 | U148: 5 | V148: 6 | W148: 4 | X148: 1 | Y148: 5 | Z148: 4 | AA148: 3 | AB148: 1 | AC148: 0 | AD148: 0 | AE148: 2 | AF148: 0 | AG148: 6 | AH148: 0 | AI148: 0 | AJ148: 1 | AK148: 0 | AL148: 0 | AM148: 4 | AN148: 8 | AO148: 0 | AP148: 2 | AQ148: 0 | AR148: 1 | AS148: 5 | AT148: 0 | AU148: 2 | AV148: 0 | AW148: 0 | AX148: 0 | AY148: 2 | AZ148: 1 | BA148: 0 | BB148: 4 | BC148: 0 | BD148: 0 | BE148: 2 | BF148: 2 | BG148: 0 | BH148: 0 | BI148: 0 | BJ148: 0
A149: SG_1056 | B149: 14_0903_02_30cm_scaffold_345 | C149: 1405 | D149: 15389 | E149: 1535 | F149: 1 | G149: 0 | H149: 8 | I149: 0 | J149: 0 | K149: 0 | L149: 0 | M149: 0 | N149: 0 | O149: 0 | P149: 1 | Q149: 0 | R149: 0 | S149: 0 | T149: 0 | U149: 1 | V149: 0 | W149: 0 | X149: 0 | Y149: 2 | Z149: 0 | AA149: 2 | AB149: 0 | AC149: 0 | AD149: 0 | AE149: 0 | AF149: 0 | AG149: 0 | AH149: 2 | AI149: 2 | AJ149: 0 | AK149: 0 | AL149: 2 | AM149: 0 | AN149: 0 | AO149: 0 | AP149: 0 | AQ149: 1 | AR149: 0 | AS149: 0 | AT149: 8 | AU149: 0 | AV149: 4 | AW149: 0 | AX149: 0 | AY149: 0 | AZ149: 0 | BA149: 0 | BB149: 0 | BC149: 0 | BD149: 0 | BE149: 0 | BF149: 0 | BG149: 0 | BH149: 0 | BI149: 0 | BJ149: 0
A150: SG_2867 | B150: 14_0903_02_30cm_scaffold_347685 | C150: 7 | D150: 12 | E150: 2 | F150: 10 | G150: 1 | H150: 6 | I150: 0 | J150: 2 | K150: 0 | L150: 1 | M150: 0 | N150: 1 | O150: 3 | P150: 14 | Q150: 3 | R150: 4 | S150: 3 | T150: 2 | U150: 14 | V150: 9 | W150: 1 | X150: 4 | Y150: 17 | Z150: 2 | AA150: 6 | AB150: 0 | AC150: 2 | AD150: 0 | AE150: 0 | AF150: 0 | AG150: 9 | AH150: 3 | AI150: 0 | AJ150: 24 | AK150: 2 | AL150: 0 | AM150: 2 | AN150: 0 | AO150: 0 | AP150: 2 | AQ150: 1 | AR150: 0 | AS150: 9 | AT150: 0 | AU150: 0 | AV150: 13 | AW150: 1 | AX150: 0 | AY150: 1 | AZ150: 0 | BA150: 0 | BB150: 1 | BC150: 0 | BD150: 0 | BE150: 6 | BF150: 6 | BG150: 1 | BH150: 6 | BI150: 5 | BJ150: 0
A151: SG_1439 | B151: 14_0903_02_30cm_scaffold_35048 | C151: 12 | D151: 58 | E151: 7 | F151: 0 | G151: 0 | H151: 0 | I151: 3 | J151: 0 | K151: 0 | L151: 0 | M151: 0 | N151: 0 | O151: 3 | P151: 29 | Q151: 0 | R151: 0 | S151: 0 | T151: 0 | U151: 0 | V151: 0 | W151: 10 | X151: 0 | Y151: 3 | Z151: 7 | AA151: 0 | AB151: 0 | AC151: 3 | AD151: 2 | AE151: 0 | AF151: 0 | AG151: 2 | AH151: 0 | AI151: 0 | AJ151: 0 | AK151: 0 | AL151: 0 | AM151: 1 | AN151: 2 | AO151: 0 | AP151: 0 | AQ151: 0 | AR151: 0 | AS151: 6 | AT151: 5 | AU151: 2 | AV151: 0 | AW151: 0 | AX151: 0 | AY151: 2 | AZ151: 0 | BA151: 0 | BB151: 0 | BC151: 0 | BD151: 0 | BE151: 9 | BF151: 1 | BG151: 0 | BH151: 0 | BI151: 0 | BJ151: 0
A152: SG_823 | B152: 14_0903_02_30cm_scaffold_352347 | C152: 10 | D152: 29 | E152: 4 | F152: 0 | G152: 0 | H152: 0 | I152: 0 | J152: 0 | K152: 0 | L152: 0 | M152: 0 | N152: 0 | O152: 0 | P152: 7 | Q152: 0 | R152: 0 | S152: 0 | T152: 0 | U152: 0 | V152: 0 | W152: 0 | X152: 0 | Y152: 0 | Z152: 3 | AA152: 0 | AB152: 0 | AC152: 0 | AD152: 0 | AE152: 0 | AF152: 0 | AG152: 0 | AH152: 0 | AI152: 0 | AJ152: 0 | AK152: 0 | AL152: 0 | AM152: 0 | AN152: 0 | AO152: 0 | AP152: 0 | AQ152: 0 | AR152: 0 | AS152: 0 | AT152: 0 | AU152: 0 | AV152: 0 | AW152: 0 | AX152: 0 | AY152: 0 | AZ152: 0 | BA152: 0 | BB152: 0 | BC152: 0 | BD152: 0 | BE152: 0 | BF152: 0 | BG152: 0 | BH152: 0 | BI152: 0 | BJ152: 0
A153: SG_1356 | B153: 14_0903_02_30cm_scaffold_352709 | C153: 2 | D153: 9 | E153: 3 | F153: 0 | G153: 0 | H153: 1 | I153: 0 | J153: 0 | K153: 0 | L153: 0 | M153: 1 | N153: 0 | O153: 0 | P153: 13 | Q153: 2 | R153: 0 | S153: 3 | T153: 0 | U153: 3 | V153: 0 | W153: 0 | X153: 0 | Y153: 2 | Z153: 2 | AA153: 1 | AB153: 0 | AC153: 0 | AD153: 0 | AE153: 0 | AF153: 0 | AG153: 4 | AH153: 2 | AI153: 3 | AJ153: 1 | AK153: 1 | AL153: 0 | AM153: 0 | AN153: 0 | AO153: 0 | AP153: 1 | AQ153: 1 | AR153: 0 | AS153: 0 | AT153: 0 | AU153: 1 | AV153: 0 | AW153: 0 | AX153: 1 | AY153: 0 | AZ153: 0 | BA153: 0 | BB153: 0 | BC153: 0 | BD153: 0 | BE153: 1 | BF153: 0 | BG153: 0 | BH153: 1 | BI153: 9 | BJ153: 8
A154: SG_1111 | B154: 14_0903_02_30cm_scaffold_357712 | C154: 0 | D154: 12 | E154: 5 | F154: 2 | G154: 2 | H154: 0 | I154: 0 | J154: 0 | K154: 2 | L154: 0 | M154: 0 | N154: 0 | O154: 1 | P154: 6 | Q154: 4 | R154: 4 | S154: 1 | T154: 4 | U154: 4 | V154: 3 | W154: 0 | X154: 0 | Y154: 1 | Z154: 6 | AA154: 9 | AB154: 2 | AC154: 2 | AD154: 2 | AE154: 0 | AF154: 0 | AG154: 3 | AH154: 0 | AI154: 2 | AJ154: 1 | AK154: 0 | AL154: 0 | AM154: 0 | AN154: 0 | AO154: 1 | AP154: 0 | AQ154: 1 | AR154: 0 | AS154: 2 | AT154: 1 | AU154: 1 | AV154: 3 | AW154: 1 | AX154: 2 | AY154: 0 | AZ154: 1 | BA154: 2 | BB154: 0 | BC154: 0 | BD154: 0 | BE154: 0 | BF154: 1 | BG154: 0 | BH154: 1 | BI154: 9 | BJ154: 1
A155: SG_1081 | B155: 14_0903_02_30cm_scaffold_358343 | C155: 1 | D155: 8 | E155: 0 | F155: 0 | G155: 0 | H155: 2 | I155: 0 | J155: 0 | K155: 0 | L155: 0 | M155: 0 | N155: 0 | O155: 0 | P155: 14 | Q155: 0 | R155: 9 | S155: 1 | T155: 6 | U155: 1 | V155: 3 | W155: 0 | X155: 0 | Y155: 0 | Z155: 0 | AA155: 0 | AB155: 0 | AC155: 0 | AD155: 0 | AE155: 0 | AF155: 0 | AG155: 4 | AH155: 0 | AI155: 0 | AJ155: 0 | AK155: 0 | AL155: 0 | AM155: 0 | AN155: 0 | AO155: 0 | AP155: 0 | AQ155: 0 | AR155: 0 | AS155: 1 | AT155: 0 | AU155: 0 | AV155: 0 | AW155: 0 | AX155: 0 | AY155: 0 | AZ155: 0 | BA155: 0 | BB155: 0 | BC155: 0 | BD155: 0 | BE155: 0 | BF155: 0 | BG155: 0 | BH155: 2 | BI155: 0 | BJ155: 0
A156: SG_2919 | B156: 14_0903_02_30cm_scaffold_361888 | C156: 1 | D156: 4 | E156: 2 | F156: 0 | G156: 0 | H156: 0 | I156: 0 | J156: 0 | K156: 0 | L156: 0 | M156: 0 | N156: 0 | O156: 0 | P156: 4 | Q156: 0 | R156: 0 | S156: 1 | T156: 0 | U156: 1 | V156: 0 | W156: 0 | X156: 0 | Y156: 2 | Z156: 0 | AA156: 0 | AB156: 0 | AC156: 0 | AD156: 0 | AE156: 0 | AF156: 0 | AG156: 0 | AH156: 0 | AI156: 1 | AJ156: 0 | AK156: 0 | AL156: 0 | AM156: 0 | AN156: 0 | AO156: 0 | AP156: 0 | AQ156: 0 | AR156: 0 | AS156: 0 | AT156: 0 | AU156: 0 | AV156: 0 | AW156: 0 | AX156: 0 | AY156: 0 | AZ156: 0 | BA156: 0 | BB156: 0 | BC156: 0 | BD156: 0 | BE156: 0 | BF156: 1 | BG156: 1 | BH156: 0 | BI156: 0 | BJ156: 0
A157: SG_2870 | B157: 14_0903_02_30cm_scaffold_365051 | C157: 0 | D157: 2 | E157: 0 | F157: 0 | G157: 0 | H157: 0 | I157: 0 | J157: 0 | K157: 0 | L157: 0 | M157: 0 | N157: 0 | O157: 1 | P157: 2 | Q157: 0 | R157: 0 | S157: 0 | T157: 0 | U157: 1 | V157: 0 | W157: 0 | X157: 0 | Y157: 1 | Z157: 0 | AA157: 0 | AB157: 0 | AC157: 0 | AD157: 0 | AE157: 0 | AF157: 0 | AG157: 0 | AH157: 0 | AI157: 0 | AJ157: 0 | AK157: 0 | AL157: 0 | AM157: 0 | AN157: 0 | AO157: 0 | AP157: 0 | AQ157: 0 | AR157: 0 | AS157: 0 | AT157: 0 | AU157: 0 | AV157: 0 | AW157: 0 | AX157: 0 | AY157: 0 | AZ157: 0 | BA157: 0 | BB157: 0 | BC157: 1 | BD157: 0 | BE157: 0 | BF157: 0 | BG157: 0 | BH157: 0 | BI157: 0 | BJ157: 1
A158: SG_2987 | B158: 14_0903_02_30cm_scaffold_382937 | C158: 1 | D158: 5 | E158: 0 | F158: 5 | G158: 0 | H158: 1 | I158: 0 | J158: 0 | K158: 0 | L158: 0 | M158: 0 | N158: 2 | O158: 1 | P158: 1 | Q158: 0 | R158: 1 | S158: 2 | T158: 0 | U158: 1 | V158: 0 | W158: 4 | X158: 0 | Y158: 3 | Z158: 0 | AA158: 2 | AB158: 2 | AC158: 1 | AD158: 0 | AE158: 1 | AF158: 0 | AG158: 4 | AH158: 3 | AI158: 0 | AJ158: 4 | AK158: 0 | AL158: 0 | AM158: 0 | AN158: 2 | AO158: 1 | AP158: 1 | AQ158: 0 | AR158: 2 | AS158: 0 | AT158: 1 | AU158: 0 | AV158: 1 | AW158: 1 | AX158: 0 | AY158: 2 | AZ158: 0 | BA158: 0 | BB158: 0 | BC158: 0 | BD158: 1 | BE158: 1 | BF158: 3 | BG158: 1 | BH158: 1 | BI158: 2 | BJ158: 1
A159: SG_3313 | B159: 14_0903_02_30cm_scaffold_385137 | C159: 0 | D159: 3 | E159: 2 | F159: 0 | G159: 3 | H159: 4 | I159: 0 | J159: 0 | K159: 0 | L159: 0 | M159: 0 | N159: 2 | O159: 1 | P159: 3 | Q159: 2 | R159: 0 | S159: 1 | T159: 0 | U159: 0 | V159: 0 | W159: 0 | X159: 0 | Y159: 0 | Z159: 2 | AA159: 2 | AB159: 3 | AC159: 0 | AD159: 0 | AE159: 0 | AF159: 1 | AG159: 4 | AH159: 1 | AI159: 3 | AJ159: 1 | AK159: 3 | AL159: 0 | AM159: 0 | AN159: 1 | AO159: 0 | AP159: 0 | AQ159: 0 | AR159: 0 | AS159: 0 | AT159: 2 | AU159: 2 | AV159: 1 | AW159: 2 | AX159: 3 | AY159: 0 | AZ159: 0 | BA159: 0 | BB159: 0 | BC159: 0 | BD159: 0 | BE159: 0 | BF159: 2 | BG159: 4 | BH159: 0 | BI159: 2 | BJ159: 3
A160: SG_1857 | B160: 14_0903_02_30cm_scaffold_385531 | C160: 0 | D160: 7 | E160: 0 | F160: 0 | G160: 0 | H160: 0 | I160: 0 | J160: 0 | K160: 0 | L160: 0 | M160: 0 | N160: 0 | O160: 0 | P160: 0 | Q160: 0 | R160: 1 | S160: 0 | T160: 0 | U160: 0 | V160: 0 | W160: 0 | X160: 0 | Y160: 0 | Z160: 0 | AA160: 0 | AB160: 0 | AC160: 0 | AD160: 0 | AE160: 0 | AF160: 0 | AG160: 0 | AH160: 0 | AI160: 0 | AJ160: 0 | AK160: 0 | AL160: 0 | AM160: 0 | AN160: 0 | AO160: 0 | AP160: 0 | AQ160: 0 | AR160: 0 | AS160: 0 | AT160: 0 | AU160: 0 | AV160: 0 | AW160: 0 | AX160: 0 | AY160: 0 | AZ160: 0 | BA160: 0 | BB160: 0 | BC160: 0 | BD160: 0 | BE160: 0 | BF160: 0 | BG160: 0 | BH160: 0 | BI160: 0 | BJ160: 0
A161: SG_1023 | B161: 14_0903_02_30cm_scaffold_39196 | C161: 21 | D161: 158 | E161: 26 | F161: 1 | G161: 0 | H161: 0 | I161: 0 | J161: 0 | K161: 0 | L161: 0 | M161: 0 | N161: 0 | O161: 0 | P161: 0 | Q161: 0 | R161: 4 | S161: 7 | T161: 0 | U161: 8 | V161: 0 | W161: 0 | X161: 0 | Y161: 0 | Z161: 0 | AA161: 0 | AB161: 2 | AC161: 0 | AD161: 0 | AE161: 0 | AF161: 0 | AG161: 5 | AH161: 0 | AI161: 0 | AJ161: 0 | AK161: 0 | AL161: 0 | AM161: 0 | AN161: 0 | AO161: 0 | AP161: 0 | AQ161: 0 | AR161: 0 | AS161: 8 | AT161: 4 | AU161: 0 | AV161: 0 | AW161: 0 | AX161: 0 | AY161: 0 | AZ161: 0 | BA161: 0 | BB161: 0 | BC161: 0 | BD161: 0 | BE161: 0 | BF161: 0 | BG161: 0 | BH161: 0 | BI161: 0 | BJ161: 3
A162: SG_2492 | B162: 14_0903_02_30cm_scaffold_395463 | C162: 0 | D162: 9 | E162: 0 | F162: 0 | G162: 0 | H162: 0 | I162: 0 | J162: 0 | K162: 0 | L162: 0 | M162: 0 | N162: 0 | O162: 0 | P162: 0 | Q162: 0 | R162: 0 | S162: 0 | T162: 0 | U162: 0 | V162: 0 | W162: 0 | X162: 0 | Y162: 2 | Z162: 1 | AA162: 0 | AB162: 0 | AC162: 0 | AD162: 0 | AE162: 0 | AF162: 0 | AG162: 1 | AH162: 0 | AI162: 0 | AJ162: 0 | AK162: 0 | AL162: 0 | AM162: 0 | AN162: 0 | AO162: 0 | AP162: 0 | AQ162: 0 | AR162: 0 | AS162: 3 | AT162: 0 | AU162: 0 | AV162: 0 | AW162: 0 | AX162: 0 | AY162: 0 | AZ162: 0 | BA162: 0 | BB162: 0 | BC162: 0 | BD162: 0 | BE162: 0 | BF162: 0 | BG162: 0 | BH162: 0 | BI162: 0 | BJ162: 0
A163: SG_931 | B163: 14_0903_02_30cm_scaffold_4 | C163: 9813 | D163: 29629 | E163: 8724 | F163: 35 | G163: 4 | H163: 4 | I163: 2 | J163: 2 | K163: 2 | L163: 2 | M163: 0 | N163: 0 | O163: 0 | P163: 2 | Q163: 4 | R163: 0 | S163: 0 | T163: 1 | U163: 456 | V163: 0 | W163: 2 | X163: 0 | Y163: 4 | Z163: 4 | AA163: 0 | AB163: 0 | AC163: 0 | AD163: 0 | AE163: 0 | AF163: 0 | AG163: 149 | AH163: 33 | AI163: 19 | AJ163: 0 | AK163: 0 | AL163: 0 | AM163: 0 | AN163: 0 | AO163: 0 | AP163: 0 | AQ163: 0 | AR163: 0 | AS163: 63 | AT163: 12 | AU163: 4 | AV163: 8 | AW163: 0 | AX163: 0 | AY163: 0 | AZ163: 0 | BA163: 0 | BB163: 0 | BC163: 0 | BD163: 0 | BE163: 0 | BF163: 13 | BG163: 0 | BH163: 0 | BI163: 0 | BJ163: 0
A164: SG_2765 | B164: 14_0903_02_30cm_scaffold_40177 | C164: 27 | D164: 81 | E164: 22 | F164: 2 | G164: 0 | H164: 0 | I164: 0 | J164: 0 | K164: 0 | L164: 0 | M164: 0 | N164: 1 | O164: 0 | P164: 3 | Q164: 0 | R164: 10 | S164: 4 | T164: 10 | U164: 18 | V164: 3 | W164: 2 | X164: 0 | Y164: 15 | Z164: 3 | AA164: 1 | AB164: 0 | AC164: 0 | AD164: 0 | AE164: 0 | AF164: 0 | AG164: 4 | AH164: 3 | AI164: 2 | AJ164: 0 | AK164: 0 | AL164: 0 | AM164: 2 | AN164: 1 | AO164: 0 | AP164: 0 | AQ164: 0 | AR164: 0 | AS164: 9 | AT164: 2 | AU164: 2 | AV164: 0 | AW164: 0 | AX164: 0 | AY164: 0 | AZ164: 0 | BA164: 0 | BB164: 0 | BC164: 0 | BD164: 0 | BE164: 1 | BF164: 0 | BG164: 0 | BH164: 4 | BI164: 0 | BJ164: 0
A165: SG_1173 | B165: 14_0903_02_30cm_scaffold_403530 | C165: 2 | D165: 8 | E165: 1 | F165: 0 | G165: 0 | H165: 0 | I165: 0 | J165: 0 | K165: 0 | L165: 0 | M165: 0 | N165: 0 | O165: 0 | P165: 0 | Q165: 0 | R165: 0 | S165: 0 | T165: 1 | U165: 0 | V165: 0 | W165: 0 | X165: 0 | Y165: 2 | Z165: 1 | AA165: 0 | AB165: 0 | AC165: 0 | AD165: 0 | AE165: 0 | AF165: 0 | AG165: 0 | AH165: 0 | AI165: 0 | AJ165: 0 | AK165: 0 | AL165: 0 | AM165: 0 | AN165: 0 | AO165: 0 | AP165: 0 | AQ165: 0 | AR165: 0 | AS165: 0 | AT165: 0 | AU165: 0 | AV165: 0 | AW165: 0 | AX165: 1 | AY165: 0 | AZ165: 0 | BA165: 0 | BB165: 0 | BC165: 0 | BD165: 0 | BE165: 0 | BF165: 0 | BG165: 0 | BH165: 0 | BI165: 2 | BJ165: 0
A166: SG_211 | B166: 14_0903_02_30cm_scaffold_4254 | C166: 154 | D166: 669 | E166: 145 | F166: 3 | G166: 0 | H166: 2 | I166: 0 | J166: 0 | K166: 0 | L166: 0 | M166: 0 | N166: 1 | O166: 3 | P166: 12 | Q166: 0 | R166: 20 | S166: 0 | T166: 19 | U166: 73 | V166: 4 | W166: 0 | X166: 0 | Y166: 57 | Z166: 25 | AA166: 4 | AB166: 2 | AC166: 0 | AD166: 0 | AE166: 0 | AF166: 0 | AG166: 31 | AH166: 4 | AI166: 0 | AJ166: 4 | AK166: 0 | AL166: 2 | AM166: 0 | AN166: 0 | AO166: 0 | AP166: 0 | AQ166: 0 | AR166: 2 | AS166: 42 | AT166: 24 | AU166: 3 | AV166: 0 | AW166: 2 | AX166: 0 | AY166: 0 | AZ166: 0 | BA166: 0 | BB166: 0 | BC166: 0 | BD166: 0 | BE166: 1 | BF166: 4 | BG166: 0 | BH166: 4 | BI166: 4 | BJ166: 11
A167: SG_3009 | B167: 14_0903_02_30cm_scaffold_42815 | C167: 23 | D167: 52 | E167: 10 | F167: 10 | G167: 1 | H167: 2 | I167: 0 | J167: 0 | K167: 0 | L167: 0 | M167: 0 | N167: 3 | O167: 8 | P167: 12 | Q167: 2 | R167: 10 | S167: 0 | T167: 6 | U167: 35 | V167: 11 | W167: 0 | X167: 0 | Y167: 29 | Z167: 5 | AA167: 45 | AB167: 11 | AC167: 1 | AD167: 0 | AE167: 0 | AF167: 2 | AG167: 27 | AH167: 12 | AI167: 0 | AJ167: 41 | AK167: 16 | AL167: 4 | AM167: 5 | AN167: 1 | AO167: 0 | AP167: 0 | AQ167: 0 | AR167: 0 | AS167: 16 | AT167: 7 | AU167: 4 | AV167: 13 | AW167: 9 | AX167: 2 | AY167: 1 | AZ167: 0 | BA167: 0 | BB167: 1 | BC167: 0 | BD167: 0 | BE167: 16 | BF167: 7 | BG167: 0 | BH167: 2 | BI167: 8 | BJ167: 0
A168: SG_3260 | B168: 14_0903_02_30cm_scaffold_430316 | C168: 2 | D168: 8 | E168: 0 | F168: 0 | G168: 0 | H168: 0 | I168: 0 | J168: 0 | K168: 0 | L168: 0 | M168: 0 | N168: 0 | O168: 2 | P168: 0 | Q168: 0 | R168: 1 | S168: 0 | T168: 2 | U168: 1 | V168: 0 | W168: 0 | X168: 0 | Y168: 0 | Z168: 2 | AA168: 0 | AB168: 0 | AC168: 0 | AD168: 0 | AE168: 0 | AF168: 0 | AG168: 2 | AH168: 0 | AI168: 0 | AJ168: 0 | AK168: 0 | AL168: 0 | AM168: 0 | AN168: 0 | AO168: 0 | AP168: 0 | AQ168: 0 | AR168: 0 | AS168: 0 | AT168: 0 | AU168: 0 | AV168: 0 | AW168: 0 | AX168: 0 | AY168: 0 | AZ168: 0 | BA168: 0 | BB168: 0 | BC168: 0 | BD168: 0 | BE168: 0 | BF168: 0 | BG168: 0 | BH168: 1 | BI168: 0 | BJ168: 0
A169: SG_3020 | B169: 14_0903_02_30cm_scaffold_430483 | C169: 2 | D169: 12 | E169: 3 | F169: 0 | G169: 0 | H169: 0 | I169: 0 | J169: 0 | K169: 0 | L169: 0 | M169: 0 | N169: 0 | O169: 3 | P169: 2 | Q169: 0 | R169: 2 | S169: 0 | T169: 2 | U169: 1 | V169: 0 | W169: 0 | X169: 0 | Y169: 0 | Z169: 0 | AA169: 0 | AB169: 0 | AC169: 0 | AD169: 0 | AE169: 0 | AF169: 0 | AG169: 0 | AH169: 0 | AI169: 0 | AJ169: 0 | AK169: 0 | AL169: 0 | AM169: 0 | AN169: 0 | AO169: 0 | AP169: 0 | AQ169: 0 | AR169: 0 | AS169: 0 | AT169: 0 | AU169: 0 | AV169: 0 | AW169: 0 | AX169: 0 | AY169: 0 | AZ169: 0 | BA169: 0 | BB169: 0 | BC169: 0 | BD169: 0 | BE169: 0 | BF169: 0 | BG169: 0 | BH169: 0 | BI169: 0 | BJ169: 1
A170: SG_1367 | B170: 14_0903_02_30cm_scaffold_430511 | C170: 1 | D170: 8 | E170: 3 | F170: 0 | G170: 0 | H170: 0 | I170: 0 | J170: 0 | K170: 0 | L170: 0 | M170: 0 | N170: 0 | O170: 4 | P170: 6 | Q170: 0 | R170: 0 | S170: 0 | T170: 0 | U170: 0 | V170: 0 | W170: 0 | X170: 0 | Y170: 0 | Z170: 0 | AA170: 0 | AB170: 0 | AC170: 0 | AD170: 0 | AE170: 0 | AF170: 0 | AG170: 0 | AH170: 2 | AI170: 0 | AJ170: 0 | AK170: 0 | AL170: 0 | AM170: 0 | AN170: 0 | AO170: 0 | AP170: 0 | AQ170: 0 | AR170: 0 | AS170: 2 | AT170: 0 | AU170: 1 | AV170: 0 | AW170: 0 | AX170: 0 | AY170: 0 | AZ170: 0 | BA170: 0 | BB170: 0 | BC170: 0 | BD170: 0 | BE170: 2 | BF170: 0 | BG170: 0 | BH170: 1 | BI170: 1 | BJ170: 1
A171: SG_647 | B171: 14_0903_02_30cm_scaffold_43200 | C171: 49 | D171: 147 | E171: 21 | F171: 2 | G171: 0 | H171: 3 | I171: 0 | J171: 0 | K171: 0 | L171: 0 | M171: 0 | N171: 0 | O171: 62 | P171: 77 | Q171: 0 | R171: 6 | S171: 5 | T171: 4 | U171: 19 | V171: 0 | W171: 0 | X171: 0 | Y171: 15 | Z171: 13 | AA171: 0 | AB171: 0 | AC171: 0 | AD171: 0 | AE171: 0 | AF171: 0 | AG171: 9 | AH171: 0 | AI171: 0 | AJ171: 0 | AK171: 0 | AL171: 0 | AM171: 0 | AN171: 0 | AO171: 0 | AP171: 0 | AQ171: 0 | AR171: 0 | AS171: 30 | AT171: 14 | AU171: 7 | AV171: 0 | AW171: 0 | AX171: 0 | AY171: 0 | AZ171: 0 | BA171: 0 | BB171: 0 | BC171: 0 | BD171: 0 | BE171: 15 | BF171: 4 | BG171: 1 | BH171: 0 | BI171: 2 | BJ171: 0
A172: SG_669 | B172: 14_0903_02_30cm_scaffold_4409 | C172: 98 | D172: 309 | E172: 63 | F172: 11 | G172: 2 | H172: 1 | I172: 0 | J172: 0 | K172: 0 | L172: 0 | M172: 0 | N172: 0 | O172: 24 | P172: 107 | Q172: 0 | R172: 41 | S172: 24 | T172: 11 | U172: 39 | V172: 0 | W172: 0 | X172: 1 | Y172: 19 | Z172: 20 | AA172: 1 | AB172: 0 | AC172: 0 | AD172: 0 | AE172: 0 | AF172: 0 | AG172: 9 | AH172: 4 | AI172: 0 | AJ172: 0 | AK172: 0 | AL172: 0 | AM172: 0 | AN172: 0 | AO172: 0 | AP172: 0 | AQ172: 1 | AR172: 0 | AS172: 34 | AT172: 9 | AU172: 7 | AV172: 0 | AW172: 0 | AX172: 0 | AY172: 0 | AZ172: 0 | BA172: 0 | BB172: 0 | BC172: 0 | BD172: 0 | BE172: 6 | BF172: 7 | BG172: 2 | BH172: 2 | BI172: 2 | BJ172: 2
A173: SG_640 | B173: 14_0903_02_30cm_scaffold_44708 | C173: 15 | D173: 44 | E173: 13 | F173: 0 | G173: 4 | H173: 2 | I173: 4 | J173: 5 | K173: 0 | L173: 0 | M173: 2 | N173: 2 | O173: 3 | P173: 11 | Q173: 0 | R173: 7 | S173: 2 | T173: 2 | U173: 0 | V173: 0 | W173: 0 | X173: 0 | Y173: 0 | Z173: 4 | AA173: 2 | AB173: 0 | AC173: 0 | AD173: 1 | AE173: 0 | AF173: 0 | AG173: 3 | AH173: 0 | AI173: 0 | AJ173: 0 | AK173: 0 | AL173: 0 | AM173: 2 | AN173: 0 | AO173: 0 | AP173: 1 | AQ173: 0 | AR173: 0 | AS173: 3 | AT173: 0 | AU173: 0 | AV173: 0 | AW173: 0 | AX173: 0 | AY173: 1 | AZ173: 0 | BA173: 0 | BB173: 2 | BC173: 0 | BD173: 2 | BE173: 0 | BF173: 2 | BG173: 0 | BH173: 0 | BI173: 1 | BJ173: 0
A174: SG_2730 | B174: 14_0903_02_30cm_scaffold_451022 | C174: 0 | D174: 10 | E174: 0 | F174: 0 | G174: 0 | H174: 0 | I174: 0 | J174: 0 | K174: 0 | L174: 0 | M174: 0 | N174: 0 | O174: 1 | P174: 10 | Q174: 0 | R174: 0 | S174: 0 | T174: 0 | U174: 0 | V174: 0 | W174: 1 | X174: 0 | Y174: 0 | Z174: 0 | AA174: 0 | AB174: 0 | AC174: 0 | AD174: 0 | AE174: 0 | AF174: 0 | AG174: 0 | AH174: 0 | AI174: 0 | AJ174: 0 | AK174: 0 | AL174: 0 | AM174: 0 | AN174: 0 | AO174: 0 | AP174: 0 | AQ174: 0 | AR174: 0 | AS174: 0 | AT174: 0 | AU174: 0 | AV174: 0 | AW174: 0 | AX174: 0 | AY174: 0 | AZ174: 0 | BA174: 0 | BB174: 0 | BC174: 0 | BD174: 0 | BE174: 0 | BF174: 0 | BG174: 0 | BH174: 0 | BI174: 0 | BJ174: 0
A175: SG_2459 | B175: 14_0903_02_30cm_scaffold_45227 | C175: 47 | D175: 32 | E175: 6 | F175: 8 | G175: 10 | H175: 7 | I175: 2 | J175: 4 | K175: 4 | L175: 13 | M175: 7 | N175: 3 | O175: 22 | P175: 40 | Q175: 3 | R175: 7 | S175: 27 | T175: 18 | U175: 29 | V175: 19 | W175: 0 | X175: 5 | Y175: 40 | Z175: 3 | AA175: 53 | AB175: 6 | AC175: 20 | AD175: 10 | AE175: 11 | AF175: 0 | AG175: 48 | AH175: 16 | AI175: 8 | AJ175: 24 | AK175: 26 | AL175: 5 | AM175: 0 | AN175: 3 | AO175: 1 | AP175: 15 | AQ175: 7 | AR175: 0 | AS175: 4 | AT175: 26 | AU175: 10 | AV175: 26 | AW175: 9 | AX175: 10 | AY175: 12 | AZ175: 8 | BA175: 1 | BB175: 6 | BC175: 5 | BD175: 0 | BE175: 17 | BF175: 27 | BG175: 0 | BH175: 27 | BI175: 42 | BJ175: 55
A176: SG_2996 | B176: 14_0903_02_30cm_scaffold_45648 | C176: 1 | D176: 16 | E176: 1 | F176: 2 | G176: 2 | H176: 0 | I176: 0 | J176: 0 | K176: 0 | L176: 0 | M176: 1 | N176: 1 | O176: 3 | P176: 7 | Q176: 0 | R176: 2 | S176: 5 | T176: 0 | U176: 5 | V176: 7 | W176: 1 | X176: 0 | Y176: 0 | Z176: 1 | AA176: 3 | AB176: 0 | AC176: 2 | AD176: 1 | AE176: 2 | AF176: 0 | AG176: 0 | AH176: 0 | AI176: 1 | AJ176: 1 | AK176: 0 | AL176: 0 | AM176: 0 | AN176: 0 | AO176: 0 | AP176: 2 | AQ176: 0 | AR176: 0 | AS176: 2 | AT176: 1 | AU176: 4 | AV176: 3 | AW176: 0 | AX176: 0 | AY176: 1 | AZ176: 0 | BA176: 0 | BB176: 7 | BC176: 2 | BD176: 2 | BE176: 5 | BF176: 1 | BG176: 0 | BH176: 1 | BI176: 3 | BJ176: 2
A177: SG_2068 | B177: 14_0903_02_30cm_scaffold_45870 | C177: 53 | D177: 133 | E177: 23 | F177: 7 | G177: 8 | H177: 1 | I177: 0 | J177: 0 | K177: 0 | L177: 0 | M177: 0 | N177: 0 | O177: 27 | P177: 90 | Q177: 5 | R177: 51 | S177: 24 | T177: 18 | U177: 54 | V177: 3 | W177: 0 | X177: 0 | Y177: 48 | Z177: 8 | AA177: 31 | AB177: 7 | AC177: 0 | AD177: 0 | AE177: 0 | AF177: 0 | AG177: 45 | AH177: 13 | AI177: 3 | AJ177: 3 | AK177: 7 | AL177: 0 | AM177: 1 | AN177: 0 | AO177: 0 | AP177: 0 | AQ177: 0 | AR177: 0 | AS177: 40 | AT177: 29 | AU177: 17 | AV177: 5 | AW177: 3 | AX177: 0 | AY177: 0 | AZ177: 0 | BA177: 0 | BB177: 0 | BC177: 0 | BD177: 0 | BE177: 9 | BF177: 3 | BG177: 4 | BH177: 32 | BI177: 35 | BJ177: 13
A178: SG_1865 | B178: 14_0903_02_30cm_scaffold_48664 | C178: 15 | D178: 41 | E178: 9 | F178: 0 | G178: 0 | H178: 0 | I178: 0 | J178: 1 | K178: 0 | L178: 0 | M178: 0 | N178: 0 | O178: 4 | P178: 16 | Q178: 1 | R178: 5 | S178: 1 | T178: 0 | U178: 5 | V178: 0 | W178: 0 | X178: 0 | Y178: 0 | Z178: 2 | AA178: 0 | AB178: 0 | AC178: 0 | AD178: 0 | AE178: 0 | AF178: 0 | AG178: 4 | AH178: 2 | AI178: 0 | AJ178: 0 | AK178: 0 | AL178: 0 | AM178: 0 | AN178: 0 | AO178: 0 | AP178: 0 | AQ178: 0 | AR178: 0 | AS178: 17 | AT178: 3 | AU178: 0 | AV178: 0 | AW178: 0 | AX178: 0 | AY178: 0 | AZ178: 0 | BA178: 0 | BB178: 0 | BC178: 0 | BD178: 0 | BE178: 3 | BF178: 0 | BG178: 0 | BH178: 1 | BI178: 0 | BJ178: 0
A179: SG_100 | B179: 14_0903_02_30cm_scaffold_48751 | C179: 7 | D179: 26 | E179: 0 | F179: 3 | G179: 1 | H179: 2 | I179: 0 | J179: 1 | K179: 1 | L179: 1 | M179: 0 | N179: 0 | O179: 4 | P179: 14 | Q179: 1 | R179: 5 | S179: 9 | T179: 3 | U179: 6 | V179: 7 | W179: 0 | X179: 0 | Y179: 9 | Z179: 2 | AA179: 8 | AB179: 7 | AC179: 0 | AD179: 2 | AE179: 0 | AF179: 0 | AG179: 5 | AH179: 3 | AI179: 1 | AJ179: 5 | AK179: 0 | AL179: 0 | AM179: 0 | AN179: 2 | AO179: 0 | AP179: 0 | AQ179: 0 | AR179: 0 | AS179: 6 | AT179: 8 | AU179: 2 | AV179: 3 | AW179: 3 | AX179: 0 | AY179: 2 | AZ179: 4 | BA179: 0 | BB179: 0 | BC179: 3 | BD179: 0 | BE179: 8 | BF179: 5 | BG179: 0 | BH179: 7 | BI179: 7 | BJ179: 4
A180: SG_23 | B180: 14_0903_02_30cm_scaffold_5092 | C180: 56 | D180: 220 | E180: 44 | F180: 13 | G180: 6 | H180: 9 | I180: 0 | J180: 0 | K180: 1 | L180: 3 | M180: 2 | N180: 1 | O180: 12 | P180: 47 | Q180: 2 | R180: 48 | S180: 9 | T180: 31 | U180: 21 | V180: 11 | W180: 3 | X180: 0 | Y180: 22 | Z180: 14 | AA180: 7 | AB180: 5 | AC180: 7 | AD180: 2 | AE180: 0 | AF180: 0 | AG180: 8 | AH180: 5 | AI180: 6 | AJ180: 14 | AK180: 0 | AL180: 1 | AM180: 4 | AN180: 0 | AO180: 0 | AP180: 1 | AQ180: 0 | AR180: 0 | AS180: 46 | AT180: 6 | AU180: 10 | AV180: 3 | AW180: 7 | AX180: 4 | AY180: 0 | AZ180: 0 | BA180: 0 | BB180: 2 | BC180: 1 | BD180: 0 | BE180: 4 | BF180: 4 | BG180: 3 | BH180: 9 | BI180: 14 | BJ180: 8
A181: SG_323 | B181: 14_0903_02_30cm_scaffold_51096 | C181: 2 | D181: 20 | E181: 3 | F181: 6 | G181: 4 | H181: 12 | I181: 2 | J181: 6 | K181: 7 | L181: 14 | M181: 3 | N181: 15 | O181: 6 | P181: 13 | Q181: 6 | R181: 14 | S181: 9 | T181: 6 | U181: 7 | V181: 9 | W181: 7 | X181: 4 | Y181: 10 | Z181: 3 | AA181: 14 | AB181: 4 | AC181: 9 | AD181: 3 | AE181: 3 | AF181: 6 | AG181: 11 | AH181: 1 | AI181: 7 | AJ181: 9 | AK181: 1 | AL181: 3 | AM181: 9 | AN181: 5 | AO181: 4 | AP181: 6 | AQ181: 1 | AR181: 3 | AS181: 6 | AT181: 4 | AU181: 12 | AV181: 5 | AW181: 7 | AX181: 2 | AY181: 13 | AZ181: 5 | BA181: 0 | BB181: 5 | BC181: 5 | BD181: 4 | BE181: 4 | BF181: 10 | BG181: 4 | BH181: 7 | BI181: 10 | BJ181: 9
A182: SG_1225 | B182: 14_0903_02_30cm_scaffold_51368 | C182: 1 | D182: 11 | E182: 1 | F182: 4 | G182: 3 | H182: 3 | I182: 4 | J182: 1 | K182: 3 | L182: 7 | M182: 5 | N182: 2 | O182: 5 | P182: 8 | Q182: 4 | R182: 7 | S182: 6 | T182: 1 | U182: 2 | V182: 7 | W182: 0 | X182: 3 | Y182: 9 | Z182: 9 | AA182: 1 | AB182: 8 | AC182: 2 | AD182: 2 | AE182: 0 | AF182: 2 | AG182: 5 | AH182: 1 | AI182: 7 | AJ182: 6 | AK182: 1 | AL182: 1 | AM182: 3 | AN182: 7 | AO182: 0 | AP182: 2 | AQ182: 0 | AR182: 1 | AS182: 4 | AT182: 1 | AU182: 11 | AV182: 3 | AW182: 1 | AX182: 1 | AY182: 4 | AZ182: 0 | BA182: 1 | BB182: 2 | BC182: 1 | BD182: 1 | BE182: 0 | BF182: 3 | BG182: 7 | BH182: 6 | BI182: 5 | BJ182: 4
A183: SG_1158 | B183: 14_0903_02_30cm_scaffold_52601 | C183: 15 | D183: 62 | E183: 15 | F183: 0 | G183: 0 | H183: 0 | I183: 0 | J183: 0 | K183: 0 | L183: 0 | M183: 0 | N183: 0 | O183: 5 | P183: 24 | Q183: 0 | R183: 0 | S183: 0 | T183: 0 | U183: 3 | V183: 0 | W183: 5 | X183: 0 | Y183: 0 | Z183: 0 | AA183: 0 | AB183: 0 | AC183: 0 | AD183: 2 | AE183: 0 | AF183: 0 | AG183: 0 | AH183: 0 | AI183: 0 | AJ183: 0 | AK183: 0 | AL183: 0 | AM183: 7 | AN183: 2 | AO183: 2 | AP183: 0 | AQ183: 0 | AR183: 0 | AS183: 5 | AT183: 0 | AU183: 2 | AV183: 0 | AW183: 0 | AX183: 0 | AY183: 0 | AZ183: 0 | BA183: 0 | BB183: 0 | BC183: 0 | BD183: 0 | BE183: 0 | BF183: 0 | BG183: 0 | BH183: 0 | BI183: 0 | BJ183: 0
A184: SG_210 | B184: 14_0903_02_30cm_scaffold_52634 | C184: 9 | D184: 27 | E184: 3 | F184: 5 | G184: 6 | H184: 2 | I184: 0 | J184: 0 | K184: 0 | L184: 0 | M184: 0 | N184: 0 | O184: 0 | P184: 7 | Q184: 3 | R184: 3 | S184: 3 | T184: 1 | U184: 10 | V184: 3 | W184: 0 | X184: 0 | Y184: 2 | Z184: 0 | AA184: 5 | AB184: 2 | AC184: 2 | AD184: 0 | AE184: 0 | AF184: 0 | AG184: 2 | AH184: 8 | AI184: 3 | AJ184: 2 | AK184: 3 | AL184: 0 | AM184: 0 | AN184: 0 | AO184: 0 | AP184: 0 | AQ184: 0 | AR184: 0 | AS184: 7 | AT184: 5 | AU184: 5 | AV184: 4 | AW184: 4 | AX184: 1 | AY184: 0 | AZ184: 0 | BA184: 0 | BB184: 0 | BC184: 0 | BD184: 0 | BE184: 1 | BF184: 1 | BG184: 1 | BH184: 5 | BI184: 7 | BJ184: 5
A185: SG_2823 | B185: 14_0903_02_30cm_scaffold_528102 | C185: 0 | D185: 21 | E185: 1 | F185: 0 | G185: 0 | H185: 0 | I185: 0 | J185: 0 | K185: 0 | L185: 0 | M185: 0 | N185: 0 | O185: 1 | P185: 1 | Q185: 0 | R185: 0 | S185: 0 | T185: 0 | U185: 0 | V185: 0 | W185: 0 | X185: 0 | Y185: 0 | Z185: 5 | AA185: 0 | AB185: 0 | AC185: 0 | AD185: 0 | AE185: 0 | AF185: 0 | AG185: 0 | AH185: 0 | AI185: 0 | AJ185: 0 | AK185: 0 | AL185: 0 | AM185: 0 | AN185: 0 | AO185: 0 | AP185: 0 | AQ185: 0 | AR185: 0 | AS185: 4 | AT185: 1 | AU185: 0 | AV185: 0 | AW185: 0 | AX185: 0 | AY185: 0 | AZ185: 0 | BA185: 0 | BB185: 0 | BC185: 0 | BD185: 0 | BE185: 0 | BF185: 0 | BG185: 0 | BH185: 0 | BI185: 0 | BJ185: 0
A186: SG_27 | B186: 14_0903_02_30cm_scaffold_5433 | C186: 233 | D186: 759 | E186: 173 | F186: 42 | G186: 26 | H186: 28 | I186: 1 | J186: 0 | K186: 2 | L186: 0 | M186: 0 | N186: 0 | O186: 149 | P186: 432 | Q186: 6 | R186: 180 | S186: 79 | T186: 82 | U186: 189 | V186: 63 | W186: 3 | X186: 0 | Y186: 135 | Z186: 86 | AA186: 37 | AB186: 6 | AC186: 5 | AD186: 8 | AE186: 1 | AF186: 0 | AG186: 111 | AH186: 32 | AI186: 4 | AJ186: 34 | AK186: 9 | AL186: 2 | AM186: 0 | AN186: 0 | AO186: 0 | AP186: 0 | AQ186: 1 | AR186: 0 | AS186: 144 | AT186: 75 | AU186: 16 | AV186: 34 | AW186: 24 | AX186: 2 | AY186: 0 | AZ186: 0 | BA186: 0 | BB186: 1 | BC186: 0 | BD186: 0 | BE186: 45 | BF186: 16 | BG186: 6 | BH186: 53 | BI186: 57 | BJ186: 38
A187: SG_1321 | B187: 14_0903_02_30cm_scaffold_55520 | C187: 5 | D187: 28 | E187: 8 | F187: 2 | G187: 0 | H187: 0 | I187: 2 | J187: 0 | K187: 0 | L187: 1 | M187: 0 | N187: 0 | O187: 3 | P187: 2 | Q187: 0 | R187: 2 | S187: 0 | T187: 1 | U187: 3 | V187: 2 | W187: 1 | X187: 0 | Y187: 1 | Z187: 1 | AA187: 4 | AB187: 0 | AC187: 1 | AD187: 0 | AE187: 1 | AF187: 0 | AG187: 3 | AH187: 1 | AI187: 0 | AJ187: 1 | AK187: 0 | AL187: 0 | AM187: 0 | AN187: 0 | AO187: 0 | AP187: 0 | AQ187: 0 | AR187: 0 | AS187: 3 | AT187: 1 | AU187: 0 | AV187: 0 | AW187: 0 | AX187: 0 | AY187: 0 | AZ187: 0 | BA187: 0 | BB187: 1 | BC187: 0 | BD187: 0 | BE187: 3 | BF187: 1 | BG187: 0 | BH187: 0 | BI187: 0 | BJ187: 0
A188: SG_634 | B188: 14_0903_02_30cm_scaffold_56206 | C188: 35 | D188: 151 | E188: 25 | F188: 1 | G188: 0 | H188: 1 | I188: 0 | J188: 0 | K188: 1 | L188: 0 | M188: 0 | N188: 0 | O188: 5 | P188: 28 | Q188: 2 | R188: 0 | S188: 10 | T188: 1 | U188: 13 | V188: 1 | W188: 1 | X188: 1 | Y188: 0 | Z188: 3 | AA188: 1 | AB188: 2 | AC188: 0 | AD188: 3 | AE188: 0 | AF188: 0 | AG188: 7 | AH188: 6 | AI188: 0 | AJ188: 2 | AK188: 1 | AL188: 4 | AM188: 0 | AN188: 2 | AO188: 0 | AP188: 0 | AQ188: 0 | AR188: 0 | AS188: 13 | AT188: 5 | AU188: 5 | AV188: 1 | AW188: 3 | AX188: 1 | AY188: 2 | AZ188: 1 | BA188: 0 | BB188: 0 | BC188: 0 | BD188: 0 | BE188: 2 | BF188: 0 | BG188: 1 | BH188: 1 | BI188: 7 | BJ188: 3
A189: SG_2336 | B189: 14_0903_02_30cm_scaffold_58 | C189: 3907 | D189: 10523 | E189: 2837 | F189: 13 | G189: 10 | H189: 22 | I189: 10 | J189: 2 | K189: 4 | L189: 12 | M189: 1 | N189: 9 | O189: 11 | P189: 40 | Q189: 10 | R189: 9 | S189: 11 | T189: 10 | U189: 2 | V189: 5 | W189: 63 | X189: 10 | Y189: 8 | Z189: 3 | AA189: 14 | AB189: 10 | AC189: 13 | AD189: 7 | AE189: 8 | AF189: 9 | AG189: 9 | AH189: 5 | AI189: 4 | AJ189: 8 | AK189: 7 | AL189: 3 | AM189: 7 | AN189: 14 | AO189: 5 | AP189: 7 | AQ189: 4 | AR189: 6 | AS189: 12 | AT189: 10 | AU189: 6 | AV189: 13 | AW189: 4 | AX189: 6 | AY189: 9 | AZ189: 14 | BA189: 10 | BB189: 8 | BC189: 5 | BD189: 9 | BE189: 7 | BF189: 12 | BG189: 10 | BH189: 5 | BI189: 20 | BJ189: 25
A190: SG_2999 | B190: 14_0903_02_30cm_scaffold_588476 | C190: 1 | D190: 6 | E190: 4 | F190: 0 | G190: 2 | H190: 0 | I190: 0 | J190: 0 | K190: 0 | L190: 0 | M190: 0 | N190: 0 | O190: 0 | P190: 0 | Q190: 0 | R190: 0 | S190: 1 | T190: 0 | U190: 1 | V190: 0 | W190: 0 | X190: 0 | Y190: 0 | Z190: 0 | AA190: 0 | AB190: 0 | AC190: 0 | AD190: 0 | AE190: 0 | AF190: 0 | AG190: 0 | AH190: 0 | AI190: 2 | AJ190: 0 | AK190: 0 | AL190: 0 | AM190: 0 | AN190: 0 | AO190: 0 | AP190: 0 | AQ190: 0 | AR190: 0 | AS190: 0 | AT190: 0 | AU190: 1 | AV190: 1 | AW190: 0 | AX190: 0 | AY190: 0 | AZ190: 0 | BA190: 0 | BB190: 0 | BC190: 0 | BD190: 0 | BE190: 0 | BF190: 0 | BG190: 0 | BH190: 0 | BI190: 1 | BJ190: 1
A191: SG_1208 | B191: 14_0903_02_30cm_scaffold_59997 | C191: 16 | D191: 62 | E191: 17 | F191: 0 | G191: 8 | H191: 10 | I191: 0 | J191: 0 | K191: 7 | L191: 0 | M191: 0 | N191: 0 | O191: 12 | P191: 35 | Q191: 7 | R191: 7 | S191: 16 | T191: 11 | U191: 32 | V191: 3 | W191: 0 | X191: 0 | Y191: 8 | Z191: 6 | AA191: 20 | AB191: 13 | AC191: 1 | AD191: 2 | AE191: 0 | AF191: 0 | AG191: 32 | AH191: 19 | AI191: 23 | AJ191: 5 | AK191: 5 | AL191: 6 | AM191: 0 | AN191: 0 | AO191: 0 | AP191: 0 | AQ191: 0 | AR191: 0 | AS191: 11 | AT191: 10 | AU191: 31 | AV191: 2 | AW191: 5 | AX191: 7 | AY191: 0 | AZ191: 0 | BA191: 0 | BB191: 0 | BC191: 0 | BD191: 0 | BE191: 2 | BF191: 4 | BG191: 0 | BH191: 6 | BI191: 28 | BJ191: 13
A192: SG_3098 | B192: 14_0903_02_30cm_scaffold_603668 | C192: 2 | D192: 5 | E192: 1 | F192: 0 | G192: 0 | H192: 0 | I192: 0 | J192: 0 | K192: 0 | L192: 0 | M192: 0 | N192: 0 | O192: 3 | P192: 0 | Q192: 0 | R192: 0 | S192: 1 | T192: 0 | U192: 6 | V192: 0 | W192: 0 | X192: 0 | Y192: 2 | Z192: 0 | AA192: 2 | AB192: 0 | AC192: 0 | AD192: 0 | AE192: 0 | AF192: 0 | AG192: 0 | AH192: 0 | AI192: 0 | AJ192: 0 | AK192: 0 | AL192: 0 | AM192: 0 | AN192: 0 | AO192: 0 | AP192: 0 | AQ192: 0 | AR192: 0 | AS192: 3 | AT192: 0 | AU192: 0 | AV192: 1 | AW192: 0 | AX192: 0 | AY192: 0 | AZ192: 0 | BA192: 0 | BB192: 0 | BC192: 0 | BD192: 0 | BE192: 0 | BF192: 0 | BG192: 0 | BH192: 0 | BI192: 2 | BJ192: 0
A193: SG_56 | B193: 14_0903_02_30cm_scaffold_61845 | C193: 3 | D193: 53 | E193: 10 | F193: 6 | G193: 7 | H193: 9 | I193: 0 | J193: 0 | K193: 0 | L193: 0 | M193: 0 | N193: 0 | O193: 0 | P193: 2 | Q193: 0 | R193: 0 | S193: 1 | T193: 1 | U193: 7 | V193: 4 | W193: 0 | X193: 0 | Y193: 11 | Z193: 2 | AA193: 10 | AB193: 7 | AC193: 1 | AD193: 0 | AE193: 0 | AF193: 0 | AG193: 7 | AH193: 6 | AI193: 5 | AJ193: 8 | AK193: 6 | AL193: 1 | AM193: 0 | AN193: 0 | AO193: 0 | AP193: 0 | AQ193: 0 | AR193: 0 | AS193: 6 | AT193: 10 | AU193: 6 | AV193: 6 | AW193: 10 | AX193: 5 | AY193: 0 | AZ193: 0 | BA193: 0 | BB193: 0 | BC193: 0 | BD193: 0 | BE193: 1 | BF193: 0 | BG193: 0 | BH193: 2 | BI193: 3 | BJ193: 2
A194: SG_2920 | B194: 14_0903_02_30cm_scaffold_626916 | C194: 0 | D194: 3 | E194: 0 | F194: 1 | G194: 0 | H194: 1 | I194: 1 | J194: 1 | K194: 3 | L194: 0 | M194: 0 | N194: 1 | O194: 1 | P194: 5 | Q194: 1 | R194: 3 | S194: 3 | T194: 3 | U194: 2 | V194: 2 | W194: 0 | X194: 0 | Y194: 1 | Z194: 3 | AA194: 1 | AB194: 1 | AC194: 3 | AD194: 1 | AE194: 0 | AF194: 0 | AG194: 2 | AH194: 2 | AI194: 0 | AJ194: 1 | AK194: 2 | AL194: 1 | AM194: 0 | AN194: 0 | AO194: 0 | AP194: 0 | AQ194: 0 | AR194: 0 | AS194: 0 | AT194: 3 | AU194: 1 | AV194: 0 | AW194: 1 | AX194: 3 | AY194: 1 | AZ194: 0 | BA194: 4 | BB194: 0 | BC194: 0 | BD194: 1 | BE194: 0 | BF194: 2 | BG194: 2 | BH194: 2 | BI194: 3 | BJ194: 6
A195: SG_1032 | B195: 14_0903_02_30cm_scaffold_64359 | C195: 14 | D195: 26 | E195: 5 | F195: 3 | G195: 5 | H195: 6 | I195: 2 | J195: 1 | K195: 5 | L195: 1 | M195: 6 | N195: 2 | O195: 1 | P195: 11 | Q195: 5 | R195: 2 | S195: 5 | T195: 3 | U195: 6 | V195: 2 | W195: 0 | X195: 2 | Y195: 6 | Z195: 11 | AA195: 6 | AB195: 3 | AC195: 4 | AD195: 4 | AE195: 0 | AF195: 0 | AG195: 4 | AH195: 11 | AI195: 10 | AJ195: 2 | AK195: 6 | AL195: 6 | AM195: 0 | AN195: 3 | AO195: 1 | AP195: 0 | AQ195: 0 | AR195: 3 | AS195: 2 | AT195: 11 | AU195: 13 | AV195: 4 | AW195: 8 | AX195: 9 | AY195: 4 | AZ195: 5 | BA195: 2 | BB195: 2 | BC195: 0 | BD195: 0 | BE195: 1 | BF195: 9 | BG195: 2 | BH195: 6 | BI195: 13 | BJ195: 5
A196: SG_40 | B196: 14_0903_02_30cm_scaffold_652 | C196: 505 | D196: 1202 | E196: 323 | F196: 83 | G196: 47 | H196: 56 | I196: 1 | J196: 0 | K196: 3 | L196: 0 | M196: 0 | N196: 1 | O196: 79 | P196: 231 | Q196: 6 | R196: 266 | S196: 117 | T196: 114 | U196: 279 | V196: 50 | W196: 0 | X196: 0 | Y196: 223 | Z196: 78 | AA196: 23 | AB196: 28 | AC196: 5 | AD196: 1 | AE196: 0 | AF196: 0 | AG196: 179 | AH196: 68 | AI196: 4 | AJ196: 11 | AK196: 12 | AL196: 0 | AM196: 0 | AN196: 0 | AO196: 1 | AP196: 0 | AQ196: 1 | AR196: 0 | AS196: 203 | AT196: 115 | AU196: 26 | AV196: 24 | AW196: 0 | AX196: 0 | AY196: 3 | AZ196: 2 | BA196: 0 | BB196: 0 | BC196: 0 | BD196: 0 | BE196: 47 | BF196: 28 | BG196: 4 | BH196: 96 | BI196: 95 | BJ196: 36
A197: SG_968 | B197: 14_0903_02_30cm_scaffold_67604 | C197: 17 | D197: 98 | E197: 13 | F197: 0 | G197: 0 | H197: 0 | I197: 0 | J197: 0 | K197: 0 | L197: 0 | M197: 0 | N197: 0 | O197: 42 | P197: 37 | Q197: 2 | R197: 2 | S197: 1 | T197: 0 | U197: 21 | V197: 0 | W197: 0 | X197: 0 | Y197: 15 | Z197: 7 | AA197: 0 | AB197: 2 | AC197: 0 | AD197: 0 | AE197: 0 | AF197: 0 | AG197: 22 | AH197: 7 | AI197: 1 | AJ197: 0 | AK197: 0 | AL197: 0 | AM197: 0 | AN197: 0 | AO197: 0 | AP197: 0 | AQ197: 0 | AR197: 0 | AS197: 12 | AT197: 8 | AU197: 2 | AV197: 0 | AW197: 0 | AX197: 0 | AY197: 0 | AZ197: 0 | BA197: 0 | BB197: 0 | BC197: 0 | BD197: 0 | BE197: 6 | BF197: 4 | BG197: 0 | BH197: 0 | BI197: 1 | BJ197: 0
A198: SG_2314 | B198: 14_0903_02_30cm_scaffold_6837 | C198: 177 | D198: 456 | E198: 89 | F198: 4 | G198: 0 | H198: 0 | I198: 3 | J198: 4 | K198: 0 | L198: 0 | M198: 0 | N198: 0 | O198: 64 | P198: 219 | Q198: 0 | R198: 0 | S198: 0 | T198: 0 | U198: 63 | V198: 0 | W198: 10 | X198: 0 | Y198: 87 | Z198: 115 | AA198: 0 | AB198: 0 | AC198: 0 | AD198: 1 | AE198: 0 | AF198: 0 | AG198: 25 | AH198: 0 | AI198: 0 | AJ198: 0 | AK198: 0 | AL198: 0 | AM198: 4 | AN198: 0 | AO198: 2 | AP198: 0 | AQ198: 0 | AR198: 0 | AS198: 86 | AT198: 32 | AU198: 10 | AV198: 0 | AW198: 0 | AX198: 0 | AY198: 0 | AZ198: 0 | BA198: 0 | BB198: 0 | BC198: 0 | BD198: 0 | BE198: 12 | BF198: 9 | BG198: 2 | BH198: 0 | BI198: 0 | BJ198: 0
A199: SG_1808 | B199: 14_0903_02_30cm_scaffold_68370 | C199: 0 | D199: 144 | E199: 2 | F199: 0 | G199: 0 | H199: 0 | I199: 0 | J199: 0 | K199: 0 | L199: 0 | M199: 0 | N199: 0 | O199: 0 | P199: 0 | Q199: 0 | R199: 0 | S199: 0 | T199: 0 | U199: 0 | V199: 0 | W199: 0 | X199: 0 | Y199: 0 | Z199: 0 | AA199: 0 | AB199: 0 | AC199: 0 | AD199: 0 | AE199: 0 | AF199: 0 | AG199: 0 | AH199: 0 | AI199: 0 | AJ199: 0 | AK199: 0 | AL199: 0 | AM199: 0 | AN199: 0 | AO199: 0 | AP199: 0 | AQ199: 0 | AR199: 0 | AS199: 0 | AT199: 0 | AU199: 0 | AV199: 0 | AW199: 0 | AX199: 0 | AY199: 0 | AZ199: 0 | BA199: 0 | BB199: 0 | BC199: 0 | BD199: 0 | BE199: 0 | BF199: 0 | BG199: 0 | BH199: 0 | BI199: 0 | BJ199: 0
A200: SG_2106 | B200: 14_0903_02_30cm_scaffold_72557 | C200: 12 | D200: 30 | E200: 3 | F200: 2 | G200: 0 | H200: 0 | I200: 1 | J200: 0 | K200: 0 | L200: 0 | M200: 0 | N200: 0 | O200: 8 | P200: 5 | Q200: 0 | R200: 6 | S200: 2 | T200: 0 | U200: 7 | V200: 9 | W200: 0 | X200: 0 | Y200: 3 | Z200: 1 | AA200: 2 | AB200: 0 | AC200: 0 | AD200: 0 | AE200: 0 | AF200: 0 | AG200: 10 | AH200: 0 | AI200: 0 | AJ200: 2 | AK200: 0 | AL200: 0 | AM200: 0 | AN200: 0 | AO200: 0 | AP200: 0 | AQ200: 0 | AR200: 0 | AS200: 8 | AT200: 0 | AU200: 2 | AV200: 0 | AW200: 0 | AX200: 0 | AY200: 0 | AZ200: 0 | BA200: 0 | BB200: 0 | BC200: 0 | BD200: 0 | BE200: 6 | BF200: 2 | BG200: 0 | BH200: 0 | BI200: 0 | BJ200: 0
... 925 more rows

Sheet Supplementary Table 4
A1: Supplementary Table 4|SG Coverage of Reads from Each Sample Normalized to Total Sequencing Depth per Sample
A2: rpS3 SG | B2: Longest rpS3 Scaffold for SG | C2: 14_0903_02_20cm | D2: 14_0903_02_30cm | E2: 14_0903_02_40cm | F2: 14_0903_05_20cm | G2: 14_0903_05_30cm | H2: 14_0903_05_40cm | I2: 14_0903_09_20cm | J2: 14_0903_09_30cm | K2: 14_0903_09_40cm | L2: 14_0903_12_20cm | M2: 14_0903_12_30cm | N2: 14_0903_12_40cm | O2: 14_0903_13_20cm | P2: 14_0903_13_30cm | Q2: 14_0903_13_40cm | R2: 14_0903_16_20cm | S2: 14_0903_16_30cm | T2: 14_0903_16_40cm | U2: 14_0919_02_20cm | V2: 14_0919_05_20cm | W2: 14_0919_09_20cm | X2: 14_0919_12_20cm | Y2: 14_0927_02_20cm | Z2: 14_0927_02_40cm | AA2: 14_0927_05_20cm | AB2: 14_0927_05_40cm | AC2: 14_0927_09_20cm | AD2: 14_0927_09_40cm | AE2: 14_0927_12_20cm | AF2: 14_0927_12_40cm | AG2: 14_0929_02_20cm | AH2: 14_0929_02_30cm | AI2: 14_0929_02_40cm | AJ2: 14_0929_05_20cm | AK2: 14_0929_05_30cm | AL2: 14_0929_05_40cm | AM2: 14_0929_09_20cm | AN2: 14_0929_09_30cm | AO2: 14_0929_09_40cm | AP2: 14_0929_12_20cm | AQ2: 14_0929_12_30cm | AR2: 14_0929_12_40cm | AS2: 14_1009_02_20cm | AT2: 14_1009_02_30cm | AU2: 14_1009_02_40cm | AV2: 14_1009_05_20cm | AW2: 14_1009_05_30cm | AX2: 14_1009_05_40cm | AY2: 14_1009_09_20cm | AZ2: 14_1009_09_30cm | BA2: 14_1009_09_40cm | BB2: 14_1009_12_20cm | BC2: 14_1009_12_30cm | BD2: 14_1009_12_40cm | BE2: 14_1009_13_20cm | BF2: 14_1009_13_30cm | BG2: 14_1009_13_40cm | BH2: 14_1009_16_20cm | BI2: 14_1009_16_30cm | BJ2: 14_1009_16_40cm
A3: SG_2560 | B3: 14_0903_02_20cm_scaffold_102340 | C3: 1.613080758 | D3: 0.18370073 | E3: 0.452716408 | F3: 0.119385478 | G3: 0.428219971 | H3: 0 | I3: 0.184167698 | J3: 0 | K3: 0.272606709 | L3: 0.14414397 | M3: 0 | N3: 0 | O3: 0.406738783 | P3: 0.263567481 | Q3: 0.14488734 | R3: 0 | S3: 0.215237026 | T3: 0.164230993 | U3: 0 | V3: 0.121857003 | W3: 0 | X3: 0.253558184 | Y3: 0.281665412 | Z3: 0.206202589 | AA3: 0.328546429 | AB3: 0 | AC3: 0.692971959 | AD3: 0.083330388 | AE3: 0 | AF3: 0 | AG3: 0.238891479 | AH3: 0.144676122 | AI3: 0.283662767 | AJ3: 0.354317865 | AK3: 0.260843579 | AL3: 0 | AM3: 0.126478437 | AN3: 0 | AO3: 0 | AP3: 0 | AQ3: 0 | AR3: 0.311369836 | AS3: 0.194073415 | AT3: 0.367437315 | AU3: 0.47223963 | AV3: 0.426900346 | AW3: 0.701964826 | AX3: 0 | AY3: 0.123830177 | AZ3: 0.454438624 | BA3: 0.119708567 | BB3: 0 | BC3: 0.310401925 | BD3: 0 | BE3: 0 | BF3: 0.293059828 | BG3: 0 | BH3: 0 | BI3: 0.248329652 | BJ3: 0.045558589
A4: SG_2934 | B4: 14_0903_02_20cm_scaffold_114902 | C4: 0.794834243 | D4: 0.106050045 | E4: 0 | F4: 0 | G4: 0 | H4: 0 | I4: 0 | J4: 0 | K4: 0 | L4: 0 | M4: 0 | N4: 0 | O4: 0 | P4: 0.039327696 | Q4: 0 | R4: 0 | S4: 0 | T4: 0 | U4: 0 | V4: 0 | W4: 0 | X4: 0 | Y4: 0.16432846 | Z4: 0 | AA4: 0 | AB4: 0.166776119 | AC4: 0 | AD4: 0 | AE4: 0 | AF4: 0 | AG4: 0.113064673 | AH4: 0.20816829 | AI4: 0.456884591 | AJ4: 0 | AK4: 0 | AL4: 0.208152633 | AM4: 0 | AN4: 0 | AO4: 0 | AP4: 0 | AQ4: 0 | AR4: 0 | AS4: 0 | AT4: 0 | AU4: 0.225368301 | AV4: 0 | AW4: 0.251250546 | AX4: 0 | AY4: 0 | AZ4: 0 | BA4: 0 | BB4: 0 | BC4: 0 | BD4: 0 | BE4: 0 | BF4: 0 | BG4: 0 | BH4: 0 | BI4: 0 | BJ4: 0.065226177
A5: SG_3122 | B5: 14_0903_02_20cm_scaffold_134006 | C5: 0.725012146 | D5: 0.145536444 | E5: 0.539680338 | F5: 0.287917604 | G5: 0.122883905 | H5: 0 | I5: 0 | J5: 0.161087625 | K5: 0.39855724 | L5: 0.111062861 | M5: 0.114109636 | N5: 0 | O5: 0.388123989 | P5: 0.211650464 | Q5: 0.223271254 | R5: 0.243732482 | S5: 0.248760041 | T5: 0.416948979 | U5: 0.937907922 | V5: 0.282141744 | W5: 0.264394547 | X5: 0 | Y5: 0.326077158 | Z5: 0.159677385 | AA5: 0.591093269 | AB5: 0 | AC5: 0.101219823 | AD5: 0.269844901 | AE5: 0.09934363 | AF5: 0.107516943 | AG5: 0.448248325 | AH5: 0.111472884 | AI5: 0.696120061 | AJ5: 0.318679083 | AK5: 0 | AL5: 0.112021822 | AM5: 0 | AN5: 0 | AO5: 0.329104162 | AP5: 0.104622201 | AQ5: 0.12309997 | AR5: 0.239310536 | AS5: 0 | AT5: 0.141555139 | AU5: 0.727720825 | AV5: 0.548210859 | AW5: 0.676079459 | AX5: 0.210430301 | AY5: 0.095411093 | AZ5: 0.097942586 | BA5: 0 | BB5: 0.402523348 | BC5: 0.119582269 | BD5: 0.10177886 | BE5: 0.741933299 | BF5: 0.301446284 | BG5: 0.230192549 | BH5: 0.108144193 | BI5: 0.266010954 | BJ5: 0.159191523
A6: SG_2656 | B6: 14_0903_02_20cm_scaffold_134164 | C6: 3.081059627 | D6: 1.673386072 | E6: 1.166542055 | F6: 0 | G6: 0 | H6: 0.013161643 | I6: 0 | J6: 0 | K6: 0 | L6: 0 | M6: 0 | N6: 0 | O6: 0.751491754 | P6: 0.136677985 | Q6: 0 | R6: 0 | S6: 0 | T6: 0 | U6: 1.79194408 | V6: 0 | W6: 0 | X6: 0 | Y6: 0.537994099 | Z6: 0 | AA6: 0 | AB6: 0 | AC6: 0 | AD6: 0 | AE6: 0 | AF6: 0 | AG6: 1.257007952 | AH6: 0 | AI6: 0 | AJ6: 0 | AK6: 0.249111713 | AL6: 0 | AM6: 0 | AN6: 0 | AO6: 0 | AP6: 0 | AQ6: 0 | AR6: 0 | AS6: 0 | AT6: 0.350911221 | AU6: 0 | AV6: 0 | AW6: 0.335196405 | AX6: 0 | AY6: 0 | AZ6: 0.242796925 | BA6: 0 | BB6: 0 | BC6: 0 | BD6: 0 | BE6: 0 | BF6: 0.186585989 | BG6: 0 | BH6: 0 | BI6: 0.231743842 | BJ6: 0
A7: SG_280 | B7: 14_0903_02_20cm_scaffold_14409 | C7: 1.588728113 | D7: 2.175462455 | E7: 1.435011487 | F7: 0.088581709 | G7: 0 | H7: 0.058482006 | I7: 0 | J7: 0 | K7: 0 | L7: 0.263717334 | M7: 0 | N7: 0 | O7: 0.082046797 | P7: 0.027920072 | Q7: 0.05890608 | R7: 0.133547995 | S7: 0.310324465 | T7: 0.177859991 | U7: 1.112213995 | V7: 0.20498316 | W7: 0.121491206 | X7: 0 | Y7: 0.625539377 | Z7: 0.445082197 | AA7: 0.197914196 | AB7: 0.047360022 | AC7: 0.153954433 | AD7: 0 | AE7: 0.173772426 | AF7: 0.04113128 | AG7: 0.715459608 | AH7: 0.205870722 | AI7: 0.100911363 | AJ7: 0.227009815 | AK7: 0 | AL7: 0.059109861 | AM7: 0.108242615 | AN7: 0 | AO7: 0.057982089 | AP7: 0.055205349 | AQ7: 0.030691427 | AR7: 0 | AS7: 1.011936137 | AT7: 0.57514013 | AU7: 0.223995299 | AV7: 0.376052338 | AW7: 0.035674266 | AX7: 0.04760688 | AY7: 0 | AZ7: 0.051680758 | BA7: 0 | BB7: 0.078321394 | BC7: 0.070197899 | BD7: 0 | BE7: 0.114638756 | BF7: 0.045871897 | BG7: 0.030366069 | BH7: 0.228255105 | BI7: 0.015089168 | BJ7: 0.027783772
A8: SG_1894 | B8: 14_0903_02_20cm_scaffold_146863 | C8: 0.836203881 | D8: 0.230391535 | E8: 0.506055771 | F8: 0.100877701 | G8: 0.165351711 | H8: 0.220278765 | I8: 0 | J8: 0 | K8: 0 | L8: 0 | M8: 0 | N8: 0.103199119 | O8: 0 | P8: 0.48870884 | Q8: 0.45064832 | R8: 0 | S8: 0.334729744 | T8: 0.170271195 | U8: 0.364752092 | V8: 0 | W8: 0 | X8: 0.234342062 | Y8: 1.287828916 | Z8: 0.214860755 | AA8: 0.340629937 | AB8: 0.36231768 | AC8: 0.136200676 | AD8: 0.458558983 | AE8: 0 | AF8: 0.144674035 | AG8: 0.682307424 | AH8: 0.92998215 | AI8: 0.052937192 | AJ8: 0.285874874 | AK8: 0.270437066 | AL8: 0.301471536 | AM8: 0 | AN8: 0.138716663 | AO8: 0.147859841 | AP8: 0.102064695 | AQ8: 0.496927337 | AR8: 0.322821612 | AS8: 0 | AT8: 1.054282389 | AU8: 0.979215974 | AV8: 0.171139124 | AW8: 1.067110616 | AX8: 0.566307036 | AY8: 0 | AZ8: 0 | BA8: 0 | BB8: 0 | BC8: 0.053904532 | BD8: 0.136952911 | BE8: 0.241911126 | BF8: 0.669456804 | BG8: 0.464618187 | BH8: 0 | BI8: 0.562480995 | BJ8: 0.418730959
A9: SG_1479 | B9: 14_0903_02_20cm_scaffold_1554 | C9: 3.961071938 | D9: 2.066349717 | E9: 1.671348171 | F9: 1.498692528 | G9: 0.922105189 | H9: 0.716233275 | I9: 3.191240034 | J9: 1.119521076 | K9: 0.894313118 | L9: 1.668970079 | M9: 2.228824954 | N9: 1.017680048 | O9: 3.725560894 | P9: 1.159681971 | Q9: 0.544635388 | R9: 2.931296261 | S9: 1.780918178 | T9: 1.101376739 | U9: 4.016343778 | V9: 2.626195444 | W9: 2.239933693 | X9: 2.037878823 | Y9: 4.559181422 | Z9: 0.827305473 | AA9: 1.852234115 | AB9: 0.603719275 | AC9: 1.751130305 | AD9: 0.602529197 | AE9: 3.174125056 | AF9: 0.245016838 | AG9: 3.193171892 | AH9: 1.721892612 | AI9: 0.188483425 | AJ9: 3.530617114 | AK9: 0.334583874 | AL9: 0.02185641 | AM9: 2.742335913 | AN9: 0.904310196 | AO9: 0.135068251 | AP9: 2.370422488 | AQ9: 1.421376364 | AR9: 0.891585666 | AS9: 3.91561048 | AT9: 2.591039918 | AU9: 0.730510332 | AV9: 2.27323355 | AW9: 1.278196722 | AX9: 0.02052837 | AY9: 1.930987349 | AZ9: 0.382188613 | BA9: 0.182009256 | BB9: 2.662655579 | BC9: 1.336662581 | BD9: 0.375314692 | BE9: 4.912005249 | BF9: 1.562959255 | BG9: 0.356493142 | BH9: 3.041754479 | BI9: 0.865856922 | BJ9: 0.178002092
A10: SG_3178 | B10: 14_0903_02_20cm_scaffold_18422 | C10: 0.803346646 | D10: 0.184448904 | E10: 0.729256731 | F10: 0.178369105 | G10: 0.056393344 | H10: 0.15528573 | I10: 0 | J10: 0.089543719 | K10: 0 | L10: 0.14357319 | M10: 0 | N10: 0.099144082 | O10: 0.151923068 | P10: 0.291389115 | Q10: 0.072156808 | R10: 0.23270153 | S10: 0.39821964 | T10: 0 | U10: 0.304865199 | V10: 0.242748949 | W10: 0 | X10: 0.10571195 | Y10: 0.210061869 | Z10: 0.206418161 | AA10: 0.218163635 | AB10: 0.290067511 | AC10: 0.065424448 | AD10: 0.1160845 | AE10: 0.064211752 | AF10: 0.121615646 | AG10: 0 | AH10: 0.288206469 | AI10: 0.141269761 | AJ10: 0.22863938 | AK10: 0 | AL10: 0.289625715 | AM10: 0 | AN10: 0.066633011 | AO10: 0.28409987 | AP10: 0.067623609 | AQ10: 0.159133803 | AR10: 0.232602657 | AS10: 0 | AT10: 0.091495584 | AU10: 0.23518483 | AV10: 0.113743651 | AW10: 0.436990745 | AX10: 0.136013737 | AY10: 0 | AZ10: 0.126612347 | BA10: 0 | BB10: 0.065043751 | BC10: 0.077293199 | BD10: 0 | BE10: 0.280852728 | BF10: 0.535148849 | BG10: 0.241407336 | BH10: 0.489300589 | BI10: 0.374826694 | BJ10: 0.13613456
A11: SG_1297 | B11: 14_0903_02_20cm_scaffold_21561 | C11: 1.019195611 | D11: 0.160462604 | E11: 0 | F11: 0.071767716 | G11: 0 | H11: 0 | I11: 0 | J11: 0.102469124 | K11: 0 | L11: 0.156128115 | M11: 0.088226139 | N11: 0.161990314 | O11: 0.112962844 | P11: 0.05415055 | Q11: 0.086705642 | R11: 0 | S11: 0.227594975 | T11: 0 | U11: 0.190531318 | V11: 0.336569931 | W11: 0.123892067 | X11: 0 | Y11: 0.228812329 | Z11: 0.11223432 | AA11: 0.071172363 | AB11: 0 | AC11: 0.142291132 | AD11: 0 | AE11: 0.209480472 | AF11: 0 | AG11: 0.161453282 | AH11: 0 | AI11: 0 | AJ11: 0 | AK11: 0 | AL11: 0 | AM11: 0 | AN11: 0 | AO11: 0 | AP11: 0.138984997 | AQ11: 0 | AR11: 0.150501008 | AS11: 0 | AT11: 0.198993047 | AU11: 0 | AV11: 0 | AW11: 0 | AX11: 0 | AY11: 0 | AZ11: 0 | BA11: 0 | BB11: 0.212194736 | BC11: 0.084052194 | BD11: 0 | BE11: 0.068335985 | BF11: 0 | BG11: 0 | BH11: 0.046747737 | BI11: 0.026309947 | BJ11: 0.027387216
A12: SG_2344 | B12: 14_0903_02_20cm_scaffold_22072 | C12: 1.547762347 | D12: 0.406133973 | E12: 0.669725016 | F12: 0.040911146 | G12: 0 | H12: 0.062968733 | I12: 0 | J12: 0 | K12: 0 | L12: 0 | M12: 0 | N12: 0 | O12: 0.057182231 | P12: 0.105277155 | Q12: 0 | R12: 0.204952146 | S12: 0.06520177 | T12: 0.045023084 | U12: 0.321492315 | V12: 0 | W12: 0 | X12: 0 | Y12: 0.540519892 | Z12: 0 | AA12: 0.120092424 | AB12: 0.12773865 | AC12: 0.067346484 | AD12: 0 | AE12: 0 | AF12: 0 | AG12: 0.587794117 | AH12: 0.079324433 | AI12: 0.085541161 | AJ12: 0 | AK12: 0.06543067 | AL12: 0 | AM12: 0 | AN12: 0.073358879 | AO12: 0 | AP12: 0 | AQ12: 0.1651228 | AR12: 0 | AS12: 0.638450772 | AT12: 0.201462109 | AU12: 0.158806808 | AV12: 0.078021693 | AW12: 0.096220028 | AX12: 0 | AY12: 0 | AZ12: 0 | BA12: 0 | BB12: 0 | BC12: 0 | BD12: 0 | BE12: 0.154600856 | BF12: 0 | BG12: 0 | BH12: 0.307822906 | BI12: 0.027042026 | BJ12: 0.172482115
A13: SG_2622 | B13: 14_0903_02_20cm_scaffold_23042 | C13: 0.862232867 | D13: 0.267402781 | E13: 0.320373323 | F13: 0 | G13: 0.663675697 | H13: 1.176500764 | I13: 0 | J13: 0.068612593 | K13: 0.58151903 | L13: 0 | M13: 0.097206202 | N13: 0.180646309 | O13: 0.368450412 | P13: 1.043609821 | Q13: 0.659271568 | R13: 0 | S13: 0.448013905 | T13: 0.766019156 | U13: 0.332712797 | V13: 0 | W13: 0.062125642 | X13: 0.047550339 | Y13: 0.4208211 | Z13: 1.66969276 | AA13: 0.179704741 | AB13: 1.410851981 | AC13: 0.043112899 | AD13: 0.267737643 | AE13: 0.201625095 | AF13: 0.729744166 | AG13: 1.072327194 | AH13: 1.783824353 | AI13: 1.570942 | AJ13: 0 | AK13: 1.157152408 | AL13: 1.043978622 | AM13: 0 | AN13: 0.224157021 | AO13: 0.327624404 | AP13: 0.044562085 | AQ13: 0.629188607 | AR13: 0.516038317 | AS13: 0 | AT13: 1.090098452 | AU13: 1.507183302 | AV13: 0.140100776 | AW13: 0.781824422 | AX13: 1.523921919 | AY13: 0 | AZ13: 0.110758674 | BA13: 0.340894214 | BB13: 0.04286203 | BC13: 0.198642902 | BD13: 0.553809173 | BE13: 0.462685422 | BF13: 0.809327775 | BG13: 0.974338938 | BH13: 0.14302319 | BI13: 1.387313566 | BJ13: 1.579026231
A14: SG_1814 | B14: 14_0903_02_20cm_scaffold_2358 | C14: 2.597407779 | D14: 0.994159981 | E14: 0.822784302 | F14: 0.253133202 | G14: 0.270502153 | H14: 0.190890794 | I14: 0.315347435 | J14: 0.129003846 | K14: 0.210471593 | L14: 0.639051866 | M14: 0.508200651 | N14: 0.074547318 | O14: 0.589144983 | P14: 0.298652124 | Q14: 0.136448565 | R14: 0.824649148 | S14: 0.415860415 | T14: 0.167332695 | U14: 1.280062464 | V14: 0.389299151 | W14: 0.199383938 | X14: 0.40980133 | Y14: 1.0835259 | Z14: 0.276208883 | AA14: 0.84688817 | AB14: 0.329200543 | AC14: 0.390607384 | AD14: 0.165041404 | AE14: 0.434283878 | AF14: 0.145944284 | AG14: 1.729069882 | AH14: 0.778999837 | AI14: 0.106659569 | AJ14: 1.073680712 | AK14: 0.408613719 | AL14: 0.051919931 | AM14: 0.214615972 | AN14: 0.489564723 | AO14: 0.043999428 | AP14: 0.693841425 | AQ14: 0.295746546 | AR14: 0.240159299 | AS14: 0.670455534 | AT14: 0.84624464 | AU14: 0.194260288 | AV14: 0.766316129 | AW14: 0.730923608 | AX14: 0.249197403 | AY14: 0.264754035 | AZ14: 0.156870775 | BA14: 0.046749933 | BB14: 0.564117539 | BC14: 0.3830604 | BD14: 0.166071717 | BE14: 1.255418686 | BF14: 0.438511402 | BG14: 0.072816338 | BH14: 1.667798531 | BI14: 0.430167676 | BJ14: 0.28213346
A15: SG_1817 | B15: 14_0903_02_20cm_scaffold_24347 | C15: 1.028701306 | D15: 0.172716986 | E15: 0 | F15: 0.167023894 | G15: 0.361463744 | H15: 0.131751568 | I15: 0.257656177 | J15: 0.097497987 | K15: 0.317820857 | L15: 1.327606664 | M15: 0 | N15: 0.046418999 | O15: 0.436993427 | P15: 0.142256217 | Q15: 0.171958667 | R15: 0.598354749 | S15: 0.401748412 | T15: 0.173471914 | U15: 0.109377077 | V15: 0.676243806 | W15: 0.805989103 | X15: 0.404736389 | Y15: 0.590759258 | Z15: 0.193288882 | AA15: 0.459646387 | AB15: 0.652154085 | AC15: 0.183789331 | AD15: 0 | AE15: 0.70048593 | AF15: 0.050758055 | AG15: 0.482757023 | AH15: 0 | AI15: 0.198426394 | AJ15: 0.568674309 | AK15: 0.273087827 | AL15: 0.067801 | AM15: 0.63317591 | AN15: 0.124789604 | AO15: 0 | AP15: 0.337191742 | AQ15: 0.147521937 | AR15: 0.056993068 | AS15: 0.679691487 | AT15: 0.514055913 | AU15: 0.073408614 | AV15: 1.128132261 | AW15: 0.594152359 | AX15: 0.254725098 | AY15: 0.750716031 | AZ15: 0.059279569 | BA15: 0.136030006 | BB15: 0.913599411 | BC15: 0 | BD15: 0.123202932 | BE15: 1.058859547 | BF15: 0.13666652 | BG15: 0.069661807 | BH15: 0.32727036 | BI15: 0.161002637 | BJ15: 0.193231897
A16: SG_2817 | B16: 14_0903_02_20cm_scaffold_291342 | C16: 1.100745843 | D16: 0.80874224 | E16: 1.665379693 | F16: 0 | G16: 0.652987431 | H16: 0.470215602 | I16: 0 | J16: 0 | K16: 0.744093439 | L16: 0 | M16: 0 | N16: 0.135847254 | O16: 0.142335069 | P16: 0.703862345 | Q16: 0.877959227 | R16: 0.255078171 | S16: 0.587500064 | T16: 0.655604504 | U16: 0.800242139 | V16: 0 | W16: 0 | X16: 0 | Y16: 0.384409806 | Z16: 1.697005395 | AA16: 0.298927886 | AB16: 1.694729356 | AC16: 0 | AD16: 0.581360716 | AE16: 0.029914207 | AF16: 0.190443199 | AG16: 0.89816261 | AH16: 2.310168515 | AI16: 1.161407241 | AJ16: 0 | AK16: 1.743474239 | AL16: 1.11910361 | AM16: 0 | AN16: 0.182601149 | AO16: 1.36245808 | AP16: 0.185315784 | AQ16: 0 | AR16: 0.849899302 | AS16: 0.264866472 | AT16: 2.213986178 | AU16: 3.411556848 | AV16: 0.388415173 | AW16: 1.14124583 | AX16: 1.285925866 | AY16: 0 | AZ16: 0.34696856 | BA16: 0.206804068 | BB16: 0 | BC16: 0 | BD16: 0 | BE16: 0.384824502 | BF16: 1.733162675 | BG16: 1.203842659 | BH16: 0.191554237 | BI16: 0.672779642 | BJ16: 0.062177207
A17: SG_1317 | B17: 14_0903_02_20cm_scaffold_32140 | C17: 2.281094651 | D17: 0.7075012 | E17: 0.307889642 | F17: 0.131293532 | G17: 0 | H17: 0 | I17: 0.128188244 | J17: 0.128421949 | K17: 0 | L17: 0 | M17: 0 | N17: 0 | O17: 0.537902951 | P17: 0.205489219 | Q17: 0 | R17: 0.659723746 | S17: 0.818732236 | T17: 0.114311483 | U17: 1.528843359 | V17: 0.084817454 | W17: 0.156044933 | X17: 0 | Y17: 1.938940809 | Z17: 0.144246663 | AA17: 0.377706011 | AB17: 0 | AC17: 0.182876514 | AD17: 0.148856626 | AE17: 0 | AF17: 0 | AG17: 1.090885977 | AH17: 0.402801976 | AI17: 0.296161319 | AJ17: 0.446458451 | AK17: 0.340647807 | AL17: 0 | AM17: 0.088034161 | AN17: 0 | AO17: 0 | AP17: 0 | AQ17: 0 | AR17: 0 | AS17: 1.248842596 | AT17: 0.497436449 | AU17: 0.109566028 | AV17: 0.291940136 | AW17: 0.209790996 | AX17: 0.045622795 | AY17: 0 | AZ17: 0 | BA17: 0 | BB17: 0 | BC17: 0 | BD17: 0 | BE17: 1.125563341 | BF17: 0.13581776 | BG17: 0 | BH17: 0.772266932 | BI17: 0.228117619 | BJ17: 0.088710515
A18: SG_993 | B18: 14_0903_02_20cm_scaffold_344874 | C18: 1.617532683 | D18: 0 | E18: 0.367088292 | F18: 0.359144908 | G18: 0 | H18: 0 | I18: 0 | J18: 0 | K18: 0.205019305 | L18: 0 | M18: 0 | N18: 0 | O18: 0 | P18: 0 | Q18: 0 | R18: 0 | S18: 0.123023703 | T18: 0 | U18: 0 | V18: 0 | W18: 0 | X18: 0 | Y18: 0 | Z18: 0 | AA18: 0 | AB18: 0.175214652 | AC18: 0 | AD18: 0 | AE18: 0 | AF18: 0 | AG18: 0 | AH18: 0.436314303 | AI18: 0 | AJ18: 0 | AK18: 0 | AL18: 0.480012991 | AM18: 0 | AN18: 0 | AO18: 0 | AP18: 0 | AQ18: 0 | AR18: 0 | AS18: 0 | AT18: 0 | AU18: 0 | AV18: 0 | AW18: 0 | AX18: 0.205397009 | AY18: 0 | AZ18: 0 | BA18: 0 | BB18: 0 | BC18: 0 | BD18: 0 | BE18: 0 | BF18: 0.14693432 | BG18: 0.224686563 | BH18: 0 | BI18: 0 | BJ18: 0.11204081
A19: SG_2454 | B19: 14_0903_02_20cm_scaffold_34968 | C19: 1.136628407 | D19: 0.793479818 | E19: 0.696378665 | F19: 0 | G19: 0.555574292 | H19: 0.430927023 | I19: 0 | J19: 0.047724668 | K19: 0.324107017 | L19: 0 | M19: 0.077473738 | N19: 0.047337118 | O19: 0.198391405 | P19: 0.681194925 | Q19: 0.620132986 | R19: 0 | S19: 1.443783116 | T19: 0.710150363 | U19: 0.557981052 | V19: 0 | W19: 0 | X19: 0 | Y19: 1.630516459 | Z19: 1.826242047 | AA19: 0.052081968 | AB19: 0.158438283 | AC19: 0 | AD19: 0 | AE19: 0 | AF19: 0 | AG19: 1.354231192 | AH19: 2.164893221 | AI19: 1.274474413 | AJ19: 0 | AK19: 0.082182229 | AL19: 0 | AM19: 0.060449739 | AN19: 0 | AO19: 0.068161967 | AP19: 0.05747161 | AQ19: 0.076359577 | AR19: 0.074038639 | AS19: 0 | AT19: 2.109562308 | AU19: 0.672996417 | AV19: 0.006767327 | AW19: 0.58420502 | AX19: 0.389644938 | AY19: 0 | AZ19: 0 | BA19: 0 | BB19: 0 | BC19: 0 | BD19: 0 | BE19: 0 | BF19: 0.448770238 | BG19: 0.497277503 | BH19: 0.334077165 | BI19: 1.361111049 | BJ19: 0.969561122
A20: SG_2724 | B20: 14_0903_02_20cm_scaffold_35764 | C20: 0.851451452 | D20: 0.380099335 | E20: 0 | F20: 0 | G20: 0 | H20: 0 | I20: 0 | J20: 0 | K20: 0 | L20: 0 | M20: 0 | N20: 0 | O20: 0 | P20: 0 | Q20: 0 | R20: 0.119883738 | S20: 0.138059058 | T20: 0.210684718 | U20: 0.333228487 | V20: 0.078162495 | W20: 0 | X20: 0 | Y20: 0.157632904 | Z20: 0 | AA20: 0 | AB20: 0.149437683 | AC20: 0 | AD20: 0 | AE20: 0 | AF20: 0 | AG20: 0.337700685 | AH20: 0 | AI20: 0 | AJ20: 0 | AK20: 0 | AL20: 0 | AM20: 0.162253624 | AN20: 0.171640782 | AO20: 0 | AP20: 0 | AQ20: 0 | AR20: 0 | AS20: 0.721385502 | AT20: 0.600995694 | AU20: 0 | AV20: 0.117288734 | AW20: 0 | AX20: 0 | AY20: 0 | AZ20: 0 | BA20: 0 | BB20: 0 | BC20: 0 | BD20: 0 | BE20: 0 | BF20: 0 | BG20: 0 | BH20: 0 | BI20: 0.029895707 | BJ20: 0.004529496
A21: SG_2814 | B21: 14_0903_02_20cm_scaffold_35880 | C21: 0.847966254 | D21: 0.347674087 | E21: 0.577320919 | F21: 0.323834909 | G21: 0.314395523 | H21: 0.135837543 | I21: 0.145220249 | J21: 0 | K21: 0.161217254 | L21: 0.056830332 | M21: 0 | N21: 0 | O21: 0.281865654 | P21: 0.270588866 | Q21: 0.11424683 | R21: 0.747932008 | S21: 0.361289518 | T21: 0.097124791 | U21: 0.70878799 | V21: 0.425664995 | W21: 0.090192947 | X21: 0 | Y21: 1.197948229 | Z21: 0.346025552 | AA21: 0.693649293 | AB21: 0.046156407 | AC21: 0.284088433 | AD21: 0.091899062 | AE21: 0 | AF21: 0 | AG21: 1.656680102 | AH21: 0.456035917 | AI21: 0.213049754 | AJ21: 0.571820061 | AK21: 0.359941496 | AL21: 0 | AM21: 0.149596511 | AN21: 0 | AO21: 0.056227385 | AP21: 0 | AQ21: 0.062989664 | AR21: 0 | AS21: 0.96141803 | AT21: 0.362165426 | AU21: 0.310309378 | AV21: 1.111127307 | AW21: 0.69189323 | AX21: 0 | AY21: 0.048821398 | AZ21: 0.050116751 | BA21: 0 | BB21: 0.189491724 | BC21: 0.061189672 | BD21: 0 | BE21: 0.537504343 | BF21: 0.693252211 | BG21: 0.176682633 | BH21: 1.502395866 | BI21: 0.456573729 | BJ21: 0.227937411
A22: SG_1434 | B22: 14_0903_02_20cm_scaffold_36089 | C22: 2.23404327 | D22: 1.372368405 | E22: 1.878869804 | F22: 0 | G22: 0.153478309 | H22: 0 | I22: 0.098805861 | J22: 0.111159469 | K22: 0 | L22: 0 | M22: 0.71259755 | N22: 0.095788706 | O22: 0.568809558 | P22: 0.105738031 | Q22: 0.553535303 | R22: 0.404686998 | S22: 0.776734561 | T22: 0.197555675 | U22: 1.772927745 | V22: 0.117266746 | W22: 0 | X22: 0 | Y22: 0.832478579 | Z22: 0.176996132 | AA22: 0.11065962 | AB22: 0.168150378 | AC22: 0 | AD22: 0 | AE22: 0 | AF22: 0 | AG22: 0.949652861 | AH22: 0.330662429 | AI22: 0 | AJ22: 0.199010305 | AK22: 0.125508903 | AL22: 0 | AM22: 0 | AN22: 0 | AO22: 0 | AP22: 0.196004983 | AQ22: 0.153748168 | AR22: 0.591041434 | AS22: 0.972100485 | AT22: 0.442879289 | AU22: 0.075741789 | AV22: 0 | AW22: 0.325095137 | AX22: 0 | AY22: 0 | AZ22: 0 | BA22: 0 | BB22: 0 | BC22: 0 | BD22: 0.043220371 | BE22: 1.153227755 | BF22: 0.23971742 | BG22: 0 | BH22: 0 | BI22: 0.071194221 | BJ22: 0.06576365
A23: SG_2782 | B23: 14_0903_02_20cm_scaffold_36267 | C23: 0.930331033 | D23: 0.819017267 | E23: 0.52618678 | F23: 0.429000565 | G23: 0.114619625 | H23: 0 | I23: 0 | J23: 0 | K23: 0.097958675 | L23: 0 | M23: 0 | N23: 0 | O23: 0.08244798 | P23: 0.09347666 | Q23: 0.322796256 | R23: 0.134322483 | S23: 0.278823011 | T23: 0.096194243 | U23: 0.511582313 | V23: 0 | W23: 0.082204429 | X23: 0 | Y23: 0.708496843 | Z23: 0.297877284 | AA23: 0.472240362 | AB23: 0.259525633 | AC23: 0 | AD23: 0.016751887 | AE23: 0 | AF23: 0.094770396 | AG23: 0.671612442 | AH23: 0.83180821 | AI23: 0.581519584 | AJ23: 0.198164693 | AK23: 0.374926816 | AL23: 0.327570026 | AM23: 0 | AN23: 0 | AO23: 0 | AP23: 0.081484368 | AQ23: 0.114821159 | AR23: 0 | AS23: 1.196712125 | AT23: 0.71959166 | AU23: 0.339389801 | AV23: 1.022173005 | AW23: 0.396023871 | AX23: 0.490695713 | AY23: 0 | AZ23: 0.091355678 | BA23: 0.108901659 | BB23: 0 | BC23: 0 | BD23: 0 | BE23: 0.246214946 | BF23: 0.280822166 | BG23: 0 | BH23: 0 | BI23: 0.248120987 | BJ23: 0.265374778
A24: SG_3290 | B24: 14_0903_02_20cm_scaffold_36634 | C24: 1.432514379 | D24: 0.716622193 | E24: 1.403311397 | F24: 0.378137455 | G24: 0.805020778 | H24: 0.299267371 | I24: 0 | J24: 0 | K24: 0 | L24: 0 | M24: 0 | N24: 0 | O24: 0.027417902 | P24: 0.024322161 | Q24: 0.060944379 | R24: 0.078616838 | S24: 0.09053577 | T24: 0 | U24: 0.877545489 | V24: 0.290627542 | W24: 0 | X24: 0 | Y24: 0.733969557 | Z24: 0.958885906 | AA24: 0.684768267 | AB24: 0.188400377 | AC24: 0 | AD24: 0 | AE24: 0 | AF24: 0 | AG24: 0.44291178 | AH24: 0.767388281 | AI24: 0.396731973 | AJ24: 0.430295742 | AK24: 0.170065048 | AL24: 0.293239237 | AM24: 0 | AN24: 0 | AO24: 0 | AP24: 0 | AQ24: 0.055442492 | AR24: 0 | AS24: 1.032665789 | AT24: 0.154556215 | AU24: 0.314512566 | AV24: 0.119712214 | AW24: 0.295269486 | AX24: 0.513507319 | AY24: 0 | AZ24: 0 | BA24: 0.061826276 | BB24: 0 | BC24: 0 | BD24: 0 | BE24: 0 | BF24: 0.09039844 | BG24: 0 | BH24: 0.118076653 | BI24: 0.039209754 | BJ24: 0.019163441
A25: SG_575 | B25: 14_0903_02_20cm_scaffold_36723 | C25: 1.894839129 | D25: 1.216021322 | E25: 0.637790257 | F25: 0 | G25: 0.077838701 | H25: 0 | I25: 0 | J25: 0.102038192 | K25: 0 | L25: 0 | M25: 0 | N25: 0 | O25: 0 | P25: 0.08793534 | Q25: 0 | R25: 0 | S25: 0 | T25: 0 | U25: 0.129559745 | V25: 0 | W25: 0 | X25: 0 | Y25: 0 | Z25: 0 | AA25: 0 | AB25: 0 | AC25: 0 | AD25: 0 | AE25: 0 | AF25: 0 | AG25: 0.233595399 | AH25: 0 | AI25: 0.115160541 | AJ25: 0 | AK25: 0 | AL25: 0 | AM25: 0 | AN25: 0 | AO25: 0 | AP25: 0 | AQ25: 0 | AR25: 0 | AS25: 0 | AT25: 0 | AU25: 0.077525472 | AV25: 0 | AW25: 0 | AX25: 0 | AY25: 0 | AZ25: 0 | BA25: 0 | BB25: 0 | BC25: 0 | BD25: 0 | BE25: 0.06005142 | BF25: 0 | BG25: 0 | BH25: 0 | BI25: 0 | BJ25: 0
A26: SG_1564 | B26: 14_0903_02_20cm_scaffold_37776 | C26: 0.311526936 | D26: 0 | E26: 0 | F26: 0.076086032 | G26: 0 | H26: 0 | I26: 0 | J26: 0.121129674 | K26: 0.157941874 | L26: 0 | M26: 0 | N26: 0 | O26: 0.080364338 | P26: 0.003501308 | Q26: 0 | R26: 0 | S26: 0.062351619 | T26: 0.029021223 | U26: 0.115165109 | V26: 0.070601063 | W26: 0 | X26: 0 | Y26: 0 | Z26: 0.24013849 | AA26: 0 | AB26: 0.042519045 | AC26: 0 | AD26: 0 | AE26: 0 | AF26: 0.080847255 | AG26: 0.228773666 | AH26: 0 | AI26: 0 | AJ26: 0.087864483 | AK26: 0 | AL26: 0 | AM26: 0.080972867 | AN26: 0 | AO26: 0.082627558 | AP26: 0 | AQ26: 0.092564896 | AR26: 0 | AS26: 0 | AT26: 0 | AU26: 0 | AV26: 0 | AW26: 0 | AX26: 0 | AY26: 0 | AZ26: 0 | BA26: 0 | BB26: 0 | BC26: 0 | BD26: 0.214291025 | BE26: 0 | BF26: 0 | BG26: 0 | BH26: 0 | BI26: 0.028575238 | BJ26: 0.052791136
A27: SG_2748 | B27: 14_0903_02_20cm_scaffold_40915 | C27: 2.203500328 | D27: 1.10471569 | E27: 0 | F27: 0 | G27: 0 | H27: 0 | I27: 0 | J27: 0 | K27: 0 | L27: 0 | M27: 0 | N27: 0.22932599 | O27: 0.387248329 | P27: 0.084381829 | Q27: 0.198058068 | R27: 0.215300833 | S27: 0 | T27: 0 | U27: 0 | V27: 0 | W27: 0 | X27: 0 | Y27: 0.216309511 | Z27: 0.636609508 | AA27: 0 | AB27: 0.103772503 | AC27: 0 | AD27: 0.537020307 | AE27: 0 | AF27: 0 | AG27: 0.101080207 | AH27: 0 | AI27: 0 | AJ27: 0.116464806 | AK27: 0 | AL27: 0 | AM27: 0 | AN27: 0 | AO27: 0 | AP27: 0 | AQ27: 0 | AR27: 1.812540999 | AS27: 0 | AT27: 0 | AU27: 0.241776044 | AV27: 0 | AW27: 0 | AX27: 0 | AY27: 0 | AZ27: 0 | BA27: 0 | BB27: 0 | BC27: 0 | BD27: 0 | BE27: 0.027067857 | BF27: 0 | BG27: 0 | BH27: 0 | BI27: 0 | BJ27: 0.139949823
A28: SG_2654 | B28: 14_0903_02_20cm_scaffold_43073 | C28: 0.677669082 | D28: 0.606961131 | E28: 0.621776353 | F28: 0.380201124 | G28: 0.988895663 | H28: 0.75928371 | I28: 0 | J28: 0 | K28: 0 | L28: 0 | M28: 0 | N28: 0 | O28: 0.30257375 | P28: 0.332423974 | Q28: 0.903451865 | R28: 0.186302458 | S28: 0.642613955 | T28: 0.634421383 | U28: 0.224080268 | V28: 0.286785259 | W28: 0 | X28: 0.184570152 | Y28: 0.269550342 | Z28: 1.331846237 | AA28: 1.254869455 | AB28: 1.972842588 | AC28: 0.251018852 | AD28: 0.22269502 | AE28: 0 | AF28: 0 | AG28: 0.585993897 | AH28: 0.699407884 | AI28: 1.5172049 | AJ28: 0.547066173 | AK28: 1.828776926 | AL28: 1.424687595 | AM28: 0 | AN28: 0.085218611 | AO28: 0.350171213 | AP28: 0.172971024 | AQ28: 0 | AR28: 0.198320873 | AS28: 0.247222465 | AT28: 0.676352329 | AU28: 2.073402406 | AV28: 0.38112123 | AW28: 1.958309588 | AX28: 1.632968234 | AY28: 0.078871187 | AZ28: 0.161927673 | BA28: 0.193027872 | BB28: 0.249558202 | BC28: 0 | BD28: 0 | BE28: 0.242452929 | BF28: 0.051642233 | BG28: 0.761150896 | BH28: 0.089396952 | BI28: 1.102311557 | BJ28: 0.711077379
A29: SG_1070 | B29: 14_0903_02_20cm_scaffold_47 | C29: 9.968542386 | D29: 3.809668626 | E29: 2.006443583 | F29: 3.339033282 | G29: 3.411180513 | H29: 1.263656863 | I29: 3.138057628 | J29: 2.652742033 | K29: 5.565021668 | L29: 5.986431876 | M29: 5.129292487 | N29: 1.004803294 | O29: 12.74534313 | P29: 4.806541178 | Q29: 2.872387953 | R29: 3.606071255 | S29: 6.145608264 | T29: 1.78706659 | U29: 13.17431115 | V29: 7.776973444 | W29: 2.476410399 | X29: 8.473230332 | Y29: 4.860147666 | Z29: 0.993833677 | AA29: 7.470352892 | AB29: 0.821473335 | AC29: 4.045741254 | AD29: 3.651986712 | AE29: 10.48820722 | AF29: 1.73134469 | AG29: 12.89002097 | AH29: 4.383112364 | AI29: 0.718458901 | AJ29: 8.424326554 | AK29: 2.969833272 | AL29: 0.601765169 | AM29: 1.783784746 | AN29: 6.042865126 | AO29: 2.169157922 | AP29: 8.128605643 | AQ29: 5.120653502 | AR29: 1.564325163 | AS29: 6.588723771 | AT29: 6.35079589 | AU29: 0.857371835 | AV29: 7.200602011 | AW29: 2.729276233 | AX29: 0.456202478 | AY29: 5.700819308 | AZ29: 3.393322836 | BA29: 1.128082753 | BB29: 4.171131445 | BC29: 2.044797247 | BD29: 1.124573973 | BE29: 3.330425198 | BF29: 1.759045676 | BG29: 3.179474748 | BH29: 6.839404476 | BI29: 2.620116211 | BJ29: 1.20797283
A30: SG_3088 | B30: 14_0903_02_20cm_scaffold_49027 | C30: 1.834816955 | D30: 1.568557737 | E30: 1.796398309 | F30: 0 | G30: 0 | H30: 0.052834205 | I30: 0 | J30: 0 | K30: 0.125411359 | L30: 0 | M30: 0 | N30: 0 | O30: 0 | P30: 0.141535441 | Q30: 0.066654699 | R30: 0 | S30: 0 | T30: 0.027765967 | U30: 0.587244882 | V30: 0 | W30: 0 | X30: 0.190969735 | Y30: 0.073535952 | Z30: 3.531839555 | AA30: 0.050382049 | AB30: 0.696400102 | AC30: 0 | AD30: 0 | AE30: 0 | AF30: 0 | AG30: 0.544962817 | AH30: 1.863610826 | AI30: 3.831084568 | AJ30: 0.069767465 | AK30: 0.119999789 | AL30: 0.067219712 | AM30: 0.064004352 | AN30: 0.068015074 | AO30: 0 | AP30: 0 | AQ30: 0.102532161 | AR30: 0 | AS30: 0 | AT30: 1.892377126 | AU30: 3.279411241 | AV30: 0 | AW30: 0 | AX30: 0.166476183 | AY30: 0 | AZ30: 0 | BA30: 0 | BB30: 0 | BC30: 0 | BD30: 0.121538964 | BE30: 0.071345207 | BF30: 0.052355377 | BG30: 0 | BH30: 0 | BI30: 0.103578644 | BJ30: 0.063400981
A31: SG_2769 | B31: 14_0903_02_20cm_scaffold_5247 | C31: 1.651759623 | D31: 1.068824732 | E31: 0.713918177 | F31: 0.448081884 | G31: 0.218346934 | H31: 0.183601606 | I31: 0.179693519 | J31: 0.025740056 | K31: 0.27957686 | L31: 0.017746641 | M31: 0.184705178 | N31: 0.012254895 | O31: 0.726304026 | P31: 0.415827037 | Q31: 0.202017193 | R31: 0.186617725 | S31: 0.269698032 | T31: 0.135876413 | U31: 1.751847307 | V31: 0.400722809 | W31: 0.140824606 | X31: 0.053515615 | Y31: 1.891161068 | Z31: 1.127877961 | AA31: 0.834344647 | AB31: 0.407162042 | AC31: 0.22384581 | AD31: 0.111275319 | AE31: 0.093736176 | AF31: 0.041919302 | AG31: 1.236021221 | AH31: 1.144074916 | AI31: 0.308377526 | AJ31: 1.111530644 | AK31: 0.33591664 | AL31: 0.066140028 | AM31: 0.244164336 | AN31: 0.236628951 | AO31: 0.087879572 | AP31: 0.106072495 | AQ31: 0.118020243 | AR31: 0.038335066 | AS31: 1.444859768 | AT31: 0.934842289 | AU31: 0.966496367 | AV31: 0.420733919 | AW31: 0.687071861 | AX31: 0.143072164 | AY31: 0.135686357 | AZ31: 0.168317506 | BA31: 0 | BB31: 0.093262356 | BC31: 0.108819774 | BD31: 0.018052105 | BE31: 1.467591122 | BF31: 0.552877889 | BG31: 0.218302791 | BH31: 0.610252711 | BI31: 0.182895809 | BJ31: 0.101495909
A32: SG_347 | B32: 14_0903_02_20cm_scaffold_5308 | C32: 2.966691546 | D32: 2.809458808 | E32: 2.628669865 | F32: 0.150163944 | G32: 0.031829068 | H32: 0.045840162 | I32: 0.020215173 | J32: 0.014707885 | K32: 0 | L32: 0.002876721 | M32: 0.037314931 | N32: 0.029946671 | O32: 0.355292309 | P32: 0.257330486 | Q32: 0 | R32: 1.934539392 | S32: 0.792205919 | T32: 0.35701297 | U32: 1.449005791 | V32: 0.265020018 | W32: 0.014837937 | X32: 0 | Y32: 1.062350695 | Z32: 0.374300942 | AA32: 0.043712616 | AB32: 0.045333382 | AC32: 0.039260998 | AD32: 0.012792675 | AE32: 0 | AF32: 0.020677703 | AG32: 0.976377801 | AH32: 0.162196414 | AI32: 0.121431382 | AJ32: 0.070161912 | AK32: 0.04034439 | AL32: 0.0290156 | AM32: 0.025241653 | AN32: 0.014686103 | AO32: 0.031379359 | AP32: 0.014904434 | AQ32: 0.03331986 | AR32: 0 | AS32: 1.439659926 | AT32: 0.566386344 | AU32: 0.33638031 | AV32: 0.113596919 | AW32: 0.054023391 | AX32: 0.081757662 | AY32: 0 | AZ32: 0 | BA32: 0.016708279 | BB32: 0 | BC32: 0 | BD32: 0 | BE32: 0.207930179 | BF32: 0.030266901 | BG32: 0.029811936 | BH32: 0.589076101 | BI32: 0.112038702 | BJ32: 0.1047655
A33: SG_1791 | B33: 14_0903_02_20cm_scaffold_55213 | C33: 1.894648785 | D33: 0.577495949 | E33: 0.407723067 | F33: 0.657520808 | G33: 1.193224067 | H33: 0.57815592 | I33: 0 | J33: 0.23285282 | K33: 0.669858334 | L33: 0 | M33: 0.058143445 | N33: 0.055430862 | O33: 0.108896509 | P33: 0.27534745 | Q33: 0.294903228 | R33: 0.235744879 | S33: 0.702386742 | T33: 0.640198813 | U33: 1.455994237 | V33: 0.482822059 | W33: 0 | X33: 0 | Y33: 0.536440218 | Z33: 0.461628625 | AA33: 1.440817649 | AB33: 0.78492703 | AC33: 0.281653811 | AD33: 0.389412886 | AE33: 0.078980892 | AF33: 0 | AG33: 1.304318717 | AH33: 1.36964333 | AI33: 0.947796917 | AJ33: 0.215738648 | AK33: 0.94381776 | AL33: 0.776039946 | AM33: 0.211299977 | AN33: 0.287974327 | AO33: 0.237860706 | AP33: 0 | AQ33: 0.088970755 | AR33: 0.397509569 | AS33: 0 | AT33: 1.023092659 | AU33: 0.78894257 | AV33: 1.013928308 | AW33: 1.569016012 | AX33: 0.988578044 | AY33: 0.137917125 | AZ33: 0.141576408 | BA33: 0.064553721 | BB33: 0 | BC33: 0 | BD33: 0 | BE33: 0.078511538 | BF33: 0.05439973 | BG33: 0.106894097 | BH33: 1.250973785 | BI33: 0.919002614 | BJ33: 0.705685247
A34: SG_806 | B34: 14_0903_02_20cm_scaffold_5756 | C34: 2.679968559 | D34: 1.511108734 | E34: 1.435554857 | F34: 0.295376022 | G34: 1.027325903 | H34: 1.284001117 | I34: 0.24412961 | J34: 1.967504264 | K34: 2.684576491 | L34: 0.024654817 | M34: 0.417584325 | N34: 0.401031356 | O34: 3.613706198 | P34: 3.680838794 | Q34: 3.701682069 | R34: 0 | S34: 1.923572562 | T34: 1.34020067 | U34: 4.133931009 | V34: 1.045682619 | W34: 0.020542507 | X34: 0.343733089 | Y34: 2.619136947 | Z34: 1.974206317 | AA34: 2.435422155 | AB34: 1.165683067 | AC34: 0.615222112 | AD34: 1.13924962 | AE34: 0.65013032 | AF34: 0.890383021 | AG34: 4.460008865 | AH34: 4.082320798 | AI34: 1.994111568 | AJ34: 0.484474996 | AK34: 2.018961436 | AL34: 0.65513945 | AM34: 0 | AN34: 0.951437183 | AO34: 1.270887736 | AP34: 0.715563974 | AQ34: 2.822872011 | AR34: 0.788878639 | AS34: 0.190870665 | AT34: 5.276211392 | AU34: 2.796640242 | AV34: 0.942057952 | AW34: 2.373708123 | AX34: 1.196329391 | AY34: 0.311244279 | AZ34: 1.175059901 | BA34: 0.483243277 | BB34: 0.024796306 | BC34: 2.020020733 | BD34: 1.9068091 | BE34: 2.992601291 | BF34: 4.377906545 | BG34: 2.552975274 | BH34: 0.8772122 | BI34: 2.538843685 | BJ34: 1.998692584
A35: SG_2402 | B35: 14_0903_02_20cm_scaffold_58650 | C35: 1.479134565 | D35: 0.601306932 | E35: 0.5320333 | F35: 0 | G35: 0 | H35: 0 | I35: 0.044163413 | J35: 0 | K35: 0 | L35: 0 | M35: 0 | N35: 0 | O35: 0.670417629 | P35: 0.352710701 | Q35: 0 | R35: 0 | S35: 0 | T35: 0.042962828 | U35: 0 | V35: 0 | W35: 0 | X35: 0 | Y35: 0 | Z35: 0.225890273 | AA35: 0 | AB35: 0 | AC35: 0 | AD35: 0 | AE35: 0 | AF35: 0 | AG35: 0 | AH35: 0 | AI35: 0 | AJ35: 0 | AK35: 0 | AL35: 0 | AM35: 0 | AN35: 0 | AO35: 0.085497488 | AP35: 0 | AQ35: 0 | AR35: 0 | AS35: 0.634620067 | AT35: 0.400506673 | AU35: 0 | AV35: 0 | AW35: 0 | AX35: 0.082236513 | AY35: 0 | AZ35: 0.077245032 | BA35: 0 | BB35: 0 | BC35: 0 | BD35: 0 | BE35: 0.620455752 | BF35: 0 | BG35: 0 | BH35: 0 | BI35: 0 | BJ35: 0
A36: SG_3282 | B36: 14_0903_02_20cm_scaffold_60842 | C36: 1.669408325 | D36: 1.390960573 | E36: 0.531501797 | F36: 0.195000257 | G36: 0 | H36: 0 | I36: 0 | J36: 0 | K36: 0 | L36: 0 | M36: 0 | N36: 0 | O36: 0.113564711 | P36: 0.105886972 | Q36: 0 | R36: 0.294848026 | S36: 0 | T36: 0.222870563 | U36: 0.19154647 | V36: 0.016254701 | W36: 0 | X36: 0 | Y36: 0 | Z36: 0.212688895 | AA36: 0 | AB36: 0 | AC36: 0 | AD36: 0 | AE36: 0 | AF36: 0 | AG36: 0 | AH36: 0 | AI36: 0 | AJ36: 0 | AK36: 0.142017733 | AL36: 0 | AM36: 0 | AN36: 0 | AO36: 0 | AP36: 0 | AQ36: 0.074372796 | AR36: 0.093663687 | AS36: 0.465451447 | AT36: 0.110029305 | AU36: 0 | AV36: 0 | AW36: 0 | AX36: 0 | AY36: 0 | AZ36: 0 | BA36: 0 | BB36: 0 | BC36: 0 | BD36: 0 | BE36: 0.119361592 | BF36: 0.053186016 | BG36: 0 | BH36: 0 | BI36: 0.029806742 | BJ36: 0
A37: SG_2709 | B37: 14_0903_02_20cm_scaffold_61971 | C37: 1.30331517 | D37: 1.068090905 | E37: 1.628673366 | F37: 0.013088895 | G37: 0 | H37: 0 | I37: 0 | J37: 0 | K37: 0 | L37: 0 | M37: 0 | N37: 0 | O37: 0.549831658 | P37: 0.310850234 | Q37: 0 | R37: 0.178182886 | S37: 0.205196816 | T37: 0 | U37: 0.223601186 | V37: 0.116172712 | W37: 0.218093383 | X37: 0 | Y37: 0.859956118 | Z37: 0.75571163 | AA37: 0.208813766 | AB37: 0 | AC37: 0 | AD37: 0.084443182 | AE37: 0 | AF37: 0 | AG37: 0.250961821 | AH37: 0.137927382 | AI37: 0.231218236 | AJ37: 0.262871531 | AK37: 0 | AL37: 0 | AM37: 0 | AN37: 0 | AO37: 0 | AP37: 0 | AQ37: 0 | AR37: 0 | AS37: 0.370040856 | AT37: 0.175148691 | AU37: 0 | AV37: 0.271324419 | AW37: 0 | AX37: 0 | AY37: 0 | AZ37: 0 | BA37: 0 | BB37: 0.178675185 | BC37: 0 | BD37: 0 | BE37: 0.134408092 | BF37: 0.0931298 | BG37: 0 | BH37: 0.133808733 | BI37: 0.093804924 | BJ37: 0
A38: SG_1738 | B38: 14_0903_02_20cm_scaffold_6774 | C38: 1.945794974 | D38: 2.236058321 | E38: 2.644856305 | F38: 1.281910116 | G38: 1.91464945 | H38: 1.473488111 | I38: 0.030163877 | J38: 0.212685378 | K38: 1.565898855 | L38: 0.058654901 | M38: 0.665916912 | N38: 0.322209199 | O38: 1.046318272 | P38: 1.360109497 | Q38: 1.40539683 | R38: 0.661381734 | S38: 1.575636278 | T38: 1.389953201 | U38: 2.75569714 | V38: 1.102046926 | W38: 0.04654432 | X38: 0.180118625 | Y38: 2.421241234 | Z38: 3.050193329 | AA38: 3.705489397 | AB38: 2.79003911 | AC38: 0.663930497 | AD38: 2.617965587 | AE38: 0 | AF38: 0.324368421 | AG38: 3.938991154 | AH38: 3.848573438 | AI38: 1.970062806 | AJ38: 1.871797574 | AK38: 3.352102511 | AL38: 1.457735673 | AM38: 0.184893265 | AN38: 1.217641087 | AO38: 1.304572747 | AP38: 0.099179919 | AQ38: 0.305556307 | AR38: 1.427617717 | AS38: 0.699298245 | AT38: 5.820142936 | AU38: 4.399416658 | AV38: 2.194439635 | AW38: 4.532614554 | AX38: 2.908910862 | AY38: 0.176360922 | AZ38: 0.765670798 | BA38: 1.467824555 | BB38: 0.053145504 | BC38: 0 | BD38: 0.416038947 | BE38: 0.959931935 | BF38: 2.037214368 | BG38: 1.6586718 | BH38: 2.231709364 | BI38: 2.59835024 | BJ38: 1.614160209
A39: SG_1084 | B39: 14_0903_02_20cm_scaffold_7 | C39: 9.306816009 | D39: 2.770819866 | E39: 1.289389276 | F39: 0.853111164 | G39: 2.037173305 | H39: 1.382896232 | I39: 0.702138079 | J39: 0.976195164 | K39: 0.875717927 | L39: 0.853083688 | M39: 0.433935659 | N39: 0.045925959 | O39: 1.471804279 | P39: 0.848615279 | Q39: 0.097006722 | R39: 0.397871145 | S39: 1.551969138 | T39: 0.493252235 | U39: 9.207453626 | V39: 1.555771128 | W39: 0.512533137 | X39: 0.885625444 | Y39: 8.518254879 | Z39: 0.977746852 | AA39: 4.153490269 | AB39: 0.696957008 | AC39: 0.83749945 | AD39: 0.340107352 | AE39: 1.379807928 | AF39: 0.010014076 | AG39: 7.861542644 | AH39: 3.560122446 | AI39: 0.256462645 | AJ39: 1.591915461 | AK39: 4.650020535 | AL39: 0.419104524 | AM39: 0.39625523 | AN39: 0.86727247 | AO39: 0.115022712 | AP39: 1.21186098 | AQ39: 0.291516315 | AR39: 0.005496957 | AS39: 2.263257591 | AT39: 6.008865016 | AU39: 0.977037295 | AV39: 1.365119565 | AW39: 2.285219707 | AX39: 0.694138553 | AY39: 1.28196854 | AZ39: 0.407845352 | BA39: 0.094498761 | BB39: 0.453659792 | BC39: 0.39576987 | BD39: 0.030152931 | BE39: 0.54394935 | BF39: 0.335316779 | BG39: 0.034085152 | BH39: 4.272907171 | BI39: 2.888694065 | BJ39: 1.084637801
A40: SG_3306 | B40: 14_0903_02_20cm_scaffold_7024 | C40: 2.545398648 | D40: 2.098156449 | E40: 2.090853627 | F40: 0.615801633 | G40: 0.46660582 | H40: 0.019047755 | I40: 0.09163548 | J40: 0.069350364 | K40: 0.180852899 | L40: 0.097301566 | M40: 0.171940001 | N40: 0.01832491 | O40: 0.846532988 | P40: 0.423973623 | Q40: 0.568557145 | R40: 0.477067596 | S40: 0.596694874 | T40: 0.267278319 | U40: 3.065999416 | V40: 0.355201482 | W40: 0.113825365 | X40: 0.084228013 | Y40: 2.919027838 | Z40: 1.646228645 | AA40: 1.386798877 | AB40: 0.656886095 | AC40: 0.257972756 | AD40: 0.019329753 | AE40: 0.128306258 | AF40: 0.046287473 | AG40: 3.12681455 | AH40: 2.294788501 | AI40: 0.589145166 | AJ40: 1.142610521 | AK40: 0.168614616 | AL40: 0 | AM40: 0.314761374 | AN40: 0.1773039 | AO40: 0.033232992 | AP40: 0.067561872 | AQ40: 0.132490432 | AR40: 0.103284578 | AS40: 1.971358592 | AT40: 2.599911128 | AU40: 2.086142998 | AV40: 1.062290282 | AW40: 0.636841888 | AX40: 0.418313366 | AY40: 0.24645446 | AZ40: 0.147579547 | BA40: 0.050264004 | BB40: 0.064984369 | BC40: 0.077222634 | BD40: 0.021908576 | BE40: 2.049405373 | BF40: 0.920992833 | BG40: 0.445582652 | BH40: 1.008435708 | BI40: 0.244339269 | BJ40: 0.122635931
A41: SG_2740 | B41: 14_0903_02_20cm_scaffold_7560 | C41: 1.153839374 | D41: 0.567903546 | E41: 0.676098653 | F41: 0.275543024 | G41: 0.514173952 | H41: 0.418377522 | I41: 0.063775111 | J41: 0.253393581 | K41: 0.673783583 | L41: 0.380854226 | M41: 0.467459917 | N41: 0.344689211 | O41: 0.555179272 | P41: 0.827901261 | Q41: 1.116093585 | R41: 0.226526056 | S41: 1.264190731 | T41: 0.884419246 | U41: 0.905796137 | V41: 0.28504512 | W41: 0.039609251 | X41: 0.125434602 | Y41: 1.156306164 | Z41: 2.307224071 | AA41: 0.644706696 | AB41: 0.453203284 | AC41: 0.486987296 | AD41: 0.323675251 | AE41: 0 | AF41: 0.311554224 | AG41: 1.085684278 | AH41: 1.891637233 | AI41: 1.413393747 | AJ41: 0.568842106 | AK41: 1.356373837 | AL41: 0.619511874 | AM41: 0.17519199 | AN41: 0.678299359 | AO41: 0.296314691 | AP41: 0.5812936 | AQ41: 0.221300974 | AR41: 0.363905046 | AS41: 0.436666724 | AT41: 1.684965461 | AU41: 2.066623491 | AV41: 0.602409599 | AW41: 1.009246807 | AX41: 1.19955823 | AY41: 0.339724214 | AZ41: 0.424560108 | BA41: 0.629676009 | BB41: 0.10899674 | BC41: 0.660248365 | BD41: 0.284749074 | BE41: 1.436933593 | BF41: 1.597937189 | BG41: 1.358250973 | BH41: 0.984344748 | BI41: 2.547743107 | BJ41: 1.7366666
A42: SG_1888 | B42: 14_0903_02_20cm_scaffold_78056 | C42: 2.029317964 | D42: 0.720411338 | E42: 1.054923924 | F42: 0.786973607 | G42: 0.534272905 | H42: 0.372318765 | I42: 0.199017969 | J42: 0.225927258 | K42: 0.147294108 | L42: 0.623067787 | M42: 0 | N42: 0.215128897 | O42: 0.450806115 | P42: 0.382184363 | Q42: 0 | R42: 0.982593822 | S42: 0.29248514 | T42: 0.266210516 | U42: 1.393997476 | V42: 1.372135628 | W42: 1.082165888 | X42: 0.156573556 | Y42: 0.760182461 | Z42: 0 | AA42: 0.827831684 | AB42: 0.416037522 | AC42: 0.141961973 | AD42: 0.251887251 | AE42: 0.13933059 | AF42: 0 | AG42: 0.995636702 | AH42: 0.312684018 | AI42: 0.306535773 | AJ42: 1.460785177 | AK42: 0.281876571 | AL42: 0 | AM42: 0.136676963 | AN42: 0 | AO42: 0 | AP42: 0.587669056 | AQ42: 0 | AR42: 0.12617887 | AS42: 0.814771632 | AT42: 1.357963802 | AU42: 0.510318438 | AV42: 0.768872072 | AW42: 0.691244552 | AX42: 0.147565466 | AY42: 0.669075806 | AZ42: 0.27473122 | BA42: 0 | BB42: 0.423407738 | BC42: 0.167715515 | BD42: 0 | BE42: 0.841749551 | BF42: 0.211127041 | BG42: 0 | BH42: 0.455020443 | BI42: 0.053297635 | BJ42: 0
A43: SG_1278 | B43: 14_0903_02_20cm_scaffold_78809 | C43: 1.380577952 | D43: 0.283230006 | E43: 0.505780018 | F43: 0 | G43: 0.134160716 | H43: 0 | I43: 0.184499337 | J43: 0 | K43: 0 | L43: 0.016534756 | M43: 0 | N43: 0 | O43: 0 | P43: 0 | Q43: 0 | R43: 0.071464839 | S43: 0.576096298 | T43: 0 | U43: 0.627767127 | V43: 0.27956436 | W43: 0 | X43: 0 | Y43: 0.742049372 | Z43: 0.158482419 | AA43: 0 | AB43: 0 | AC43: 0.100462332 | AD43: 0 | AE43: 0 | AF43: 0 | AG43: 0.569705636 | AH43: 0.774470636 | AI43: 0 | AJ43: 0 | AK43: 0 | AL43: 0 | AM43: 0.117033964 | AN43: 0 | AO43: 0 | AP43: 0 | AQ43: 0 | AR43: 0 | AS43: 0.315380646 | AT43: 0.280991585 | AU43: 0.253999983 | AV43: 0.217643301 | AW43: 0 | AX43: 0 | AY43: 0 | AZ43: 0 | BA43: 0 | BB43: 0 | BC43: 0 | BD43: 0 | BE43: 0.431262632 | BF43: 0 | BG43: 0 | BH43: 0.214669763 | BI43: 0.075245765 | BJ43: 0
A44: SG_1621 | B44: 14_0903_02_20cm_scaffold_80078 | C44: 3.20761298 | D44: 0.811723529 | E44: 0 | F44: 0 | G44: 0 | H44: 0.138438364 | I44: 0 | J44: 0 | K44: 0 | L44: 0 | M44: 0 | N44: 0 | O44: 0 | P44: 0.014599484 | Q44: 0 | R44: 0.204814778 | S44: 0.235866313 | T44: 0.080087376 | U44: 0.514042939 | V44: 0 | W44: 0 | X44: 0 | Y44: 1.515527932 | Z44: 0 | AA44: 0.46504624 | AB44: 0 | AC44: 0 | AD44: 0 | AE44: 0 | AF44: 0 | AG44: 1.3998081 | AH44: 0 | AI44: 0 | AJ44: 0 | AK44: 0 | AL44: 0 | AM44: 0 | AN44: 0 | AO44: 0 | AP44: 0 | AQ44: 0 | AR44: 0 | AS44: 0.425348571 | AT44: 0.776115897 | AU44: 0 | AV44: 0.191025029 | AW44: 0 | AX44: 0 | AY44: 0 | AZ44: 0 | BA44: 0 | BB44: 0 | BC44: 0 | BD44: 0 | BE44: 0 | BF44: 0 | BG44: 0.181702458 | BH44: 0.307616591 | BI44: 0.059182343 | BJ44: 0
A45: SG_2321 | B45: 14_0903_02_20cm_scaffold_82723 | C45: 2.495413102 | D45: 0 | E45: 0 | F45: 0 | G45: 0 | H45: 0 | I45: 1.026992448 | J45: 0.233170491 | K45: 0.456049083 | L45: 0 | M45: 0.751527929 | N45: 0 | O45: 0.930517943 | P45: 0.061271799 | Q45: 0 | R45: 0 | S45: 0 | T45: 0 | U45: 0.890025377 | V45: 0.135904639 | W45: 0 | X45: 0 | Y45: 0.041622982 | Z45: 0 | AA45: 0.732842308 | AB45: 0 | AC45: 0.146513278 | AD45: 0.259962763 | AE45: 0.307007731 | AF45: 0 | AG45: 0.146793835 | AH45: 0 | AI45: 0 | AJ45: 0 | AK45: 0.145456771 | AL45: 0 | AM45: 0.14105883 | AN45: 0 | AO45: 0 | AP45: 0.605752551 | AQ45: 0.178184268 | AR45: 0.173632224 | AS45: 0.388520811 | AT45: 0.819590736 | AU45: 0 | AV45: 0 | AW45: 0.587165326 | AX45: 0.015991124 | AY45: 0.263090556 | AZ45: 0 | BA45: 0 | BB45: 0.145660734 | BC45: 0 | BD45: 0.272546569 | BE45: 1.057420821 | BF45: 0.10894789 | BG45: 0 | BH45: 0 | BI45: 0.165019074 | BJ45: 0.041918719
A46: SG_2665 | B46: 14_0903_02_20cm_scaffold_86244 | C46: 1.325040059 | D46: 0.819492517 | E46: 2.130198845 | F46: 0.322088752 | G46: 0.961792438 | H46: 0.87712344 | I46: 0.29227293 | J46: 0.937725034 | K46: 1.568265849 | L46: 0.343133303 | M46: 0.901637523 | N46: 0.197458155 | O46: 0.943824847 | P46: 1.996746891 | Q46: 1.540278816 | R46: 0.037076395 | S46: 3.32720026 | T46: 1.368977511 | U46: 0.876337186 | V46: 0.320537736 | W46: 0.090761987 | X46: 2.155688452 | Y46: 0.573837743 | Z46: 1.916997717 | AA46: 0.999134725 | AB46: 0.314041334 | AC46: 1.62772234 | AD46: 0.693591503 | AE46: 1.204685546 | AF46: 0.055363008 | AG46: 0.731083877 | AH46: 2.674266676 | AI46: 3.020928455 | AJ46: 0.310413739 | AK46: 1.994755542 | AL46: 0.508184372 | AM46: 0 | AN46: 1.689375228 | AO46: 0.565821326 | AP46: 1.33980749 | AQ46: 0.484911125 | AR46: 0 | AS46: 0 | AT46: 1.593012619 | AU46: 1.965409545 | AV46: 0.820325117 | AW46: 1.771977852 | AX46: 1.402662207 | AY46: 1.400434111 | AZ46: 1.041440321 | BA46: 0 | BB46: 0.310903133 | BC46: 1.600968919 | BD46: 0.414287872 | BE46: 0.945308643 | BF46: 2.711827451 | BG46: 2.627548512 | BH46: 1.042163356 | BI46: 3.406478078 | BJ46: 3.003300755
A47: SG_189 | B47: 14_0903_02_20cm_scaffold_88435 | C47: 1.460720498 | D47: 0.68108418 | E47: 0.612001494 | F47: 0.199586153 | G47: 0.533250812 | H47: 0.115678006 | I47: 0.153943858 | J47: 0 | K47: 0 | L47: 0 | M47: 0 | N47: 0 | O47: 0.373987578 | P47: 0.183804902 | Q47: 0 | R47: 0.22184498 | S47: 0 | T47: 0.189788182 | U47: 0.582762019 | V47: 0.407435992 | W47: 0.191221959 | X47: 0 | Y47: 0.235441181 | Z47: 0.173228738 | AA47: 0.091542845 | AB47: 0.097371333 | AC47: 0.219620108 | AD47: 0 | AE47: 0 | AF47: 0 | AG47: 0 | AH47: 0.120933262 | AI47: 0 | AJ47: 0.790556563 | AK47: 0 | AL47: 0 | AM47: 0.211444013 | AN47: 0.111838536 | AO47: 0 | AP47: 0 | AQ47: 0 | AR47: 0 | AS47: 0.295247578 | AT47: 0.15356851 | AU47: 0.263160122 | AV47: 0.237894365 | AW47: 0.293382539 | AX47: 0.228288905 | AY47: 0.103508353 | AZ47: 0 | BA47: 0 | BB47: 0 | BC47: 0 | BD47: 0 | BE47: 0 | BF47: 0.20577115 | BG47: 0 | BH47: 0.117322074 | BI47: 0.24735988 | BJ47: 0.0761639
A48: SG_1747 | B48: 14_0903_02_20cm_scaffold_88954 | C48: 2.809716307 | D48: 0.344060087 | E48: 0 | F48: 0 | G48: 0 | H48: 0 | I48: 0 | J48: 0 | K48: 0 | L48: 0 | M48: 0 | N48: 0 | O48: 0.242212234 | P48: 0.290430284 | Q48: 0 | R48: 0 | S48: 0.499875764 | T48: 0.190708575 | U48: 0.544710274 | V48: 0 | W48: 0.027892873 | X48: 0 | Y48: 1.289496962 | Z48: 0 | AA48: 0.763030414 | AB48: 0.269861053 | AC48: 0 | AD48: 0 | AE48: 0 | AF48: 0 | AG48: 1.187572547 | AH48: 1.855571451 | AI48: 0 | AJ48: 0 | AK48: 0.268064019 | AL48: 0 | AM48: 0 | AN48: 0 | AO48: 0 | AP48: 0 | AQ48: 0 | AR48: 0 | AS48: 0 | AT48: 0.402142265 | AU48: 1.030944727 | AV48: 0.330483933 | AW48: 0.407568356 | AX48: 0 | AY48: 0 | AZ48: 0 | BA48: 0 | BB48: 0 | BC48: 0 | BD48: 0 | BE48: 0.327428802 | BF48: 0.819006477 | BG48: 0.346923713 | BH48: 1.303874865 | BI48: 0.674094322 | BJ48: 0.303666765
A49: SG_1178 | B49: 14_0903_02_20cm_scaffold_96307 | C49: 0.663422067 | D49: 0.261123654 | E49: 0.172067691 | F49: 0.252516503 | G49: 0.112444868 | H49: 0.080971438 | I49: 0.389539697 | J49: 0 | K49: 0 | L49: 0 | M49: 0 | N49: 0 | O49: 0.47868407 | P49: 0.251771871 | Q49: 0.204304269 | R49: 0.263547778 | S49: 0.227627774 | T49: 0.222606825 | U49: 0.674679696 | V49: 0.389193612 | W49: 0 | X49: 0 | Y49: 0.545120954 | Z49: 0.438338176 | AA49: 0.540493587 | AB49: 0 | AC49: 0.185242315 | AD49: 0 | AE49: 0 | AF49: 0 | AG49: 0.371194069 | AH49: 0.30600965 | AI49: 0 | AJ49: 0.484067892 | AK49: 0.448731943 | AL49: 0.102505522 | AM49: 0.356692099 | AN49: 0.482037111 | AO49: 0 | AP49: 0 | AQ49: 0 | AR49: 0 | AS49: 0.395440274 | AT49: 0.64764986 | AU49: 0.22196688 | AV49: 0.4113449 | AW49: 0.123729247 | AX49: 0.096277081 | AY49: 0 | AZ49: 0 | BA49: 0 | BB49: 0.092082206 | BC49: 0 | BD49: 0 | BE49: 0.198801101 | BF49: 0.275493931 | BG49: 0.083201851 | BH49: 0.296871897 | BI49: 0.351384363 | BJ49: 0.128483473
A50: SG_2717 | B50: 14_0903_02_20cm_scaffold_9668 | C50: 1.962555078 | D50: 1.802799978 | E50: 1.455909269 | F50: 0.502723367 | G50: 0.355742555 | H50: 0.076621095 | I50: 0.36144351 | J50: 0.139483653 | K50: 0.060624588 | L50: 0.064111912 | M50: 0 | N50: 0 | O50: 0.455053271 | P50: 0.300555174 | Q50: 0.068470205 | R50: 0.873586009 | S50: 0.427924115 | T50: 0.402758249 | U50: 1.089740617 | V50: 1.445221239 | W50: 0.3446755 | X50: 0.096665855 | Y50: 2.917574486 | Z50: 0.790861758 | AA50: 0.980409671 | AB50: 0.207245187 | AC50: 0.0249788 | AD50: 0.025918485 | AE50: 0.028673447 | AF50: 0 | AG50: 1.881680721 | AH50: 0.685151736 | AI50: 0.031541664 | AJ50: 1.612102927 | AK50: 0.17402581 | AL50: 0.064827145 | AM50: 0.337528147 | AN50: 0.119018594 | AO50: 0.066761876 | AP50: 0.181181972 | AQ50: 0 | AR50: 0 | AS50: 2.155179069 | AT50: 0.638797793 | AU50: 0.210041293 | AV50: 1.6674227 | AW50: 0.312217761 | AX50: 0.056484737 | AY50: 0.210806475 | AZ50: 0 | BA50: 0.033698487 | BB50: 0.145224861 | BC50: 0.069029808 | BD50: 0 | BE50: 0.662496423 | BF50: 0.383109357 | BG50: 0 | BH50: 1.481863007 | BI50: 0.246897594 | BJ50: 0.172188323
A51: SG_2269 | B51: 14_0903_02_20cm_scaffold_97147 | C51: 0.983803003 | D51: 0.456326867 | E51: 0 | F51: 0.147095145 | G51: 0.786012501 | H51: 0.707508529 | I51: 0.360792431 | J51: 0.515189058 | K51: 0.335879405 | L51: 0.177600144 | M51: 0.182472229 | N51: 0.233631685 | O51: 0.734368513 | P51: 0.455214373 | Q51: 0.178516052 | R51: 0 | S51: 0.841328205 | T51: 0.40469883 | U51: 1.337975911 | V51: 0.65911599 | W51: 0 | X51: 0.058911538 | Y51: 0.393891142 | Z51: 0.255339421 | AA51: 1.07610097 | AB51: 0.287050983 | AC51: 1.540099658 | AD51: 0.20606114 | AE51: 0 | AF51: 0 | AG51: 0.793822782 | AH51: 1.051709279 | AI51: 0.349501601 | AJ51: 0.509598353 | AK51: 1.099943663 | AL51: 0.537400843 | AM51: 0 | AN51: 0.640442913 | AO51: 0 | AP51: 0.294449605 | AQ51: 0.196848634 | AR51: 0 | AS51: 0.239118338 | AT51: 0.410843789 | AU51: 0.919319245 | AV51: 0.350656652 | AW51: 1.297338912 | AX51: 0.33649819 | AY51: 0 | AZ51: 0 | BA51: 0.186700282 | BB51: 0 | BC51: 0.191223492 | BD51: 0 | BE51: 1.161234761 | BF51: 0.796782633 | BG51: 0.736199831 | BH51: 0.66060373 | BI51: 0.504679397 | BJ51: 0.570871097
A52: SG_1620 | B52: 14_0903_02_30cm_scaffold_1 | C52: 4.662627153 | D52: 8.211327269 | E52: 6.565272304 | F52: 0.048528595 | G52: 0.030458389 | H52: 0.02957744 | I52: 0.026092006 | J52: 0.016305529 | K52: 0.008306156 | L52: 0.014257972 | M52: 0.018272327 | N52: 0.019723849 | O52: 0.026563772 | P52: 0.018804667 | Q52: 0.015426946 | R52: 0.026471797 | S52: 0.029442733 | T52: 0.019957295 | U52: 0.12982075 | V52: 0.022696187 | W52: 0.03244804 | X52: 0.019326884 | Y52: 0.036039461 | Z52: 0.066175799 | AA52: 0.018259449 | AB52: 0.020500023 | AC52: 0.021811911 | AD52: 0.015649214 | AE52: 0.019988125 | AF52: 0.021908958 | AG52: 1.19211543 | AH52: 0.289561122 | AI52: 0.149690836 | AJ52: 0.021794398 | AK52: 0.016887591 | AL52: 0.024979202 | AM52: 0.022102067 | AN52: 0.021385674 | AO52: 0.022145048 | AP52: 0.022789286 | AQ52: 0.019253115 | AR52: 0.016800897 | AS52: 0.196350141 | AT52: 0.038143762 | AU52: 0.020481131 | AV52: 0.030378881 | AW52: 0.018306026 | AX52: 0.01427685 | AY52: 0.018371809 | AZ52: 0.011669402 | BA52: 0.018509677 | BB52: 0.027661305 | BC52: 0.020881261 | BD52: 0.020077141 | BE52: 0.015465003 | BF52: 0.02427204 | BG52: 0.013439934 | BH52: 0.016960324 | BI52: 0.028304572 | BJ52: 0.021351172
A53: SG_926 | B53: 14_0903_02_30cm_scaffold_10265 | C53: 1.108371343 | D53: 2.495843484 | E53: 3.280278763 | F53: 0.627850375 | G53: 2.255264731 | H53: 2.394643018 | I53: 0.833438535 | J53: 3.197420231 | K53: 3.884809182 | L53: 1.066570624 | M53: 3.437028679 | N53: 0.357104005 | O53: 2.766460342 | P53: 4.947804587 | Q53: 4.599498563 | R53: 0.066909866 | S53: 7.117362758 | T53: 4.150755093 | U53: 2.388068559 | V53: 1.216632771 | W53: 0 | X53: 5.998094106 | Y53: 1.639430669 | Z53: 5.262142143 | AA53: 3.768976606 | AB53: 2.407505889 | AC53: 4.461377699 | AD53: 1.969716233 | AE53: 3.250182406 | AF53: 0.218928419 | AG53: 2.935210371 | AH53: 5.223278782 | AI53: 5.954782086 | AJ53: 0.711123512 | AK53: 5.675981122 | AL53: 2.086832684 | AM53: 0.019349887 | AN53: 4.268068714 | AO53: 1.556318004 | AP53: 5.364698789 | AQ53: 2.133472919 | AR53: 0.288557195 | AS53: 0.029691217 | AT53: 3.628760224 | AU53: 4.446367886 | AV53: 1.725307344 | AW53: 3.918648281 | AX53: 3.518323152 | AY53: 3.388738735 | AZ53: 2.961933461 | BA53: 0.397347882 | BB53: 0.935517818 | BC53: 4.950652204 | BD53: 0.407415622 | BE53: 1.603668883 | BF53: 6.947200279 | BG53: 5.519896151 | BH53: 3.007186617 | BI53: 7.487791408 | BJ53: 7.646916498
A54: SG_984 | B54: 14_0903_02_30cm_scaffold_106091 | C54: 0.748619654 | D54: 1.755618597 | E54: 1.13262837 | F54: 0.061223604 | G54: 0 | H54: 0.160163824 | I54: 0 | J54: 0 | K54: 0 | L54: 0 | M54: 0 | N54: 0 | O54: 0 | P54: 0.036460112 | Q54: 0 | R54: 0.114929984 | S54: 0.05493951 | T54: 0.104419305 | U54: 0.870794284 | V54: 0.219425619 | W54: 0 | X54: 0 | Y54: 0.400000063 | Z54: 0.494355382 | AA54: 0 | AB54: 0 | AC54: 0 | AD54: 0 | AE54: 0 | AF54: 0 | AG54: 0.366199992 | AH54: 0 | AI54: 0 | AJ54: 0 | AK54: 0 | AL54: 0 | AM54: 0.064567547 | AN54: 0 | AO54: 0.072805128 | AP54: 0.070263771 | AQ54: 0 | AR54: 0 | AS54: 0.707485187 | AT54: 0.170525123 | AU54: 0 | AV54: 0 | AW54: 0.162888517 | AX54: 0 | AY54: 0 | AZ54: 0 | BA54: 0 | BB54: 0 | BC54: 0 | BD54: 0 | BE54: 0 | BF54: 0 | BG54: 0 | BH54: 0 | BI54: 0.050585552 | BJ54: 0.035943826
A55: SG_2858 | B55: 14_0903_02_30cm_scaffold_106963 | C55: 0.284048147 | D55: 1.089982355 | E55: 0.257851357 | F55: 0 | G55: 0 | H55: 0 | I55: 0.215012067 | J55: 0 | K55: 0 | L55: 0 | M55: 0 | N55: 0 | O55: 0.440755833 | P55: 0.259460628 | Q55: 0 | R55: 0.046652108 | S55: 0 | T55: 0 | U55: 0 | V55: 0 | W55: 0.018429595 | X55: 0 | Y55: 0.233609379 | Z55: 0.437913294 | AA55: 0 | AB55: 0 | AC55: 0 | AD55: 0.007695989 | AE55: 0.06232264 | AF55: 0 | AG55: 0.069879082 | AH55: 0.084071084 | AI55: 0 | AJ55: 0 | AK55: 0 | AL55: 0 | AM55: 0 | AN55: 0 | AO55: 0 | AP55: 0 | AQ55: 0 | AR55: 0 | AS55: 0.185567418 | AT55: 0.194106627 | AU55: 0 | AV55: 0 | AW55: 0 | AX55: 0 | AY55: 0 | AZ55: 0 | BA55: 0 | BB55: 0 | BC55: 0 | BD55: 0 | BE55: 0 | BF55: 0.056507521 | BG55: 0 | BH55: 0 | BI55: 0.028660179 | BJ55: 0.011431968
A56: SG_1057 | B56: 14_0903_02_30cm_scaffold_10771 | C56: 1.291132539 | D56: 2.362329476 | E56: 1.721447854 | F56: 0.037599631 | G56: 0.047819043 | H56: 0.009773171 | I56: 0.084952927 | J56: 0.036580478 | K56: 0.026233655 | L56: 0 | M56: 0 | N56: 0.011399592 | O56: 0.070171092 | P56: 0.036352733 | Q56: 0 | R56: 0.26756035 | S56: 0.133263893 | T56: 0.135969889 | U56: 0.69567753 | V56: 0.038765677 | W56: 0.054399754 | X56: 0 | Y56: 0.134406931 | Z56: 0 | AA56: 0.104518613 | AB56: 0 | AC56: 0 | AD56: 0 | AE56: 0.018765305 | AF56: 0.042394038 | AG56: 0.18371222 | AH56: 0.152687919 | AI56: 0.041848813 | AJ56: 0.048244687 | AK56: 0.015766331 | AL56: 0.080940371 | AM56: 0.022129727 | AN56: 0.023410039 | AO56: 0.022571174 | AP56: 0.023974047 | AQ56: 0 | AR56: 0 | AS56: 0.308697376 | AT56: 0.2337815 | AU56: 0.097149326 | AV56: 0 | AW56: 0 | AX56: 0 | AY56: 0 | AZ56: 0 | BA56: 0 | BB56: 0 | BC56: 0 | BD56: 0 | BE56: 0.044850642 | BF56: 0.034184136 | BG56: 0.026136562 | BH56: 0.044650642 | BI56: 0.031262544 | BJ56: 0.014493296
A57: SG_3143 | B57: 14_0903_02_30cm_scaffold_109069 | C57: 0.488266728 | D57: 0.664294435 | E57: 0.270384987 | F57: 0.095423879 | G57: 0.061523133 | H57: 0.070884396 | I57: 0.341012667 | J57: 0 | K57: 0.16825669 | L57: 0 | M57: 0 | N57: 0.184309186 | O57: 0.048277864 | P57: 0.063918121 | Q57: 0 | R57: 0.076136356 | S57: 0.074062378 | T57: 0 | U57: 0.144762565 | V57: 0.075211854 | W57: 0.141196736 | X57: 0 | Y57: 0.512851151 | Z57: 0 | AA57: 0.13518898 | AB57: 0 | AC57: 0.081082849 | AD57: 0 | AE57: 0 | AF57: 0 | AG57: 0.5897887 | AH57: 0 | AI57: 0 | AJ57: 0.194863818 | AK57: 0 | AL57: 0 | AM57: 0.415692224 | AN57: 0 | AO57: 0 | AP57: 0 | AQ57: 0 | AR57: 0 | AS57: 0.937915274 | AT57: 0.208077504 | AU57: 0 | AV57: 0.439148148 | AW57: 0 | AX57: 0 | AY57: 0 | AZ57: 0.118470968 | BA57: 0 | BB57: 0.089075196 | BC57: 0 | BD57: 0 | BE57: 0 | BF57: 0 | BG57: 0 | BH57: 0.346085502 | BI57: 0 | BJ57: 0.087591934
A58: SG_514 | B58: 14_0903_02_30cm_scaffold_10955 | C58: 1.243776392 | D58: 2.043099698 | E58: 2.013611945 | F58: 0.060290109 | G58: 0.032216412 | H58: 0.011367513 | I58: 0 | J58: 0 | K58: 0.044604238 | L58: 0 | M58: 0 | N58: 0 | O58: 0.020119117 | P58: 0.022750202 | Q58: 0.029267457 | R58: 0.020764889 | S58: 0.045652108 | T58: 0.016587452 | U58: 0.580496676 | V58: 0 | W58: 0 | X58: 0 | Y58: 0.246790003 | Z58: 0.376972186 | AA58: 0.110611443 | AB58: 0.047061608 | AC58: 0.015524 | AD58: 0 | AE58: 0.028649358 | AF58: 0 | AG58: 0.23476821 | AH58: 0.861839092 | AI58: 0.118325119 | AJ58: 0 | AK58: 0 | AL58: 0.058737412 | AM58: 0 | AN58: 0 | AO58: 0.03168921 | AP58: 0.015222957 | AQ58: 0 | AR58: 0 | AS58: 0 | AT58: 0.14807465 | AU58: 0.1535829 | AV58: 0 | AW58: 0.070898968 | AX58: 0.188262194 | AY58: 0 | AZ58: 0.028245316 | BA58: 0.028007464 | BB58: 0 | BC58: 0 | BD58: 0.005603496 | BE58: 0 | BF58: 0.03946568 | BG58: 0 | BH58: 0 | BI58: 0.039403078 | BJ58: 0.01845182
A59: SG_2250 | B59: 14_0903_02_30cm_scaffold_11045 | C59: 1.983688653 | D59: 2.881942026 | E59: 2.522885301 | F59: 0 | G59: 0.026327271 | H59: 0 | I59: 0.086230038 | J59: 0.034825976 | K59: 0 | L59: 0 | M59: 0 | N59: 0 | O59: 0.031301957 | P59: 0.037533349 | Q59: 0.031744889 | R59: 0 | S59: 0 | T59: 0.01361689 | U59: 0.232919013 | V59: 0 | W59: 0 | X59: 0.048053207 | Y59: 0.020183544 | Z59: 0.035143094 | AA59: 0.018078346 | AB59: 0 | AC59: 0 | AD59: 0 | AE59: 0.053209706 | AF59: 0 | AG59: 0.113081105 | AH59: 0.018563228 | AI59: 0.02032667 | AJ59: 0.020999864 | AK59: 0.021529471 | AL59: 0 | AM59: 0.024295004 | AN59: 0 | AO59: 0.02589644 | AP59: 0 | AQ59: 0 | AR59: 0 | AS59: 0.271730391 | AT59: 0.283286328 | AU59: 0.094491271 | AV59: 0.059473155 | AW59: 0.028969338 | AX59: 0 | AY59: 0.016446 | AZ59: 0 | BA59: 0.025013896 | BB59: 0.006173903 | BC59: 0.025619911 | BD59: 0 | BE59: 0 | BF59: 0.058638864 | BG59: 0.071286375 | BH59: 0 | BI59: 0.008178655 | BJ59: 0.000683692
A60: SG_1273 | B60: 14_0903_02_30cm_scaffold_112791 | C60: 1.586875475 | D60: 2.397589546 | E60: 0.720261686 | F60: 0 | G60: 0 | H60: 0 | I60: 0 | J60: 0 | K60: 0 | L60: 0 | M60: 0 | N60: 0 | O60: 0.583652788 | P60: 0.400176873 | Q60: 0 | R60: 0.137898758 | S60: 0.087342913 | T60: 0.21598951 | U60: 0.361239268 | V60: 0 | W60: 0 | X60: 0 | Y60: 0 | Z60: 0 | AA60: 0 | AB60: 0 | AC60: 0 | AD60: 0 | AE60: 0 | AF60: 0 | AG60: 0.291335417 | AH60: 0.213488682 | AI60: 0 | AJ60: 0 | AK60: 0 | AL60: 0 | AM60: 0 | AN60: 0 | AO60: 0 | AP60: 0 | AQ60: 0 | AR60: 0 | AS60: 0.286380896 | AT60: 0.271101087 | AU60: 0 | AV60: 0 | AW60: 0.070566709 | AX60: 0 | AY60: 0 | AZ60: 0 | BA60: 0 | BB60: 0 | BC60: 0 | BD60: 0 | BE60: 0 | BF60: 0 | BG60: 0 | BH60: 0 | BI60: 0.145558341 | BJ60: 0
A61: SG_3102 | B61: 14_0903_02_30cm_scaffold_113348 | C61: 0 | D61: 1.249934448 | E61: 0.887708509 | F61: 0.056452466 | G61: 0 | H61: 0 | I61: 0.122812608 | J61: 0 | K61: 0 | L61: 0 | M61: 0 | N61: 0 | O61: 0 | P61: 0.09991597 | Q61: 0 | R61: 0.187519814 | S61: 0.130482958 | T61: 0.081640524 | U61: 0 | V61: 0 | W61: 0 | X61: 0 | Y61: 0.170753781 | Z61: 0.25126838 | AA61: 0 | AB61: 0.132762942 | AC61: 0 | AD61: 0 | AE61: 0 | AF61: 0 | AG61: 0.562535528 | AH61: 0.088145417 | AI61: 0 | AJ61: 0 | AK61: 0 | AL61: 0.096511971 | AM61: 0 | AN61: 0 | AO61: 0 | AP61: 0 | AQ61: 0 | AR61: 0 | AS61: 0 | AT61: 0 | AU61: 0 | AV61: 0 | AW61: 0.346292562 | AX61: 0 | AY61: 0.082576408 | AZ61: 0 | BA61: 0 | BB61: 0 | BC61: 0 | BD61: 0 | BE61: 0.094015893 | BF61: 0 | BG61: 0 | BH61: 0 | BI61: 0.032889601 | BJ61: 0
A62: SG_223 | B62: 14_0903_02_30cm_scaffold_1173 | C62: 4.35950406 | D62: 6.318410932 | E62: 4.935595526 | F62: 0.274938931 | G62: 0.196398317 | H62: 0.135397527 | I62: 0.056684535 | J62: 0.033335633 | K62: 0.020058406 | L62: 0.006305573 | M62: 0.027340949 | N62: 0.023885028 | O62: 0.30148781 | P62: 0.211046051 | Q62: 0.06600161 | R62: 0.285847357 | S62: 0.144755933 | T62: 0.122826954 | U62: 3.117065621 | V62: 0.375611783 | W62: 0.018642813 | X62: 0.017277004 | Y62: 2.06220815 | Z62: 1.047419091 | AA62: 0.209587266 | AB62: 0.110022944 | AC62: 0.038212568 | AD62: 0.014447094 | AE62: 0.022320045 | AF62: 0.028244178 | AG62: 2.090538585 | AH62: 0.765136855 | AI62: 0.172036406 | AJ62: 0.270974031 | AK62: 0.177005224 | AL62: 0.033672364 | AM62: 0.027875339 | AN62: 0.020952044 | AO62: 0.021113352 | AP62: 0.027136692 | AQ62: 0.015360044 | AR62: 0.000765217 | AS62: 1.858393379 | AT62: 1.543311945 | AU62: 0.423684599 | AV62: 0.18837008 | AW62: 0.170615982 | AX62: 0.05400376 | AY62: 0.0272795 | AZ62: 0.02278001 | BA62: 0.005034808 | BB62: 0.033432415 | BC62: 0.022808865 | BD62: 0.021880295 | BE62: 0.185464531 | BF62: 0.117712535 | BG62: 0.048047438 | BH62: 0.187328002 | BI62: 0.109510488 | BJ62: 0.051799017
A63: SG_67 | B63: 14_0903_02_30cm_scaffold_11945 | C63: 1.224178922 | D63: 1.829737402 | E63: 0.885369518 | F63: 0.246328781 | G63: 0.154409054 | H63: 0.201417602 | I63: 0.193128985 | J63: 0.146951409 | K63: 0.027659979 | L63: 0 | M63: 0 | N63: 0 | O63: 0.141881081 | P63: 0.08557676 | Q63: 0 | R63: 0.336476795 | S63: 0.331000803 | T63: 0.152579555 | U63: 0.92013508 | V63: 0.271459668 | W63: 0 | X63: 0.072438665 | Y63: 0.462534662 | Z63: 0.563864225 | AA63: 0.297974435 | AB63: 0 | AC63: 0.149377916 | AD63: 0.029199936 | AE63: 0 | AF63: 0.069764644 | AG63: 0.301715378 | AH63: 0.240449067 | AI63: 0 | AJ63: 0.459358522 | AK63: 0 | AL63: 0.065929914 | AM63: 0 | AN63: 0 | AO63: 0 | AP63: 0 | AQ63: 0 | AR63: 0 | AS63: 0.729139821 | AT63: 0.544233082 | AU63: 0.071382775 | AV63: 0.25811753 | AW63: 0.079580674 | AX63: 0.043656335 | AY63: 0.030884562 | AZ63: 0 | BA63: 0 | BB63: 0 | BC63: 0 | BD63: 0 | BE63: 0.036122058 | BF63: 0 | BG63: 0 | BH63: 0.127295508 | BI63: 0.044731283 | BJ63: 0.041319259
A64: SG_2077 | B64: 14_0903_02_30cm_scaffold_126104 | C64: 0.790744325 | D64: 1.87029146 | E64: 1.275713552 | F64: 0.054158994 | G64: 0 | H64: 0.04223708 | I64: 0 | J64: 0 | K64: 0 | L64: 0 | M64: 0 | N64: 0 | O64: 0.187495169 | P64: 0.292201276 | Q64: 0 | R64: 0 | S64: 0 | T64: 0.061319405 | U64: 0.087571599 | V64: 0 | W64: 0 | X64: 0 | Y64: 0.315235793 | Z64: 0.619018791 | AA64: 0 | AB64: 0 | AC64: 0 | AD64: 0 | AE64: 0 | AF64: 0 | AG64: 0.196328624 | AH64: 0 | AI64: 0 | AJ64: 0.051733136 | AK64: 0 | AL64: 0 | AM64: 0 | AN64: 0 | AO64: 0.112886717 | AP64: 0 | AQ64: 0 | AR64: 0 | AS64: 0.65251812 | AT64: 0 | AU64: 0 | AV64: 0 | AW64: 0 | AX64: 0.010707005 | AY64: 0 | AZ64: 0 | BA64: 0 | BB64: 0 | BC64: 0 | BD64: 0 | BE64: 0.193188228 | BF64: 0 | BG64: 0 | BH64: 0 | BI64: 0.013535031 | BJ64: 0.018796429
A65: SG_1122 | B65: 14_0903_02_30cm_scaffold_127244 | C65: 1.411327955 | D65: 1.975712325 | E65: 0.921274825 | F65: 0.227898724 | G65: 0 | H65: 0 | I65: 0.028125084 | J65: 0 | K65: 0 | L65: 0 | M65: 0 | N65: 0 | O65: 0 | P65: 0 | Q65: 0 | R65: 0.823497092 | S65: 0.308154587 | T65: 0.069755029 | U65: 0.22386225 | V65: 0.403880739 | W65: 0 | X65: 0 | Y65: 0 | Z65: 0 | AA65: 0.104528782 | AB65: 0 | AC65: 0 | AD65: 0 | AE65: 0 | AF65: 0 | AG65: 0.125627414 | AH65: 0.07629385 | AI65: 0 | AJ65: 0 | AK65: 0 | AL65: 0 | AM65: 0 | AN65: 0 | AO65: 0 | AP65: 0 | AQ65: 0 | AR65: 0 | AS65: 0.912752592 | AT65: 0.350706369 | AU65: 0 | AV65: 0.1358206 | AW65: 0 | AX65: 0 | AY65: 0 | AZ65: 0 | BA65: 0 | BB65: 0 | BC65: 0 | BD65: 0 | BE65: 0 | BF65: 0 | BG65: 0 | BH65: 0.26792992 | BI65: 0.044015041 | BJ65: 0
A66: SG_1517 | B66: 14_0903_02_30cm_scaffold_127274 | C66: 0.483221694 | D66: 0.488413755 | E66: 0 | F66: 0.078171909 | G66: 0.180662471 | H66: 0.233869962 | I66: 0 | J66: 0 | K66: 0 | L66: 0 | M66: 0 | N66: 0 | O66: 0.402563136 | P66: 0.107918851 | Q66: 0 | R66: 0.29463061 | S66: 0.070467068 | T66: 0 | U66: 0.460724109 | V66: 0.758805072 | W66: 0.074895905 | X66: 0 | Y66: 0.276645744 | Z66: 0.135697 | AA66: 0 | AB66: 0 | AC66: 0.163865449 | AD66: 0 | AE66: 0 | AF66: 0 | AG66: 0.180984981 | AH66: 0 | AI66: 0 | AJ66: 0.491537917 | AK66: 0.085398328 | AL66: 0 | AM66: 0.496897663 | AN66: 0.087607599 | AO66: 0 | AP66: 0 | AQ66: 0 | AR66: 0 | AS66: 0.381229515 | AT66: 0 | AU66: 0 | AV66: 0 | AW66: 0.229818281 | AX66: 0 | AY66: 0.162164469 | AZ66: 0 | BA66: 0 | BB66: 0 | BC66: 0 | BD66: 0 | BE66: 0.579736494 | BF66: 0.255855196 | BG66: 0 | BH66: 0.079496159 | BI66: 0 | BJ66: 0.029831115
A67: SG_83 | B67: 14_0903_02_30cm_scaffold_129069 | C67: 1.658784387 | D67: 2.297953401 | E67: 2.327807338 | F67: 0.350155809 | G67: 0 | H67: 0.365139064 | I67: 0 | J67: 0 | K67: 0 | L67: 0 | M67: 0 | N67: 0 | O67: 0 | P67: 0.131003097 | Q67: 0 | R67: 0 | S67: 0.017108048 | T67: 0 | U67: 0.786713107 | V67: 0.350624718 | W67: 0 | X67: 0 | Y67: 1.549255615 | Z67: 0.494169291 | AA67: 0.309890997 | AB67: 0.185180678 | AC67: 0 | AD67: 0 | AE67: 0 | AF67: 0 | AG67: 1.011658577 | AH67: 0.57497681 | AI67: 0.212504024 | AJ67: 0.74900016 | AK67: 0.207330701 | AL67: 0 | AM67: 0 | AN67: 0 | AO67: 0 | AP67: 0 | AQ67: 0 | AR67: 0 | AS67: 1.493994979 | AT67: 1.291619417 | AU67: 0 | AV67: 0 | AW67: 0.27897727 | AX67: 0.434159551 | AY67: 0 | AZ67: 0 | BA67: 0 | BB67: 0 | BC67: 0 | BD67: 0 | BE67: 0 | BF67: 0 | BG67: 0 | BH67: 0 | BI67: 0 | BJ67: 0
A68: SG_187 | B68: 14_0903_02_30cm_scaffold_129263 | C68: 1.732848674 | D68: 1.281575793 | E68: 2.17871088 | F68: 0.690820807 | G68: 0.205080336 | H68: 0.147678147 | I68: 0.236818078 | J68: 0 | K68: 0.087635071 | L68: 0.556056761 | M68: 0 | N68: 0.128314489 | O68: 0.256815451 | P68: 0.287699647 | Q68: 0 | R68: 0.825244085 | S68: 0.276769594 | T68: 0.211181812 | U68: 0.30159342 | V68: 0.605621639 | W68: 0.588328984 | X68: 0 | Y68: 0.136726239 | Z68: 0.516980493 | AA68: 0.352060173 | AB68: 0.149790269 | AC68: 0 | AD68: 0 | AE68: 0 | AF68: 0 | AG68: 0.338497462 | AH68: 0.186036539 | AI68: 0 | AJ68: 0.798206095 | AK68: 0.096012337 | AL68: 0 | AM68: 0.446030461 | AN68: 0 | AO68: 0.18338574 | AP68: 0 | AQ68: 0.205440926 | AR68: 0.200192561 | AS68: 1.329507828 | AT68: 0.472481329 | AU68: 0 | AV68: 0.283620974 | AW68: 0.225661127 | AX68: 0.140474431 | AY68: 0.159231096 | AZ68: 0 | BA68: 0 | BB68: 0.335884602 | BC68: 0 | BD68: 0 | BE68: 0.543869155 | BF68: 0.125613532 | BG68: 0 | BH68: 0.180481303 | BI68: 0.240839812 | BJ68: 0.058583007
A69: SG_15 | B69: 14_0903_02_30cm_scaffold_13038 | C69: 1.301154152 | D69: 2.209974986 | E69: 1.98445267 | F69: 0.338917889 | G69: 0.827856274 | H69: 0.971303958 | I69: 0 | J69: 0 | K69: 0.09665577 | L69: 0 | M69: 0 | N69: 0.094113061 | O69: 0.18106844 | P69: 0.263292015 | Q69: 0.308228597 | R69: 0.644787243 | S69: 0.705020674 | T69: 0.659454096 | U69: 1.23976909 | V69: 0.581405624 | W69: 0.030822204 | X69: 0.04092677 | Y69: 1.83673223 | Z69: 2.342750254 | AA69: 0.963500283 | AB69: 1.229980263 | AC69: 0 | AD69: 0 | AE69: 0.074515478 | AF69: 0 | AG69: 1.648609998 | AH69: 1.971839123 | AI69: 1.656818984 | AJ69: 0.677019129 | AK69: 0.991901832 | AL69: 0.550029412 | AM69: 0 | AN69: 0 | AO69: 0 | AP69: 0 | AQ69: 0 | AR69: 0 | AS69: 1.244101214 | AT69: 1.818478053 | AU69: 2.130739818 | AV69: 0.369996758 | AW69: 0.739824067 | AX69: 1.760277757 | AY69: 0 | AZ69: 0.034854364 | BA69: 0.111034978 | BB69: 0.034267441 | BC69: 0 | BD69: 0 | BE69: 0.233275862 | BF69: 0.19904088 | BG69: 0.183784805 | BH69: 0.862589473 | BI69: 0.822248272 | BJ69: 0.623517738
A70: SG_2240 | B70: 14_0903_02_30cm_scaffold_1305 | C70: 2.664750151 | D70: 3.629421868 | E70: 2.370641919 | F70: 0.054332512 | G70: 0.050543327 | H70: 0.016573008 | I70: 0.02991045 | J70: 0.013539218 | K70: 0 | L70: 0.011576495 | M70: 0.00830697 | N70: 0.015658319 | O70: 0.154940894 | P70: 0.178176772 | Q70: 0.008126867 | R70: 0.053227442 | S70: 0.021456744 | T70: 0.009358424 | U70: 0.477939776 | V70: 0.02706068 | W70: 0.003674511 | X70: 0.009235271 | Y70: 0.760392845 | Z70: 1.044383222 | AA70: 0.009102552 | AB70: 0.025749653 | AC70: 0.013799408 | AD70: 0.021483534 | AE70: 0.019230632 | AF70: 0 | AG70: 0.223629492 | AH70: 0.054370635 | AI70: 0.014464466 | AJ70: 0.03075658 | AK70: 0.010374682 | AL70: 0.008154981 | AM70: 0.034826538 | AN70: 0.007504734 | AO70: 0.00799939 | AP70: 0.03531195 | AQ70: 0.017922901 | AR70: 0 | AS70: 2.168592009 | AT70: 1.119445754 | AU70: 0.176589108 | AV70: 0.002249402 | AW70: 0.018568358 | AX70: 0.015388569 | AY70: 0.028035579 | AZ70: 0.015005492 | BA70: 0.017192072 | BB70: 0.008058313 | BC70: 0.024572881 | BD70: 0.02761653 | BE70: 0.103989688 | BF70: 0.141516255 | BG70: 0.065049927 | BH70: 0.014707631 | BI70: 0.042754131 | BJ70: 0.02199988
A71: SG_1645 | B71: 14_0903_02_30cm_scaffold_130792 | C71: 0.418145962 | D71: 1.75821781 | E71: 0.390817801 | F71: 0.105149257 | G71: 0 | H71: 0.101150852 | I71: 0 | J71: 0 | K71: 0 | L71: 0 | M71: 0 | N71: 0 | O71: 0 | P71: 0.004398847 | Q71: 0 | R71: 0 | S71: 0 | T71: 0.019724609 | U71: 0 | V71: 0 | W71: 0.076930785 | X71: 0 | Y71: 0.195079506 | Z71: 0 | AA71: 0.096456211 | AB71: 0 | AC71: 0 | AD71: 0.044792017 | AE71: 0 | AF71: 0 | AG71: 0 | AH71: 0 | AI71: 0 | AJ71: 0 | AK71: 0 | AL71: 0 | AM71: 0.11139641 | AN71: 0 | AO71: 0 | AP71: 0 | AQ71: 0 | AR71: 0 | AS71: 0 | AT71: 0 | AU71: 0 | AV71: 0 | AW71: 0 | AX71: 0 | AY71: 0 | AZ71: 0 | BA71: 0 | BB71: 0.117122072 | BC71: 0 | BD71: 0 | BE71: 0 | BF71: 0 | BG71: 0 | BH71: 0 | BI71: 0.08707625 | BJ71: 0
